Workbook

Sheet wizualizacja
S1: 2018-10-18T12:51:11
B4: ① Wariant czasu urzędowego | E4: regularne zmiany czasu na letni i zimowy
B5: ② Miejscowość | E5: Warszawa | M5: Średni lokalny czas słoneczny w wybranej lokalizacji*:
B6: ③ "Pierwszy budzik" | E6: 6 | F6: 0
B7: ④ "Czas wolny" | E7: 17 | F7: 30
B8: ⑤ Wschód/zachód Słońca lub rodzaj świtu/zmierzchu | E8: wschód/zachód słońca (słońce znajduje się 0,833° poniżej linii horyzontu - efekt refrakcji) | M8: =CONCATENATE("UTC+ ",ROUNDDOWN('dane i obliczenia'!F6/15,0)," h ",ROUND(60*('dane i obliczenia'!F6/15-ROUNDDOWN('dane i obliczenia'!F6/15,0)),0)," min") -> UTC+ 1 h 24 min
M9: * - UTC jest to czas atomowy, koordynowany z czasem słonecznym na południku zerowym.
E10: dzień | F10: miesiąc | G10: rok
B11: ⑥ Zmiana czasu na letni | E11: 25 | F11: 3 | G11: 2018
B12: ⑦ Zmiana czasu na zimowy | E12: 28 | F12: 10 | G12: 2018
C38: Twój poranek | K38: Twoje popołudnie/wieczór
B74: ⑧ Wybierz dzień do wykonania szczegółowej analizy | G74: ='dane i obliczenia'!J3 -> 2018-03-11
B76: za pomocą suwaka | H76: lub wybierz dzisiejszy dzień
F77: 2018-10-22T23:40:16
H78: 43391.54429
B95: Poglądowy widok "z okna" na przykładzie okolic wejścia do Głównego Urzędu Miar, Warszawa, ul. Elektoralna 2
H96: w dniu | I96: =G74 -> 2018-03-11
A97: w momencie "Pierwszego budzika", godz. | H97: ='dane i obliczenia'!S5 -> 06:00:00 | I97: w momencie początku "Czasu wolnego", godz. | P97: ='dane i obliczenia'!T5 -> 17:30:00

Sheet dane i obliczenia (hidden)
D1: =wizualizacja!E5 -> Warszawa | J1: dzień z suwaka | K1: dzień z przycisku | L1: data z przycisku | AF1: godziny z dnia zdjęć | AG1: godziny aktualne | AH1: różnica
D2: =wizualizacja!E4 -> regularne zmiany czasu na letni i zimowy | J2: 70 | K2: =INT(L2-DATE(YEAR(L2),1,0)) -> 295 | L2: =wizualizacja!F77 -> 2018-10-22T23:40:16 | N2: zmiana czasu na letni | Q2: =DATE(wizualizacja!G11,wizualizacja!F11,wizualizacja!E11) -> 2018-03-25 | AE2: świt astronomiczny | AF2: 5.042124629 | AG2: =SUM($J$5)*24 -> 4.105633597 | AH2: =AF2-AG2 -> 0.9364910314
C3: =wizualizacja!B6 -> ③ "Pierwszy budzik" | F3: =wizualizacja!E6 -> 6 | G3: =wizualizacja!F6 -> 0 | J3: =IF(NOW()-wizualizacja!F77<0.00001,INDIRECT("A"&K2+10),INDIRECT("A"&J2+10)) -> 2018-03-11 | K3: =_xlfn.CONCAT("Twój dzień - ",TEXT(wizualizacja!G74,"[$-x-sysdate]dddd, mmmm dd, rrrr")) -> Twój dzień - niedziela, 11 marzec 2018 | N3: zmiana czasu na zimowy | Q3: =DATE(wizualizacja!G12,wizualizacja!F12,wizualizacja!E12) -> 2018-10-28 | AE3: świt żeglarski | AF3: 5.700812861 | AG3: =SUM($J$5:$K$5)*24 -> 4.77787279 | AH3: =AF3-AG3 -> 0.9229400704
C4: =wizualizacja!B7 -> ④ "Czas wolny" | F4: =wizualizacja!E7 -> 17 | G4: =wizualizacja!F7 -> 30 | J4: =U10 -> świt astronomiczny (słońce znajduje się 18° poniżej linii horyzontu) | K4: =V10 -> świt żeglarski, lub nawigacyjny (słońce znajduje się 12° poniżej linii horyzontu) | L4: świt cywilny, lub kalendarzowy (słońce znajduje się 6° poniżej linii horyzontu) | M4: wschód słońca (słońce znajduje się 0,833° poniżej linii horyzontu - efekt refrakcji) | N4: południe słoneczne (słońce jest najwyżej na niebie i przechodzi nad południkiem, na którym znajduje się obserwator) | O4: zachód słońca (słońce znajduje się 0,833° poniżej linii horyzontu - efekt refrakcji) | P4: zmierzch cywilny, lub kalendarzowy (słońce znajduje się 6° poniżej linii horyzontu) | Q4: zmierzch żeglarski, lub nawigacyjny (słońce znajduje się 12° poniżej linii horyzontu) | R4: zmierzch astronomiczny (słońce znajduje się 18° poniżej linii horyzontu) | S4: =C3 -> ③ "Pierwszy budzik" | T4: =C4 -> ④ "Czas wolny" | U4: północ | AE4: świt cywilny | AF4: 6.35395585 | AG4: =SUM($J$5:$L$5)*24 -> 5.434102233 | AH4: 0.9198536169
C5: szerokość geograficzna | F5: =VLOOKUP(D1,metadane!M6:O2345,2,FALSE) -> 52.2 | J5: =IF(VLOOKUP(J3,T11:AC375,2,FALSE)=0,0,VLOOKUP(J3,T11:AC375,2,FALSE)+IF('dane i obliczenia'!$D$2=metadane!$A$2,1/24,0)+IF(AND('dane i obliczenia'!$D$2=metadane!$A$1,J3>$Q$2,J3<$Q$3),1/24,0)) -> 04:06:20.281 | K5: =IF(VLOOKUP(J3,T11:AC375,3,FALSE)=0,0,VLOOKUP(J3,T11:AC375,3,FALSE)-J5+IF(AND('dane i obliczenia'!$D$2=metadane!$A$1,J3>$Q$2,J3<$Q$3),1/24,0)+IF('dane i obliczenia'!$D$2=metadane!$A$2,1/24,0)) -> 00:40:20.061 | L5: =VLOOKUP(J3,T11:AC375,4,FALSE)-SUM(J5:K5)+IF('dane i obliczenia'!$D$2=metadane!$A$2,1/24,0)+IF(AND('dane i obliczenia'!$D$2=metadane!$A$1,J3>$Q$2,J3<$Q$3),1/24,0) -> 00:39:22.426 | M5: =VLOOKUP(J3,T11:AC375,5,FALSE)-SUM(J5:L5)+IF('dane i obliczenia'!$D$2=metadane!$A$2,1/24,0)+IF(AND('dane i obliczenia'!$D$2=metadane!$A$1,J3>$Q$2,J3<$Q$3),1/24,0) -> 00:33:45.303 | N5: =VLOOKUP(J3,T11:AC375,6,FALSE)+IF('dane i obliczenia'!$D$2=metadane!$A$2,1/24,0)+IF(AND('dane i obliczenia'!$D$2=metadane!$A$1,J3>$Q$2,J3<$Q$3),1/24,0) -> 11:45:52.923 | O5: =VLOOKUP(J3,T11:AC375,7,FALSE)-SUM(J5:M5)+IF('dane i obliczenia'!$D$2=metadane!$A$2,1/24,0)+IF(AND('dane i obliczenia'!$D$2=metadane!$A$1,J3>$Q$2,J3<$Q$3),1/24,0) -> 11:33:08.099 | P5: =VLOOKUP(J3,T11:AC375,8,FALSE)-SUM(J5:M5,O5)+IF('dane i obliczenia'!$D$2=metadane!$A$2,1/24,0)+IF(AND('dane i obliczenia'!$D$2=metadane!$A$1,J3>$Q$2,J3<$Q$3),1/24,0) -> 00:33:45.010 | Q5: =VLOOKUP(J3,T11:AC375,9,FALSE)-SUM(J5:M5,O5:P5)+IF('dane i obliczenia'!$D$2=metadane!$A$2,1/24,0)+IF(AND('dane i obliczenia'!$D$2=metadane!$A$1,J3>$Q$2,J3<$Q$3),1/24,0) -> 00:39:23.725 | R5: =VLOOKUP(J3,T11:AC375,10,FALSE)-SUM(J5:M5,O5:Q5)+IF('dane i obliczenia'!$D$2=metadane!$A$2,1/24,0)+IF(AND('dane i obliczenia'!$D$2=metadane!$A$1,J3>$Q$2,J3<$Q$3),1/24,0) -> 00:40:23.493 | S5: =D11 -> 06:00:00 | T5: =I11 -> 17:30:00 | U5: =1-SUM(J5:M5,O5:R5) -> 04:33:31.603 | AE5: wschód | AF5: 6.921334398 | AG5: =SUM($J$5:$M$5)*24 -> 5.996686346 | AH5: 0.9246480519
C6: długość geograficzna | F6: =VLOOKUP(D1,metadane!M6:O2345,3,FALSE) -> 21.03333333 | J6: =VLOOKUP(J3,T11:AC375,2,FALSE) -> 04:06:20.281 | K6: =(VLOOKUP(J3,T11:AC375,3,FALSE)) -> 04:46:40.342 | N6: =N5 -> 11:45:52.923 | P6: =O5+P5+Q5+L5+M5 -> 13:59:24.562 | Q6: =VLOOKUP(J3,T11:AC375,9,FALSE) -> 0.7820012035 | S6: =S5 -> 06:00:00 | T6: =T5 -> 17:30:00 | AE6: południe | AF6: 12.37279697 | AG6: =$N$5*24 -> 11.76470078 | AH6: 0.6080961844
C7: wschód | D7: =IF(wizualizacja!E8=metadane!Q1,metadane!F1,IF(wizualizacja!E8=metadane!Q2,metadane!F2,IF(wizualizacja!E8=metadane!Q3,metadane!F3,IF(wizualizacja!E8=metadane!Q4,metadane!F4,0)))) -> wschód słońca (słońce znajduje się 0,833° poniżej linii horyzontu - efekt refrakcji) | AE7: zachód | AF7: 17.80930311 | AG7: =SUM($J$5:$M$5,$O$5)*24 -> 17.54893596 | AH7: 0.2603671567
C8: zachód | D8: =IF(wizualizacja!E8=metadane!Q1,metadane!F9,IF(wizualizacja!E8=metadane!Q2,metadane!F8,IF(wizualizacja!E8=metadane!Q3,metadane!F7,IF(wizualizacja!E8=metadane!Q4,metadane!F6,0)))) -> zachód słońca (słońce znajduje się 0,833° poniżej linii horyzontu - efekt refrakcji) | AE8: zmierzch cywilny | AF8: 18.37706061 | AG8: =SUM($J$5:$M$5,$O$5:$P$5)*24 -> 18.11143864 | AH8: 0.2656219732
AE9: zmierzch żeglarski | AF9: 19.03023537 | AG9: =SUM($J$5:$M$5,$O$5:$Q$5)*24 -> 18.76802888 | AH9: 0.2622064867
B10: wschód | C10: zachód | D10: pobudka | E10: godziny słoneczne | F10: godziny od pobudki | G10: liczba godzin ciemnych o poranku | I10: powrót | U10: świt astronomiczny (słońce znajduje się 18° poniżej linii horyzontu) | V10: świt żeglarski, lub nawigacyjny (słońce znajduje się 12° poniżej linii horyzontu) | W10: świt cywilny, lub kalendarzowy (słońce znajduje się 6° poniżej linii horyzontu) | X10: wschód słońca (słońce znajduje się 0,833° poniżej linii horyzontu - efekt refrakcji) | Y10: południe słoneczne (słońce jest najwyżej na niebie i przechodzi nad południkiem, na którym znajduje się obserwator) | Z10: zachód słońca (słońce znajduje się 0,833° poniżej linii horyzontu - efekt refrakcji) | AA10: zmierzch cywilny, lub kalendarzowy (słońce znajduje się 6° poniżej linii horyzontu) | AB10: zmierzch żeglarski, lub nawigacyjny (słońce znajduje się 12° poniżej linii horyzontu) | AC10: zmierzch astronomiczny (słońce znajduje się 18° poniżej linii horyzontu) | AE10: zmierzch astronomiczny | AF10: 19.68849722 | AG10: =SUM($J$5:$M$5,$O$5:$R$5)*24 -> 19.44122131 | AH10: 0.2472759082
A11: =DATE(YEAR(Q2),1,1) -> 2018-01-01 | B11: =IF(IF($D$7=$U$10,U11,IF($D$7=$V$10,V11,IF($D$7=$W$10,W11,IF($D$7=$X$10,X11,X11))))=0,0,IF($D$7=$U$10,U11,IF($D$7=$V$10,V11,IF($D$7=$W$10,W11,IF($D$7=$X$10,X11,X11))))+IF('dane i obliczenia'!$D$2=metadane!$A$2,1/24,0)+IF(AND('dane i obliczenia'!$D$2=metadane!$A$1,A11>$Q$2,A11<$Q$3),1/24,0)) -> 07:45:01.032 | C11: =IF(IF($D$8=$Z$10,Z11,IF($D$8=$AA$10,AA11,IF($D$8=$AB$10,AB11,IF($D$8=$AC$10,AC11,Z11))))+IF('dane i obliczenia'!$D$2=metadane!$A$2,1/24,0)+IF(AND('dane i obliczenia'!$D$2=metadane!$A$1,A11>$Q$2,A11<$Q$3),1/24,0)>0.99999,0.99999,IF($D$8=$Z$10,Z11,IF($D$8=$AA$10,AA11,IF($D$8=$AB$10,AB11,IF($D$8=$AC$10,AC11,Z11))))+IF('dane i obliczenia'!$D$2=metadane!$A$2,1/24,0)+IF(AND('dane i obliczenia'!$D$2=metadane!$A$1,A11>$Q$2,A11<$Q$3),1/24,0)) -> 15:33:58.187 | D11: =$F$3/24+$G$3/24/60 -> 06:00:00 | E11: =(C11-B11)*24 -> 7.815876339 | F11: =IF(D11>B11,C11-D11,C11-B11)*24 -> 7.815876339 | G11: =IF((B11-D11)*24>0,(B11-D11)*24,0) -> 1.7502866 | H11: =IF((B11-D11)*24<0,(B11-D11)*24,0) -> 0 | I11: =$F$4/24+$G$4/24/60 -> 17:30:00 | J11: =IF((C11-I11)*24<0,(C11-I11)*24,0) -> -1.93383706 | K11: =IF((C11-I11)*24<0,0,(C11-I11)*24) -> 0 | L11: =A11 -> 2018-01-01 | M11: 04:00:00 | N11: 08:00:00 | O11: 12:00:00 | P11: 16:00:00 | Q11: 20:00:00 | R11: 0 | S11: =X11-V11 -> 01:24:32.215 | T11: =A11 -> 2018-01-01 | U11: =IFERROR(dawn($F$5,$F$6,YEAR(A11),MONTH(A11),DAY(A11),1,0,18),0) -> 05:39:11.363 | V11: =IFERROR(dawn($F$5,$F$6,YEAR(A11),MONTH(A11),DAY(A11),1,0,12),0) -> 06:20:28.817 | W11: =dawn($F$5,$F$6,YEAR(A11),MONTH(A11),DAY(A11),1,0,6) -> 07:04:10.829 | X11: =sunrise($F$5,$F$6,YEAR(A11),MONTH(A11),DAY(A11),1,0) -> 07:45:01.032 | Y11: =solarnoon($F$5,$F$6,YEAR(A11),MONTH(A11),DAY(A11),1,0) -> 11:39:23.769 | Z11: =sunset($F$5,$F$6,YEAR(A11),MONTH(A11),DAY(A11),1,0) -> 15:33:58.187 | AA11: =dusk($F$5,$F$6,YEAR(A11),MONTH(A11),DAY(A11),1,0,6) -> 16:14:46.939 | AB11: =IFERROR(dusk($F$5,$F$6,YEAR(A11),MONTH(A11),DAY(A11),1,0,12),0.99999) -> 16:58:27.905 | AC11: =IFERROR(dusk($F$5,$F$6,YEAR(A11),MONTH(A11),DAY(A11),1,0,18),0.99999) -> 17:39:44.716 | AE11: "Pierwszy budzik" | AF11: =AG11+AH11 -> 6.924466197 | AG11: =$S$5*24 -> 6 | AH11: =IF(AG11<AG2,AVERAGE(AH2:AH3),FORECAST(AG11,OFFSET(AH2:AH10,MATCH(AG11,AG2:AG10,1)-1,0,2),OFFSET(AG2:AG10,MATCH(AG11,AG2:AG10,1)-1,0,2))) -> 0.9244661968 | AI11: =INDEX('metadane obrazy'!C1:C48,MATCH(MIN('metadane obrazy'!D1:D48),'metadane obrazy'!D1:D48,0)) -> 7 | AM11: 2019-01-01
A12: =A11+1 -> 2018-01-02 | B12: =IF(IF($D$7=$U$10,U12,IF($D$7=$V$10,V12,IF($D$7=$W$10,W12,IF($D$7=$X$10,X12,X12))))=0,0,IF($D$7=$U$10,U12,IF($D$7=$V$10,V12,IF($D$7=$W$10,W12,IF($D$7=$X$10,X12,X12))))+IF('dane i obliczenia'!$D$2=metadane!$A$2,1/24,0)+IF(AND('dane i obliczenia'!$D$2=metadane!$A$1,A12>$Q$2,A12<$Q$3),1/24,0)) -> 07:44:52.521 | C12: =IF(IF($D$8=$Z$10,Z12,IF($D$8=$AA$10,AA12,IF($D$8=$AB$10,AB12,IF($D$8=$AC$10,AC12,Z12))))+IF('dane i obliczenia'!$D$2=metadane!$A$2,1/24,0)+IF(AND('dane i obliczenia'!$D$2=metadane!$A$1,A12>$Q$2,A12<$Q$3),1/24,0)>0.99999,0.99999,IF($D$8=$Z$10,Z12,IF($D$8=$AA$10,AA12,IF($D$8=$AB$10,AB12,IF($D$8=$AC$10,AC12,Z12))))+IF('dane i obliczenia'!$D$2=metadane!$A$2,1/24,0)+IF(AND('dane i obliczenia'!$D$2=metadane!$A$1,A12>$Q$2,A12<$Q$3),1/24,0)) -> 15:35:03.829 | D12: =$F$3/24+$G$3/24/60 -> 06:00:00 | E12: =(C12-B12)*24 -> 7.83647451 | F12: =IF(D12>B12,C12-D12,C12-B12)*24 -> 7.83647451 | G12: =IF((B12-D12)*24>0,(B12-D12)*24,0) -> 1.747922523 | H12: =IF((B12-D12)*24<0,(B12-D12)*24,0) -> 0 | I12: =$F$4/24+$G$4/24/60 -> 17:30:00 | J12: =IF((C12-I12)*24<0,(C12-I12)*24,0) -> -1.915602966 | K12: =IF((C12-I12)*24<0,0,(C12-I12)*24) -> 0 | L12: =A375 -> 2018-12-31 | M12: 04:00:00 | N12: 08:00:00 | O12: 12:00:00 | P12: 16:00:00 | Q12: 20:00:00 | R12: 0 | S12: =X12-V12 -> 01:24:24.325 | T12: =A12 -> 2018-01-02 | U12: =IFERROR(dawn($F$5,$F$6,YEAR(A12),MONTH(A12),DAY(A12),1,0,18),0) -> 05:39:12.770 | V12: =IFERROR(dawn($F$5,$F$6,YEAR(A12),MONTH(A12),DAY(A12),1,0,12),0) -> 06:20:28.196 | W12: =dawn($F$5,$F$6,YEAR(A12),MONTH(A12),DAY(A12),1,0,6) -> 07:04:06.902 | X12: =sunrise($F$5,$F$6,YEAR(A12),MONTH(A12),DAY(A12),1,0) -> 07:44:52.521 | Y12: =solarnoon($F$5,$F$6,YEAR(A12),MONTH(A12),DAY(A12),1,0) -> 11:39:51.804 | Z12: =sunset($F$5,$F$6,YEAR(A12),MONTH(A12),DAY(A12),1,0) -> 15:35:03.829 | AA12: =dusk($F$5,$F$6,YEAR(A12),MONTH(A12),DAY(A12),1,0,6) -> 16:15:47.876 | AB12: =IFERROR(dusk($F$5,$F$6,YEAR(A12),MONTH(A12),DAY(A12),1,0,12),0.99999) -> 16:59:25.448 | AC12: =IFERROR(dusk($F$5,$F$6,YEAR(A12),MONTH(A12),DAY(A12),1,0,18),0.99999) -> 17:40:40.178 | AE12: "Czas wolny" | AF12: =AG12+AH12 -> 17.76330902 | AG12: =$T$5*24 -> 17.5 | AH12: =IF(AG12>AG10,AVERAGE(AH9:AH10),FORECAST(AG12,OFFSET(AH2:AH10,MATCH(AG12,AG2:AG10,1)-1,0,2),OFFSET(AG2:AG10,MATCH(AG12,AG2:AG10,1)-1,0,2))) -> 0.263309024 | AI12: =INDEX('metadane obrazy'!C1:C48,MATCH(MIN('metadane obrazy'!E1:E48),'metadane obrazy'!E1:E48,0)) -> 18 | AM12: 2019-01-02
A13: =A12+1 -> 2018-01-03 | B13: =IF(IF($D$7=$U$10,U13,IF($D$7=$V$10,V13,IF($D$7=$W$10,W13,IF($D$7=$X$10,X13,X13))))=0,0,IF($D$7=$U$10,U13,IF($D$7=$V$10,V13,IF($D$7=$W$10,W13,IF($D$7=$X$10,X13,X13))))+IF('dane i obliczenia'!$D$2=metadane!$A$2,1/24,0)+IF(AND('dane i obliczenia'!$D$2=metadane!$A$1,A13>$Q$2,A13<$Q$3),1/24,0)) -> 07:44:40.564 | C13: =IF(IF($D$8=$Z$10,Z13,IF($D$8=$AA$10,AA13,IF($D$8=$AB$10,AB13,IF($D$8=$AC$10,AC13,Z13))))+IF('dane i obliczenia'!$D$2=metadane!$A$2,1/24,0)+IF(AND('dane i obliczenia'!$D$2=metadane!$A$1,A13>$Q$2,A13<$Q$3),1/24,0)>0.99999,0.99999,IF($D$8=$Z$10,Z13,IF($D$8=$AA$10,AA13,IF($D$8=$AB$10,AB13,IF($D$8=$AC$10,AC13,Z13))))+IF('dane i obliczenia'!$D$2=metadane!$A$2,1/24,0)+IF(AND('dane i obliczenia'!$D$2=metadane!$A$1,A13>$Q$2,A13<$Q$3),1/24,0)) -> 15:36:12.220 | D13: 06:00:00 | E13: 7.858793289 | F13: 7.858793289 | G13: 1.744601211 | H13: 0 | I13: 17:30:00 | J13: -1.8966055 | K13: 0 | L13: =$J$3 -> 2018-03-11 | M13: 00:00:01 | N13: 4 | O13: =MIN(G11:H375) -> -1.76550053 | P13: =MIN(J11:J375) -> -2.11335361 | R13: 0 | S13: 01:24:15.819 | T13: 2018-01-03 | U13: =IFERROR(dawn($F$5,$F$6,YEAR(A13),MONTH(A13),DAY(A13),1,0,18),0) -> 05:39:11.504 | V13: 06:20:24.746 | W13: 07:03:59.886 | X13: 07:44:40.564 | Y13: 11:40:19.493 | Z13: 15:36:12.220 | AA13: 16:16:51.207 | AB13: 17:00:25.127 | AC13: 17:41:37.622 | AM13: 2019-01-03
A14: 2018-01-04 | B14: =IF(IF($D$7=$U$10,U14,IF($D$7=$V$10,V14,IF($D$7=$W$10,W14,IF($D$7=$X$10,X14,X14))))=0,0,IF($D$7=$U$10,U14,IF($D$7=$V$10,V14,IF($D$7=$W$10,W14,IF($D$7=$X$10,X14,X14))))+IF('dane i obliczenia'!$D$2=metadane!$A$2,1/24,0)+IF(AND('dane i obliczenia'!$D$2=metadane!$A$1,A14>$Q$2,A14<$Q$3),1/24,0)) -> 07:44:25.180 | C14: =IF(IF($D$8=$Z$10,Z14,IF($D$8=$AA$10,AA14,IF($D$8=$AB$10,AB14,IF($D$8=$AC$10,AC14,Z14))))+IF('dane i obliczenia'!$D$2=metadane!$A$2,1/24,0)+IF(AND('dane i obliczenia'!$D$2=metadane!$A$1,A14>$Q$2,A14<$Q$3),1/24,0)>0.99999,0.99999,IF($D$8=$Z$10,Z14,IF($D$8=$AA$10,AA14,IF($D$8=$AB$10,AB14,IF($D$8=$AC$10,AC14,Z14))))+IF('dane i obliczenia'!$D$2=metadane!$A$2,1/24,0)+IF(AND('dane i obliczenia'!$D$2=metadane!$A$1,A14>$Q$2,A14<$Q$3),1/24,0)) -> 15:37:23.281 | D14: 06:00:00 | E14: 7.882805707 | F14: 7.882805707 | G14: 1.740327897 | H14: 0 | I14: 17:30:00 | J14: -1.876866396 | K14: 0 | L14: =$J$3 -> 2018-03-11 | M14: 23:59:59 | N14: 18 | O14: =MAX(G11:G375) -> 1.752125696 | P14: =MAX(K11:K375) -> 3.520051653 | R14: 1 | S14: 01:24:06.718 | T14: 2018-01-04 | U14: =IFERROR(dawn($F$5,$F$6,YEAR(A14),MONTH(A14),DAY(A14),1,0,18),0) -> 05:39:07.556 | V14: 06:20:18.462 | W14: 07:03:49.787 | X14: 07:44:25.180 | Y14: 11:40:46.808 | Z14: 15:37:23.281 | AA14: 16:17:56.869 | AB14: 17:01:26.890 | AC14: 17:42:36.999 | AM14: 2019-01-04
A15: 2018-01-05 | B15: =IF(IF($D$7=$U$10,U15,IF($D$7=$V$10,V15,IF($D$7=$W$10,W15,IF($D$7=$X$10,X15,X15))))=0,0,IF($D$7=$U$10,U15,IF($D$7=$V$10,V15,IF($D$7=$W$10,W15,IF($D$7=$X$10,X15,X15))))+IF('dane i obliczenia'!$D$2=metadane!$A$2,1/24,0)+IF(AND('dane i obliczenia'!$D$2=metadane!$A$1,A15>$Q$2,A15<$Q$3),1/24,0)) -> 07:44:06.392 | C15: =IF(IF($D$8=$Z$10,Z15,IF($D$8=$AA$10,AA15,IF($D$8=$AB$10,AB15,IF($D$8=$AC$10,AC15,Z15))))+IF('dane i obliczenia'!$D$2=metadane!$A$2,1/24,0)+IF(AND('dane i obliczenia'!$D$2=metadane!$A$1,A15>$Q$2,A15<$Q$3),1/24,0)>0.99999,0.99999,IF($D$8=$Z$10,Z15,IF($D$8=$AA$10,AA15,IF($D$8=$AB$10,AB15,IF($D$8=$AC$10,AC15,Z15))))+IF('dane i obliczenia'!$D$2=metadane!$A$2,1/24,0)+IF(AND('dane i obliczenia'!$D$2=metadane!$A$1,A15>$Q$2,A15<$Q$3),1/24,0)) -> 15:38:36.931 | D15: 06:00:00 | E15: 7.908483128 | F15: 7.908483128 | G15: 1.735108836 | H15: 0 | I15: 17:30:00 | J15: -1.856408036 | K15: 0 | S15: 01:23:57.049 | T15: 2018-01-05 | U15: =IFERROR(dawn($F$5,$F$6,YEAR(A15),MONTH(A15),DAY(A15),1,0,18),0) -> 05:39:00.916 | V15: 06:20:09.343 | W15: 07:03:36.611 | X15: 07:44:06.392 | Y15: 11:41:13.720 | Z15: 15:38:36.931 | AA15: 16:19:04.796 | AB15: 17:02:30.678 | AC15: 17:43:38.260 | AM15: 2019-01-05
A16: 2018-01-06 | B16: =IF(IF($D$7=$U$10,U16,IF($D$7=$V$10,V16,IF($D$7=$W$10,W16,IF($D$7=$X$10,X16,X16))))=0,0,IF($D$7=$U$10,U16,IF($D$7=$V$10,V16,IF($D$7=$W$10,W16,IF($D$7=$X$10,X16,X16))))+IF('dane i obliczenia'!$D$2=metadane!$A$2,1/24,0)+IF(AND('dane i obliczenia'!$D$2=metadane!$A$1,A16>$Q$2,A16<$Q$3),1/24,0)) -> 07:43:44.225 | C16: =IF(IF($D$8=$Z$10,Z16,IF($D$8=$AA$10,AA16,IF($D$8=$AB$10,AB16,IF($D$8=$AC$10,AC16,Z16))))+IF('dane i obliczenia'!$D$2=metadane!$A$2,1/24,0)+IF(AND('dane i obliczenia'!$D$2=metadane!$A$1,A16>$Q$2,A16<$Q$3),1/24,0)>0.99999,0.99999,IF($D$8=$Z$10,Z16,IF($D$8=$AA$10,AA16,IF($D$8=$AB$10,AB16,IF($D$8=$AC$10,AC16,Z16))))+IF('dane i obliczenia'!$D$2=metadane!$A$2,1/24,0)+IF(AND('dane i obliczenia'!$D$2=metadane!$A$1,A16>$Q$2,A16<$Q$3),1/24,0)) -> 15:39:53.088 | D16: 06:00:00 | E16: 7.935795364 | F16: 7.935795364 | G16: 1.728951251 | H16: 0 | I16: 17:30:00 | J16: -1.835253384 | K16: 0 | S16: 01:23:46.835 | T16: 2018-01-06 | U16: =IFERROR(dawn($F$5,$F$6,YEAR(A16),MONTH(A16),DAY(A16),1,0,18),0) -> 05:38:51.578 | V16: 06:19:57.389 | W16: 07:03:20.371 | X16: 07:43:44.225 | Y16: 11:41:40.200 | Z16: 15:39:53.088 | AA16: 16:20:14.919 | AB16: 17:03:36.436 | AC16: 17:44:41.355 | AM16: 2019-01-06
A17: 2018-01-07 | B17: =IF(IF($D$7=$U$10,U17,IF($D$7=$V$10,V17,IF($D$7=$W$10,W17,IF($D$7=$X$10,X17,X17))))=0,0,IF($D$7=$U$10,U17,IF($D$7=$V$10,V17,IF($D$7=$W$10,W17,IF($D$7=$X$10,X17,X17))))+IF('dane i obliczenia'!$D$2=metadane!$A$2,1/24,0)+IF(AND('dane i obliczenia'!$D$2=metadane!$A$1,A17>$Q$2,A17<$Q$3),1/24,0)) -> 07:43:18.708 | C17: =IF(IF($D$8=$Z$10,Z17,IF($D$8=$AA$10,AA17,IF($D$8=$AB$10,AB17,IF($D$8=$AC$10,AC17,Z17))))+IF('dane i obliczenia'!$D$2=metadane!$A$2,1/24,0)+IF(AND('dane i obliczenia'!$D$2=metadane!$A$1,A17>$Q$2,A17<$Q$3),1/24,0)>0.99999,0.99999,IF($D$8=$Z$10,Z17,IF($D$8=$AA$10,AA17,IF($D$8=$AB$10,AB17,IF($D$8=$AC$10,AC17,Z17))))+IF('dane i obliczenia'!$D$2=metadane!$A$2,1/24,0)+IF(AND('dane i obliczenia'!$D$2=metadane!$A$1,A17>$Q$2,A17<$Q$3),1/24,0)) -> 15:41:11.667 | D17: 06:00:00 | E17: 7.964710812 | F17: 7.964710812 | G17: 1.721863284 | H17: 0 | I17: 17:30:00 | J17: -1.813425904 | K17: 0 | S17: 01:23:36.104 | T17: 2018-01-07 | U17: =IFERROR(dawn($F$5,$F$6,YEAR(A17),MONTH(A17),DAY(A17),1,0,18),0) -> 05:38:39.537 | V17: 06:19:42.603 | W17: 07:03:01.079 | X17: 07:43:18.708 | Y17: 11:42:06.222 | Z17: 15:41:11.667 | AA17: 16:21:27.170 | AB17: 17:04:44.107 | AC17: 17:45:46.236 | AM17: 2019-01-07
A18: 2018-01-08 | B18: =IF(IF($D$7=$U$10,U18,IF($D$7=$V$10,V18,IF($D$7=$W$10,W18,IF($D$7=$X$10,X18,X18))))=0,0,IF($D$7=$U$10,U18,IF($D$7=$V$10,V18,IF($D$7=$W$10,W18,IF($D$7=$X$10,X18,X18))))+IF('dane i obliczenia'!$D$2=metadane!$A$2,1/24,0)+IF(AND('dane i obliczenia'!$D$2=metadane!$A$1,A18>$Q$2,A18<$Q$3),1/24,0)) -> 07:42:49.874 | C18: =IF(IF($D$8=$Z$10,Z18,IF($D$8=$AA$10,AA18,IF($D$8=$AB$10,AB18,IF($D$8=$AC$10,AC18,Z18))))+IF('dane i obliczenia'!$D$2=metadane!$A$2,1/24,0)+IF(AND('dane i obliczenia'!$D$2=metadane!$A$1,A18>$Q$2,A18<$Q$3),1/24,0)>0.99999,0.99999,IF($D$8=$Z$10,Z18,IF($D$8=$AA$10,AA18,IF($D$8=$AB$10,AB18,IF($D$8=$AC$10,AC18,Z18))))+IF('dane i obliczenia'!$D$2=metadane!$A$2,1/24,0)+IF(AND('dane i obliczenia'!$D$2=metadane!$A$1,A18>$Q$2,A18<$Q$3),1/24,0)) -> 15:42:32.582 | D18: 06:00:00 | E18: 7.99519657 | F18: 7.99519657 | G18: 1.713853944 | H18: 0 | I18: 17:30:00 | J18: -1.790949486 | K18: 0 | S18: 01:23:24.884 | T18: 2018-01-08 | U18: =IFERROR(dawn($F$5,$F$6,YEAR(A18),MONTH(A18),DAY(A18),1,0,18),0) -> 05:38:24.791 | V18: 06:19:24.990 | W18: 07:02:38.752 | X18: 07:42:49.874 | Y18: 11:42:31.759 | Z18: 15:42:32.582 | AA18: 16:22:41.480 | AB18: 17:05:53.630 | AC18: 17:46:52.851 | AM18: 2019-01-08
A19: 2018-01-09 | B19: =IF(IF($D$7=$U$10,U19,IF($D$7=$V$10,V19,IF($D$7=$W$10,W19,IF($D$7=$X$10,X19,X19))))=0,0,IF($D$7=$U$10,U19,IF($D$7=$V$10,V19,IF($D$7=$W$10,W19,IF($D$7=$X$10,X19,X19))))+IF('dane i obliczenia'!$D$2=metadane!$A$2,1/24,0)+IF(AND('dane i obliczenia'!$D$2=metadane!$A$1,A19>$Q$2,A19<$Q$3),1/24,0)) -> 07:42:17.759 | C19: =IF(IF($D$8=$Z$10,Z19,IF($D$8=$AA$10,AA19,IF($D$8=$AB$10,AB19,IF($D$8=$AC$10,AC19,Z19))))+IF('dane i obliczenia'!$D$2=metadane!$A$2,1/24,0)+IF(AND('dane i obliczenia'!$D$2=metadane!$A$1,A19>$Q$2,A19<$Q$3),1/24,0)>0.99999,0.99999,IF($D$8=$Z$10,Z19,IF($D$8=$AA$10,AA19,IF($D$8=$AB$10,AB19,IF($D$8=$AC$10,AC19,Z19))))+IF('dane i obliczenia'!$D$2=metadane!$A$2,1/24,0)+IF(AND('dane i obliczenia'!$D$2=metadane!$A$1,A19>$Q$2,A19<$Q$3),1/24,0)) -> 15:43:55.746 | D19: 06:00:00 | E19: 8.02721858 | F19: 8.02721858 | G19: 1.704933049 | H19: 0 | I19: 17:30:00 | J19: -1.767848371 | K19: 0 | S19: 01:23:13.202 | T19: 2018-01-09 | U19: =IFERROR(dawn($F$5,$F$6,YEAR(A19),MONTH(A19),DAY(A19),1,0,18),0) -> 05:38:07.338 | V19: 06:19:04.557 | W19: 07:02:13.409 | X19: 07:42:17.759 | Y19: 11:42:56.786 | Z19: 15:43:55.746 | AA19: 16:23:57.778 | AB19: 17:07:04.949 | AC19: 17:48:01.149 | AM19: 2019-01-09
A20: 2018-01-10 | B20: =IF(IF($D$7=$U$10,U20,IF($D$7=$V$10,V20,IF($D$7=$W$10,W20,IF($D$7=$X$10,X20,X20))))=0,0,IF($D$7=$U$10,U20,IF($D$7=$V$10,V20,IF($D$7=$W$10,W20,IF($D$7=$X$10,X20,X20))))+IF('dane i obliczenia'!$D$2=metadane!$A$2,1/24,0)+IF(AND('dane i obliczenia'!$D$2=metadane!$A$1,A20>$Q$2,A20<$Q$3),1/24,0)) -> 07:41:42.400 | C20: =IF(IF($D$8=$Z$10,Z20,IF($D$8=$AA$10,AA20,IF($D$8=$AB$10,AB20,IF($D$8=$AC$10,AC20,Z20))))+IF('dane i obliczenia'!$D$2=metadane!$A$2,1/24,0)+IF(AND('dane i obliczenia'!$D$2=metadane!$A$1,A20>$Q$2,A20<$Q$3),1/24,0)>0.99999,0.99999,IF($D$8=$Z$10,Z20,IF($D$8=$AA$10,AA20,IF($D$8=$AB$10,AB20,IF($D$8=$AC$10,AC20,Z20))))+IF('dane i obliczenia'!$D$2=metadane!$A$2,1/24,0)+IF(AND('dane i obliczenia'!$D$2=metadane!$A$1,A20>$Q$2,A20<$Q$3),1/24,0)) -> 15:45:21.071 | D20: 06:00:00 | E20: 8.060741749 | F20: 8.060741749 | G20: 1.695111175 | H20: 0 | I20: 17:30:00 | J20: -1.744147076 | K20: 0 | S20: 01:23:01.087 | T20: 2018-01-10 | U20: =IFERROR(dawn($F$5,$F$6,YEAR(A20),MONTH(A20),DAY(A20),1,0,18),0) -> 05:37:47.180 | V20: 06:18:41.313 | W20: 07:01:45.072 | X20: 07:41:42.400 | Y20: 11:43:21.276 | Z20: 15:45:21.071 | AA20: 16:25:15.992 | AB20: 17:08:18.004 | AC20: 17:49:11.081 | AM20: 2019-01-10
A21: 2018-01-11 | B21: =IF(IF($D$7=$U$10,U21,IF($D$7=$V$10,V21,IF($D$7=$W$10,W21,IF($D$7=$X$10,X21,X21))))=0,0,IF($D$7=$U$10,U21,IF($D$7=$V$10,V21,IF($D$7=$W$10,W21,IF($D$7=$X$10,X21,X21))))+IF('dane i obliczenia'!$D$2=metadane!$A$2,1/24,0)+IF(AND('dane i obliczenia'!$D$2=metadane!$A$1,A21>$Q$2,A21<$Q$3),1/24,0)) -> 07:41:03.839 | C21: =IF(IF($D$8=$Z$10,Z21,IF($D$8=$AA$10,AA21,IF($D$8=$AB$10,AB21,IF($D$8=$AC$10,AC21,Z21))))+IF('dane i obliczenia'!$D$2=metadane!$A$2,1/24,0)+IF(AND('dane i obliczenia'!$D$2=metadane!$A$1,A21>$Q$2,A21<$Q$3),1/24,0)>0.99999,0.99999,IF($D$8=$Z$10,Z21,IF($D$8=$AA$10,AA21,IF($D$8=$AB$10,AB21,IF($D$8=$AC$10,AC21,Z21))))+IF('dane i obliczenia'!$D$2=metadane!$A$2,1/24,0)+IF(AND('dane i obliczenia'!$D$2=metadane!$A$1,A21>$Q$2,A21<$Q$3),1/24,0)) -> 15:46:48.467 | D21: 06:00:00 | E21: 8.095730083 | F21: 8.095730083 | G21: 1.684399601 | H21: 0 | I21: 17:30:00 | J21: -1.719870316 | K21: 0 | S21: 01:22:48.569 | T21: 2018-01-11 | U21: =IFERROR(dawn($F$5,$F$6,YEAR(A21),MONTH(A21),DAY(A21),1,0,18),0) -> 05:37:24.317 | V21: 06:18:15.269 | W21: 07:01:13.763 | X21: 07:41:03.839 | Y21: 11:43:45.207 | Z21: 15:46:48.467 | AA21: 16:26:36.051 | AB21: 17:09:32.735 | AC21: 17:50:22.596 | AM21: 2019-01-11
A22: 2018-01-12 | B22: =IF(IF($D$7=$U$10,U22,IF($D$7=$V$10,V22,IF($D$7=$W$10,W22,IF($D$7=$X$10,X22,X22))))=0,0,IF($D$7=$U$10,U22,IF($D$7=$V$10,V22,IF($D$7=$W$10,W22,IF($D$7=$X$10,X22,X22))))+IF('dane i obliczenia'!$D$2=metadane!$A$2,1/24,0)+IF(AND('dane i obliczenia'!$D$2=metadane!$A$1,A22>$Q$2,A22<$Q$3),1/24,0)) -> 07:40:22.117 | C22: =IF(IF($D$8=$Z$10,Z22,IF($D$8=$AA$10,AA22,IF($D$8=$AB$10,AB22,IF($D$8=$AC$10,AC22,Z22))))+IF('dane i obliczenia'!$D$2=metadane!$A$2,1/24,0)+IF(AND('dane i obliczenia'!$D$2=metadane!$A$1,A22>$Q$2,A22<$Q$3),1/24,0)>0.99999,0.99999,IF($D$8=$Z$10,Z22,IF($D$8=$AA$10,AA22,IF($D$8=$AB$10,AB22,IF($D$8=$AC$10,AC22,Z22))))+IF('dane i obliczenia'!$D$2=metadane!$A$2,1/24,0)+IF(AND('dane i obliczenia'!$D$2=metadane!$A$1,A22>$Q$2,A22<$Q$3),1/24,0)) -> 15:48:17.845 | D22: 06:00:00 | E22: 8.132146817 | F22: 8.132146817 | G22: 1.672810249 | H22: 0 | I22: 17:30:00 | J22: -1.695042934 | K22: 0 | S22: 01:22:35.678 | T22: 2018-01-12 | U22: =IFERROR(dawn($F$5,$F$6,YEAR(A22),MONTH(A22),DAY(A22),1,0,18),0) -> 05:36:58.756 | V22: 06:17:46.439 | W22: 07:00:39.508 | X22: 07:40:22.117 | Y22: 11:44:08.555 | Z22: 15:48:17.845 | AA22: 16:27:57.883 | AB22: 17:10:49.084 | AC22: 17:51:35.643 | AM22: 2019-01-12
A23: 2018-01-13 | B23: =IF(IF($D$7=$U$10,U23,IF($D$7=$V$10,V23,IF($D$7=$W$10,W23,IF($D$7=$X$10,X23,X23))))=0,0,IF($D$7=$U$10,U23,IF($D$7=$V$10,V23,IF($D$7=$W$10,W23,IF($D$7=$X$10,X23,X23))))+IF('dane i obliczenia'!$D$2=metadane!$A$2,1/24,0)+IF(AND('dane i obliczenia'!$D$2=metadane!$A$1,A23>$Q$2,A23<$Q$3),1/24,0)) -> 07:39:37.280 | C23: =IF(IF($D$8=$Z$10,Z23,IF($D$8=$AA$10,AA23,IF($D$8=$AB$10,AB23,IF($D$8=$AC$10,AC23,Z23))))+IF('dane i obliczenia'!$D$2=metadane!$A$2,1/24,0)+IF(AND('dane i obliczenia'!$D$2=metadane!$A$1,A23>$Q$2,A23<$Q$3),1/24,0)>0.99999,0.99999,IF($D$8=$Z$10,Z23,IF($D$8=$AA$10,AA23,IF($D$8=$AB$10,AB23,IF($D$8=$AC$10,AC23,Z23))))+IF('dane i obliczenia'!$D$2=metadane!$A$2,1/24,0)+IF(AND('dane i obliczenia'!$D$2=metadane!$A$1,A23>$Q$2,A23<$Q$3),1/24,0)) -> 15:49:49.117 | D23: 06:00:00 | E23: 8.169954537 | F23: 8.169954537 | G23: 1.660355633 | H23: 0 | I23: 17:30:00 | J23: -1.66968983 | K23: 0 | S23: 01:22:22.443 | T23: 2018-01-13 | U23: =IFERROR(dawn($F$5,$F$6,YEAR(A23),MONTH(A23),DAY(A23),1,0,18),0) -> 05:36:30.501 | V23: 06:17:14.837 | W23: 07:00:02.336 | X23: 07:39:37.280 | Y23: 11:44:31.299 | Z23: 15:49:49.117 | AA23: 16:29:21.415 | AB23: 17:12:06.990 | AC23: 17:52:50.172 | AM23: 2019-01-13
A24: 2018-01-14 | B24: =IF(IF($D$7=$U$10,U24,IF($D$7=$V$10,V24,IF($D$7=$W$10,W24,IF($D$7=$X$10,X24,X24))))=0,0,IF($D$7=$U$10,U24,IF($D$7=$V$10,V24,IF($D$7=$W$10,W24,IF($D$7=$X$10,X24,X24))))+IF('dane i obliczenia'!$D$2=metadane!$A$2,1/24,0)+IF(AND('dane i obliczenia'!$D$2=metadane!$A$1,A24>$Q$2,A24<$Q$3),1/24,0)) -> 07:38:49.376 | C24: =IF(IF($D$8=$Z$10,Z24,IF($D$8=$AA$10,AA24,IF($D$8=$AB$10,AB24,IF($D$8=$AC$10,AC24,Z24))))+IF('dane i obliczenia'!$D$2=metadane!$A$2,1/24,0)+IF(AND('dane i obliczenia'!$D$2=metadane!$A$1,A24>$Q$2,A24<$Q$3),1/24,0)>0.99999,0.99999,IF($D$8=$Z$10,Z24,IF($D$8=$AA$10,AA24,IF($D$8=$AB$10,AB24,IF($D$8=$AC$10,AC24,Z24))))+IF('dane i obliczenia'!$D$2=metadane!$A$2,1/24,0)+IF(AND('dane i obliczenia'!$D$2=metadane!$A$1,A24>$Q$2,A24<$Q$3),1/24,0)) -> 15:51:22.191 | D24: 06:00:00 | E24: 8.209115308 | F24: 8.209115308 | G24: 1.647048805 | H24: 0 | I24: 17:30:00 | J24: -1.643835886 | K24: 0 | S24: 01:22:08.895 | T24: 2018-01-14 | U24: =IFERROR(dawn($F$5,$F$6,YEAR(A24),MONTH(A24),DAY(A24),1,0,18),0) -> 05:35:59.560 | V24: 06:16:40.480 | W24: 06:59:22.275 | X24: 07:38:49.376 | Y24: 11:44:53.416 | Z24: 15:51:22.191 | AA24: 16:30:46.576 | AB24: 17:13:26.395 | AC24: 17:54:06.134 | AM24: 2019-01-14
A25: 2018-01-15 | B25: =IF(IF($D$7=$U$10,U25,IF($D$7=$V$10,V25,IF($D$7=$W$10,W25,IF($D$7=$X$10,X25,X25))))=0,0,IF($D$7=$U$10,U25,IF($D$7=$V$10,V25,IF($D$7=$W$10,W25,IF($D$7=$X$10,X25,X25))))+IF('dane i obliczenia'!$D$2=metadane!$A$2,1/24,0)+IF(AND('dane i obliczenia'!$D$2=metadane!$A$1,A25>$Q$2,A25<$Q$3),1/24,0)) -> 07:37:58.452 | C25: =IF(IF($D$8=$Z$10,Z25,IF($D$8=$AA$10,AA25,IF($D$8=$AB$10,AB25,IF($D$8=$AC$10,AC25,Z25))))+IF('dane i obliczenia'!$D$2=metadane!$A$2,1/24,0)+IF(AND('dane i obliczenia'!$D$2=metadane!$A$1,A25>$Q$2,A25<$Q$3),1/24,0)>0.99999,0.99999,IF($D$8=$Z$10,Z25,IF($D$8=$AA$10,AA25,IF($D$8=$AB$10,AB25,IF($D$8=$AC$10,AC25,Z25))))+IF('dane i obliczenia'!$D$2=metadane!$A$2,1/24,0)+IF(AND('dane i obliczenia'!$D$2=metadane!$A$1,A25>$Q$2,A25<$Q$3),1/24,0)) -> 15:52:56.979 | D25: 06:00:00 | E25: 8.249590792 | F25: 8.249590792 | G25: 1.632903301 | H25: 0 | I25: 17:30:00 | J25: -1.617505907 | K25: 0 | S25: 01:21:55.065 | T25: 2018-01-15 | U25: =IFERROR(dawn($F$5,$F$6,YEAR(A25),MONTH(A25),DAY(A25),1,0,18),0) -> 05:35:25.942 | V25: 06:16:03.387 | W25: 06:58:39.357 | X25: 07:37:58.452 | Y25: 11:45:14.887 | Z25: 15:52:56.979 | AA25: 16:32:13.293 | AB25: 17:14:47.239 | AC25: 17:55:23.479 | AM25: 2019-01-15
A26: 2018-01-16 | B26: =IF(IF($D$7=$U$10,U26,IF($D$7=$V$10,V26,IF($D$7=$W$10,W26,IF($D$7=$X$10,X26,X26))))=0,0,IF($D$7=$U$10,U26,IF($D$7=$V$10,V26,IF($D$7=$W$10,W26,IF($D$7=$X$10,X26,X26))))+IF('dane i obliczenia'!$D$2=metadane!$A$2,1/24,0)+IF(AND('dane i obliczenia'!$D$2=metadane!$A$1,A26>$Q$2,A26<$Q$3),1/24,0)) -> 07:37:04.559 | C26: =IF(IF($D$8=$Z$10,Z26,IF($D$8=$AA$10,AA26,IF($D$8=$AB$10,AB26,IF($D$8=$AC$10,AC26,Z26))))+IF('dane i obliczenia'!$D$2=metadane!$A$2,1/24,0)+IF(AND('dane i obliczenia'!$D$2=metadane!$A$1,A26>$Q$2,A26<$Q$3),1/24,0)>0.99999,0.99999,IF($D$8=$Z$10,Z26,IF($D$8=$AA$10,AA26,IF($D$8=$AB$10,AB26,IF($D$8=$AC$10,AC26,Z26))))+IF('dane i obliczenia'!$D$2=metadane!$A$2,1/24,0)+IF(AND('dane i obliczenia'!$D$2=metadane!$A$1,A26>$Q$2,A26<$Q$3),1/24,0)) -> 15:54:33.392 | D26: 06:00:00 | E26: 8.291342364 | F26: 8.291342364 | G26: 1.617933089 | H26: 0 | I26: 17:30:00 | J26: -1.590724547 | K26: 0 | S26: 01:21:40.982 | T26: 2018-01-16 | U26: =IFERROR(dawn($F$5,$F$6,YEAR(A26),MONTH(A26),DAY(A26),1,0,18),0) -> 05:34:49.658 | V26: 06:15:23.577 | W26: 06:57:53.615 | X26: 07:37:04.559 | Y26: 11:45:35.692 | Z26: 15:54:33.392 | AA26: 16:33:41.494 | AB26: 17:16:09.465 | AC26: 17:56:42.158 | AM26: 2019-01-16
A27: 2018-01-17 | B27: =IF(IF($D$7=$U$10,U27,IF($D$7=$V$10,V27,IF($D$7=$W$10,W27,IF($D$7=$X$10,X27,X27))))=0,0,IF($D$7=$U$10,U27,IF($D$7=$V$10,V27,IF($D$7=$W$10,W27,IF($D$7=$X$10,X27,X27))))+IF('dane i obliczenia'!$D$2=metadane!$A$2,1/24,0)+IF(AND('dane i obliczenia'!$D$2=metadane!$A$1,A27>$Q$2,A27<$Q$3),1/24,0)) -> 07:36:07.749 | C27: =IF(IF($D$8=$Z$10,Z27,IF($D$8=$AA$10,AA27,IF($D$8=$AB$10,AB27,IF($D$8=$AC$10,AC27,Z27))))+IF('dane i obliczenia'!$D$2=metadane!$A$2,1/24,0)+IF(AND('dane i obliczenia'!$D$2=metadane!$A$1,A27>$Q$2,A27<$Q$3),1/24,0)>0.99999,0.99999,IF($D$8=$Z$10,Z27,IF($D$8=$AA$10,AA27,IF($D$8=$AB$10,AB27,IF($D$8=$AC$10,AC27,Z27))))+IF('dane i obliczenia'!$D$2=metadane!$A$2,1/24,0)+IF(AND('dane i obliczenia'!$D$2=metadane!$A$1,A27>$Q$2,A27<$Q$3),1/24,0)) -> 15:56:11.341 | D27: 06:00:00 | E27: 8.334331222 | F27: 8.334331222 | G27: 1.60215252 | H27: 0 | I27: 17:30:00 | J27: -1.563516258 | K27: 0 | S27: 01:21:26.677 | T27: 2018-01-17 | U27: =IFERROR(dawn($F$5,$F$6,YEAR(A27),MONTH(A27),DAY(A27),1,0,18),0) -> 05:34:10.719 | V27: 06:14:41.072 | W27: 06:57:05.084 | X27: 07:36:07.749 | Y27: 11:45:55.815 | Z27: 15:56:11.341 | AA27: 16:35:11.110 | AB27: 17:17:33.014 | AC27: 17:58:02.123 | AM27: 2019-01-17
A28: 2018-01-18 | B28: =IF(IF($D$7=$U$10,U28,IF($D$7=$V$10,V28,IF($D$7=$W$10,W28,IF($D$7=$X$10,X28,X28))))=0,0,IF($D$7=$U$10,U28,IF($D$7=$V$10,V28,IF($D$7=$W$10,W28,IF($D$7=$X$10,X28,X28))))+IF('dane i obliczenia'!$D$2=metadane!$A$2,1/24,0)+IF(AND('dane i obliczenia'!$D$2=metadane!$A$1,A28>$Q$2,A28<$Q$3),1/24,0)) -> 07:35:08.075 | C28: =IF(IF($D$8=$Z$10,Z28,IF($D$8=$AA$10,AA28,IF($D$8=$AB$10,AB28,IF($D$8=$AC$10,AC28,Z28))))+IF('dane i obliczenia'!$D$2=metadane!$A$2,1/24,0)+IF(AND('dane i obliczenia'!$D$2=metadane!$A$1,A28>$Q$2,A28<$Q$3),1/24,0)>0.99999,0.99999,IF($D$8=$Z$10,Z28,IF($D$8=$AA$10,AA28,IF($D$8=$AB$10,AB28,IF($D$8=$AC$10,AC28,Z28))))+IF('dane i obliczenia'!$D$2=metadane!$A$2,1/24,0)+IF(AND('dane i obliczenia'!$D$2=metadane!$A$1,A28>$Q$2,A28<$Q$3),1/24,0)) -> 15:57:50.741 | D28: 06:00:00 | E28: 8.378518497 | F28: 8.378518497 | G28: 1.58557628 | H28: 0 | I28: 17:30:00 | J28: -1.535905223 | K28: 0 | S28: 01:21:12.180 | T28: 2018-01-18 | U28: =IFERROR(dawn($F$5,$F$6,YEAR(A28),MONTH(A28),DAY(A28),1,0,18),0) -> 05:33:29.138 | V28: 06:13:55.894 | W28: 06:56:13.800 | X28: 07:35:08.075 | Y28: 11:46:15.237 | Z28: 15:57:50.741 | AA28: 16:36:42.070 | AB28: 17:18:57.830 | AC28: 17:59:23.328 | AM28: 2019-01-18
A29: 2018-01-19 | B29: =IF(IF($D$7=$U$10,U29,IF($D$7=$V$10,V29,IF($D$7=$W$10,W29,IF($D$7=$X$10,X29,X29))))=0,0,IF($D$7=$U$10,U29,IF($D$7=$V$10,V29,IF($D$7=$W$10,W29,IF($D$7=$X$10,X29,X29))))+IF('dane i obliczenia'!$D$2=metadane!$A$2,1/24,0)+IF(AND('dane i obliczenia'!$D$2=metadane!$A$1,A29>$Q$2,A29<$Q$3),1/24,0)) -> 07:34:05.590 | C29: =IF(IF($D$8=$Z$10,Z29,IF($D$8=$AA$10,AA29,IF($D$8=$AB$10,AB29,IF($D$8=$AC$10,AC29,Z29))))+IF('dane i obliczenia'!$D$2=metadane!$A$2,1/24,0)+IF(AND('dane i obliczenia'!$D$2=metadane!$A$1,A29>$Q$2,A29<$Q$3),1/24,0)>0.99999,0.99999,IF($D$8=$Z$10,Z29,IF($D$8=$AA$10,AA29,IF($D$8=$AB$10,AB29,IF($D$8=$AC$10,AC29,Z29))))+IF('dane i obliczenia'!$D$2=metadane!$A$2,1/24,0)+IF(AND('dane i obliczenia'!$D$2=metadane!$A$1,A29>$Q$2,A29<$Q$3),1/24,0)) -> 15:59:31.505 | D29: 06:00:00 | E29: 8.423865351 | F29: 8.423865351 | G29: 1.568219343 | H29: 0 | I29: 17:30:00 | J29: -1.507915306 | K29: 0 | S29: 01:20:57.521 | T29: 2018-01-19 | U29: =IFERROR(dawn($F$5,$F$6,YEAR(A29),MONTH(A29),DAY(A29),1,0,18),0) -> 05:32:44.931 | V29: 06:13:08.069 | W29: 06:55:19.799 | X29: 07:34:05.590 | Y29: 11:46:33.942 | Z29: 15:59:31.505 | AA29: 16:38:14.304 | AB29: 17:20:23.857 | AC29: 18:00:45.724 | AM29: 2019-01-19
A30: 2018-01-20 | B30: =IF(IF($D$7=$U$10,U30,IF($D$7=$V$10,V30,IF($D$7=$W$10,W30,IF($D$7=$X$10,X30,X30))))=0,0,IF($D$7=$U$10,U30,IF($D$7=$V$10,V30,IF($D$7=$W$10,W30,IF($D$7=$X$10,X30,X30))))+IF('dane i obliczenia'!$D$2=metadane!$A$2,1/24,0)+IF(AND('dane i obliczenia'!$D$2=metadane!$A$1,A30>$Q$2,A30<$Q$3),1/24,0)) -> 07:33:00.349 | C30: =IF(IF($D$8=$Z$10,Z30,IF($D$8=$AA$10,AA30,IF($D$8=$AB$10,AB30,IF($D$8=$AC$10,AC30,Z30))))+IF('dane i obliczenia'!$D$2=metadane!$A$2,1/24,0)+IF(AND('dane i obliczenia'!$D$2=metadane!$A$1,A30>$Q$2,A30<$Q$3),1/24,0)>0.99999,0.99999,IF($D$8=$Z$10,Z30,IF($D$8=$AA$10,AA30,IF($D$8=$AB$10,AB30,IF($D$8=$AC$10,AC30,Z30))))+IF('dane i obliczenia'!$D$2=metadane!$A$2,1/24,0)+IF(AND('dane i obliczenia'!$D$2=metadane!$A$1,A30>$Q$2,A30<$Q$3),1/24,0)) -> 16:01:13.548 | D30: 06:00:00 | E30: 8.470333071 | F30: 8.470333071 | G30: 1.550096929 | H30: 0 | I30: 17:30:00 | J30: -1.479570001 | K30: 0 | S30: 01:20:42.727 | T30: 2018-01-20 | U30: =IFERROR(dawn($F$5,$F$6,YEAR(A30),MONTH(A30),DAY(A30),1,0,18),0) -> 05:31:58.112 | V30: 06:12:17.621 | W30: 06:54:23.121 | X30: 07:33:00.349 | Y30: 11:46:51.916 | Z30: 16:01:13.548 | AA30: 16:39:47.745 | AB30: 17:21:51.038 | AC30: 18:02:09.268 | AM30: 2019-01-20
A31: 2018-01-21 | B31: =IF(IF($D$7=$U$10,U31,IF($D$7=$V$10,V31,IF($D$7=$W$10,W31,IF($D$7=$X$10,X31,X31))))=0,0,IF($D$7=$U$10,U31,IF($D$7=$V$10,V31,IF($D$7=$W$10,W31,IF($D$7=$X$10,X31,X31))))+IF('dane i obliczenia'!$D$2=metadane!$A$2,1/24,0)+IF(AND('dane i obliczenia'!$D$2=metadane!$A$1,A31>$Q$2,A31<$Q$3),1/24,0)) -> 07:31:52.408 | C31: =IF(IF($D$8=$Z$10,Z31,IF($D$8=$AA$10,AA31,IF($D$8=$AB$10,AB31,IF($D$8=$AC$10,AC31,Z31))))+IF('dane i obliczenia'!$D$2=metadane!$A$2,1/24,0)+IF(AND('dane i obliczenia'!$D$2=metadane!$A$1,A31>$Q$2,A31<$Q$3),1/24,0)>0.99999,0.99999,IF($D$8=$Z$10,Z31,IF($D$8=$AA$10,AA31,IF($D$8=$AB$10,AB31,IF($D$8=$AC$10,AC31,Z31))))+IF('dane i obliczenia'!$D$2=metadane!$A$2,1/24,0)+IF(AND('dane i obliczenia'!$D$2=metadane!$A$1,A31>$Q$2,A31<$Q$3),1/24,0)) -> 16:02:56.787 | D31: 06:00:00 | E31: 8.517883163 | F31: 8.517883163 | G31: 1.531224458 | H31: 0 | I31: 17:30:00 | J31: -1.450892379 | K31: 0 | S31: 01:20:27.830 | T31: 2018-01-21 | U31: =IFERROR(dawn($F$5,$F$6,YEAR(A31),MONTH(A31),DAY(A31),1,0,18),0) -> 05:31:08.699 | V31: 06:11:24.578 | W31: 06:53:23.804 | X31: 07:31:52.408 | Y31: 11:47:09.146 | Z31: 16:02:56.787 | AA31: 16:41:22.324 | AB31: 17:23:19.320 | AC31: 18:03:33.915 | AM31: 2019-01-21
A32: 2018-01-22 | B32: =IF(IF($D$7=$U$10,U32,IF($D$7=$V$10,V32,IF($D$7=$W$10,W32,IF($D$7=$X$10,X32,X32))))=0,0,IF($D$7=$U$10,U32,IF($D$7=$V$10,V32,IF($D$7=$W$10,W32,IF($D$7=$X$10,X32,X32))))+IF('dane i obliczenia'!$D$2=metadane!$A$2,1/24,0)+IF(AND('dane i obliczenia'!$D$2=metadane!$A$1,A32>$Q$2,A32<$Q$3),1/24,0)) -> 07:30:41.823 | C32: =IF(IF($D$8=$Z$10,Z32,IF($D$8=$AA$10,AA32,IF($D$8=$AB$10,AB32,IF($D$8=$AC$10,AC32,Z32))))+IF('dane i obliczenia'!$D$2=metadane!$A$2,1/24,0)+IF(AND('dane i obliczenia'!$D$2=metadane!$A$1,A32>$Q$2,A32<$Q$3),1/24,0)>0.99999,0.99999,IF($D$8=$Z$10,Z32,IF($D$8=$AA$10,AA32,IF($D$8=$AB$10,AB32,IF($D$8=$AC$10,AC32,Z32))))+IF('dane i obliczenia'!$D$2=metadane!$A$2,1/24,0)+IF(AND('dane i obliczenia'!$D$2=metadane!$A$1,A32>$Q$2,A32<$Q$3),1/24,0)) -> 16:04:41.142 | D32: 06:00:00 | E32: 8.566477433 | F32: 8.566477433 | G32: 1.511617515 | H32: 0 | I32: 17:30:00 | J32: -1.421905051 | K32: 0 | S32: 01:20:12.856 | T32: 2018-01-22 | U32: =IFERROR(dawn($F$5,$F$6,YEAR(A32),MONTH(A32),DAY(A32),1,0,18),0) -> 05:30:16.710 | V32: 06:10:28.967 | W32: 06:52:21.890 | X32: 07:30:41.823 | Y32: 11:47:25.618 | Z32: 16:04:41.142 | AA32: 16:42:57.977 | AB32: 17:24:48.650 | AC32: 18:04:59.621 | AM32: 2019-01-22
A33: 2018-01-23 | B33: =IF(IF($D$7=$U$10,U33,IF($D$7=$V$10,V33,IF($D$7=$W$10,W33,IF($D$7=$X$10,X33,X33))))=0,0,IF($D$7=$U$10,U33,IF($D$7=$V$10,V33,IF($D$7=$W$10,W33,IF($D$7=$X$10,X33,X33))))+IF('dane i obliczenia'!$D$2=metadane!$A$2,1/24,0)+IF(AND('dane i obliczenia'!$D$2=metadane!$A$1,A33>$Q$2,A33<$Q$3),1/24,0)) -> 07:29:28.651 | C33: =IF(IF($D$8=$Z$10,Z33,IF($D$8=$AA$10,AA33,IF($D$8=$AB$10,AB33,IF($D$8=$AC$10,AC33,Z33))))+IF('dane i obliczenia'!$D$2=metadane!$A$2,1/24,0)+IF(AND('dane i obliczenia'!$D$2=metadane!$A$1,A33>$Q$2,A33<$Q$3),1/24,0)>0.99999,0.99999,IF($D$8=$Z$10,Z33,IF($D$8=$AA$10,AA33,IF($D$8=$AB$10,AB33,IF($D$8=$AC$10,AC33,Z33))))+IF('dane i obliczenia'!$D$2=metadane!$A$2,1/24,0)+IF(AND('dane i obliczenia'!$D$2=metadane!$A$1,A33>$Q$2,A33<$Q$3),1/24,0)) -> 16:06:26.532 | D33: 06:00:00 | E33: 8.616078064 | F33: 8.616078064 | G33: 1.491291812 | H33: 0 | I33: 17:30:00 | J33: -1.392630124 | K33: 0 | S33: 01:19:57.833 | T33: 2018-01-23 | U33: =IFERROR(dawn($F$5,$F$6,YEAR(A33),MONTH(A33),DAY(A33),1,0,18),0) -> 05:29:22.164 | V33: 06:09:30.817 | W33: 06:51:17.420 | X33: 07:29:28.651 | Y33: 11:47:41.320 | Z33: 16:06:26.532 | AA33: 16:44:34.640 | AB33: 17:26:18.975 | AC33: 18:06:26.344 | AM33: 2019-01-23
A34: 2018-01-24 | B34: =IF(IF($D$7=$U$10,U34,IF($D$7=$V$10,V34,IF($D$7=$W$10,W34,IF($D$7=$X$10,X34,X34))))=0,0,IF($D$7=$U$10,U34,IF($D$7=$V$10,V34,IF($D$7=$W$10,W34,IF($D$7=$X$10,X34,X34))))+IF('dane i obliczenia'!$D$2=metadane!$A$2,1/24,0)+IF(AND('dane i obliczenia'!$D$2=metadane!$A$1,A34>$Q$2,A34<$Q$3),1/24,0)) -> 07:28:12.947 | C34: =IF(IF($D$8=$Z$10,Z34,IF($D$8=$AA$10,AA34,IF($D$8=$AB$10,AB34,IF($D$8=$AC$10,AC34,Z34))))+IF('dane i obliczenia'!$D$2=metadane!$A$2,1/24,0)+IF(AND('dane i obliczenia'!$D$2=metadane!$A$1,A34>$Q$2,A34<$Q$3),1/24,0)>0.99999,0.99999,IF($D$8=$Z$10,Z34,IF($D$8=$AA$10,AA34,IF($D$8=$AB$10,AB34,IF($D$8=$AC$10,AC34,Z34))))+IF('dane i obliczenia'!$D$2=metadane!$A$2,1/24,0)+IF(AND('dane i obliczenia'!$D$2=metadane!$A$1,A34>$Q$2,A34<$Q$3),1/24,0)) -> 16:08:12.879 | D34: 06:00:00 | E34: 8.666647686 | F34: 8.666647686 | G34: 1.470263151 | H34: 0 | I34: 17:30:00 | J34: -1.363089162 | K34: 0 | S34: 01:19:42.789 | T34: 2018-01-24 | U34: =IFERROR(dawn($F$5,$F$6,YEAR(A34),MONTH(A34),DAY(A34),1,0,18),0) -> 05:28:25.081 | V34: 06:08:30.158 | W34: 06:50:10.435 | X34: 07:28:12.947 | Y34: 11:47:56.243 | Z34: 16:08:12.879 | AA34: 16:46:12.248 | AB34: 17:27:50.246 | AC34: 18:07:54.043 | AM34: 2019-01-24
A35: 2018-01-25 | B35: =IF(IF($D$7=$U$10,U35,IF($D$7=$V$10,V35,IF($D$7=$W$10,W35,IF($D$7=$X$10,X35,X35))))=0,0,IF($D$7=$U$10,U35,IF($D$7=$V$10,V35,IF($D$7=$W$10,W35,IF($D$7=$X$10,X35,X35))))+IF('dane i obliczenia'!$D$2=metadane!$A$2,1/24,0)+IF(AND('dane i obliczenia'!$D$2=metadane!$A$1,A35>$Q$2,A35<$Q$3),1/24,0)) -> 07:26:54.771 | C35: =IF(IF($D$8=$Z$10,Z35,IF($D$8=$AA$10,AA35,IF($D$8=$AB$10,AB35,IF($D$8=$AC$10,AC35,Z35))))+IF('dane i obliczenia'!$D$2=metadane!$A$2,1/24,0)+IF(AND('dane i obliczenia'!$D$2=metadane!$A$1,A35>$Q$2,A35<$Q$3),1/24,0)>0.99999,0.99999,IF($D$8=$Z$10,Z35,IF($D$8=$AA$10,AA35,IF($D$8=$AB$10,AB35,IF($D$8=$AC$10,AC35,Z35))))+IF('dane i obliczenia'!$D$2=metadane!$A$2,1/24,0)+IF(AND('dane i obliczenia'!$D$2=metadane!$A$1,A35>$Q$2,A35<$Q$3),1/24,0)) -> 16:10:00.109 | D35: 06:00:00 | E35: 8.718149447 | F35: 8.718149447 | G35: 1.448547394 | H35: 0 | I35: 17:30:00 | J35: -1.333303159 | K35: 0 | S35: 01:19:27.750 | T35: 2018-01-25 | U35: =IFERROR(dawn($F$5,$F$6,YEAR(A35),MONTH(A35),DAY(A35),1,0,18),0) -> 05:27:25.482 | V35: 06:07:27.021 | W35: 06:49:00.979 | X35: 07:26:54.771 | Y35: 11:48:10.378 | Z35: 16:10:00.109 | AA35: 16:47:50.741 | AB35: 17:29:22.412 | AC35: 18:09:22.679 | AM35: 2019-01-25
A36: 2018-01-26 | B36: =IF(IF($D$7=$U$10,U36,IF($D$7=$V$10,V36,IF($D$7=$W$10,W36,IF($D$7=$X$10,X36,X36))))=0,0,IF($D$7=$U$10,U36,IF($D$7=$V$10,V36,IF($D$7=$W$10,W36,IF($D$7=$X$10,X36,X36))))+IF('dane i obliczenia'!$D$2=metadane!$A$2,1/24,0)+IF(AND('dane i obliczenia'!$D$2=metadane!$A$1,A36>$Q$2,A36<$Q$3),1/24,0)) -> 07:25:34.178 | C36: =IF(IF($D$8=$Z$10,Z36,IF($D$8=$AA$10,AA36,IF($D$8=$AB$10,AB36,IF($D$8=$AC$10,AC36,Z36))))+IF('dane i obliczenia'!$D$2=metadane!$A$2,1/24,0)+IF(AND('dane i obliczenia'!$D$2=metadane!$A$1,A36>$Q$2,A36<$Q$3),1/24,0)>0.99999,0.99999,IF($D$8=$Z$10,Z36,IF($D$8=$AA$10,AA36,IF($D$8=$AB$10,AB36,IF($D$8=$AC$10,AC36,Z36))))+IF('dane i obliczenia'!$D$2=metadane!$A$2,1/24,0)+IF(AND('dane i obliczenia'!$D$2=metadane!$A$1,A36>$Q$2,A36<$Q$3),1/24,0)) -> 16:11:48.147 | D36: 06:00:00 | E36: 8.770547066 | F36: 8.770547066 | G36: 1.42616043 | H36: 0 | I36: 17:30:00 | J36: -1.303292504 | K36: 0 | S36: 01:19:12.741 | T36: 2018-01-26 | U36: =IFERROR(dawn($F$5,$F$6,YEAR(A36),MONTH(A36),DAY(A36),1,0,18),0) -> 05:26:23.389 | V36: 06:06:21.436 | W36: 06:47:49.095 | X36: 07:25:34.178 | Y36: 11:48:23.715 | Z36: 16:11:48.147 | AA36: 16:49:30.059 | AB36: 17:30:55.426 | AC36: 18:10:52.215 | AM36: 2019-01-26
A37: 2018-01-27 | B37: =IF(IF($D$7=$U$10,U37,IF($D$7=$V$10,V37,IF($D$7=$W$10,W37,IF($D$7=$X$10,X37,X37))))=0,0,IF($D$7=$U$10,U37,IF($D$7=$V$10,V37,IF($D$7=$W$10,W37,IF($D$7=$X$10,X37,X37))))+IF('dane i obliczenia'!$D$2=metadane!$A$2,1/24,0)+IF(AND('dane i obliczenia'!$D$2=metadane!$A$1,A37>$Q$2,A37<$Q$3),1/24,0)) -> 07:24:11.225 | C37: =IF(IF($D$8=$Z$10,Z37,IF($D$8=$AA$10,AA37,IF($D$8=$AB$10,AB37,IF($D$8=$AC$10,AC37,Z37))))+IF('dane i obliczenia'!$D$2=metadane!$A$2,1/24,0)+IF(AND('dane i obliczenia'!$D$2=metadane!$A$1,A37>$Q$2,A37<$Q$3),1/24,0)>0.99999,0.99999,IF($D$8=$Z$10,Z37,IF($D$8=$AA$10,AA37,IF($D$8=$AB$10,AB37,IF($D$8=$AC$10,AC37,Z37))))+IF('dane i obliczenia'!$D$2=metadane!$A$2,1/24,0)+IF(AND('dane i obliczenia'!$D$2=metadane!$A$1,A37>$Q$2,A37<$Q$3),1/24,0)) -> 16:13:36.923 | D37: 06:00:00 | E37: 8.823804891 | F37: 8.823804891 | G37: 1.403118151 | H37: 0 | I37: 17:30:00 | J37: -1.273076958 | K37: 0 | S37: 01:18:57.788 | T37: 2018-01-27 | U37: =IFERROR(dawn($F$5,$F$6,YEAR(A37),MONTH(A37),DAY(A37),1,0,18),0) -> 05:25:18.824 | V37: 06:05:13.437 | W37: 06:46:34.827 | X37: 07:24:11.225 | Y37: 11:48:36.249 | Z37: 16:13:36.923 | AA37: 16:51:10.144 | AB37: 17:32:29.243 | AC37: 18:12:22.612 | AM37: 2019-01-27
A38: 2018-01-28 | B38: =IF(IF($D$7=$U$10,U38,IF($D$7=$V$10,V38,IF($D$7=$W$10,W38,IF($D$7=$X$10,X38,X38))))=0,0,IF($D$7=$U$10,U38,IF($D$7=$V$10,V38,IF($D$7=$W$10,W38,IF($D$7=$X$10,X38,X38))))+IF('dane i obliczenia'!$D$2=metadane!$A$2,1/24,0)+IF(AND('dane i obliczenia'!$D$2=metadane!$A$1,A38>$Q$2,A38<$Q$3),1/24,0)) -> 07:22:45.971 | C38: =IF(IF($D$8=$Z$10,Z38,IF($D$8=$AA$10,AA38,IF($D$8=$AB$10,AB38,IF($D$8=$AC$10,AC38,Z38))))+IF('dane i obliczenia'!$D$2=metadane!$A$2,1/24,0)+IF(AND('dane i obliczenia'!$D$2=metadane!$A$1,A38>$Q$2,A38<$Q$3),1/24,0)>0.99999,0.99999,IF($D$8=$Z$10,Z38,IF($D$8=$AA$10,AA38,IF($D$8=$AB$10,AB38,IF($D$8=$AC$10,AC38,Z38))))+IF('dane i obliczenia'!$D$2=metadane!$A$2,1/24,0)+IF(AND('dane i obliczenia'!$D$2=metadane!$A$1,A38>$Q$2,A38<$Q$3),1/24,0)) -> 16:15:26.368 | D38: 06:00:00 | E38: 8.877887943 | F38: 8.877887943 | G38: 1.379436425 | H38: 0 | I38: 17:30:00 | J38: -1.242675632 | K38: 0 | S38: 01:18:42.915 | T38: 2018-01-28 | U38: =IFERROR(dawn($F$5,$F$6,YEAR(A38),MONTH(A38),DAY(A38),1,0,18),0) -> 05:24:11.811 | V38: 06:04:03.056 | W38: 06:45:18.218 | X38: 07:22:45.971 | Y38: 11:48:47.973 | Z38: 16:15:26.368 | AA38: 16:52:50.941 | AB38: 17:34:03.816 | AC38: 18:13:53.836 | AM38: 2019-01-28
A39: 2018-01-29 | B39: =IF(IF($D$7=$U$10,U39,IF($D$7=$V$10,V39,IF($D$7=$W$10,W39,IF($D$7=$X$10,X39,X39))))=0,0,IF($D$7=$U$10,U39,IF($D$7=$V$10,V39,IF($D$7=$W$10,W39,IF($D$7=$X$10,X39,X39))))+IF('dane i obliczenia'!$D$2=metadane!$A$2,1/24,0)+IF(AND('dane i obliczenia'!$D$2=metadane!$A$1,A39>$Q$2,A39<$Q$3),1/24,0)) -> 07:21:18.472 | C39: =IF(IF($D$8=$Z$10,Z39,IF($D$8=$AA$10,AA39,IF($D$8=$AB$10,AB39,IF($D$8=$AC$10,AC39,Z39))))+IF('dane i obliczenia'!$D$2=metadane!$A$2,1/24,0)+IF(AND('dane i obliczenia'!$D$2=metadane!$A$1,A39>$Q$2,A39<$Q$3),1/24,0)>0.99999,0.99999,IF($D$8=$Z$10,Z39,IF($D$8=$AA$10,AA39,IF($D$8=$AB$10,AB39,IF($D$8=$AC$10,AC39,Z39))))+IF('dane i obliczenia'!$D$2=metadane!$A$2,1/24,0)+IF(AND('dane i obliczenia'!$D$2=metadane!$A$1,A39>$Q$2,A39<$Q$3),1/24,0)) -> 16:17:16.415 | D39: 06:00:00 | E39: 8.932761962 | F39: 8.932761962 | G39: 1.355131071 | H39: 0 | I39: 17:30:00 | J39: -1.212106967 | K39: 0 | S39: 01:18:28.145 | T39: 2018-01-29 | U39: =IFERROR(dawn($F$5,$F$6,YEAR(A39),MONTH(A39),DAY(A39),1,0,18),0) -> 05:23:02.375 | V39: 06:02:50.327 | W39: 06:43:59.314 | X39: 07:21:18.472 | Y39: 11:48:58.882 | Z39: 16:17:16.415 | AA39: 16:54:32.395 | AB39: 17:35:39.104 | AC39: 18:15:25.853 | AM39: 2019-01-29
A40: 2018-01-30 | B40: =IF(IF($D$7=$U$10,U40,IF($D$7=$V$10,V40,IF($D$7=$W$10,W40,IF($D$7=$X$10,X40,X40))))=0,0,IF($D$7=$U$10,U40,IF($D$7=$V$10,V40,IF($D$7=$W$10,W40,IF($D$7=$X$10,X40,X40))))+IF('dane i obliczenia'!$D$2=metadane!$A$2,1/24,0)+IF(AND('dane i obliczenia'!$D$2=metadane!$A$1,A40>$Q$2,A40<$Q$3),1/24,0)) -> 07:19:48.784 | C40: =IF(IF($D$8=$Z$10,Z40,IF($D$8=$AA$10,AA40,IF($D$8=$AB$10,AB40,IF($D$8=$AC$10,AC40,Z40))))+IF('dane i obliczenia'!$D$2=metadane!$A$2,1/24,0)+IF(AND('dane i obliczenia'!$D$2=metadane!$A$1,A40>$Q$2,A40<$Q$3),1/24,0)>0.99999,0.99999,IF($D$8=$Z$10,Z40,IF($D$8=$AA$10,AA40,IF($D$8=$AB$10,AB40,IF($D$8=$AC$10,AC40,Z40))))+IF('dane i obliczenia'!$D$2=metadane!$A$2,1/24,0)+IF(AND('dane i obliczenia'!$D$2=metadane!$A$1,A40>$Q$2,A40<$Q$3),1/24,0)) -> 16:19:07.001 | D40: 06:00:00 | E40: 8.988393441 | F40: 8.988393441 | G40: 1.330217841 | H40: 0 | I40: 17:30:00 | J40: -1.181388718 | K40: 0 | S40: 01:18:13.501 | T40: 2018-01-30 | U40: =IFERROR(dawn($F$5,$F$6,YEAR(A40),MONTH(A40),DAY(A40),1,0,18),0) -> 05:21:50.540 | V40: 06:01:35.283 | W40: 06:42:38.159 | X40: 07:19:48.784 | Y40: 11:49:08.973 | Z40: 16:19:07.001 | AA40: 16:56:14.454 | AB40: 17:37:15.065 | AC40: 18:16:58.632 | AM40: 2019-01-30
A41: 2018-01-31 | B41: =IF(IF($D$7=$U$10,U41,IF($D$7=$V$10,V41,IF($D$7=$W$10,W41,IF($D$7=$X$10,X41,X41))))=0,0,IF($D$7=$U$10,U41,IF($D$7=$V$10,V41,IF($D$7=$W$10,W41,IF($D$7=$X$10,X41,X41))))+IF('dane i obliczenia'!$D$2=metadane!$A$2,1/24,0)+IF(AND('dane i obliczenia'!$D$2=metadane!$A$1,A41>$Q$2,A41<$Q$3),1/24,0)) -> 07:18:16.965 | C41: =IF(IF($D$8=$Z$10,Z41,IF($D$8=$AA$10,AA41,IF($D$8=$AB$10,AB41,IF($D$8=$AC$10,AC41,Z41))))+IF('dane i obliczenia'!$D$2=metadane!$A$2,1/24,0)+IF(AND('dane i obliczenia'!$D$2=metadane!$A$1,A41>$Q$2,A41<$Q$3),1/24,0)>0.99999,0.99999,IF($D$8=$Z$10,Z41,IF($D$8=$AA$10,AA41,IF($D$8=$AB$10,AB41,IF($D$8=$AC$10,AC41,Z41))))+IF('dane i obliczenia'!$D$2=metadane!$A$2,1/24,0)+IF(AND('dane i obliczenia'!$D$2=metadane!$A$1,A41>$Q$2,A41<$Q$3),1/24,0)) -> 16:20:58.063 | D41: 06:00:00 | E41: 9.04474966 | F41: 9.04474966 | G41: 1.304712397 | H41: 0 | I41: 17:30:00 | J41: -1.150537943 | K41: 0 | S41: 01:17:59.006 | T41: 2018-01-31 | U41: =IFERROR(dawn($F$5,$F$6,YEAR(A41),MONTH(A41),DAY(A41),1,0,18),0) -> 05:20:36.331 | V41: 06:00:17.959 | W41: 06:41:14.799 | X41: 07:18:16.965 | Y41: 11:49:18.243 | Z41: 16:20:58.063 | AA41: 16:57:57.069 | AB41: 17:38:51.659 | AC41: 18:18:32.141 | AM41: 2019-01-31
A42: 2018-02-01 | B42: =IF(IF($D$7=$U$10,U42,IF($D$7=$V$10,V42,IF($D$7=$W$10,W42,IF($D$7=$X$10,X42,X42))))=0,0,IF($D$7=$U$10,U42,IF($D$7=$V$10,V42,IF($D$7=$W$10,W42,IF($D$7=$X$10,X42,X42))))+IF('dane i obliczenia'!$D$2=metadane!$A$2,1/24,0)+IF(AND('dane i obliczenia'!$D$2=metadane!$A$1,A42>$Q$2,A42<$Q$3),1/24,0)) -> 07:16:43.069 | C42: =IF(IF($D$8=$Z$10,Z42,IF($D$8=$AA$10,AA42,IF($D$8=$AB$10,AB42,IF($D$8=$AC$10,AC42,Z42))))+IF('dane i obliczenia'!$D$2=metadane!$A$2,1/24,0)+IF(AND('dane i obliczenia'!$D$2=metadane!$A$1,A42>$Q$2,A42<$Q$3),1/24,0)>0.99999,0.99999,IF($D$8=$Z$10,Z42,IF($D$8=$AA$10,AA42,IF($D$8=$AB$10,AB42,IF($D$8=$AC$10,AC42,Z42))))+IF('dane i obliczenia'!$D$2=metadane!$A$2,1/24,0)+IF(AND('dane i obliczenia'!$D$2=metadane!$A$1,A42>$Q$2,A42<$Q$3),1/24,0)) -> 16:22:49.544 | D42: 06:00:00 | E42: 9.10179871 | F42: 9.10179871 | G42: 1.278630297 | H42: 0 | I42: 17:30:00 | J42: -1.119570993 | K42: 0 | S42: 01:17:44.679 | T42: 2018-02-01 | U42: =IFERROR(dawn($F$5,$F$6,YEAR(A42),MONTH(A42),DAY(A42),1,0,18),0) -> 05:19:19.774 | V42: 05:58:58.390 | W42: 06:39:49.278 | X42: 07:16:43.069 | Y42: 11:49:26.691 | Z42: 16:22:49.544 | AA42: 16:59:40.190 | AB42: 17:40:28.848 | AC42: 18:20:06.353 | AM42: 2019-02-01
A43: 2018-02-02 | B43: =IF(IF($D$7=$U$10,U43,IF($D$7=$V$10,V43,IF($D$7=$W$10,W43,IF($D$7=$X$10,X43,X43))))=0,0,IF($D$7=$U$10,U43,IF($D$7=$V$10,V43,IF($D$7=$W$10,W43,IF($D$7=$X$10,X43,X43))))+IF('dane i obliczenia'!$D$2=metadane!$A$2,1/24,0)+IF(AND('dane i obliczenia'!$D$2=metadane!$A$1,A43>$Q$2,A43<$Q$3),1/24,0)) -> 07:15:07.153 | C43: =IF(IF($D$8=$Z$10,Z43,IF($D$8=$AA$10,AA43,IF($D$8=$AB$10,AB43,IF($D$8=$AC$10,AC43,Z43))))+IF('dane i obliczenia'!$D$2=metadane!$A$2,1/24,0)+IF(AND('dane i obliczenia'!$D$2=metadane!$A$1,A43>$Q$2,A43<$Q$3),1/24,0)>0.99999,0.99999,IF($D$8=$Z$10,Z43,IF($D$8=$AA$10,AA43,IF($D$8=$AB$10,AB43,IF($D$8=$AC$10,AC43,Z43))))+IF('dane i obliczenia'!$D$2=metadane!$A$2,1/24,0)+IF(AND('dane i obliczenia'!$D$2=metadane!$A$1,A43>$Q$2,A43<$Q$3),1/24,0)) -> 16:24:41.387 | D43: 06:00:00 | E43: 9.159509517 | F43: 9.159509517 | G43: 1.251986978 | H43: 0 | I43: 17:30:00 | J43: -1.088503504 | K43: 0 | S43: 01:17:30.542 | T43: 2018-02-02 | U43: =IFERROR(dawn($F$5,$F$6,YEAR(A43),MONTH(A43),DAY(A43),1,0,18),0) -> 05:18:00.896 | V43: 05:57:36.611 | W43: 06:38:21.641 | X43: 07:15:07.153 | Y43: 11:49:34.316 | Z43: 16:24:41.387 | AA43: 17:01:23.773 | AB43: 17:42:06.598 | AC43: 18:21:41.239 | AM43: 2019-02-02
A44: 2018-02-03 | B44: =IF(IF($D$7=$U$10,U44,IF($D$7=$V$10,V44,IF($D$7=$W$10,W44,IF($D$7=$X$10,X44,X44))))=0,0,IF($D$7=$U$10,U44,IF($D$7=$V$10,V44,IF($D$7=$W$10,W44,IF($D$7=$X$10,X44,X44))))+IF('dane i obliczenia'!$D$2=metadane!$A$2,1/24,0)+IF(AND('dane i obliczenia'!$D$2=metadane!$A$1,A44>$Q$2,A44<$Q$3),1/24,0)) -> 07:13:29.272 | C44: =IF(IF($D$8=$Z$10,Z44,IF($D$8=$AA$10,AA44,IF($D$8=$AB$10,AB44,IF($D$8=$AC$10,AC44,Z44))))+IF('dane i obliczenia'!$D$2=metadane!$A$2,1/24,0)+IF(AND('dane i obliczenia'!$D$2=metadane!$A$1,A44>$Q$2,A44<$Q$3),1/24,0)>0.99999,0.99999,IF($D$8=$Z$10,Z44,IF($D$8=$AA$10,AA44,IF($D$8=$AB$10,AB44,IF($D$8=$AC$10,AC44,Z44))))+IF('dane i obliczenia'!$D$2=metadane!$A$2,1/24,0)+IF(AND('dane i obliczenia'!$D$2=metadane!$A$1,A44>$Q$2,A44<$Q$3),1/24,0)) -> 16:26:33.539 | D44: 06:00:00 | E44: 9.217851862 | F44: 9.217851862 | G44: 1.224797743 | H44: 0 | I44: 17:30:00 | J44: -1.057350395 | K44: 0 | S44: 01:17:16.614 | T44: 2018-02-03 | U44: =IFERROR(dawn($F$5,$F$6,YEAR(A44),MONTH(A44),DAY(A44),1,0,18),0) -> 05:16:39.723 | V44: 05:56:12.658 | W44: 06:36:51.934 | X44: 07:13:29.272 | Y44: 11:49:41.119 | Z44: 16:26:33.539 | AA44: 17:03:07.773 | AB44: 17:43:44.872 | AC44: 18:23:16.775 | AM44: 2019-02-03
A45: 2018-02-04 | B45: =IF(IF($D$7=$U$10,U45,IF($D$7=$V$10,V45,IF($D$7=$W$10,W45,IF($D$7=$X$10,X45,X45))))=0,0,IF($D$7=$U$10,U45,IF($D$7=$V$10,V45,IF($D$7=$W$10,W45,IF($D$7=$X$10,X45,X45))))+IF('dane i obliczenia'!$D$2=metadane!$A$2,1/24,0)+IF(AND('dane i obliczenia'!$D$2=metadane!$A$1,A45>$Q$2,A45<$Q$3),1/24,0)) -> 07:11:49.480 | C45: =IF(IF($D$8=$Z$10,Z45,IF($D$8=$AA$10,AA45,IF($D$8=$AB$10,AB45,IF($D$8=$AC$10,AC45,Z45))))+IF('dane i obliczenia'!$D$2=metadane!$A$2,1/24,0)+IF(AND('dane i obliczenia'!$D$2=metadane!$A$1,A45>$Q$2,A45<$Q$3),1/24,0)>0.99999,0.99999,IF($D$8=$Z$10,Z45,IF($D$8=$AA$10,AA45,IF($D$8=$AB$10,AB45,IF($D$8=$AC$10,AC45,Z45))))+IF('dane i obliczenia'!$D$2=metadane!$A$2,1/24,0)+IF(AND('dane i obliczenia'!$D$2=metadane!$A$1,A45>$Q$2,A45<$Q$3),1/24,0)) -> 16:28:25.947 | D45: 06:00:00 | E45: 9.276796389 | F45: 9.276796389 | G45: 1.197077748 | H45: 0 | I45: 17:30:00 | J45: -1.026125863 | K45: 0 | S45: 01:17:02.914 | T45: 2018-02-04 | U45: =IFERROR(dawn($F$5,$F$6,YEAR(A45),MONTH(A45),DAY(A45),1,0,18),0) -> 05:15:16.283 | V45: 05:54:46.566 | W45: 06:35:20.202 | X45: 07:11:49.480 | Y45: 11:49:47.101 | Z45: 16:28:25.947 | AA45: 17:04:52.148 | AB45: 17:45:23.639 | AC45: 18:24:52.936 | AM45: 2019-02-04
A46: 2018-02-05 | B46: =IF(IF($D$7=$U$10,U46,IF($D$7=$V$10,V46,IF($D$7=$W$10,W46,IF($D$7=$X$10,X46,X46))))=0,0,IF($D$7=$U$10,U46,IF($D$7=$V$10,V46,IF($D$7=$W$10,W46,IF($D$7=$X$10,X46,X46))))+IF('dane i obliczenia'!$D$2=metadane!$A$2,1/24,0)+IF(AND('dane i obliczenia'!$D$2=metadane!$A$1,A46>$Q$2,A46<$Q$3),1/24,0)) -> 07:10:07.831 | C46: =IF(IF($D$8=$Z$10,Z46,IF($D$8=$AA$10,AA46,IF($D$8=$AB$10,AB46,IF($D$8=$AC$10,AC46,Z46))))+IF('dane i obliczenia'!$D$2=metadane!$A$2,1/24,0)+IF(AND('dane i obliczenia'!$D$2=metadane!$A$1,A46>$Q$2,A46<$Q$3),1/24,0)>0.99999,0.99999,IF($D$8=$Z$10,Z46,IF($D$8=$AA$10,AA46,IF($D$8=$AB$10,AB46,IF($D$8=$AC$10,AC46,Z46))))+IF('dane i obliczenia'!$D$2=metadane!$A$2,1/24,0)+IF(AND('dane i obliczenia'!$D$2=metadane!$A$1,A46>$Q$2,A46<$Q$3),1/24,0)) -> 16:30:18.564 | D46: 06:00:00 | E46: 9.336314618 | F46: 9.336314618 | G46: 1.168841993 | H46: 0 | I46: 17:30:00 | J46: -0.9948433893 | K46: 0 | S46: 01:16:49.459 | T46: 2018-02-05 | U46: =IFERROR(dawn($F$5,$F$6,YEAR(A46),MONTH(A46),DAY(A46),1,0,18),0) -> 05:13:50.602 | V46: 05:53:18.372 | W46: 06:33:46.489 | X46: 07:10:07.831 | Y46: 11:49:52.265 | Z46: 16:30:18.564 | AA46: 17:06:36.859 | AB46: 17:47:02.869 | AC46: 18:26:29.701 | AM46: 2019-02-05
A47: 2018-02-06 | B47: =IF(IF($D$7=$U$10,U47,IF($D$7=$V$10,V47,IF($D$7=$W$10,W47,IF($D$7=$X$10,X47,X47))))=0,0,IF($D$7=$U$10,U47,IF($D$7=$V$10,V47,IF($D$7=$W$10,W47,IF($D$7=$X$10,X47,X47))))+IF('dane i obliczenia'!$D$2=metadane!$A$2,1/24,0)+IF(AND('dane i obliczenia'!$D$2=metadane!$A$1,A47>$Q$2,A47<$Q$3),1/24,0)) -> 07:08:24.379 | C47: =IF(IF($D$8=$Z$10,Z47,IF($D$8=$AA$10,AA47,IF($D$8=$AB$10,AB47,IF($D$8=$AC$10,AC47,Z47))))+IF('dane i obliczenia'!$D$2=metadane!$A$2,1/24,0)+IF(AND('dane i obliczenia'!$D$2=metadane!$A$1,A47>$Q$2,A47<$Q$3),1/24,0)>0.99999,0.99999,IF($D$8=$Z$10,Z47,IF($D$8=$AA$10,AA47,IF($D$8=$AB$10,AB47,IF($D$8=$AC$10,AC47,Z47))))+IF('dane i obliczenia'!$D$2=metadane!$A$2,1/24,0)+IF(AND('dane i obliczenia'!$D$2=metadane!$A$1,A47>$Q$2,A47<$Q$3),1/24,0)) -> 16:32:11.343 | D47: 06:00:00 | E47: 9.396378953 | F47: 9.396378953 | G47: 1.140105309 | H47: 0 | I47: 17:30:00 | J47: -0.9635157382 | K47: 0 | S47: 01:16:36.268 | T47: 2018-02-06 | U47: =IFERROR(dawn($F$5,$F$6,YEAR(A47),MONTH(A47),DAY(A47),1,0,18),0) -> 05:12:22.709 | V47: 05:51:48.111 | W47: 06:32:10.841 | X47: 07:08:24.379 | Y47: 11:49:56.614 | Z47: 16:32:11.343 | AA47: 17:08:21.869 | AB47: 17:48:42.531 | AC47: 18:28:07.049 | AM47: 2019-02-06
A48: 2018-02-07 | B48: =IF(IF($D$7=$U$10,U48,IF($D$7=$V$10,V48,IF($D$7=$W$10,W48,IF($D$7=$X$10,X48,X48))))=0,0,IF($D$7=$U$10,U48,IF($D$7=$V$10,V48,IF($D$7=$W$10,W48,IF($D$7=$X$10,X48,X48))))+IF('dane i obliczenia'!$D$2=metadane!$A$2,1/24,0)+IF(AND('dane i obliczenia'!$D$2=metadane!$A$1,A48>$Q$2,A48<$Q$3),1/24,0)) -> 07:06:39.176 | C48: =IF(IF($D$8=$Z$10,Z48,IF($D$8=$AA$10,AA48,IF($D$8=$AB$10,AB48,IF($D$8=$AC$10,AC48,Z48))))+IF('dane i obliczenia'!$D$2=metadane!$A$2,1/24,0)+IF(AND('dane i obliczenia'!$D$2=metadane!$A$1,A48>$Q$2,A48<$Q$3),1/24,0)>0.99999,0.99999,IF($D$8=$Z$10,Z48,IF($D$8=$AA$10,AA48,IF($D$8=$AB$10,AB48,IF($D$8=$AC$10,AC48,Z48))))+IF('dane i obliczenia'!$D$2=metadane!$A$2,1/24,0)+IF(AND('dane i obliczenia'!$D$2=metadane!$A$1,A48>$Q$2,A48<$Q$3),1/24,0)) -> 16:34:04.242 | D48: 06:00:00 | E48: 9.456962679 | F48: 9.456962679 | G48: 1.110882357 | H48: 0 | I48: 17:30:00 | J48: -0.9321549641 | K48: 0 | S48: 01:16:23.357 | T48: 2018-02-07 | U48: =IFERROR(dawn($F$5,$F$6,YEAR(A48),MONTH(A48),DAY(A48),1,0,18),0) -> 05:10:52.631 | V48: 05:50:15.819 | W48: 06:30:33.303 | X48: 07:06:39.176 | Y48: 11:50:00.154 | Z48: 16:34:04.242 | AA48: 17:10:07.141 | AB48: 17:50:22.601 | AC48: 18:29:44.962 | AM48: 2019-02-07
A49: 2018-02-08 | B49: =IF(IF($D$7=$U$10,U49,IF($D$7=$V$10,V49,IF($D$7=$W$10,W49,IF($D$7=$X$10,X49,X49))))=0,0,IF($D$7=$U$10,U49,IF($D$7=$V$10,V49,IF($D$7=$W$10,W49,IF($D$7=$X$10,X49,X49))))+IF('dane i obliczenia'!$D$2=metadane!$A$2,1/24,0)+IF(AND('dane i obliczenia'!$D$2=metadane!$A$1,A49>$Q$2,A49<$Q$3),1/24,0)) -> 07:04:52.275 | C49: =IF(IF($D$8=$Z$10,Z49,IF($D$8=$AA$10,AA49,IF($D$8=$AB$10,AB49,IF($D$8=$AC$10,AC49,Z49))))+IF('dane i obliczenia'!$D$2=metadane!$A$2,1/24,0)+IF(AND('dane i obliczenia'!$D$2=metadane!$A$1,A49>$Q$2,A49<$Q$3),1/24,0)>0.99999,0.99999,IF($D$8=$Z$10,Z49,IF($D$8=$AA$10,AA49,IF($D$8=$AB$10,AB49,IF($D$8=$AC$10,AC49,Z49))))+IF('dane i obliczenia'!$D$2=metadane!$A$2,1/24,0)+IF(AND('dane i obliczenia'!$D$2=metadane!$A$1,A49>$Q$2,A49<$Q$3),1/24,0)) -> 16:35:57.219 | D49: 06:00:00 | E49: 9.518039969 | F49: 9.518039969 | G49: 1.081187613 | H49: 0 | I49: 17:30:00 | J49: -0.900772418 | K49: 0 | S49: 01:16:10.742 | T49: 2018-02-08 | U49: =IFERROR(dawn($F$5,$F$6,YEAR(A49),MONTH(A49),DAY(A49),1,0,18),0) -> 05:09:20.397 | V49: 05:48:41.534 | W49: 06:28:53.918 | X49: 07:04:52.275 | Y49: 11:50:02.889 | Z49: 16:35:57.219 | AA49: 17:11:52.644 | AB49: 17:52:03.051 | AC49: 18:31:23.422 | AM49: 2019-02-08
A50: 2018-02-09 | B50: =IF(IF($D$7=$U$10,U50,IF($D$7=$V$10,V50,IF($D$7=$W$10,W50,IF($D$7=$X$10,X50,X50))))=0,0,IF($D$7=$U$10,U50,IF($D$7=$V$10,V50,IF($D$7=$W$10,W50,IF($D$7=$X$10,X50,X50))))+IF('dane i obliczenia'!$D$2=metadane!$A$2,1/24,0)+IF(AND('dane i obliczenia'!$D$2=metadane!$A$1,A50>$Q$2,A50<$Q$3),1/24,0)) -> 07:03:03.727 | C50: =IF(IF($D$8=$Z$10,Z50,IF($D$8=$AA$10,AA50,IF($D$8=$AB$10,AB50,IF($D$8=$AC$10,AC50,Z50))))+IF('dane i obliczenia'!$D$2=metadane!$A$2,1/24,0)+IF(AND('dane i obliczenia'!$D$2=metadane!$A$1,A50>$Q$2,A50<$Q$3),1/24,0)>0.99999,0.99999,IF($D$8=$Z$10,Z50,IF($D$8=$AA$10,AA50,IF($D$8=$AB$10,AB50,IF($D$8=$AC$10,AC50,Z50))))+IF('dane i obliczenia'!$D$2=metadane!$A$2,1/24,0)+IF(AND('dane i obliczenia'!$D$2=metadane!$A$1,A50>$Q$2,A50<$Q$3),1/24,0)) -> 16:37:50.236 | D50: 06:00:00 | E50: 9.579585872 | F50: 9.579585872 | G50: 1.051035371 | H50: 0 | I50: 17:30:00 | J50: -0.8693787564 | K50: 0 | S50: 01:15:58.437 | T50: 2018-02-09 | U50: =IFERROR(dawn($F$5,$F$6,YEAR(A50),MONTH(A50),DAY(A50),1,0,18),0) -> 05:07:46.035 | V50: 05:47:05.290 | W50: 06:27:12.731 | X50: 07:03:03.727 | Y50: 11:50:04.826 | Z50: 16:37:50.236 | AA50: 17:13:38.344 | AB50: 17:53:43.860 | AC50: 18:33:02.415 | AM50: 2019-02-09
A51: 2018-02-10 | B51: =IF(IF($D$7=$U$10,U51,IF($D$7=$V$10,V51,IF($D$7=$W$10,W51,IF($D$7=$X$10,X51,X51))))=0,0,IF($D$7=$U$10,U51,IF($D$7=$V$10,V51,IF($D$7=$W$10,W51,IF($D$7=$X$10,X51,X51))))+IF('dane i obliczenia'!$D$2=metadane!$A$2,1/24,0)+IF(AND('dane i obliczenia'!$D$2=metadane!$A$1,A51>$Q$2,A51<$Q$3),1/24,0)) -> 07:01:13.583 | C51: =IF(IF($D$8=$Z$10,Z51,IF($D$8=$AA$10,AA51,IF($D$8=$AB$10,AB51,IF($D$8=$AC$10,AC51,Z51))))+IF('dane i obliczenia'!$D$2=metadane!$A$2,1/24,0)+IF(AND('dane i obliczenia'!$D$2=metadane!$A$1,A51>$Q$2,A51<$Q$3),1/24,0)>0.99999,0.99999,IF($D$8=$Z$10,Z51,IF($D$8=$AA$10,AA51,IF($D$8=$AB$10,AB51,IF($D$8=$AC$10,AC51,Z51))))+IF('dane i obliczenia'!$D$2=metadane!$A$2,1/24,0)+IF(AND('dane i obliczenia'!$D$2=metadane!$A$1,A51>$Q$2,A51<$Q$3),1/24,0)) -> 16:39:43.258 | D51: 06:00:00 | E51: 9.641576316 | F51: 9.641576316 | G51: 1.020439732 | H51: 0 | I51: 17:30:00 | J51: -0.8379839524 | K51: 0 | S51: 01:15:46.458 | T51: 2018-02-10 | U51: =IFERROR(dawn($F$5,$F$6,YEAR(A51),MONTH(A51),DAY(A51),1,0,18),0) -> 05:06:09.573 | V51: 05:45:27.125 | W51: 06:25:29.786 | X51: 07:01:13.583 | Y51: 11:50:05.973 | Z51: 16:39:43.258 | AA51: 17:15:24.214 | AB51: 17:55:25.005 | AC51: 18:34:41.927 | AM51: 2019-02-10
A52: 2018-02-11 | B52: =IF(IF($D$7=$U$10,U52,IF($D$7=$V$10,V52,IF($D$7=$W$10,W52,IF($D$7=$X$10,X52,X52))))=0,0,IF($D$7=$U$10,U52,IF($D$7=$V$10,V52,IF($D$7=$W$10,W52,IF($D$7=$X$10,X52,X52))))+IF('dane i obliczenia'!$D$2=metadane!$A$2,1/24,0)+IF(AND('dane i obliczenia'!$D$2=metadane!$A$1,A52>$Q$2,A52<$Q$3),1/24,0)) -> 06:59:21.893 | C52: =IF(IF($D$8=$Z$10,Z52,IF($D$8=$AA$10,AA52,IF($D$8=$AB$10,AB52,IF($D$8=$AC$10,AC52,Z52))))+IF('dane i obliczenia'!$D$2=metadane!$A$2,1/24,0)+IF(AND('dane i obliczenia'!$D$2=metadane!$A$1,A52>$Q$2,A52<$Q$3),1/24,0)>0.99999,0.99999,IF($D$8=$Z$10,Z52,IF($D$8=$AA$10,AA52,IF($D$8=$AB$10,AB52,IF($D$8=$AC$10,AC52,Z52))))+IF('dane i obliczenia'!$D$2=metadane!$A$2,1/24,0)+IF(AND('dane i obliczenia'!$D$2=metadane!$A$1,A52>$Q$2,A52<$Q$3),1/24,0)) -> 16:41:36.250 | D52: 06:00:00 | E52: 9.703988092 | F52: 9.703988092 | G52: 0.9894146015 | H52: 0 | I52: 17:30:00 | J52: -0.8065973065 | K52: 0 | S52: 01:15:34.818 | T52: 2018-02-11 | U52: =IFERROR(dawn($F$5,$F$6,YEAR(A52),MONTH(A52),DAY(A52),1,0,18),0) -> 05:04:31.039 | V52: 05:43:47.075 | W52: 06:23:45.127 | X52: 06:59:21.893 | Y52: 11:50:06.337 | Z52: 16:41:36.250 | AA52: 17:17:10.226 | AB52: 17:57:06.467 | AC52: 18:36:21.946 | AM52: 2019-02-11
A53: 2018-02-12 | B53: =IF(IF($D$7=$U$10,U53,IF($D$7=$V$10,V53,IF($D$7=$W$10,W53,IF($D$7=$X$10,X53,X53))))=0,0,IF($D$7=$U$10,U53,IF($D$7=$V$10,V53,IF($D$7=$W$10,W53,IF($D$7=$X$10,X53,X53))))+IF('dane i obliczenia'!$D$2=metadane!$A$2,1/24,0)+IF(AND('dane i obliczenia'!$D$2=metadane!$A$1,A53>$Q$2,A53<$Q$3),1/24,0)) -> 06:57:28.705 | C53: =IF(IF($D$8=$Z$10,Z53,IF($D$8=$AA$10,AA53,IF($D$8=$AB$10,AB53,IF($D$8=$AC$10,AC53,Z53))))+IF('dane i obliczenia'!$D$2=metadane!$A$2,1/24,0)+IF(AND('dane i obliczenia'!$D$2=metadane!$A$1,A53>$Q$2,A53<$Q$3),1/24,0)>0.99999,0.99999,IF($D$8=$Z$10,Z53,IF($D$8=$AA$10,AA53,IF($D$8=$AB$10,AB53,IF($D$8=$AC$10,AC53,Z53))))+IF('dane i obliczenia'!$D$2=metadane!$A$2,1/24,0)+IF(AND('dane i obliczenia'!$D$2=metadane!$A$1,A53>$Q$2,A53<$Q$3),1/24,0)) -> 16:43:29.181 | D53: 06:00:00 | E53: 9.766798848 | F53: 9.766798848 | G53: 0.9579736911 | H53: 0 | I53: 17:30:00 | J53: -0.7752274609 | K53: 0 | S53: 01:15:23.530 | T53: 2018-02-12 | U53: =IFERROR(dawn($F$5,$F$6,YEAR(A53),MONTH(A53),DAY(A53),1,0,18),0) -> 05:02:50.462 | V53: 05:42:05.175 | W53: 06:21:58.796 | X53: 06:57:28.705 | Y53: 11:50:05.927 | Z53: 16:43:29.181 | AA53: 17:18:56.356 | AB53: 17:58:48.228 | AC53: 18:38:02.462 | AM53: 2019-02-12
A54: 2018-02-13 | B54: =IF(IF($D$7=$U$10,U54,IF($D$7=$V$10,V54,IF($D$7=$W$10,W54,IF($D$7=$X$10,X54,X54))))=0,0,IF($D$7=$U$10,U54,IF($D$7=$V$10,V54,IF($D$7=$W$10,W54,IF($D$7=$X$10,X54,X54))))+IF('dane i obliczenia'!$D$2=metadane!$A$2,1/24,0)+IF(AND('dane i obliczenia'!$D$2=metadane!$A$1,A54>$Q$2,A54<$Q$3),1/24,0)) -> 06:55:34.070 | C54: =IF(IF($D$8=$Z$10,Z54,IF($D$8=$AA$10,AA54,IF($D$8=$AB$10,AB54,IF($D$8=$AC$10,AC54,Z54))))+IF('dane i obliczenia'!$D$2=metadane!$A$2,1/24,0)+IF(AND('dane i obliczenia'!$D$2=metadane!$A$1,A54>$Q$2,A54<$Q$3),1/24,0)>0.99999,0.99999,IF($D$8=$Z$10,Z54,IF($D$8=$AA$10,AA54,IF($D$8=$AB$10,AB54,IF($D$8=$AC$10,AC54,Z54))))+IF('dane i obliczenia'!$D$2=metadane!$A$2,1/24,0)+IF(AND('dane i obliczenia'!$D$2=metadane!$A$1,A54>$Q$2,A54<$Q$3),1/24,0)) -> 16:45:22.023 | D54: 06:00:00 | E54: 9.829987075 | F54: 9.829987075 | G54: 0.9261305119 | H54: 0 | I54: 17:30:00 | J54: -0.7438824133 | K54: 0 | S54: 01:15:12.607 | T54: 2018-02-13 | U54: =IFERROR(dawn($F$5,$F$6,YEAR(A54),MONTH(A54),DAY(A54),1,0,18),0) -> 05:01:07.870 | V54: 05:40:21.463 | W54: 06:20:10.837 | X54: 06:55:34.070 | Y54: 11:50:04.753 | Z54: 16:45:22.023 | AA54: 17:20:42.579 | AB54: 18:00:30.272 | AC54: 18:39:43.466 | AM54: 2019-02-13
A55: 2018-02-14 | B55: =IF(IF($D$7=$U$10,U55,IF($D$7=$V$10,V55,IF($D$7=$W$10,W55,IF($D$7=$X$10,X55,X55))))=0,0,IF($D$7=$U$10,U55,IF($D$7=$V$10,V55,IF($D$7=$W$10,W55,IF($D$7=$X$10,X55,X55))))+IF('dane i obliczenia'!$D$2=metadane!$A$2,1/24,0)+IF(AND('dane i obliczenia'!$D$2=metadane!$A$1,A55>$Q$2,A55<$Q$3),1/24,0)) -> 06:53:38.034 | C55: =IF(IF($D$8=$Z$10,Z55,IF($D$8=$AA$10,AA55,IF($D$8=$AB$10,AB55,IF($D$8=$AC$10,AC55,Z55))))+IF('dane i obliczenia'!$D$2=metadane!$A$2,1/24,0)+IF(AND('dane i obliczenia'!$D$2=metadane!$A$1,A55>$Q$2,A55<$Q$3),1/24,0)>0.99999,0.99999,IF($D$8=$Z$10,Z55,IF($D$8=$AA$10,AA55,IF($D$8=$AB$10,AB55,IF($D$8=$AC$10,AC55,Z55))))+IF('dane i obliczenia'!$D$2=metadane!$A$2,1/24,0)+IF(AND('dane i obliczenia'!$D$2=metadane!$A$1,A55>$Q$2,A55<$Q$3),1/24,0)) -> 16:47:14.750 | D55: 06:00:00 | E55: 9.893532092 | F55: 9.893532092 | G55: 0.8938983757 | H55: 0 | I55: 17:30:00 | J55: -0.7125695326 | K55: 0 | S55: 01:15:02.062 | T55: 2018-02-14 | U55: =IFERROR(dawn($F$5,$F$6,YEAR(A55),MONTH(A55),DAY(A55),1,0,18),0) -> 04:59:23.291 | V55: 05:38:35.972 | W55: 06:18:21.293 | X55: 06:53:38.034 | Y55: 11:50:02.826 | Z55: 16:47:14.750 | AA55: 17:22:28.874 | AB55: 18:02:12.583 | AC55: 18:41:24.952 | AM55: 2019-02-14
A56: 2018-02-15 | B56: =IF(IF($D$7=$U$10,U56,IF($D$7=$V$10,V56,IF($D$7=$W$10,W56,IF($D$7=$X$10,X56,X56))))=0,0,IF($D$7=$U$10,U56,IF($D$7=$V$10,V56,IF($D$7=$W$10,W56,IF($D$7=$X$10,X56,X56))))+IF('dane i obliczenia'!$D$2=metadane!$A$2,1/24,0)+IF(AND('dane i obliczenia'!$D$2=metadane!$A$1,A56>$Q$2,A56<$Q$3),1/24,0)) -> 06:51:40.645 | C56: =IF(IF($D$8=$Z$10,Z56,IF($D$8=$AA$10,AA56,IF($D$8=$AB$10,AB56,IF($D$8=$AC$10,AC56,Z56))))+IF('dane i obliczenia'!$D$2=metadane!$A$2,1/24,0)+IF(AND('dane i obliczenia'!$D$2=metadane!$A$1,A56>$Q$2,A56<$Q$3),1/24,0)>0.99999,0.99999,IF($D$8=$Z$10,Z56,IF($D$8=$AA$10,AA56,IF($D$8=$AB$10,AB56,IF($D$8=$AC$10,AC56,Z56))))+IF('dane i obliczenia'!$D$2=metadane!$A$2,1/24,0)+IF(AND('dane i obliczenia'!$D$2=metadane!$A$1,A56>$Q$2,A56<$Q$3),1/24,0)) -> 16:49:07.336 | D56: 06:00:00 | E56: 9.957414031 | F56: 9.957414031 | G56: 0.8612903936 | H56: 0 | I56: 17:30:00 | J56: -0.6812955751 | K56: 0 | S56: 01:14:51.905 | T56: 2018-02-15 | U56: =IFERROR(dawn($F$5,$F$6,YEAR(A56),MONTH(A56),DAY(A56),1,0,18),0) -> 04:57:36.753 | V56: 05:36:48.740 | W56: 06:16:30.205 | X56: 06:51:40.645 | Y56: 11:50:00.158 | Z56: 16:49:07.336 | AA56: 17:24:15.223 | AB56: 18:03:55.150 | AC56: 18:43:06.914 | AM56: 2019-02-15
A57: 2018-02-16 | B57: =IF(IF($D$7=$U$10,U57,IF($D$7=$V$10,V57,IF($D$7=$W$10,W57,IF($D$7=$X$10,X57,X57))))=0,0,IF($D$7=$U$10,U57,IF($D$7=$V$10,V57,IF($D$7=$W$10,W57,IF($D$7=$X$10,X57,X57))))+IF('dane i obliczenia'!$D$2=metadane!$A$2,1/24,0)+IF(AND('dane i obliczenia'!$D$2=metadane!$A$1,A57>$Q$2,A57<$Q$3),1/24,0)) -> 06:49:41.950 | C57: =IF(IF($D$8=$Z$10,Z57,IF($D$8=$AA$10,AA57,IF($D$8=$AB$10,AB57,IF($D$8=$AC$10,AC57,Z57))))+IF('dane i obliczenia'!$D$2=metadane!$A$2,1/24,0)+IF(AND('dane i obliczenia'!$D$2=metadane!$A$1,A57>$Q$2,A57<$Q$3),1/24,0)>0.99999,0.99999,IF($D$8=$Z$10,Z57,IF($D$8=$AA$10,AA57,IF($D$8=$AB$10,AB57,IF($D$8=$AC$10,AC57,Z57))))+IF('dane i obliczenia'!$D$2=metadane!$A$2,1/24,0)+IF(AND('dane i obliczenia'!$D$2=metadane!$A$1,A57>$Q$2,A57<$Q$3),1/24,0)) -> 16:50:59.760 | D57: 06:00:00 | E57: 10.02161382 | F57: 10.02161382 | G57: 0.8283194767 | H57: 0 | I57: 17:30:00 | J57: -0.650066702 | K57: 0 | S57: 01:14:42.148 | T57: 2018-02-16 | U57: =IFERROR(dawn($F$5,$F$6,YEAR(A57),MONTH(A57),DAY(A57),1,0,18),0) -> 04:55:48.285 | V57: 05:34:59.802 | W57: 06:14:37.615 | X57: 06:49:41.950 | Y57: 11:49:56.759 | Z57: 16:50:59.760 | AA57: 17:26:01.608 | AB57: 18:05:37.960 | AC57: 18:44:49.349 | AM57: 2019-02-16
A58: 2018-02-17 | B58: =IF(IF($D$7=$U$10,U58,IF($D$7=$V$10,V58,IF($D$7=$W$10,W58,IF($D$7=$X$10,X58,X58))))=0,0,IF($D$7=$U$10,U58,IF($D$7=$V$10,V58,IF($D$7=$W$10,W58,IF($D$7=$X$10,X58,X58))))+IF('dane i obliczenia'!$D$2=metadane!$A$2,1/24,0)+IF(AND('dane i obliczenia'!$D$2=metadane!$A$1,A58>$Q$2,A58<$Q$3),1/24,0)) -> 06:47:41.994 | C58: =IF(IF($D$8=$Z$10,Z58,IF($D$8=$AA$10,AA58,IF($D$8=$AB$10,AB58,IF($D$8=$AC$10,AC58,Z58))))+IF('dane i obliczenia'!$D$2=metadane!$A$2,1/24,0)+IF(AND('dane i obliczenia'!$D$2=metadane!$A$1,A58>$Q$2,A58<$Q$3),1/24,0)>0.99999,0.99999,IF($D$8=$Z$10,Z58,IF($D$8=$AA$10,AA58,IF($D$8=$AB$10,AB58,IF($D$8=$AC$10,AC58,Z58))))+IF('dane i obliczenia'!$D$2=metadane!$A$2,1/24,0)+IF(AND('dane i obliczenia'!$D$2=metadane!$A$1,A58>$Q$2,A58<$Q$3),1/24,0)) -> 16:52:52.001 | D58: 06:00:00 | E58: 10.08611317 | F58: 10.08611317 | G58: 0.7949983366 | H58: 0 | I58: 17:30:00 | J58: -0.6188884972 | K58: 0 | S58: 01:14:32.801 | T58: 2018-02-17 | U58: =IFERROR(dawn($F$5,$F$6,YEAR(A58),MONTH(A58),DAY(A58),1,0,18),0) -> 04:53:57.914 | V58: 05:33:09.193 | W58: 06:12:43.565 | X58: 06:47:41.994 | Y58: 11:49:52.643 | Z58: 16:52:52.001 | AA58: 17:27:48.013 | AB58: 18:07:21.005 | AC58: 18:46:32.254 | AM58: 2019-02-17
A59: 2018-02-18 | B59: =IF(IF($D$7=$U$10,U59,IF($D$7=$V$10,V59,IF($D$7=$W$10,W59,IF($D$7=$X$10,X59,X59))))=0,0,IF($D$7=$U$10,U59,IF($D$7=$V$10,V59,IF($D$7=$W$10,W59,IF($D$7=$X$10,X59,X59))))+IF('dane i obliczenia'!$D$2=metadane!$A$2,1/24,0)+IF(AND('dane i obliczenia'!$D$2=metadane!$A$1,A59>$Q$2,A59<$Q$3),1/24,0)) -> 06:45:40.822 | C59: =IF(IF($D$8=$Z$10,Z59,IF($D$8=$AA$10,AA59,IF($D$8=$AB$10,AB59,IF($D$8=$AC$10,AC59,Z59))))+IF('dane i obliczenia'!$D$2=metadane!$A$2,1/24,0)+IF(AND('dane i obliczenia'!$D$2=metadane!$A$1,A59>$Q$2,A59<$Q$3),1/24,0)>0.99999,0.99999,IF($D$8=$Z$10,Z59,IF($D$8=$AA$10,AA59,IF($D$8=$AB$10,AB59,IF($D$8=$AC$10,AC59,Z59))))+IF('dane i obliczenia'!$D$2=metadane!$A$2,1/24,0)+IF(AND('dane i obliczenia'!$D$2=metadane!$A$1,A59>$Q$2,A59<$Q$3),1/24,0)) -> 16:54:44.042 | D59: 06:00:00 | E59: 10.15089453 | F59: 10.15089453 | G59: 0.7613394863 | H59: 0 | I59: 17:30:00 | J59: -0.5877659855 | K59: 0 | S59: 01:14:23.874 | T59: 2018-02-18 | U59: =IFERROR(dawn($F$5,$F$6,YEAR(A59),MONTH(A59),DAY(A59),1,0,18),0) -> 04:52:05.668 | V59: 05:31:16.948 | W59: 06:10:48.095 | X59: 06:45:40.822 | Y59: 11:49:47.823 | Z59: 16:54:44.042 | AA59: 17:29:34.424 | AB59: 18:09:04.275 | AC59: 18:48:15.629 | AM59: 2019-02-18
A60: 2018-02-19 | B60: =IF(IF($D$7=$U$10,U60,IF($D$7=$V$10,V60,IF($D$7=$W$10,W60,IF($D$7=$X$10,X60,X60))))=0,0,IF($D$7=$U$10,U60,IF($D$7=$V$10,V60,IF($D$7=$W$10,W60,IF($D$7=$X$10,X60,X60))))+IF('dane i obliczenia'!$D$2=metadane!$A$2,1/24,0)+IF(AND('dane i obliczenia'!$D$2=metadane!$A$1,A60>$Q$2,A60<$Q$3),1/24,0)) -> 06:43:38.479 | C60: =IF(IF($D$8=$Z$10,Z60,IF($D$8=$AA$10,AA60,IF($D$8=$AB$10,AB60,IF($D$8=$AC$10,AC60,Z60))))+IF('dane i obliczenia'!$D$2=metadane!$A$2,1/24,0)+IF(AND('dane i obliczenia'!$D$2=metadane!$A$1,A60>$Q$2,A60<$Q$3),1/24,0)>0.99999,0.99999,IF($D$8=$Z$10,Z60,IF($D$8=$AA$10,AA60,IF($D$8=$AB$10,AB60,IF($D$8=$AC$10,AC60,Z60))))+IF('dane i obliczenia'!$D$2=metadane!$A$2,1/24,0)+IF(AND('dane i obliczenia'!$D$2=metadane!$A$1,A60>$Q$2,A60<$Q$3),1/24,0)) -> 16:56:35.867 | D60: 06:00:00 | E60: 10.21594111 | F60: 10.21594111 | G60: 0.7273552419 | H60: 0 | I60: 17:30:00 | J60: -0.5567036522 | K60: 0 | S60: 01:14:15.378 | T60: 2018-02-19 | U60: =IFERROR(dawn($F$5,$F$6,YEAR(A60),MONTH(A60),DAY(A60),1,0,18),0) -> 04:50:11.574 | V60: 05:29:23.101 | W60: 06:08:51.246 | X60: 06:43:38.479 | Y60: 11:49:42.313 | Z60: 16:56:35.867 | AA60: 17:31:20.829 | AB60: 18:10:47.765 | AC60: 18:49:59.474 | AM60: 2019-02-19
A61: 2018-02-20 | B61: =IF(IF($D$7=$U$10,U61,IF($D$7=$V$10,V61,IF($D$7=$W$10,W61,IF($D$7=$X$10,X61,X61))))=0,0,IF($D$7=$U$10,U61,IF($D$7=$V$10,V61,IF($D$7=$W$10,W61,IF($D$7=$X$10,X61,X61))))+IF('dane i obliczenia'!$D$2=metadane!$A$2,1/24,0)+IF(AND('dane i obliczenia'!$D$2=metadane!$A$1,A61>$Q$2,A61<$Q$3),1/24,0)) -> 06:41:35.008 | C61: =IF(IF($D$8=$Z$10,Z61,IF($D$8=$AA$10,AA61,IF($D$8=$AB$10,AB61,IF($D$8=$AC$10,AC61,Z61))))+IF('dane i obliczenia'!$D$2=metadane!$A$2,1/24,0)+IF(AND('dane i obliczenia'!$D$2=metadane!$A$1,A61>$Q$2,A61<$Q$3),1/24,0)>0.99999,0.99999,IF($D$8=$Z$10,Z61,IF($D$8=$AA$10,AA61,IF($D$8=$AB$10,AB61,IF($D$8=$AC$10,AC61,Z61))))+IF('dane i obliczenia'!$D$2=metadane!$A$2,1/24,0)+IF(AND('dane i obliczenia'!$D$2=metadane!$A$1,A61>$Q$2,A61<$Q$3),1/24,0)) -> 16:58:27.460 | D61: 06:00:00 | E61: 10.28123681 | F61: 10.28123681 | G61: 0.6930577248 | H61: 0 | I61: 17:30:00 | J61: -0.525705462 | K61: 0 | S61: 01:14:07.320 | T61: 2018-02-20 | U61: =IFERROR(dawn($F$5,$F$6,YEAR(A61),MONTH(A61),DAY(A61),1,0,18),0) -> 04:48:15.659 | V61: 05:27:27.688 | W61: 06:06:53.057 | X61: 06:41:35.008 | Y61: 11:49:36.128 | Z61: 16:58:27.460 | AA61: 17:33:07.217 | AB61: 18:12:31.469 | AC61: 18:51:43.793 | AM61: 2019-02-20
A62: 2018-02-21 | B62: =IF(IF($D$7=$U$10,U62,IF($D$7=$V$10,V62,IF($D$7=$W$10,W62,IF($D$7=$X$10,X62,X62))))=0,0,IF($D$7=$U$10,U62,IF($D$7=$V$10,V62,IF($D$7=$W$10,W62,IF($D$7=$X$10,X62,X62))))+IF('dane i obliczenia'!$D$2=metadane!$A$2,1/24,0)+IF(AND('dane i obliczenia'!$D$2=metadane!$A$1,A62>$Q$2,A62<$Q$3),1/24,0)) -> 06:39:30.452 | C62: =IF(IF($D$8=$Z$10,Z62,IF($D$8=$AA$10,AA62,IF($D$8=$AB$10,AB62,IF($D$8=$AC$10,AC62,Z62))))+IF('dane i obliczenia'!$D$2=metadane!$A$2,1/24,0)+IF(AND('dane i obliczenia'!$D$2=metadane!$A$1,A62>$Q$2,A62<$Q$3),1/24,0)>0.99999,0.99999,IF($D$8=$Z$10,Z62,IF($D$8=$AA$10,AA62,IF($D$8=$AB$10,AB62,IF($D$8=$AC$10,AC62,Z62))))+IF('dane i obliczenia'!$D$2=metadane!$A$2,1/24,0)+IF(AND('dane i obliczenia'!$D$2=metadane!$A$1,A62>$Q$2,A62<$Q$3),1/24,0)) -> 17:00:18.810 | D62: 06:00:00 | E62: 10.34676626 | F62: 10.34676626 | G62: 0.6584588638 | H62: 0 | I62: 17:30:00 | J62: -0.4947748788 | K62: 0 | S62: 01:13:59.710 | T62: 2018-02-21 | U62: =IFERROR(dawn($F$5,$F$6,YEAR(A62),MONTH(A62),DAY(A62),1,0,18),0) -> 04:46:17.949 | V62: 05:25:30.742 | W62: 06:04:53.569 | X62: 06:39:30.452 | Y62: 11:49:29.282 | Z62: 17:00:18.810 | AA62: 17:34:53.579 | AB62: 18:14:15.384 | AC62: 18:53:28.588 | AM62: 2019-02-21
A63: 2018-02-22 | B63: =IF(IF($D$7=$U$10,U63,IF($D$7=$V$10,V63,IF($D$7=$W$10,W63,IF($D$7=$X$10,X63,X63))))=0,0,IF($D$7=$U$10,U63,IF($D$7=$V$10,V63,IF($D$7=$W$10,W63,IF($D$7=$X$10,X63,X63))))+IF('dane i obliczenia'!$D$2=metadane!$A$2,1/24,0)+IF(AND('dane i obliczenia'!$D$2=metadane!$A$1,A63>$Q$2,A63<$Q$3),1/24,0)) -> 06:37:24.853 | C63: =IF(IF($D$8=$Z$10,Z63,IF($D$8=$AA$10,AA63,IF($D$8=$AB$10,AB63,IF($D$8=$AC$10,AC63,Z63))))+IF('dane i obliczenia'!$D$2=metadane!$A$2,1/24,0)+IF(AND('dane i obliczenia'!$D$2=metadane!$A$1,A63>$Q$2,A63<$Q$3),1/24,0)>0.99999,0.99999,IF($D$8=$Z$10,Z63,IF($D$8=$AA$10,AA63,IF($D$8=$AB$10,AB63,IF($D$8=$AC$10,AC63,Z63))))+IF('dane i obliczenia'!$D$2=metadane!$A$2,1/24,0)+IF(AND('dane i obliczenia'!$D$2=metadane!$A$1,A63>$Q$2,A63<$Q$3),1/24,0)) -> 17:02:09.906 | D63: 06:00:00 | E63: 10.41251472 | F63: 10.41251472 | G63: 0.623570398 | H63: 0 | I63: 17:30:00 | J63: -0.4639148857 | K63: 0 | S63: 01:13:52.557 | T63: 2018-02-22 | U63: =IFERROR(dawn($F$5,$F$6,YEAR(A63),MONTH(A63),DAY(A63),1,0,18),0) -> 04:44:18.472 | V63: 05:23:32.297 | W63: 06:02:52.820 | X63: 06:37:24.853 | Y63: 11:49:21.792 | Z63: 17:02:09.906 | AA63: 17:36:39.907 | AB63: 18:15:59.507 | AC63: 18:55:13.865 | AM63: 2019-02-22
A64: 2018-02-23 | B64: =IF(IF($D$7=$U$10,U64,IF($D$7=$V$10,V64,IF($D$7=$W$10,W64,IF($D$7=$X$10,X64,X64))))=0,0,IF($D$7=$U$10,U64,IF($D$7=$V$10,V64,IF($D$7=$W$10,W64,IF($D$7=$X$10,X64,X64))))+IF('dane i obliczenia'!$D$2=metadane!$A$2,1/24,0)+IF(AND('dane i obliczenia'!$D$2=metadane!$A$1,A64>$Q$2,A64<$Q$3),1/24,0)) -> 06:35:18.254 | C64: =IF(IF($D$8=$Z$10,Z64,IF($D$8=$AA$10,AA64,IF($D$8=$AB$10,AB64,IF($D$8=$AC$10,AC64,Z64))))+IF('dane i obliczenia'!$D$2=metadane!$A$2,1/24,0)+IF(AND('dane i obliczenia'!$D$2=metadane!$A$1,A64>$Q$2,A64<$Q$3),1/24,0)>0.99999,0.99999,IF($D$8=$Z$10,Z64,IF($D$8=$AA$10,AA64,IF($D$8=$AB$10,AB64,IF($D$8=$AC$10,AC64,Z64))))+IF('dane i obliczenia'!$D$2=metadane!$A$2,1/24,0)+IF(AND('dane i obliczenia'!$D$2=metadane!$A$1,A64>$Q$2,A64<$Q$3),1/24,0)) -> 17:04:00.739 | D64: 06:00:00 | E64: 10.47846812 | F64: 10.47846812 | G64: 0.5884038794 | H64: 0 | I64: 17:30:00 | J64: -0.4331280052 | K64: 0 | S64: 01:13:45.868 | T64: 2018-02-23 | U64: =IFERROR(dawn($F$5,$F$6,YEAR(A64),MONTH(A64),DAY(A64),1,0,18),0) -> 04:42:17.253 | V64: 05:21:32.386 | W64: 06:00:50.849 | X64: 06:35:18.254 | Y64: 11:49:13.673 | Z64: 17:04:00.739 | AA64: 17:38:26.196 | AB64: 18:17:43.838 | AC64: 18:56:59.630 | AM64: 2019-02-23
A65: 2018-02-24 | B65: =IF(IF($D$7=$U$10,U65,IF($D$7=$V$10,V65,IF($D$7=$W$10,W65,IF($D$7=$X$10,X65,X65))))=0,0,IF($D$7=$U$10,U65,IF($D$7=$V$10,V65,IF($D$7=$W$10,W65,IF($D$7=$X$10,X65,X65))))+IF('dane i obliczenia'!$D$2=metadane!$A$2,1/24,0)+IF(AND('dane i obliczenia'!$D$2=metadane!$A$1,A65>$Q$2,A65<$Q$3),1/24,0)) -> 06:33:10.694 | C65: =IF(IF($D$8=$Z$10,Z65,IF($D$8=$AA$10,AA65,IF($D$8=$AB$10,AB65,IF($D$8=$AC$10,AC65,Z65))))+IF('dane i obliczenia'!$D$2=metadane!$A$2,1/24,0)+IF(AND('dane i obliczenia'!$D$2=metadane!$A$1,A65>$Q$2,A65<$Q$3),1/24,0)>0.99999,0.99999,IF($D$8=$Z$10,Z65,IF($D$8=$AA$10,AA65,IF($D$8=$AB$10,AB65,IF($D$8=$AC$10,AC65,Z65))))+IF('dane i obliczenia'!$D$2=metadane!$A$2,1/24,0)+IF(AND('dane i obliczenia'!$D$2=metadane!$A$1,A65>$Q$2,A65<$Q$3),1/24,0)) -> 17:05:51.301 | D65: 06:00:00 | E65: 10.544613 | F65: 10.544613 | G65: 0.5529706768 | H65: 0 | I65: 17:30:00 | J65: -0.4024163192 | K65: 0 | S65: 01:13:39.651 | T65: 2018-02-24 | U65: =IFERROR(dawn($F$5,$F$6,YEAR(A65),MONTH(A65),DAY(A65),1,0,18),0) -> 04:40:14.317 | V65: 05:19:31.043 | W65: 05:58:47.694 | X65: 06:33:10.694 | Y65: 11:49:04.942 | Z65: 17:05:51.301 | AA65: 17:40:12.440 | AB65: 18:19:28.376 | AC65: 18:58:45.892 | AM65: 2019-02-24
A66: 2018-02-25 | B66: =IF(IF($D$7=$U$10,U66,IF($D$7=$V$10,V66,IF($D$7=$W$10,W66,IF($D$7=$X$10,X66,X66))))=0,0,IF($D$7=$U$10,U66,IF($D$7=$V$10,V66,IF($D$7=$W$10,W66,IF($D$7=$X$10,X66,X66))))+IF('dane i obliczenia'!$D$2=metadane!$A$2,1/24,0)+IF(AND('dane i obliczenia'!$D$2=metadane!$A$1,A66>$Q$2,A66<$Q$3),1/24,0)) -> 06:31:02.215 | C66: =IF(IF($D$8=$Z$10,Z66,IF($D$8=$AA$10,AA66,IF($D$8=$AB$10,AB66,IF($D$8=$AC$10,AC66,Z66))))+IF('dane i obliczenia'!$D$2=metadane!$A$2,1/24,0)+IF(AND('dane i obliczenia'!$D$2=metadane!$A$1,A66>$Q$2,A66<$Q$3),1/24,0)>0.99999,0.99999,IF($D$8=$Z$10,Z66,IF($D$8=$AA$10,AA66,IF($D$8=$AB$10,AB66,IF($D$8=$AC$10,AC66,Z66))))+IF('dane i obliczenia'!$D$2=metadane!$A$2,1/24,0)+IF(AND('dane i obliczenia'!$D$2=metadane!$A$1,A66>$Q$2,A66<$Q$3),1/24,0)) -> 17:07:41.587 | D66: 06:00:00 | E66: 10.61093653 | F66: 10.61093653 | G66: 0.5172819788 | H66: 0 | I66: 17:30:00 | J66: -0.3717814894 | K66: 0 | S66: 01:13:33.915 | T66: 2018-02-25 | U66: =IFERROR(dawn($F$5,$F$6,YEAR(A66),MONTH(A66),DAY(A66),1,0,18),0) -> 04:38:09.691 | V66: 05:17:28.300 | W66: 05:56:43.392 | X66: 06:31:02.215 | Y66: 11:48:55.616 | Z66: 17:07:41.587 | AA66: 17:41:58.637 | AB66: 18:21:13.123 | AC66: 19:00:32.659 | AM66: 2019-02-25
A67: 2018-02-26 | B67: =IF(IF($D$7=$U$10,U67,IF($D$7=$V$10,V67,IF($D$7=$W$10,W67,IF($D$7=$X$10,X67,X67))))=0,0,IF($D$7=$U$10,U67,IF($D$7=$V$10,V67,IF($D$7=$W$10,W67,IF($D$7=$X$10,X67,X67))))+IF('dane i obliczenia'!$D$2=metadane!$A$2,1/24,0)+IF(AND('dane i obliczenia'!$D$2=metadane!$A$1,A67>$Q$2,A67<$Q$3),1/24,0)) -> 06:28:52.856 | C67: =IF(IF($D$8=$Z$10,Z67,IF($D$8=$AA$10,AA67,IF($D$8=$AB$10,AB67,IF($D$8=$AC$10,AC67,Z67))))+IF('dane i obliczenia'!$D$2=metadane!$A$2,1/24,0)+IF(AND('dane i obliczenia'!$D$2=metadane!$A$1,A67>$Q$2,A67<$Q$3),1/24,0)>0.99999,0.99999,IF($D$8=$Z$10,Z67,IF($D$8=$AA$10,AA67,IF($D$8=$AB$10,AB67,IF($D$8=$AC$10,AC67,Z67))))+IF('dane i obliczenia'!$D$2=metadane!$A$2,1/24,0)+IF(AND('dane i obliczenia'!$D$2=metadane!$A$1,A67>$Q$2,A67<$Q$3),1/24,0)) -> 17:09:31.591 | D67: 06:00:00 | E67: 10.67742643 | F67: 10.67742643 | G67: 0.4813487977 | H67: 0 | I67: 17:30:00 | J67: -0.3412247772 | K67: 0 | S67: 01:13:28.665 | T67: 2018-02-26 | U67: =IFERROR(dawn($F$5,$F$6,YEAR(A67),MONTH(A67),DAY(A67),1,0,18),0) -> 04:36:03.398 | V67: 05:15:24.190 | W67: 05:54:37.982 | X67: 06:28:52.856 | Y67: 11:48:45.712 | Z67: 17:09:31.591 | AA67: 17:43:44.784 | AB67: 18:22:58.082 | AC67: 19:02:19.941 | AM67: 2019-02-26
A68: 2018-02-27 | B68: =IF(IF($D$7=$U$10,U68,IF($D$7=$V$10,V68,IF($D$7=$W$10,W68,IF($D$7=$X$10,X68,X68))))=0,0,IF($D$7=$U$10,U68,IF($D$7=$V$10,V68,IF($D$7=$W$10,W68,IF($D$7=$X$10,X68,X68))))+IF('dane i obliczenia'!$D$2=metadane!$A$2,1/24,0)+IF(AND('dane i obliczenia'!$D$2=metadane!$A$1,A68>$Q$2,A68<$Q$3),1/24,0)) -> 06:26:42.655 | C68: =IF(IF($D$8=$Z$10,Z68,IF($D$8=$AA$10,AA68,IF($D$8=$AB$10,AB68,IF($D$8=$AC$10,AC68,Z68))))+IF('dane i obliczenia'!$D$2=metadane!$A$2,1/24,0)+IF(AND('dane i obliczenia'!$D$2=metadane!$A$1,A68>$Q$2,A68<$Q$3),1/24,0)>0.99999,0.99999,IF($D$8=$Z$10,Z68,IF($D$8=$AA$10,AA68,IF($D$8=$AB$10,AB68,IF($D$8=$AC$10,AC68,Z68))))+IF('dane i obliczenia'!$D$2=metadane!$A$2,1/24,0)+IF(AND('dane i obliczenia'!$D$2=metadane!$A$1,A68>$Q$2,A68<$Q$3),1/24,0)) -> 17:11:21.311 | D68: 06:00:00 | E68: 10.74407096 | F68: 10.74407096 | G68: 0.4451819737 | H68: 0 | I68: 17:30:00 | J68: -0.3107470641 | K68: 0 | S68: 01:13:23.910 | T68: 2018-02-27 | U68: =IFERROR(dawn($F$5,$F$6,YEAR(A68),MONTH(A68),DAY(A68),1,0,18),0) -> 04:33:55.464 | V68: 05:13:18.745 | W68: 05:52:31.498 | X68: 06:26:42.655 | Y68: 11:48:35.249 | Z68: 17:11:21.311 | AA68: 17:45:30.881 | AB68: 18:24:43.256 | AC68: 19:04:07.752 | AM68: 2019-02-27
A69: 2018-02-28 | B69: =IF(IF($D$7=$U$10,U69,IF($D$7=$V$10,V69,IF($D$7=$W$10,W69,IF($D$7=$X$10,X69,X69))))=0,0,IF($D$7=$U$10,U69,IF($D$7=$V$10,V69,IF($D$7=$W$10,W69,IF($D$7=$X$10,X69,X69))))+IF('dane i obliczenia'!$D$2=metadane!$A$2,1/24,0)+IF(AND('dane i obliczenia'!$D$2=metadane!$A$1,A69>$Q$2,A69<$Q$3),1/24,0)) -> 06:24:31.652 | C69: =IF(IF($D$8=$Z$10,Z69,IF($D$8=$AA$10,AA69,IF($D$8=$AB$10,AB69,IF($D$8=$AC$10,AC69,Z69))))+IF('dane i obliczenia'!$D$2=metadane!$A$2,1/24,0)+IF(AND('dane i obliczenia'!$D$2=metadane!$A$1,A69>$Q$2,A69<$Q$3),1/24,0)>0.99999,0.99999,IF($D$8=$Z$10,Z69,IF($D$8=$AA$10,AA69,IF($D$8=$AB$10,AB69,IF($D$8=$AC$10,AC69,Z69))))+IF('dane i obliczenia'!$D$2=metadane!$A$2,1/24,0)+IF(AND('dane i obliczenia'!$D$2=metadane!$A$1,A69>$Q$2,A69<$Q$3),1/24,0)) -> 17:13:10.744 | D69: 06:00:00 | E69: 10.81085895 | F69: 10.81085895 | G69: 0.4087921787 | H69: 0 | I69: 17:30:00 | J69: -0.2803488715 | K69: 0 | S69: 01:13:19.656 | T69: 2018-02-28 | U69: =IFERROR(dawn($F$5,$F$6,YEAR(A69),MONTH(A69),DAY(A69),1,0,18),0) -> 04:31:45.911 | V69: 05:11:11.996 | W69: 05:50:23.978 | X69: 06:24:31.652 | Y69: 11:48:24.245 | Z69: 17:13:10.744 | AA69: 17:47:16.927 | AB69: 18:26:28.651 | AC69: 19:05:56.102 | AM69: 2019-02-28
A70: 2018-03-01 | B70: =IF(IF($D$7=$U$10,U70,IF($D$7=$V$10,V70,IF($D$7=$W$10,W70,IF($D$7=$X$10,X70,X70))))=0,0,IF($D$7=$U$10,U70,IF($D$7=$V$10,V70,IF($D$7=$W$10,W70,IF($D$7=$X$10,X70,X70))))+IF('dane i obliczenia'!$D$2=metadane!$A$2,1/24,0)+IF(AND('dane i obliczenia'!$D$2=metadane!$A$1,A70>$Q$2,A70<$Q$3),1/24,0)) -> 06:22:19.884 | C70: =IF(IF($D$8=$Z$10,Z70,IF($D$8=$AA$10,AA70,IF($D$8=$AB$10,AB70,IF($D$8=$AC$10,AC70,Z70))))+IF('dane i obliczenia'!$D$2=metadane!$A$2,1/24,0)+IF(AND('dane i obliczenia'!$D$2=metadane!$A$1,A70>$Q$2,A70<$Q$3),1/24,0)>0.99999,0.99999,IF($D$8=$Z$10,Z70,IF($D$8=$AA$10,AA70,IF($D$8=$AB$10,AB70,IF($D$8=$AC$10,AC70,Z70))))+IF('dane i obliczenia'!$D$2=metadane!$A$2,1/24,0)+IF(AND('dane i obliczenia'!$D$2=metadane!$A$1,A70>$Q$2,A70<$Q$3),1/24,0)) -> 17:14:59.891 | D70: 06:00:00 | E70: 10.8777797 | F70: 10.8777797 | G70: 0.3721899212 | H70: 0 | I70: 17:30:00 | J70: -0.2500303804 | K70: 0 | S70: 01:13:15.909 | T70: 2018-03-01 | U70: =IFERROR(dawn($F$5,$F$6,YEAR(A70),MONTH(A70),DAY(A70),1,0,18),0) -> 04:29:34.764 | V70: 05:09:03.974 | W70: 05:48:15.458 | X70: 06:22:19.884 | Y70: 11:48:12.717 | Z70: 17:14:59.891 | AA70: 17:49:02.924 | AB70: 18:28:14.272 | AC70: 19:07:45.007 | AM70: 2019-03-01
A71: 2018-03-02 | B71: =IF(IF($D$7=$U$10,U71,IF($D$7=$V$10,V71,IF($D$7=$W$10,W71,IF($D$7=$X$10,X71,X71))))=0,0,IF($D$7=$U$10,U71,IF($D$7=$V$10,V71,IF($D$7=$W$10,W71,IF($D$7=$X$10,X71,X71))))+IF('dane i obliczenia'!$D$2=metadane!$A$2,1/24,0)+IF(AND('dane i obliczenia'!$D$2=metadane!$A$1,A71>$Q$2,A71<$Q$3),1/24,0)) -> 06:20:07.388 | C71: =IF(IF($D$8=$Z$10,Z71,IF($D$8=$AA$10,AA71,IF($D$8=$AB$10,AB71,IF($D$8=$AC$10,AC71,Z71))))+IF('dane i obliczenia'!$D$2=metadane!$A$2,1/24,0)+IF(AND('dane i obliczenia'!$D$2=metadane!$A$1,A71>$Q$2,A71<$Q$3),1/24,0)>0.99999,0.99999,IF($D$8=$Z$10,Z71,IF($D$8=$AA$10,AA71,IF($D$8=$AB$10,AB71,IF($D$8=$AC$10,AC71,Z71))))+IF('dane i obliczenia'!$D$2=metadane!$A$2,1/24,0)+IF(AND('dane i obliczenia'!$D$2=metadane!$A$1,A71>$Q$2,A71<$Q$3),1/24,0)) -> 17:16:48.751 | D71: 06:00:00 | E71: 10.944823 | F71: 10.944823 | G71: 0.3353855503 | H71: 0 | I71: 17:30:00 | J71: -0.2197914515 | K71: 0 | S71: 01:13:12.677 | T71: 2018-03-02 | U71: =IFERROR(dawn($F$5,$F$6,YEAR(A71),MONTH(A71),DAY(A71),1,0,18),0) -> 04:27:22.044 | V71: 05:06:54.711 | W71: 05:46:05.972 | X71: 06:20:07.388 | Y71: 11:48:00.685 | Z71: 17:16:48.751 | AA71: 17:50:48.875 | AB71: 18:30:00.127 | AC71: 19:09:34.481 | AM71: 2019-03-02
A72: 2018-03-03 | B72: =IF(IF($D$7=$U$10,U72,IF($D$7=$V$10,V72,IF($D$7=$W$10,W72,IF($D$7=$X$10,X72,X72))))=0,0,IF($D$7=$U$10,U72,IF($D$7=$V$10,V72,IF($D$7=$W$10,W72,IF($D$7=$X$10,X72,X72))))+IF('dane i obliczenia'!$D$2=metadane!$A$2,1/24,0)+IF(AND('dane i obliczenia'!$D$2=metadane!$A$1,A72>$Q$2,A72<$Q$3),1/24,0)) -> 06:17:54.201 | C72: =IF(IF($D$8=$Z$10,Z72,IF($D$8=$AA$10,AA72,IF($D$8=$AB$10,AB72,IF($D$8=$AC$10,AC72,Z72))))+IF('dane i obliczenia'!$D$2=metadane!$A$2,1/24,0)+IF(AND('dane i obliczenia'!$D$2=metadane!$A$1,A72>$Q$2,A72<$Q$3),1/24,0)>0.99999,0.99999,IF($D$8=$Z$10,Z72,IF($D$8=$AA$10,AA72,IF($D$8=$AB$10,AB72,IF($D$8=$AC$10,AC72,Z72))))+IF('dane i obliczenia'!$D$2=metadane!$A$2,1/24,0)+IF(AND('dane i obliczenia'!$D$2=metadane!$A$1,A72>$Q$2,A72<$Q$3),1/24,0)) -> 17:18:37.326 | D72: 06:00:00 | E72: 11.0119791 | F72: 11.0119791 | G72: 0.298389261 | H72: 0 | I72: 17:30:00 | J72: -0.1896316437 | K72: 0 | S72: 01:13:09.965 | T72: 2018-03-03 | U72: =IFERROR(dawn($F$5,$F$6,YEAR(A72),MONTH(A72),DAY(A72),1,0,18),0) -> 04:25:07.774 | V72: 05:04:44.236 | W72: 05:43:55.556 | X72: 06:17:54.201 | Y72: 11:47:48.168 | Z72: 17:18:37.326 | AA72: 17:52:34.782 | AB72: 18:31:46.224 | AC72: 19:11:24.541 | AM72: 2019-03-03
A73: 2018-03-04 | B73: =IF(IF($D$7=$U$10,U73,IF($D$7=$V$10,V73,IF($D$7=$W$10,W73,IF($D$7=$X$10,X73,X73))))=0,0,IF($D$7=$U$10,U73,IF($D$7=$V$10,V73,IF($D$7=$W$10,W73,IF($D$7=$X$10,X73,X73))))+IF('dane i obliczenia'!$D$2=metadane!$A$2,1/24,0)+IF(AND('dane i obliczenia'!$D$2=metadane!$A$1,A73>$Q$2,A73<$Q$3),1/24,0)) -> 06:15:40.360 | C73: =IF(IF($D$8=$Z$10,Z73,IF($D$8=$AA$10,AA73,IF($D$8=$AB$10,AB73,IF($D$8=$AC$10,AC73,Z73))))+IF('dane i obliczenia'!$D$2=metadane!$A$2,1/24,0)+IF(AND('dane i obliczenia'!$D$2=metadane!$A$1,A73>$Q$2,A73<$Q$3),1/24,0)>0.99999,0.99999,IF($D$8=$Z$10,Z73,IF($D$8=$AA$10,AA73,IF($D$8=$AB$10,AB73,IF($D$8=$AC$10,AC73,Z73))))+IF('dane i obliczenia'!$D$2=metadane!$A$2,1/24,0)+IF(AND('dane i obliczenia'!$D$2=metadane!$A$1,A73>$Q$2,A73<$Q$3),1/24,0)) -> 17:20:25.619 | D73: 06:00:00 | E73: 11.07923867 | F73: 11.07923867 | G73: 0.2612110985 | H73: 0 | I73: 17:30:00 | J73: -0.159550234 | K73: 0 | S73: 01:13:07.780 | T73: 2018-03-04 | U73: =IFERROR(dawn($F$5,$F$6,YEAR(A73),MONTH(A73),DAY(A73),1,0,18),0) -> 04:22:51.976 | V73: 05:02:32.580 | W73: 05:41:44.243 | X73: 06:15:40.360 | Y73: 11:47:35.185 | Z73: 17:20:25.619 | AA73: 17:54:20.651 | AB73: 18:33:32.570 | AC73: 19:13:15.203 | AM73: 2019-03-04
A74: 2018-03-05 | B74: =IF(IF($D$7=$U$10,U74,IF($D$7=$V$10,V74,IF($D$7=$W$10,W74,IF($D$7=$X$10,X74,X74))))=0,0,IF($D$7=$U$10,U74,IF($D$7=$V$10,V74,IF($D$7=$W$10,W74,IF($D$7=$X$10,X74,X74))))+IF('dane i obliczenia'!$D$2=metadane!$A$2,1/24,0)+IF(AND('dane i obliczenia'!$D$2=metadane!$A$1,A74>$Q$2,A74<$Q$3),1/24,0)) -> 06:13:25.899 | C74: =IF(IF($D$8=$Z$10,Z74,IF($D$8=$AA$10,AA74,IF($D$8=$AB$10,AB74,IF($D$8=$AC$10,AC74,Z74))))+IF('dane i obliczenia'!$D$2=metadane!$A$2,1/24,0)+IF(AND('dane i obliczenia'!$D$2=metadane!$A$1,A74>$Q$2,A74<$Q$3),1/24,0)>0.99999,0.99999,IF($D$8=$Z$10,Z74,IF($D$8=$AA$10,AA74,IF($D$8=$AB$10,AB74,IF($D$8=$AC$10,AC74,Z74))))+IF('dane i obliczenia'!$D$2=metadane!$A$2,1/24,0)+IF(AND('dane i obliczenia'!$D$2=metadane!$A$1,A74>$Q$2,A74<$Q$3),1/24,0)) -> 17:22:13.634 | D74: 06:00:00 | E74: 11.1465928 | F74: 11.1465928 | G74: 0.2238609639 | H74: 0 | I74: 17:30:00 | J74: -0.1295462358 | K74: 0 | S74: 01:13:06.127 | T74: 2018-03-05 | U74: =IFERROR(dawn($F$5,$F$6,YEAR(A74),MONTH(A74),DAY(A74),1,0,18),0) -> 04:20:34.671 | V74: 05:00:19.773 | W74: 05:39:32.069 | X74: 06:13:25.899 | Y74: 11:47:21.756 | Z74: 17:22:13.634 | AA74: 17:56:06.486 | AB74: 18:35:19.176 | AC74: 19:15:06.488 | AM74: 2019-03-05
A75: 2018-03-06 | B75: =IF(IF($D$7=$U$10,U75,IF($D$7=$V$10,V75,IF($D$7=$W$10,W75,IF($D$7=$X$10,X75,X75))))=0,0,IF($D$7=$U$10,U75,IF($D$7=$V$10,V75,IF($D$7=$W$10,W75,IF($D$7=$X$10,X75,X75))))+IF('dane i obliczenia'!$D$2=metadane!$A$2,1/24,0)+IF(AND('dane i obliczenia'!$D$2=metadane!$A$1,A75>$Q$2,A75<$Q$3),1/24,0)) -> 06:11:10.855 | C75: =IF(IF($D$8=$Z$10,Z75,IF($D$8=$AA$10,AA75,IF($D$8=$AB$10,AB75,IF($D$8=$AC$10,AC75,Z75))))+IF('dane i obliczenia'!$D$2=metadane!$A$2,1/24,0)+IF(AND('dane i obliczenia'!$D$2=metadane!$A$1,A75>$Q$2,A75<$Q$3),1/24,0)>0.99999,0.99999,IF($D$8=$Z$10,Z75,IF($D$8=$AA$10,AA75,IF($D$8=$AB$10,AB75,IF($D$8=$AC$10,AC75,Z75))))+IF('dane i obliczenia'!$D$2=metadane!$A$2,1/24,0)+IF(AND('dane i obliczenia'!$D$2=metadane!$A$1,A75>$Q$2,A75<$Q$3),1/24,0)) -> 17:24:01.374 | D75: 06:00:00 | E75: 11.21403296 | F75: 11.21403296 | G75: 0.1863486189 | H75: 0 | I75: 17:30:00 | J75: -0.09961841777 | K75: 0 | S75: 01:13:05.013 | T75: 2018-03-06 | U75: =IFERROR(dawn($F$5,$F$6,YEAR(A75),MONTH(A75),DAY(A75),1,0,18),0) -> 04:18:15.879 | V75: 04:58:05.842 | W75: 05:37:19.066 | X75: 06:11:10.855 | Y75: 11:47:07.900 | Z75: 17:24:01.374 | AA75: 17:57:52.294 | AB75: 18:37:06.053 | AC75: 19:16:58.413 | AM75: 2019-03-06
A76: 2018-03-07 | B76: =IF(IF($D$7=$U$10,U76,IF($D$7=$V$10,V76,IF($D$7=$W$10,W76,IF($D$7=$X$10,X76,X76))))=0,0,IF($D$7=$U$10,U76,IF($D$7=$V$10,V76,IF($D$7=$W$10,W76,IF($D$7=$X$10,X76,X76))))+IF('dane i obliczenia'!$D$2=metadane!$A$2,1/24,0)+IF(AND('dane i obliczenia'!$D$2=metadane!$A$1,A76>$Q$2,A76<$Q$3),1/24,0)) -> 06:08:55.261 | C76: =IF(IF($D$8=$Z$10,Z76,IF($D$8=$AA$10,AA76,IF($D$8=$AB$10,AB76,IF($D$8=$AC$10,AC76,Z76))))+IF('dane i obliczenia'!$D$2=metadane!$A$2,1/24,0)+IF(AND('dane i obliczenia'!$D$2=metadane!$A$1,A76>$Q$2,A76<$Q$3),1/24,0)>0.99999,0.99999,IF($D$8=$Z$10,Z76,IF($D$8=$AA$10,AA76,IF($D$8=$AB$10,AB76,IF($D$8=$AC$10,AC76,Z76))))+IF('dane i obliczenia'!$D$2=metadane!$A$2,1/24,0)+IF(AND('dane i obliczenia'!$D$2=metadane!$A$1,A76>$Q$2,A76<$Q$3),1/24,0)) -> 17:25:48.845 | D76: =$F$3/24+$G$3/24/60 -> 06:00:00 | E76: =(C76-B76)*24 -> 11.28155099 | F76: =IF(D76>B76,C76-D76,C76-B76)*24 -> 11.28155099 | G76: =IF((B76-D76)*24>0,(B76-D76)*24,0) -> 0.1486836916 | H76: =IF((B76-D76)*24<0,(B76-D76)*24,0) -> 0 | I76: =$F$4/24+$G$4/24/60 -> 17:30:00 | J76: =IF((C76-I76)*24<0,(C76-I76)*24,0) -> -0.0697653216 | K76: =IF((C76-I76)*24<0,0,(C76-I76)*24) -> 0 | S76: =X76-V76 -> 01:13:04.444 | T76: =A76 -> 2018-03-07 | U76: =IFERROR(dawn($F$5,$F$6,YEAR(A76),MONTH(A76),DAY(A76),1,0,18),0) -> 04:15:55.619 | V76: =IFERROR(dawn($F$5,$F$6,YEAR(A76),MONTH(A76),DAY(A76),1,0,12),0) -> 04:55:50.818 | W76: =dawn($F$5,$F$6,YEAR(A76),MONTH(A76),DAY(A76),1,0,6) -> 05:35:05.267 | X76: =sunrise($F$5,$F$6,YEAR(A76),MONTH(A76),DAY(A76),1,0) -> 06:08:55.261 | Y76: =solarnoon($F$5,$F$6,YEAR(A76),MONTH(A76),DAY(A76),1,0) -> 11:46:53.637 | Z76: =sunset($F$5,$F$6,YEAR(A76),MONTH(A76),DAY(A76),1,0) -> 17:25:48.845 | AA76: =dusk($F$5,$F$6,YEAR(A76),MONTH(A76),DAY(A76),1,0,6) -> 17:59:38.081 | AB76: =IFERROR(dusk($F$5,$F$6,YEAR(A76),MONTH(A76),DAY(A76),1,0,12),0.99999) -> 18:38:53.211 | AC76: =IFERROR(dusk($F$5,$F$6,YEAR(A76),MONTH(A76),DAY(A76),1,0,18),0.99999) -> 19:18:50.999 | AM76: 2019-03-07
A77: =A76+1 -> 2018-03-08 | B77: =IF(IF($D$7=$U$10,U77,IF($D$7=$V$10,V77,IF($D$7=$W$10,W77,IF($D$7=$X$10,X77,X77))))=0,0,IF($D$7=$U$10,U77,IF($D$7=$V$10,V77,IF($D$7=$W$10,W77,IF($D$7=$X$10,X77,X77))))+IF('dane i obliczenia'!$D$2=metadane!$A$2,1/24,0)+IF(AND('dane i obliczenia'!$D$2=metadane!$A$1,A77>$Q$2,A77<$Q$3),1/24,0)) -> 06:06:39.152 | C77: =IF(IF($D$8=$Z$10,Z77,IF($D$8=$AA$10,AA77,IF($D$8=$AB$10,AB77,IF($D$8=$AC$10,AC77,Z77))))+IF('dane i obliczenia'!$D$2=metadane!$A$2,1/24,0)+IF(AND('dane i obliczenia'!$D$2=metadane!$A$1,A77>$Q$2,A77<$Q$3),1/24,0)>0.99999,0.99999,IF($D$8=$Z$10,Z77,IF($D$8=$AA$10,AA77,IF($D$8=$AB$10,AB77,IF($D$8=$AC$10,AC77,Z77))))+IF('dane i obliczenia'!$D$2=metadane!$A$2,1/24,0)+IF(AND('dane i obliczenia'!$D$2=metadane!$A$1,A77>$Q$2,A77<$Q$3),1/24,0)) -> 17:27:36.053 | D77: 06:00:00 | E77: 11.34913904 | F77: 11.34913904 | G77: 0.1108756815 | H77: 0 | I77: 17:30:00 | J77: -0.03998528014 | K77: 0 | S77: 01:13:04.425 | T77: 2018-03-08 | U77: =IFERROR(dawn($F$5,$F$6,YEAR(A77),MONTH(A77),DAY(A77),1,0,18),0) -> 04:13:33.912 | V77: 04:53:34.728 | W77: 05:32:50.706 | X77: 06:06:39.152 | Y77: 11:46:38.988 | Z77: 17:27:36.053 | AA77: 18:01:23.855 | AB77: 18:40:40.662 | AC77: 19:20:44.268 | AM77: 2019-03-08
A78: 2018-03-09 | B78: =IF(IF($D$7=$U$10,U78,IF($D$7=$V$10,V78,IF($D$7=$W$10,W78,IF($D$7=$X$10,X78,X78))))=0,0,IF($D$7=$U$10,U78,IF($D$7=$V$10,V78,IF($D$7=$W$10,W78,IF($D$7=$X$10,X78,X78))))+IF('dane i obliczenia'!$D$2=metadane!$A$2,1/24,0)+IF(AND('dane i obliczenia'!$D$2=metadane!$A$1,A78>$Q$2,A78<$Q$3),1/24,0)) -> 06:04:22.562 | C78: =IF(IF($D$8=$Z$10,Z78,IF($D$8=$AA$10,AA78,IF($D$8=$AB$10,AB78,IF($D$8=$AC$10,AC78,Z78))))+IF('dane i obliczenia'!$D$2=metadane!$A$2,1/24,0)+IF(AND('dane i obliczenia'!$D$2=metadane!$A$1,A78>$Q$2,A78<$Q$3),1/24,0)>0.99999,0.99999,IF($D$8=$Z$10,Z78,IF($D$8=$AA$10,AA78,IF($D$8=$AB$10,AB78,IF($D$8=$AC$10,AC78,Z78))))+IF('dane i obliczenia'!$D$2=metadane!$A$2,1/24,0)+IF(AND('dane i obliczenia'!$D$2=metadane!$A$1,A78>$Q$2,A78<$Q$3),1/24,0)) -> 17:29:23.005 | D78: 06:00:00 | E78: 11.4167896 | F78: 11.4167896 | G78: 0.07293396564 | H78: 0 | I78: 17:30:00 | J78: -0.01027643488 | K78: 0 | S78: 01:13:04.962 | T78: 2018-03-09 | U78: =IFERROR(dawn($F$5,$F$6,YEAR(A78),MONTH(A78),DAY(A78),1,0,18),0) -> 04:11:10.775 | V78: 04:51:17.600 | W78: 05:30:35.414 | X78: 06:04:22.562 | Y78: 11:46:23.973 | Z78: 17:29:23.005 | AA78: 18:03:09.623 | AB78: 18:42:28.419 | AC78: 19:22:38.241 | AM78: 2019-03-09
A79: 2018-03-10 | B79: =IF(IF($D$7=$U$10,U79,IF($D$7=$V$10,V79,IF($D$7=$W$10,W79,IF($D$7=$X$10,X79,X79))))=0,0,IF($D$7=$U$10,U79,IF($D$7=$V$10,V79,IF($D$7=$W$10,W79,IF($D$7=$X$10,X79,X79))))+IF('dane i obliczenia'!$D$2=metadane!$A$2,1/24,0)+IF(AND('dane i obliczenia'!$D$2=metadane!$A$1,A79>$Q$2,A79<$Q$3),1/24,0)) -> 06:02:05.524 | C79: =IF(IF($D$8=$Z$10,Z79,IF($D$8=$AA$10,AA79,IF($D$8=$AB$10,AB79,IF($D$8=$AC$10,AC79,Z79))))+IF('dane i obliczenia'!$D$2=metadane!$A$2,1/24,0)+IF(AND('dane i obliczenia'!$D$2=metadane!$A$1,A79>$Q$2,A79<$Q$3),1/24,0)>0.99999,0.99999,IF($D$8=$Z$10,Z79,IF($D$8=$AA$10,AA79,IF($D$8=$AB$10,AB79,IF($D$8=$AC$10,AC79,Z79))))+IF('dane i obliczenia'!$D$2=metadane!$A$2,1/24,0)+IF(AND('dane i obliczenia'!$D$2=metadane!$A$1,A79>$Q$2,A79<$Q$3),1/24,0)) -> 17:31:09.708 | D79: 06:00:00 | E79: 11.48449544 | F79: 11.48449544 | G79: 0.03486780421 | H79: 0 | I79: 17:30:00 | J79: 0 | K79: 0.01936324705 | S79: 01:13:06.062 | T79: 2018-03-10 | U79: =IFERROR(dawn($F$5,$F$6,YEAR(A79),MONTH(A79),DAY(A79),1,0,18),0) -> 04:08:46.225 | V79: 04:48:59.463 | W79: 05:28:19.425 | X79: 06:02:05.524 | Y79: 11:46:08.611 | Z79: 17:31:09.708 | AA79: 18:04:55.395 | AB79: 18:44:16.495 | AC79: 19:24:32.943 | AM79: 2019-03-10
A80: 2018-03-11 | B80: =IF(IF($D$7=$U$10,U80,IF($D$7=$V$10,V80,IF($D$7=$W$10,W80,IF($D$7=$X$10,X80,X80))))=0,0,IF($D$7=$U$10,U80,IF($D$7=$V$10,V80,IF($D$7=$W$10,W80,IF($D$7=$X$10,X80,X80))))+IF('dane i obliczenia'!$D$2=metadane!$A$2,1/24,0)+IF(AND('dane i obliczenia'!$D$2=metadane!$A$1,A80>$Q$2,A80<$Q$3),1/24,0)) -> 05:59:48.071 | C80: =IF(IF($D$8=$Z$10,Z80,IF($D$8=$AA$10,AA80,IF($D$8=$AB$10,AB80,IF($D$8=$AC$10,AC80,Z80))))+IF('dane i obliczenia'!$D$2=metadane!$A$2,1/24,0)+IF(AND('dane i obliczenia'!$D$2=metadane!$A$1,A80>$Q$2,A80<$Q$3),1/24,0)>0.99999,0.99999,IF($D$8=$Z$10,Z80,IF($D$8=$AA$10,AA80,IF($D$8=$AB$10,AB80,IF($D$8=$AC$10,AC80,Z80))))+IF('dane i obliczenia'!$D$2=metadane!$A$2,1/24,0)+IF(AND('dane i obliczenia'!$D$2=metadane!$A$1,A80>$Q$2,A80<$Q$3),1/24,0)) -> 17:32:56.169 | D80: 06:00:00 | E80: 11.55224961 | F80: 11.54893596 | G80: 0 | H80: -0.003313653722 | I80: 17:30:00 | J80: 0 | K80: 0.04893595587 | S80: 01:13:07.729 | T80: 2018-03-11 | U80: =IFERROR(dawn($F$5,$F$6,YEAR(A80),MONTH(A80),DAY(A80),1,0,18),0) -> 04:06:20.281 | V80: 04:46:40.342 | W80: 05:26:02.768 | X80: 05:59:48.071 | Y80: 11:45:52.923 | Z80: 17:32:56.169 | AA80: 18:06:41.179 | AB80: 18:46:04.904 | AC80: 19:26:28.397 | AM80: 2019-03-11
A81: 2018-03-12 | B81: =IF(IF($D$7=$U$10,U81,IF($D$7=$V$10,V81,IF($D$7=$W$10,W81,IF($D$7=$X$10,X81,X81))))=0,0,IF($D$7=$U$10,U81,IF($D$7=$V$10,V81,IF($D$7=$W$10,W81,IF($D$7=$X$10,X81,X81))))+IF('dane i obliczenia'!$D$2=metadane!$A$2,1/24,0)+IF(AND('dane i obliczenia'!$D$2=metadane!$A$1,A81>$Q$2,A81<$Q$3),1/24,0)) -> 05:57:30.235 | C81: =IF(IF($D$8=$Z$10,Z81,IF($D$8=$AA$10,AA81,IF($D$8=$AB$10,AB81,IF($D$8=$AC$10,AC81,Z81))))+IF('dane i obliczenia'!$D$2=metadane!$A$2,1/24,0)+IF(AND('dane i obliczenia'!$D$2=metadane!$A$1,A81>$Q$2,A81<$Q$3),1/24,0)>0.99999,0.99999,IF($D$8=$Z$10,Z81,IF($D$8=$AA$10,AA81,IF($D$8=$AB$10,AB81,IF($D$8=$AC$10,AC81,Z81))))+IF('dane i obliczenia'!$D$2=metadane!$A$2,1/24,0)+IF(AND('dane i obliczenia'!$D$2=metadane!$A$1,A81>$Q$2,A81<$Q$3),1/24,0)) -> 17:34:42.398 | D81: 06:00:00 | E81: 11.62004539 | F81: 11.57844402 | G81: 0 | H81: -0.04160136388 | I81: 17:30:00 | J81: 0 | K81: 0.0784440228 | S81: 01:13:09.970 | T81: 2018-03-12 | U81: =IFERROR(dawn($F$5,$F$6,YEAR(A81),MONTH(A81),DAY(A81),1,0,18),0) -> 04:03:52.958 | V81: 04:44:20.265 | W81: 05:23:45.476 | X81: 05:57:30.235 | Y81: 11:45:36.930 | Z81: 17:34:42.398 | AA81: 18:08:26.986 | AB81: 18:47:53.660 | AC81: 19:28:24.628 | AM81: 2019-03-12
A82: 2018-03-13 | B82: =IF(IF($D$7=$U$10,U82,IF($D$7=$V$10,V82,IF($D$7=$W$10,W82,IF($D$7=$X$10,X82,X82))))=0,0,IF($D$7=$U$10,U82,IF($D$7=$V$10,V82,IF($D$7=$W$10,W82,IF($D$7=$X$10,X82,X82))))+IF('dane i obliczenia'!$D$2=metadane!$A$2,1/24,0)+IF(AND('dane i obliczenia'!$D$2=metadane!$A$1,A82>$Q$2,A82<$Q$3),1/24,0)) -> 05:55:12.049 | C82: =IF(IF($D$8=$Z$10,Z82,IF($D$8=$AA$10,AA82,IF($D$8=$AB$10,AB82,IF($D$8=$AC$10,AC82,Z82))))+IF('dane i obliczenia'!$D$2=metadane!$A$2,1/24,0)+IF(AND('dane i obliczenia'!$D$2=metadane!$A$1,A82>$Q$2,A82<$Q$3),1/24,0)>0.99999,0.99999,IF($D$8=$Z$10,Z82,IF($D$8=$AA$10,AA82,IF($D$8=$AB$10,AB82,IF($D$8=$AC$10,AC82,Z82))))+IF('dane i obliczenia'!$D$2=metadane!$A$2,1/24,0)+IF(AND('dane i obliczenia'!$D$2=metadane!$A$1,A82>$Q$2,A82<$Q$3),1/24,0)) -> 17:36:28.404 | D82: 06:00:00 | E82: 11.68787628 | F82: 11.6078899 | G82: 0 | H82: -0.07998638076 | I82: 17:30:00 | J82: 0 | K82: 0.1078899039 | S82: 01:13:12.790 | T82: 2018-03-13 | U82: =IFERROR(dawn($F$5,$F$6,YEAR(A82),MONTH(A82),DAY(A82),1,0,18),0) -> 04:01:24.272 | V82: 04:41:59.259 | W82: 05:21:27.580 | X82: 05:55:12.049 | Y82: 11:45:20.652 | Z82: 17:36:28.404 | AA82: 18:10:12.824 | AB82: 18:49:42.777 | AC82: 19:30:21.662 | AM82: 2019-03-13
A83: 2018-03-14 | B83: =IF(IF($D$7=$U$10,U83,IF($D$7=$V$10,V83,IF($D$7=$W$10,W83,IF($D$7=$X$10,X83,X83))))=0,0,IF($D$7=$U$10,U83,IF($D$7=$V$10,V83,IF($D$7=$W$10,W83,IF($D$7=$X$10,X83,X83))))+IF('dane i obliczenia'!$D$2=metadane!$A$2,1/24,0)+IF(AND('dane i obliczenia'!$D$2=metadane!$A$1,A83>$Q$2,A83<$Q$3),1/24,0)) -> 05:52:53.545 | C83: =IF(IF($D$8=$Z$10,Z83,IF($D$8=$AA$10,AA83,IF($D$8=$AB$10,AB83,IF($D$8=$AC$10,AC83,Z83))))+IF('dane i obliczenia'!$D$2=metadane!$A$2,1/24,0)+IF(AND('dane i obliczenia'!$D$2=metadane!$A$1,A83>$Q$2,A83<$Q$3),1/24,0)>0.99999,0.99999,IF($D$8=$Z$10,Z83,IF($D$8=$AA$10,AA83,IF($D$8=$AB$10,AB83,IF($D$8=$AC$10,AC83,Z83))))+IF('dane i obliczenia'!$D$2=metadane!$A$2,1/24,0)+IF(AND('dane i obliczenia'!$D$2=metadane!$A$1,A83>$Q$2,A83<$Q$3),1/24,0)) -> 17:38:14.194 | D83: 06:00:00 | E83: 11.75573602 | F83: 11.63727616 | G83: 0 | H83: -0.1184598514 | I83: 17:30:00 | J83: 0 | K83: 0.1372761642 | S83: 01:13:16.195 | T83: 2018-03-14 | U83: =IFERROR(dawn($F$5,$F$6,YEAR(A83),MONTH(A83),DAY(A83),1,0,18),0) -> 03:58:54.237 | V83: 04:39:37.349 | W83: 05:19:09.109 | X83: 05:52:53.545 | Y83: 11:45:04.109 | Z83: 17:38:14.194 | AA83: 18:11:58.706 | AB83: 18:51:32.271 | AC83: 19:32:19.526 | AM83: 2019-03-14
A84: 2018-03-15 | B84: =IF(IF($D$7=$U$10,U84,IF($D$7=$V$10,V84,IF($D$7=$W$10,W84,IF($D$7=$X$10,X84,X84))))=0,0,IF($D$7=$U$10,U84,IF($D$7=$V$10,V84,IF($D$7=$W$10,W84,IF($D$7=$X$10,X84,X84))))+IF('dane i obliczenia'!$D$2=metadane!$A$2,1/24,0)+IF(AND('dane i obliczenia'!$D$2=metadane!$A$1,A84>$Q$2,A84<$Q$3),1/24,0)) -> 05:50:34.753 | C84: =IF(IF($D$8=$Z$10,Z84,IF($D$8=$AA$10,AA84,IF($D$8=$AB$10,AB84,IF($D$8=$AC$10,AC84,Z84))))+IF('dane i obliczenia'!$D$2=metadane!$A$2,1/24,0)+IF(AND('dane i obliczenia'!$D$2=metadane!$A$1,A84>$Q$2,A84<$Q$3),1/24,0)>0.99999,0.99999,IF($D$8=$Z$10,Z84,IF($D$8=$AA$10,AA84,IF($D$8=$AB$10,AB84,IF($D$8=$AC$10,AC84,Z84))))+IF('dane i obliczenia'!$D$2=metadane!$A$2,1/24,0)+IF(AND('dane i obliczenia'!$D$2=metadane!$A$1,A84>$Q$2,A84<$Q$3),1/24,0)) -> 17:39:59.780 | D84: 06:00:00 | E84: 11.82361847 | F84: 11.66660546 | G84: 0 | H84: -0.1570130087 | I84: 17:30:00 | J84: 0 | K84: 0.1666054624 | S84: 01:13:20.192 | T84: 2018-03-15 | U84: =IFERROR(dawn($F$5,$F$6,YEAR(A84),MONTH(A84),DAY(A84),1,0,18),0) -> 03:56:22.867 | V84: 04:37:14.561 | W84: 05:16:50.096 | X84: 05:50:34.753 | Y84: 11:44:47.323 | Z84: 17:39:59.780 | AA84: 18:13:44.641 | AB84: 18:53:22.158 | AC84: 19:34:18.248 | AM84: 2019-03-15
A85: 2018-03-16 | B85: =IF(IF($D$7=$U$10,U85,IF($D$7=$V$10,V85,IF($D$7=$W$10,W85,IF($D$7=$X$10,X85,X85))))=0,0,IF($D$7=$U$10,U85,IF($D$7=$V$10,V85,IF($D$7=$W$10,W85,IF($D$7=$X$10,X85,X85))))+IF('dane i obliczenia'!$D$2=metadane!$A$2,1/24,0)+IF(AND('dane i obliczenia'!$D$2=metadane!$A$1,A85>$Q$2,A85<$Q$3),1/24,0)) -> 05:48:15.706 | C85: =IF(IF($D$8=$Z$10,Z85,IF($D$8=$AA$10,AA85,IF($D$8=$AB$10,AB85,IF($D$8=$AC$10,AC85,Z85))))+IF('dane i obliczenia'!$D$2=metadane!$A$2,1/24,0)+IF(AND('dane i obliczenia'!$D$2=metadane!$A$1,A85>$Q$2,A85<$Q$3),1/24,0)>0.99999,0.99999,IF($D$8=$Z$10,Z85,IF($D$8=$AA$10,AA85,IF($D$8=$AB$10,AB85,IF($D$8=$AC$10,AC85,Z85))))+IF('dane i obliczenia'!$D$2=metadane!$A$2,1/24,0)+IF(AND('dane i obliczenia'!$D$2=metadane!$A$1,A85>$Q$2,A85<$Q$3),1/24,0)) -> 17:41:45.170 | D85: 06:00:00 | E85: 11.8915177 | F85: 11.69588054 | G85: 0 | H85: -0.1956371653 | I85: 17:30:00 | J85: 0 | K85: 0.1958805352 | S85: 01:13:24.786 | T85: 2018-03-16 | U85: =IFERROR(dawn($F$5,$F$6,YEAR(A85),MONTH(A85),DAY(A85),1,0,18),0) -> 03:53:50.176 | V85: 04:34:50.920 | W85: 05:14:30.569 | X85: 05:48:15.706 | Y85: 11:44:30.314 | Z85: 17:41:45.170 | AA85: 18:15:30.640 | AB85: 18:55:12.453 | AC85: 19:36:17.855 | AM85: 2019-03-16
A86: 2018-03-17 | B86: =IF(IF($D$7=$U$10,U86,IF($D$7=$V$10,V86,IF($D$7=$W$10,W86,IF($D$7=$X$10,X86,X86))))=0,0,IF($D$7=$U$10,U86,IF($D$7=$V$10,V86,IF($D$7=$W$10,W86,IF($D$7=$X$10,X86,X86))))+IF('dane i obliczenia'!$D$2=metadane!$A$2,1/24,0)+IF(AND('dane i obliczenia'!$D$2=metadane!$A$1,A86>$Q$2,A86<$Q$3),1/24,0)) -> 05:45:56.435 | C86: =IF(IF($D$8=$Z$10,Z86,IF($D$8=$AA$10,AA86,IF($D$8=$AB$10,AB86,IF($D$8=$AC$10,AC86,Z86))))+IF('dane i obliczenia'!$D$2=metadane!$A$2,1/24,0)+IF(AND('dane i obliczenia'!$D$2=metadane!$A$1,A86>$Q$2,A86<$Q$3),1/24,0)>0.99999,0.99999,IF($D$8=$Z$10,Z86,IF($D$8=$AA$10,AA86,IF($D$8=$AB$10,AB86,IF($D$8=$AC$10,AC86,Z86))))+IF('dane i obliczenia'!$D$2=metadane!$A$2,1/24,0)+IF(AND('dane i obliczenia'!$D$2=metadane!$A$1,A86>$Q$2,A86<$Q$3),1/24,0)) -> 17:43:30.375 | D86: 06:00:00 | E86: 11.95942789 | F86: 11.72510418 | G86: 0 | H86: -0.2343237066 | I86: 17:30:00 | J86: 0 | K86: 0.2251041833 | S86: 01:13:29.983 | T86: 2018-03-17 | U86: =IFERROR(dawn($F$5,$F$6,YEAR(A86),MONTH(A86),DAY(A86),1,0,18),0) -> 03:51:16.176 | V86: 04:32:26.452 | W86: 05:12:10.559 | X86: 05:45:56.435 | Y86: 11:44:13.102 | Z86: 17:43:30.375 | AA86: 18:17:16.716 | AB86: 18:57:03.172 | AC86: 19:38:18.378 | AM86: 2019-03-17
A87: 2018-03-18 | B87: =IF(IF($D$7=$U$10,U87,IF($D$7=$V$10,V87,IF($D$7=$W$10,W87,IF($D$7=$X$10,X87,X87))))=0,0,IF($D$7=$U$10,U87,IF($D$7=$V$10,V87,IF($D$7=$W$10,W87,IF($D$7=$X$10,X87,X87))))+IF('dane i obliczenia'!$D$2=metadane!$A$2,1/24,0)+IF(AND('dane i obliczenia'!$D$2=metadane!$A$1,A87>$Q$2,A87<$Q$3),1/24,0)) -> 05:43:36.969 | C87: =IF(IF($D$8=$Z$10,Z87,IF($D$8=$AA$10,AA87,IF($D$8=$AB$10,AB87,IF($D$8=$AC$10,AC87,Z87))))+IF('dane i obliczenia'!$D$2=metadane!$A$2,1/24,0)+IF(AND('dane i obliczenia'!$D$2=metadane!$A$1,A87>$Q$2,A87<$Q$3),1/24,0)>0.99999,0.99999,IF($D$8=$Z$10,Z87,IF($D$8=$AA$10,AA87,IF($D$8=$AB$10,AB87,IF($D$8=$AC$10,AC87,Z87))))+IF('dane i obliczenia'!$D$2=metadane!$A$2,1/24,0)+IF(AND('dane i obliczenia'!$D$2=metadane!$A$1,A87>$Q$2,A87<$Q$3),1/24,0)) -> 17:45:15.405 | D87: 06:00:00 | E87: 12.02734334 | F87: 11.75427926 | G87: 0 | H87: -0.2730640842 | I87: 17:30:00 | J87: 0 | K87: 0.2542792557 | S87: 01:13:35.789 | T87: 2018-03-18 | U87: =IFERROR(dawn($F$5,$F$6,YEAR(A87),MONTH(A87),DAY(A87),1,0,18),0) -> 03:48:40.878 | V87: 04:30:01.181 | W87: 05:09:50.095 | X87: 05:43:36.969 | Y87: 11:43:55.709 | Z87: 17:45:15.405 | AA87: 18:19:02.878 | AB87: 18:58:54.332 | AC87: 19:40:19.846 | AM87: 2019-03-18
A88: 2018-03-19 | B88: =IF(IF($D$7=$U$10,U88,IF($D$7=$V$10,V88,IF($D$7=$W$10,W88,IF($D$7=$X$10,X88,X88))))=0,0,IF($D$7=$U$10,U88,IF($D$7=$V$10,V88,IF($D$7=$W$10,W88,IF($D$7=$X$10,X88,X88))))+IF('dane i obliczenia'!$D$2=metadane!$A$2,1/24,0)+IF(AND('dane i obliczenia'!$D$2=metadane!$A$1,A88>$Q$2,A88<$Q$3),1/24,0)) -> 05:41:17.341 | C88: =IF(IF($D$8=$Z$10,Z88,IF($D$8=$AA$10,AA88,IF($D$8=$AB$10,AB88,IF($D$8=$AC$10,AC88,Z88))))+IF('dane i obliczenia'!$D$2=metadane!$A$2,1/24,0)+IF(AND('dane i obliczenia'!$D$2=metadane!$A$1,A88>$Q$2,A88<$Q$3),1/24,0)>0.99999,0.99999,IF($D$8=$Z$10,Z88,IF($D$8=$AA$10,AA88,IF($D$8=$AB$10,AB88,IF($D$8=$AC$10,AC88,Z88))))+IF('dane i obliczenia'!$D$2=metadane!$A$2,1/24,0)+IF(AND('dane i obliczenia'!$D$2=metadane!$A$1,A88>$Q$2,A88<$Q$3),1/24,0)) -> 17:47:00.271 | D88: 06:00:00 | E88: 12.09525845 | F88: 11.78340864 | G88: 0 | H88: -0.3118498091 | I88: 17:30:00 | J88: 0 | K88: 0.2834086362 | S88: 01:13:42.210 | T88: 2018-03-19 | U88: =IFERROR(dawn($F$5,$F$6,YEAR(A88),MONTH(A88),DAY(A88),1,0,18),0) -> 03:46:04.293 | V88: 04:27:35.131 | W88: 05:07:29.206 | X88: 05:41:17.341 | Y88: 11:43:38.153 | Z88: 17:47:00.271 | AA88: 18:20:49.139 | AB88: 19:00:45.950 | AC88: 19:42:22.291 | AM88: 2019-03-19
A89: 2018-03-20 | B89: =IF(IF($D$7=$U$10,U89,IF($D$7=$V$10,V89,IF($D$7=$W$10,W89,IF($D$7=$X$10,X89,X89))))=0,0,IF($D$7=$U$10,U89,IF($D$7=$V$10,V89,IF($D$7=$W$10,W89,IF($D$7=$X$10,X89,X89))))+IF('dane i obliczenia'!$D$2=metadane!$A$2,1/24,0)+IF(AND('dane i obliczenia'!$D$2=metadane!$A$1,A89>$Q$2,A89<$Q$3),1/24,0)) -> 05:38:57.579 | C89: =IF(IF($D$8=$Z$10,Z89,IF($D$8=$AA$10,AA89,IF($D$8=$AB$10,AB89,IF($D$8=$AC$10,AC89,Z89))))+IF('dane i obliczenia'!$D$2=metadane!$A$2,1/24,0)+IF(AND('dane i obliczenia'!$D$2=metadane!$A$1,A89>$Q$2,A89<$Q$3),1/24,0)>0.99999,0.99999,IF($D$8=$Z$10,Z89,IF($D$8=$AA$10,AA89,IF($D$8=$AB$10,AB89,IF($D$8=$AC$10,AC89,Z89))))+IF('dane i obliczenia'!$D$2=metadane!$A$2,1/24,0)+IF(AND('dane i obliczenia'!$D$2=metadane!$A$1,A89>$Q$2,A89<$Q$3),1/24,0)) -> 17:48:44.983 | D89: 06:00:00 | E89: 12.16316767 | F89: 11.81249523 | G89: 0 | H89: -0.3506724448 | I89: 17:30:00 | J89: 0 | K89: 0.3124952292 | S89: 01:13:49.253 | T89: 2018-03-20 | U89: =IFERROR(dawn($F$5,$F$6,YEAR(A89),MONTH(A89),DAY(A89),1,0,18),0) -> 03:43:26.430 | V89: 04:25:08.326 | W89: 05:05:07.923 | X89: 05:38:57.579 | Y89: 11:43:20.457 | Z89: 17:48:44.983 | AA89: 18:22:35.510 | AB89: 19:02:38.042 | AC89: 19:44:25.743 | AM89: 2019-03-20
A90: 2018-03-21 | B90: =IF(IF($D$7=$U$10,U90,IF($D$7=$V$10,V90,IF($D$7=$W$10,W90,IF($D$7=$X$10,X90,X90))))=0,0,IF($D$7=$U$10,U90,IF($D$7=$V$10,V90,IF($D$7=$W$10,W90,IF($D$7=$X$10,X90,X90))))+IF('dane i obliczenia'!$D$2=metadane!$A$2,1/24,0)+IF(AND('dane i obliczenia'!$D$2=metadane!$A$1,A90>$Q$2,A90<$Q$3),1/24,0)) -> 05:36:37.715 | C90: =IF(IF($D$8=$Z$10,Z90,IF($D$8=$AA$10,AA90,IF($D$8=$AB$10,AB90,IF($D$8=$AC$10,AC90,Z90))))+IF('dane i obliczenia'!$D$2=metadane!$A$2,1/24,0)+IF(AND('dane i obliczenia'!$D$2=metadane!$A$1,A90>$Q$2,A90<$Q$3),1/24,0)>0.99999,0.99999,IF($D$8=$Z$10,Z90,IF($D$8=$AA$10,AA90,IF($D$8=$AB$10,AB90,IF($D$8=$AC$10,AC90,Z90))))+IF('dane i obliczenia'!$D$2=metadane!$A$2,1/24,0)+IF(AND('dane i obliczenia'!$D$2=metadane!$A$1,A90>$Q$2,A90<$Q$3),1/24,0)) -> 17:50:29.551 | D90: 06:00:00 | E90: 12.23106555 | F90: 11.84154195 | G90: 0 | H90: -0.3895236002 | I90: 17:30:00 | J90: 0 | K90: 0.3415419451 | S90: 01:13:56.924 | T90: 2018-03-21 | U90: =IFERROR(dawn($F$5,$F$6,YEAR(A90),MONTH(A90),DAY(A90),1,0,18),0) -> 03:40:47.298 | V90: 04:22:40.791 | W90: 05:02:46.274 | X90: 05:36:37.715 | Y90: 11:43:02.639 | Z90: 17:50:29.551 | AA90: 18:24:22.003 | AB90: 19:04:30.625 | AC90: 19:46:30.236 | AM90: 2019-03-21
A91: 2018-03-22 | B91: =IF(IF($D$7=$U$10,U91,IF($D$7=$V$10,V91,IF($D$7=$W$10,W91,IF($D$7=$X$10,X91,X91))))=0,0,IF($D$7=$U$10,U91,IF($D$7=$V$10,V91,IF($D$7=$W$10,W91,IF($D$7=$X$10,X91,X91))))+IF('dane i obliczenia'!$D$2=metadane!$A$2,1/24,0)+IF(AND('dane i obliczenia'!$D$2=metadane!$A$1,A91>$Q$2,A91<$Q$3),1/24,0)) -> 05:34:17.778 | C91: =IF(IF($D$8=$Z$10,Z91,IF($D$8=$AA$10,AA91,IF($D$8=$AB$10,AB91,IF($D$8=$AC$10,AC91,Z91))))+IF('dane i obliczenia'!$D$2=metadane!$A$2,1/24,0)+IF(AND('dane i obliczenia'!$D$2=metadane!$A$1,A91>$Q$2,A91<$Q$3),1/24,0)>0.99999,0.99999,IF($D$8=$Z$10,Z91,IF($D$8=$AA$10,AA91,IF($D$8=$AB$10,AB91,IF($D$8=$AC$10,AC91,Z91))))+IF('dane i obliczenia'!$D$2=metadane!$A$2,1/24,0)+IF(AND('dane i obliczenia'!$D$2=metadane!$A$1,A91>$Q$2,A91<$Q$3),1/24,0)) -> 17:52:13.986 | D91: 06:00:00 | E91: 12.29894661 | F91: 11.87055169 | G91: 0 | H91: -0.4283949224 | I91: 17:30:00 | J91: 0 | K91: 0.3705516877 | S91: 01:14:05.230 | T91: 2018-03-22 | U91: =IFERROR(dawn($F$5,$F$6,YEAR(A91),MONTH(A91),DAY(A91),1,0,18),0) -> 03:38:06.905 | V91: 04:20:12.548 | W91: 05:00:24.287 | X91: 05:34:17.778 | Y91: 11:42:44.722 | Z91: 17:52:13.986 | AA91: 18:26:08.630 | AB91: 19:06:23.717 | AC91: 19:48:35.804 | AM91: 2019-03-22
A92: 2018-03-23 | B92: =IF(IF($D$7=$U$10,U92,IF($D$7=$V$10,V92,IF($D$7=$W$10,W92,IF($D$7=$X$10,X92,X92))))=0,0,IF($D$7=$U$10,U92,IF($D$7=$V$10,V92,IF($D$7=$W$10,W92,IF($D$7=$X$10,X92,X92))))+IF('dane i obliczenia'!$D$2=metadane!$A$2,1/24,0)+IF(AND('dane i obliczenia'!$D$2=metadane!$A$1,A92>$Q$2,A92<$Q$3),1/24,0)) -> 05:31:57.799 | C92: =IF(IF($D$8=$Z$10,Z92,IF($D$8=$AA$10,AA92,IF($D$8=$AB$10,AB92,IF($D$8=$AC$10,AC92,Z92))))+IF('dane i obliczenia'!$D$2=metadane!$A$2,1/24,0)+IF(AND('dane i obliczenia'!$D$2=metadane!$A$1,A92>$Q$2,A92<$Q$3),1/24,0)>0.99999,0.99999,IF($D$8=$Z$10,Z92,IF($D$8=$AA$10,AA92,IF($D$8=$AB$10,AB92,IF($D$8=$AC$10,AC92,Z92))))+IF('dane i obliczenia'!$D$2=metadane!$A$2,1/24,0)+IF(AND('dane i obliczenia'!$D$2=metadane!$A$1,A92>$Q$2,A92<$Q$3),1/24,0)) -> 17:53:58.298 | D92: 06:00:00 | E92: 12.36680543 | F92: 11.89952734 | G92: 0 | H92: -0.46727809 | I92: 17:30:00 | J92: 0 | K92: 0.3995273399 | S92: 01:14:14.177 | T92: 2018-03-23 | U92: =IFERROR(dawn($F$5,$F$6,YEAR(A92),MONTH(A92),DAY(A92),1,0,18),0) -> 03:35:25.257 | V92: 04:17:43.622 | W92: 04:58:01.993 | X92: 05:31:57.799 | Y92: 11:42:26.724 | Z92: 17:53:58.298 | AA92: 18:27:55.401 | AB92: 19:08:17.335 | AC92: 19:50:42.479 | AM92: 2019-03-23
A93: 2018-03-24 | B93: =IF(IF($D$7=$U$10,U93,IF($D$7=$V$10,V93,IF($D$7=$W$10,W93,IF($D$7=$X$10,X93,X93))))=0,0,IF($D$7=$U$10,U93,IF($D$7=$V$10,V93,IF($D$7=$W$10,W93,IF($D$7=$X$10,X93,X93))))+IF('dane i obliczenia'!$D$2=metadane!$A$2,1/24,0)+IF(AND('dane i obliczenia'!$D$2=metadane!$A$1,A93>$Q$2,A93<$Q$3),1/24,0)) -> 05:29:37.807 | C93: =IF(IF($D$8=$Z$10,Z93,IF($D$8=$AA$10,AA93,IF($D$8=$AB$10,AB93,IF($D$8=$AC$10,AC93,Z93))))+IF('dane i obliczenia'!$D$2=metadane!$A$2,1/24,0)+IF(AND('dane i obliczenia'!$D$2=metadane!$A$1,A93>$Q$2,A93<$Q$3),1/24,0)>0.99999,0.99999,IF($D$8=$Z$10,Z93,IF($D$8=$AA$10,AA93,IF($D$8=$AB$10,AB93,IF($D$8=$AC$10,AC93,Z93))))+IF('dane i obliczenia'!$D$2=metadane!$A$2,1/24,0)+IF(AND('dane i obliczenia'!$D$2=metadane!$A$1,A93>$Q$2,A93<$Q$3),1/24,0)) -> 17:55:42.498 | D93: 06:00:00 | E93: 12.43463656 | F93: 11.92847175 | G93: 0 | H93: -0.5061648055 | I93: 17:30:00 | J93: 0 | K93: 0.4284717508 | S93: 01:14:23.772 | T93: 2018-03-24 | U93: =IFERROR(dawn($F$5,$F$6,YEAR(A93),MONTH(A93),DAY(A93),1,0,18),0) -> 03:32:42.360 | V93: 04:15:14.035 | W93: 04:55:39.419 | X93: 05:29:37.807 | Y93: 11:42:08.666 | Z93: 17:55:42.498 | AA93: 18:29:42.328 | AB93: 19:10:11.495 | AC93: 19:52:50.299 | AM93: 2019-03-24
A94: 2018-03-25 | B94: =IF(IF($D$7=$U$10,U94,IF($D$7=$V$10,V94,IF($D$7=$W$10,W94,IF($D$7=$X$10,X94,X94))))=0,0,IF($D$7=$U$10,U94,IF($D$7=$V$10,V94,IF($D$7=$W$10,W94,IF($D$7=$X$10,X94,X94))))+IF('dane i obliczenia'!$D$2=metadane!$A$2,1/24,0)+IF(AND('dane i obliczenia'!$D$2=metadane!$A$1,A94>$Q$2,A94<$Q$3),1/24,0)) -> 05:27:17.832 | C94: =IF(IF($D$8=$Z$10,Z94,IF($D$8=$AA$10,AA94,IF($D$8=$AB$10,AB94,IF($D$8=$AC$10,AC94,Z94))))+IF('dane i obliczenia'!$D$2=metadane!$A$2,1/24,0)+IF(AND('dane i obliczenia'!$D$2=metadane!$A$1,A94>$Q$2,A94<$Q$3),1/24,0)>0.99999,0.99999,IF($D$8=$Z$10,Z94,IF($D$8=$AA$10,AA94,IF($D$8=$AB$10,AB94,IF($D$8=$AC$10,AC94,Z94))))+IF('dane i obliczenia'!$D$2=metadane!$A$2,1/24,0)+IF(AND('dane i obliczenia'!$D$2=metadane!$A$1,A94>$Q$2,A94<$Q$3),1/24,0)) -> 17:57:26.596 | D94: 06:00:00 | E94: 12.50243451 | F94: 11.95738772 | G94: 0 | H94: -0.5450467881 | I94: 17:30:00 | J94: 0 | K94: 0.4573877221 | S94: 01:14:34.022 | T94: 2018-03-25 | U94: =IFERROR(dawn($F$5,$F$6,YEAR(A94),MONTH(A94),DAY(A94),1,0,18),0) -> 03:29:58.219 | V94: 04:12:43.810 | W94: 04:53:16.594 | X94: 05:27:17.832 | Y94: 11:41:50.569 | Z94: 17:57:26.596 | AA94: 18:31:29.423 | AB94: 19:12:06.216 | AC94: 19:54:59.298 | AM94: 2019-03-25
A95: 2018-03-26 | B95: =IF(IF($D$7=$U$10,U95,IF($D$7=$V$10,V95,IF($D$7=$W$10,W95,IF($D$7=$X$10,X95,X95))))=0,0,IF($D$7=$U$10,U95,IF($D$7=$V$10,V95,IF($D$7=$W$10,W95,IF($D$7=$X$10,X95,X95))))+IF('dane i obliczenia'!$D$2=metadane!$A$2,1/24,0)+IF(AND('dane i obliczenia'!$D$2=metadane!$A$1,A95>$Q$2,A95<$Q$3),1/24,0)) -> 06:24:57.903 | C95: =IF(IF($D$8=$Z$10,Z95,IF($D$8=$AA$10,AA95,IF($D$8=$AB$10,AB95,IF($D$8=$AC$10,AC95,Z95))))+IF('dane i obliczenia'!$D$2=metadane!$A$2,1/24,0)+IF(AND('dane i obliczenia'!$D$2=metadane!$A$1,A95>$Q$2,A95<$Q$3),1/24,0)>0.99999,0.99999,IF($D$8=$Z$10,Z95,IF($D$8=$AA$10,AA95,IF($D$8=$AB$10,AB95,IF($D$8=$AC$10,AC95,Z95))))+IF('dane i obliczenia'!$D$2=metadane!$A$2,1/24,0)+IF(AND('dane i obliczenia'!$D$2=metadane!$A$1,A95>$Q$2,A95<$Q$3),1/24,0)) -> 18:59:10.601 | D95: 06:00:00 | E95: 12.57019376 | F95: 12.57019376 | G95: 0.4160842333 | H95: 0 | I95: 17:30:00 | J95: 0 | K95: 1.486277996 | S95: 01:14:44.934 | T95: 2018-03-26 | U95: =IFERROR(dawn($F$5,$F$6,YEAR(A95),MONTH(A95),DAY(A95),1,0,18),0) -> 03:27:12.837 | V95: 04:10:12.969 | W95: 04:50:53.548 | X95: 05:24:57.903 | Y95: 11:41:32.451 | Z95: 17:59:10.601 | AA95: 18:33:16.696 | AB95: 19:14:01.513 | AC95: 19:57:09.513 | AM95: 2019-03-26
A96: 2018-03-27 | B96: =IF(IF($D$7=$U$10,U96,IF($D$7=$V$10,V96,IF($D$7=$W$10,W96,IF($D$7=$X$10,X96,X96))))=0,0,IF($D$7=$U$10,U96,IF($D$7=$V$10,V96,IF($D$7=$W$10,W96,IF($D$7=$X$10,X96,X96))))+IF('dane i obliczenia'!$D$2=metadane!$A$2,1/24,0)+IF(AND('dane i obliczenia'!$D$2=metadane!$A$1,A96>$Q$2,A96<$Q$3),1/24,0)) -> 06:22:38.052 | C96: =IF(IF($D$8=$Z$10,Z96,IF($D$8=$AA$10,AA96,IF($D$8=$AB$10,AB96,IF($D$8=$AC$10,AC96,Z96))))+IF('dane i obliczenia'!$D$2=metadane!$A$2,1/24,0)+IF(AND('dane i obliczenia'!$D$2=metadane!$A$1,A96>$Q$2,A96<$Q$3),1/24,0)>0.99999,0.99999,IF($D$8=$Z$10,Z96,IF($D$8=$AA$10,AA96,IF($D$8=$AB$10,AB96,IF($D$8=$AC$10,AC96,Z96))))+IF('dane i obliczenia'!$D$2=metadane!$A$2,1/24,0)+IF(AND('dane i obliczenia'!$D$2=metadane!$A$1,A96>$Q$2,A96<$Q$3),1/24,0)) -> 19:00:54.523 | D96: 06:00:00 | E96: 12.63790871 | F96: 12.63790871 | G96: 0.3772365279 | H96: 0 | I96: 17:30:00 | J96: 0 | K96: 1.51514524 | S96: 01:14:56.515 | T96: 2018-03-27 | U96: =IFERROR(dawn($F$5,$F$6,YEAR(A96),MONTH(A96),DAY(A96),1,0,18),0) -> 03:24:26.217 | V96: 04:07:41.536 | W96: 04:48:30.308 | X96: 05:22:38.052 | Y96: 11:41:14.333 | Z96: 18:00:54.523 | AA96: 18:35:04.158 | AB96: 19:15:57.404 | AC96: 19:59:20.983 | AM96: 2019-03-27
A97: 2018-03-28 | B97: =IF(IF($D$7=$U$10,U97,IF($D$7=$V$10,V97,IF($D$7=$W$10,W97,IF($D$7=$X$10,X97,X97))))=0,0,IF($D$7=$U$10,U97,IF($D$7=$V$10,V97,IF($D$7=$W$10,W97,IF($D$7=$X$10,X97,X97))))+IF('dane i obliczenia'!$D$2=metadane!$A$2,1/24,0)+IF(AND('dane i obliczenia'!$D$2=metadane!$A$1,A97>$Q$2,A97<$Q$3),1/24,0)) -> 06:20:18.306 | C97: =IF(IF($D$8=$Z$10,Z97,IF($D$8=$AA$10,AA97,IF($D$8=$AB$10,AB97,IF($D$8=$AC$10,AC97,Z97))))+IF('dane i obliczenia'!$D$2=metadane!$A$2,1/24,0)+IF(AND('dane i obliczenia'!$D$2=metadane!$A$1,A97>$Q$2,A97<$Q$3),1/24,0)>0.99999,0.99999,IF($D$8=$Z$10,Z97,IF($D$8=$AA$10,AA97,IF($D$8=$AB$10,AB97,IF($D$8=$AC$10,AC97,Z97))))+IF('dane i obliczenia'!$D$2=metadane!$A$2,1/24,0)+IF(AND('dane i obliczenia'!$D$2=metadane!$A$1,A97>$Q$2,A97<$Q$3),1/24,0)) -> 19:02:38.371 | D97: 06:00:00 | E97: 12.70557367 | F97: 12.70557367 | G97: 0.33841837 | H97: 0 | I97: 17:30:00 | J97: 0 | K97: 1.543992038 | S97: 01:15:08.773 | T97: 2018-03-28 | U97: =IFERROR(dawn($F$5,$F$6,YEAR(A97),MONTH(A97),DAY(A97),1,0,18),0) -> 03:21:38.359 | V97: 04:05:09.533 | W97: 04:46:06.904 | X97: 05:20:18.306 | Y97: 11:40:56.235 | Z97: 18:02:38.371 | AA97: 18:36:51.820 | AB97: 19:17:53.907 | AC97: 20:01:33.747 | AM97: 2019-03-28
A98: 2018-03-29 | B98: =IF(IF($D$7=$U$10,U98,IF($D$7=$V$10,V98,IF($D$7=$W$10,W98,IF($D$7=$X$10,X98,X98))))=0,0,IF($D$7=$U$10,U98,IF($D$7=$V$10,V98,IF($D$7=$W$10,W98,IF($D$7=$X$10,X98,X98))))+IF('dane i obliczenia'!$D$2=metadane!$A$2,1/24,0)+IF(AND('dane i obliczenia'!$D$2=metadane!$A$1,A98>$Q$2,A98<$Q$3),1/24,0)) -> 06:17:58.697 | C98: =IF(IF($D$8=$Z$10,Z98,IF($D$8=$AA$10,AA98,IF($D$8=$AB$10,AB98,IF($D$8=$AC$10,AC98,Z98))))+IF('dane i obliczenia'!$D$2=metadane!$A$2,1/24,0)+IF(AND('dane i obliczenia'!$D$2=metadane!$A$1,A98>$Q$2,A98<$Q$3),1/24,0)>0.99999,0.99999,IF($D$8=$Z$10,Z98,IF($D$8=$AA$10,AA98,IF($D$8=$AB$10,AB98,IF($D$8=$AC$10,AC98,Z98))))+IF('dane i obliczenia'!$D$2=metadane!$A$2,1/24,0)+IF(AND('dane i obliczenia'!$D$2=metadane!$A$1,A98>$Q$2,A98<$Q$3),1/24,0)) -> 19:04:22.155 | D98: 06:00:00 | E98: 12.77318283 | F98: 12.77318283 | G98: 0.2996380466 | H98: 0 | I98: 17:30:00 | J98: 0 | K98: 1.572820872 | S98: 01:15:21.716 | T98: 2018-03-29 | U98: =IFERROR(dawn($F$5,$F$6,YEAR(A98),MONTH(A98),DAY(A98),1,0,18),0) -> 03:18:49.263 | V98: 04:02:36.981 | W98: 04:43:43.363 | X98: 05:17:58.697 | Y98: 11:40:38.175 | Z98: 18:04:22.155 | AA98: 18:38:39.691 | AB98: 19:19:51.037 | AC98: 20:03:47.845 | AM98: 2019-03-29
A99: 2018-03-30 | B99: =IF(IF($D$7=$U$10,U99,IF($D$7=$V$10,V99,IF($D$7=$W$10,W99,IF($D$7=$X$10,X99,X99))))=0,0,IF($D$7=$U$10,U99,IF($D$7=$V$10,V99,IF($D$7=$W$10,W99,IF($D$7=$X$10,X99,X99))))+IF('dane i obliczenia'!$D$2=metadane!$A$2,1/24,0)+IF(AND('dane i obliczenia'!$D$2=metadane!$A$1,A99>$Q$2,A99<$Q$3),1/24,0)) -> 06:15:39.254 | C99: =IF(IF($D$8=$Z$10,Z99,IF($D$8=$AA$10,AA99,IF($D$8=$AB$10,AB99,IF($D$8=$AC$10,AC99,Z99))))+IF('dane i obliczenia'!$D$2=metadane!$A$2,1/24,0)+IF(AND('dane i obliczenia'!$D$2=metadane!$A$1,A99>$Q$2,A99<$Q$3),1/24,0)>0.99999,0.99999,IF($D$8=$Z$10,Z99,IF($D$8=$AA$10,AA99,IF($D$8=$AB$10,AB99,IF($D$8=$AC$10,AC99,Z99))))+IF('dane i obliczenia'!$D$2=metadane!$A$2,1/24,0)+IF(AND('dane i obliczenia'!$D$2=metadane!$A$1,A99>$Q$2,A99<$Q$3),1/24,0)) -> 19:06:05.883 | D99: 06:00:00 | E99: 12.84073025 | F99: 12.84073025 | G99: 0.2609038647 | H99: 0 | I99: 17:30:00 | J99: 0 | K99: 1.601634115 | S99: 01:15:35.350 | T99: 2018-03-30 | U99: =IFERROR(dawn($F$5,$F$6,YEAR(A99),MONTH(A99),DAY(A99),1,0,18),0) -> 03:15:58.928 | V99: 04:00:03.904 | W99: 04:41:19.716 | X99: 05:15:39.254 | Y99: 11:40:20.174 | Z99: 18:06:05.883 | AA99: 18:40:27.781 | AB99: 19:21:48.810 | AC99: 20:06:03.317 | AM99: 2019-03-30
A100: 2018-03-31 | B100: =IF(IF($D$7=$U$10,U100,IF($D$7=$V$10,V100,IF($D$7=$W$10,W100,IF($D$7=$X$10,X100,X100))))=0,0,IF($D$7=$U$10,U100,IF($D$7=$V$10,V100,IF($D$7=$W$10,W100,IF($D$7=$X$10,X100,X100))))+IF('dane i obliczenia'!$D$2=metadane!$A$2,1/24,0)+IF(AND('dane i obliczenia'!$D$2=metadane!$A$1,A100>$Q$2,A100<$Q$3),1/24,0)) -> 06:13:20.007 | C100: =IF(IF($D$8=$Z$10,Z100,IF($D$8=$AA$10,AA100,IF($D$8=$AB$10,AB100,IF($D$8=$AC$10,AC100,Z100))))+IF('dane i obliczenia'!$D$2=metadane!$A$2,1/24,0)+IF(AND('dane i obliczenia'!$D$2=metadane!$A$1,A100>$Q$2,A100<$Q$3),1/24,0)>0.99999,0.99999,IF($D$8=$Z$10,Z100,IF($D$8=$AA$10,AA100,IF($D$8=$AB$10,AB100,IF($D$8=$AC$10,AC100,Z100))))+IF('dane i obliczenia'!$D$2=metadane!$A$2,1/24,0)+IF(AND('dane i obliczenia'!$D$2=metadane!$A$1,A100>$Q$2,A100<$Q$3),1/24,0)) -> 19:07:49.562 | D100: 06:00:00 | E100: 12.90820986 | F100: 12.90820986 | G100: 0.2222241586 | H100: 0 | I100: 17:30:00 | J100: 0 | K100: 1.630434014 | S100: 01:15:49.684 | T100: 2018-03-31 | U100: =IFERROR(dawn($F$5,$F$6,YEAR(A100),MONTH(A100),DAY(A100),1,0,18),0) -> 03:13:07.350 | V100: 03:57:30.323 | W100: 04:38:55.991 | X100: 05:13:20.007 | Y100: 11:40:02.251 | Z100: 18:07:49.562 | AA100: 18:42:16.099 | AB100: 19:23:47.244 | AC100: 20:08:20.205 | AM100: 2019-03-31
A101: 2018-04-01 | B101: =IF(IF($D$7=$U$10,U101,IF($D$7=$V$10,V101,IF($D$7=$W$10,W101,IF($D$7=$X$10,X101,X101))))=0,0,IF($D$7=$U$10,U101,IF($D$7=$V$10,V101,IF($D$7=$W$10,W101,IF($D$7=$X$10,X101,X101))))+IF('dane i obliczenia'!$D$2=metadane!$A$2,1/24,0)+IF(AND('dane i obliczenia'!$D$2=metadane!$A$1,A101>$Q$2,A101<$Q$3),1/24,0)) -> 06:11:00.986 | C101: =IF(IF($D$8=$Z$10,Z101,IF($D$8=$AA$10,AA101,IF($D$8=$AB$10,AB101,IF($D$8=$AC$10,AC101,Z101))))+IF('dane i obliczenia'!$D$2=metadane!$A$2,1/24,0)+IF(AND('dane i obliczenia'!$D$2=metadane!$A$1,A101>$Q$2,A101<$Q$3),1/24,0)>0.99999,0.99999,IF($D$8=$Z$10,Z101,IF($D$8=$AA$10,AA101,IF($D$8=$AB$10,AB101,IF($D$8=$AC$10,AC101,Z101))))+IF('dane i obliczenia'!$D$2=metadane!$A$2,1/24,0)+IF(AND('dane i obliczenia'!$D$2=metadane!$A$1,A101>$Q$2,A101<$Q$3),1/24,0)) -> 19:09:33.202 | D101: 06:00:00 | E101: 12.97561538 | F101: 12.97561538 | G101: 0.1836072977 | H101: 0 | I101: 17:30:00 | J101: 0 | K101: 1.659222679 | S101: 01:16:04.726 | T101: 2018-04-01 | U101: =IFERROR(dawn($F$5,$F$6,YEAR(A101),MONTH(A101),DAY(A101),1,0,18),0) -> 03:10:14.526 | V101: 03:54:56.260 | W101: 04:36:32.217 | X101: 05:11:00.986 | Y101: 11:39:44.423 | Z101: 18:09:33.202 | AA101: 18:44:04.655 | AB101: 19:25:46.354 | AC101: 20:10:38.554 | AM101: 2019-04-01
A102: 2018-04-02 | B102: =IF(IF($D$7=$U$10,U102,IF($D$7=$V$10,V102,IF($D$7=$W$10,W102,IF($D$7=$X$10,X102,X102))))=0,0,IF($D$7=$U$10,U102,IF($D$7=$V$10,V102,IF($D$7=$W$10,W102,IF($D$7=$X$10,X102,X102))))+IF('dane i obliczenia'!$D$2=metadane!$A$2,1/24,0)+IF(AND('dane i obliczenia'!$D$2=metadane!$A$1,A102>$Q$2,A102<$Q$3),1/24,0)) -> 06:08:42.222 | C102: =IF(IF($D$8=$Z$10,Z102,IF($D$8=$AA$10,AA102,IF($D$8=$AB$10,AB102,IF($D$8=$AC$10,AC102,Z102))))+IF('dane i obliczenia'!$D$2=metadane!$A$2,1/24,0)+IF(AND('dane i obliczenia'!$D$2=metadane!$A$1,A102>$Q$2,A102<$Q$3),1/24,0)>0.99999,0.99999,IF($D$8=$Z$10,Z102,IF($D$8=$AA$10,AA102,IF($D$8=$AB$10,AB102,IF($D$8=$AC$10,AC102,Z102))))+IF('dane i obliczenia'!$D$2=metadane!$A$2,1/24,0)+IF(AND('dane i obliczenia'!$D$2=metadane!$A$1,A102>$Q$2,A102<$Q$3),1/24,0)) -> 19:11:16.807 | D102: 06:00:00 | E102: 13.04294038 | F102: 13.04294038 | G102: 0.1450616932 | H102: 0 | I102: 17:30:00 | J102: 0 | K102: 1.68800207 | S102: 01:16:20.485 | T102: 2018-04-02 | U102: =IFERROR(dawn($F$5,$F$6,YEAR(A102),MONTH(A102),DAY(A102),1,0,18),0) -> 03:07:20.449 | V102: 03:52:21.737 | W102: 04:34:08.423 | X102: 05:08:42.222 | Y102: 11:39:26.712 | Z102: 18:11:16.807 | AA102: 18:45:53.455 | AB102: 19:27:46.155 | AC102: 20:12:58.408 | AM102: 2019-04-02
A103: 2018-04-03 | B103: =IF(IF($D$7=$U$10,U103,IF($D$7=$V$10,V103,IF($D$7=$W$10,W103,IF($D$7=$X$10,X103,X103))))=0,0,IF($D$7=$U$10,U103,IF($D$7=$V$10,V103,IF($D$7=$W$10,W103,IF($D$7=$X$10,X103,X103))))+IF('dane i obliczenia'!$D$2=metadane!$A$2,1/24,0)+IF(AND('dane i obliczenia'!$D$2=metadane!$A$1,A103>$Q$2,A103<$Q$3),1/24,0)) -> 06:06:23.745 | C103: =IF(IF($D$8=$Z$10,Z103,IF($D$8=$AA$10,AA103,IF($D$8=$AB$10,AB103,IF($D$8=$AC$10,AC103,Z103))))+IF('dane i obliczenia'!$D$2=metadane!$A$2,1/24,0)+IF(AND('dane i obliczenia'!$D$2=metadane!$A$1,A103>$Q$2,A103<$Q$3),1/24,0)>0.99999,0.99999,IF($D$8=$Z$10,Z103,IF($D$8=$AA$10,AA103,IF($D$8=$AB$10,AB103,IF($D$8=$AC$10,AC103,Z103))))+IF('dane i obliczenia'!$D$2=metadane!$A$2,1/24,0)+IF(AND('dane i obliczenia'!$D$2=metadane!$A$1,A103>$Q$2,A103<$Q$3),1/24,0)) -> 19:13:00.386 | D103: 06:00:00 | E103: 13.11017818 | F103: 13.11017818 | G103: 0.106595806 | H103: 0 | I103: 17:30:00 | J103: 0 | K103: 1.716773984 | S103: 01:16:36.968 | T103: 2018-04-03 | U103: =IFERROR(dawn($F$5,$F$6,YEAR(A103),MONTH(A103),DAY(A103),1,0,18),0) -> 03:04:25.112 | V103: 03:49:46.777 | W103: 04:31:44.639 | X103: 05:06:23.745 | Y103: 11:39:09.134 | Z103: 18:13:00.386 | AA103: 18:47:42.507 | AB103: 19:29:46.663 | AC103: 20:15:19.812 | AM103: 2019-04-03
A104: 2018-04-04 | B104: =IF(IF($D$7=$U$10,U104,IF($D$7=$V$10,V104,IF($D$7=$W$10,W104,IF($D$7=$X$10,X104,X104))))=0,0,IF($D$7=$U$10,U104,IF($D$7=$V$10,V104,IF($D$7=$W$10,W104,IF($D$7=$X$10,X104,X104))))+IF('dane i obliczenia'!$D$2=metadane!$A$2,1/24,0)+IF(AND('dane i obliczenia'!$D$2=metadane!$A$1,A104>$Q$2,A104<$Q$3),1/24,0)) -> 06:04:05.585 | C104: =IF(IF($D$8=$Z$10,Z104,IF($D$8=$AA$10,AA104,IF($D$8=$AB$10,AB104,IF($D$8=$AC$10,AC104,Z104))))+IF('dane i obliczenia'!$D$2=metadane!$A$2,1/24,0)+IF(AND('dane i obliczenia'!$D$2=metadane!$A$1,A104>$Q$2,A104<$Q$3),1/24,0)>0.99999,0.99999,IF($D$8=$Z$10,Z104,IF($D$8=$AA$10,AA104,IF($D$8=$AB$10,AB104,IF($D$8=$AC$10,AC104,Z104))))+IF('dane i obliczenia'!$D$2=metadane!$A$2,1/24,0)+IF(AND('dane i obliczenia'!$D$2=metadane!$A$1,A104>$Q$2,A104<$Q$3),1/24,0)) -> 19:14:43.944 | D104: 06:00:00 | E104: 13.17732189 | F104: 13.17732189 | G104: 0.06821815363 | H104: 0 | I104: 17:30:00 | J104: 0 | K104: 1.745540042 | S104: 01:16:54.184 | T104: 2018-04-04 | U104: =IFERROR(dawn($F$5,$F$6,YEAR(A104),MONTH(A104),DAY(A104),1,0,18),0) -> 03:01:28.505 | V104: 03:47:11.401 | W104: 04:29:20.895 | X104: 05:04:05.585 | Y104: 11:38:51.709 | Z104: 18:14:43.944 | AA104: 18:49:31.819 | AB104: 19:31:47.891 | AC104: 20:17:42.814 | AM104: 2019-04-04
A105: 2018-04-05 | B105: =IF(IF($D$7=$U$10,U105,IF($D$7=$V$10,V105,IF($D$7=$W$10,W105,IF($D$7=$X$10,X105,X105))))=0,0,IF($D$7=$U$10,U105,IF($D$7=$V$10,V105,IF($D$7=$W$10,W105,IF($D$7=$X$10,X105,X105))))+IF('dane i obliczenia'!$D$2=metadane!$A$2,1/24,0)+IF(AND('dane i obliczenia'!$D$2=metadane!$A$1,A105>$Q$2,A105<$Q$3),1/24,0)) -> 06:01:47.774 | C105: =IF(IF($D$8=$Z$10,Z105,IF($D$8=$AA$10,AA105,IF($D$8=$AB$10,AB105,IF($D$8=$AC$10,AC105,Z105))))+IF('dane i obliczenia'!$D$2=metadane!$A$2,1/24,0)+IF(AND('dane i obliczenia'!$D$2=metadane!$A$1,A105>$Q$2,A105<$Q$3),1/24,0)>0.99999,0.99999,IF($D$8=$Z$10,Z105,IF($D$8=$AA$10,AA105,IF($D$8=$AB$10,AB105,IF($D$8=$AC$10,AC105,Z105))))+IF('dane i obliczenia'!$D$2=metadane!$A$2,1/24,0)+IF(AND('dane i obliczenia'!$D$2=metadane!$A$1,A105>$Q$2,A105<$Q$3),1/24,0)) -> 19:16:27.486 | D105: 06:00:00 | E105: 13.24436436 | F105: 13.24436436 | G105: 0.02993731776 | H105: 0 | I105: 17:30:00 | J105: 0 | K105: 1.774301676 | S105: 01:17:12.142 | T105: 2018-04-05 | U105: =IFERROR(dawn($F$5,$F$6,YEAR(A105),MONTH(A105),DAY(A105),1,0,18),0) -> 02:58:30.617 | V105: 03:44:35.632 | W105: 04:26:57.219 | X105: 05:01:47.774 | Y105: 11:38:34.455 | Z105: 18:16:27.486 | AA105: 18:51:21.395 | AB105: 19:33:49.855 | AC105: 20:20:07.464 | AM105: 2019-04-05
A106: 2018-04-06 | B106: =IF(IF($D$7=$U$10,U106,IF($D$7=$V$10,V106,IF($D$7=$W$10,W106,IF($D$7=$X$10,X106,X106))))=0,0,IF($D$7=$U$10,U106,IF($D$7=$V$10,V106,IF($D$7=$W$10,W106,IF($D$7=$X$10,X106,X106))))+IF('dane i obliczenia'!$D$2=metadane!$A$2,1/24,0)+IF(AND('dane i obliczenia'!$D$2=metadane!$A$1,A106>$Q$2,A106<$Q$3),1/24,0)) -> 05:59:30.343 | C106: =IF(IF($D$8=$Z$10,Z106,IF($D$8=$AA$10,AA106,IF($D$8=$AB$10,AB106,IF($D$8=$AC$10,AC106,Z106))))+IF('dane i obliczenia'!$D$2=metadane!$A$2,1/24,0)+IF(AND('dane i obliczenia'!$D$2=metadane!$A$1,A106>$Q$2,A106<$Q$3),1/24,0)>0.99999,0.99999,IF($D$8=$Z$10,Z106,IF($D$8=$AA$10,AA106,IF($D$8=$AB$10,AB106,IF($D$8=$AC$10,AC106,Z106))))+IF('dane i obliczenia'!$D$2=metadane!$A$2,1/24,0)+IF(AND('dane i obliczenia'!$D$2=metadane!$A$1,A106>$Q$2,A106<$Q$3),1/24,0)) -> 19:18:11.016 | D106: 06:00:00 | E106: 13.31129816 | F106: 13.30306012 | G106: 0 | H106: -0.008238048862 | I106: 17:30:00 | J106: 0 | K106: 1.803060115 | S106: 01:17:30.851 | T106: 2018-04-06 | U106: =IFERROR(dawn($F$5,$F$6,YEAR(A106),MONTH(A106),DAY(A106),1,0,18),0) -> 02:55:31.434 | V106: 03:41:59.492 | W106: 04:24:33.644 | X106: 04:59:30.343 | Y106: 11:38:17.389 | Z106: 18:18:11.016 | AA106: 18:53:11.242 | AB106: 19:35:52.567 | AC106: 20:22:33.811 | AM106: 2019-04-06
A107: 2018-04-07 | B107: =IF(IF($D$7=$U$10,U107,IF($D$7=$V$10,V107,IF($D$7=$W$10,W107,IF($D$7=$X$10,X107,X107))))=0,0,IF($D$7=$U$10,U107,IF($D$7=$V$10,V107,IF($D$7=$W$10,W107,IF($D$7=$X$10,X107,X107))))+IF('dane i obliczenia'!$D$2=metadane!$A$2,1/24,0)+IF(AND('dane i obliczenia'!$D$2=metadane!$A$1,A107>$Q$2,A107<$Q$3),1/24,0)) -> 05:57:13.323 | C107: =IF(IF($D$8=$Z$10,Z107,IF($D$8=$AA$10,AA107,IF($D$8=$AB$10,AB107,IF($D$8=$AC$10,AC107,Z107))))+IF('dane i obliczenia'!$D$2=metadane!$A$2,1/24,0)+IF(AND('dane i obliczenia'!$D$2=metadane!$A$1,A107>$Q$2,A107<$Q$3),1/24,0)>0.99999,0.99999,IF($D$8=$Z$10,Z107,IF($D$8=$AA$10,AA107,IF($D$8=$AB$10,AB107,IF($D$8=$AC$10,AC107,Z107))))+IF('dane i obliczenia'!$D$2=metadane!$A$2,1/24,0)+IF(AND('dane i obliczenia'!$D$2=metadane!$A$1,A107>$Q$2,A107<$Q$3),1/24,0)) -> 19:19:54.539 | D107: 06:00:00 | E107: 13.37811559 | F107: 13.33181638 | G107: 0 | H107: -0.04629921518 | I107: 17:30:00 | J107: 0 | K107: 1.831816375 | S107: 01:17:50.320 | T107: 2018-04-07 | U107: =IFERROR(dawn($F$5,$F$6,YEAR(A107),MONTH(A107),DAY(A107),1,0,18),0) -> 02:52:30.941 | V107: 03:39:23.002 | W107: 04:22:10.199 | X107: 04:57:13.323 | Y107: 11:38:00.530 | Z107: 18:19:54.539 | AA107: 18:55:01.364 | AB107: 19:37:56.040 | AC107: 20:25:01.908 | AM107: 2019-04-07
A108: 2018-04-08 | B108: =IF(IF($D$7=$U$10,U108,IF($D$7=$V$10,V108,IF($D$7=$W$10,W108,IF($D$7=$X$10,X108,X108))))=0,0,IF($D$7=$U$10,U108,IF($D$7=$V$10,V108,IF($D$7=$W$10,W108,IF($D$7=$X$10,X108,X108))))+IF('dane i obliczenia'!$D$2=metadane!$A$2,1/24,0)+IF(AND('dane i obliczenia'!$D$2=metadane!$A$1,A108>$Q$2,A108<$Q$3),1/24,0)) -> 05:54:56.745 | C108: =IF(IF($D$8=$Z$10,Z108,IF($D$8=$AA$10,AA108,IF($D$8=$AB$10,AB108,IF($D$8=$AC$10,AC108,Z108))))+IF('dane i obliczenia'!$D$2=metadane!$A$2,1/24,0)+IF(AND('dane i obliczenia'!$D$2=metadane!$A$1,A108>$Q$2,A108<$Q$3),1/24,0)>0.99999,0.99999,IF($D$8=$Z$10,Z108,IF($D$8=$AA$10,AA108,IF($D$8=$AB$10,AB108,IF($D$8=$AC$10,AC108,Z108))))+IF('dane i obliczenia'!$D$2=metadane!$A$2,1/24,0)+IF(AND('dane i obliczenia'!$D$2=metadane!$A$1,A108>$Q$2,A108<$Q$3),1/24,0)) -> 19:21:38.056 | D108: 06:00:00 | E108: 13.44480861 | F108: 13.36057124 | G108: 0 | H108: -0.08423736485 | I108: 17:30:00 | J108: 0 | K108: 1.860571242 | S108: 01:18:10.559 | T108: 2018-04-08 | U108: =IFERROR(dawn($F$5,$F$6,YEAR(A108),MONTH(A108),DAY(A108),1,0,18),0) -> 02:49:29.120 | V108: 03:36:46.187 | W108: 04:19:46.916 | X108: 04:54:56.745 | Y108: 11:37:43.895 | Z108: 18:21:38.056 | AA108: 18:56:51.765 | AB108: 19:40:00.288 | AC108: 20:27:31.809 | AM108: 2019-04-08
A109: 2018-04-09 | B109: =IF(IF($D$7=$U$10,U109,IF($D$7=$V$10,V109,IF($D$7=$W$10,W109,IF($D$7=$X$10,X109,X109))))=0,0,IF($D$7=$U$10,U109,IF($D$7=$V$10,V109,IF($D$7=$W$10,W109,IF($D$7=$X$10,X109,X109))))+IF('dane i obliczenia'!$D$2=metadane!$A$2,1/24,0)+IF(AND('dane i obliczenia'!$D$2=metadane!$A$1,A109>$Q$2,A109<$Q$3),1/24,0)) -> 05:52:40.643 | C109: =IF(IF($D$8=$Z$10,Z109,IF($D$8=$AA$10,AA109,IF($D$8=$AB$10,AB109,IF($D$8=$AC$10,AC109,Z109))))+IF('dane i obliczenia'!$D$2=metadane!$A$2,1/24,0)+IF(AND('dane i obliczenia'!$D$2=metadane!$A$1,A109>$Q$2,A109<$Q$3),1/24,0)>0.99999,0.99999,IF($D$8=$Z$10,Z109,IF($D$8=$AA$10,AA109,IF($D$8=$AB$10,AB109,IF($D$8=$AC$10,AC109,Z109))))+IF('dane i obliczenia'!$D$2=metadane!$A$2,1/24,0)+IF(AND('dane i obliczenia'!$D$2=metadane!$A$1,A109>$Q$2,A109<$Q$3),1/24,0)) -> 19:23:21.571 | D109: 06:00:00 | E109: 13.51136885 | F109: 13.38932526 | G109: 0 | H109: -0.1220435894 | I109: 17:30:00 | J109: 0 | K109: 1.889325261 | S109: 01:18:31.576 | T109: 2018-04-09 | U109: =IFERROR(dawn($F$5,$F$6,YEAR(A109),MONTH(A109),DAY(A109),1,0,18),0) -> 02:46:25.951 | V109: 03:34:09.067 | W109: 04:17:23.825 | X109: 04:52:40.643 | Y109: 11:37:27.501 | Z109: 18:23:21.571 | AA109: 18:58:42.447 | AB109: 19:42:05.320 | AC109: 20:30:03.572 | AM109: 2019-04-09
A110: 2018-04-10 | B110: =IF(IF($D$7=$U$10,U110,IF($D$7=$V$10,V110,IF($D$7=$W$10,W110,IF($D$7=$X$10,X110,X110))))=0,0,IF($D$7=$U$10,U110,IF($D$7=$V$10,V110,IF($D$7=$W$10,W110,IF($D$7=$X$10,X110,X110))))+IF('dane i obliczenia'!$D$2=metadane!$A$2,1/24,0)+IF(AND('dane i obliczenia'!$D$2=metadane!$A$1,A110>$Q$2,A110<$Q$3),1/24,0)) -> 05:50:25.048 | C110: =IF(IF($D$8=$Z$10,Z110,IF($D$8=$AA$10,AA110,IF($D$8=$AB$10,AB110,IF($D$8=$AC$10,AC110,Z110))))+IF('dane i obliczenia'!$D$2=metadane!$A$2,1/24,0)+IF(AND('dane i obliczenia'!$D$2=metadane!$A$1,A110>$Q$2,A110<$Q$3),1/24,0)>0.99999,0.99999,IF($D$8=$Z$10,Z110,IF($D$8=$AA$10,AA110,IF($D$8=$AB$10,AB110,IF($D$8=$AC$10,AC110,Z110))))+IF('dane i obliczenia'!$D$2=metadane!$A$2,1/24,0)+IF(AND('dane i obliczenia'!$D$2=metadane!$A$1,A110>$Q$2,A110<$Q$3),1/24,0)) -> 19:25:05.083 | D110: 06:00:00 | E110: 13.5777876 | F110: 13.41807872 | G110: 0 | H110: -0.1597088813 | I110: 17:30:00 | J110: 0 | K110: 1.918078721 | S110: 01:18:53.381 | T110: 2018-04-10 | U110: =IFERROR(dawn($F$5,$F$6,YEAR(A110),MONTH(A110),DAY(A110),1,0,18),0) -> 02:43:21.410 | V110: 03:31:31.667 | W110: 04:15:00.958 | X110: 04:50:25.048 | Y110: 11:37:11.366 | Z110: 18:25:05.083 | AA110: 19:00:33.411 | AB110: 19:44:11.148 | AC110: 20:32:37.254 | AM110: 2019-04-10
A111: 2018-04-11 | B111: =IF(IF($D$7=$U$10,U111,IF($D$7=$V$10,V111,IF($D$7=$W$10,W111,IF($D$7=$X$10,X111,X111))))=0,0,IF($D$7=$U$10,U111,IF($D$7=$V$10,V111,IF($D$7=$W$10,W111,IF($D$7=$X$10,X111,X111))))+IF('dane i obliczenia'!$D$2=metadane!$A$2,1/24,0)+IF(AND('dane i obliczenia'!$D$2=metadane!$A$1,A111>$Q$2,A111<$Q$3),1/24,0)) -> 05:48:09.993 | C111: =IF(IF($D$8=$Z$10,Z111,IF($D$8=$AA$10,AA111,IF($D$8=$AB$10,AB111,IF($D$8=$AC$10,AC111,Z111))))+IF('dane i obliczenia'!$D$2=metadane!$A$2,1/24,0)+IF(AND('dane i obliczenia'!$D$2=metadane!$A$1,A111>$Q$2,A111<$Q$3),1/24,0)>0.99999,0.99999,IF($D$8=$Z$10,Z111,IF($D$8=$AA$10,AA111,IF($D$8=$AB$10,AB111,IF($D$8=$AC$10,AC111,Z111))))+IF('dane i obliczenia'!$D$2=metadane!$A$2,1/24,0)+IF(AND('dane i obliczenia'!$D$2=metadane!$A$1,A111>$Q$2,A111<$Q$3),1/24,0)) -> 19:26:48.594 | D111: 06:00:00 | E111: 13.64405577 | F111: 13.44683164 | G111: 0 | H111: -0.1972241274 | I111: 17:30:00 | J111: 0 | K111: 1.946831643 | S111: 01:19:15.984 | T111: 2018-04-11 | U111: =IFERROR(dawn($F$5,$F$6,YEAR(A111),MONTH(A111),DAY(A111),1,0,18),0) -> 02:40:15.472 | V111: 03:28:54.009 | W111: 04:12:38.348 | X111: 04:48:09.993 | Y111: 11:36:55.506 | Z111: 18:26:48.594 | AA111: 19:02:24.659 | AB111: 19:46:17.782 | AC111: 20:35:12.918 | AM111: 2019-04-11
A112: 2018-04-12 | B112: =IF(IF($D$7=$U$10,U112,IF($D$7=$V$10,V112,IF($D$7=$W$10,W112,IF($D$7=$X$10,X112,X112))))=0,0,IF($D$7=$U$10,U112,IF($D$7=$V$10,V112,IF($D$7=$W$10,W112,IF($D$7=$X$10,X112,X112))))+IF('dane i obliczenia'!$D$2=metadane!$A$2,1/24,0)+IF(AND('dane i obliczenia'!$D$2=metadane!$A$1,A112>$Q$2,A112<$Q$3),1/24,0)) -> 05:45:55.512 | C112: =IF(IF($D$8=$Z$10,Z112,IF($D$8=$AA$10,AA112,IF($D$8=$AB$10,AB112,IF($D$8=$AC$10,AC112,Z112))))+IF('dane i obliczenia'!$D$2=metadane!$A$2,1/24,0)+IF(AND('dane i obliczenia'!$D$2=metadane!$A$1,A112>$Q$2,A112<$Q$3),1/24,0)>0.99999,0.99999,IF($D$8=$Z$10,Z112,IF($D$8=$AA$10,AA112,IF($D$8=$AB$10,AB112,IF($D$8=$AC$10,AC112,Z112))))+IF('dane i obliczenia'!$D$2=metadane!$A$2,1/24,0)+IF(AND('dane i obliczenia'!$D$2=metadane!$A$1,A112>$Q$2,A112<$Q$3),1/24,0)) -> 19:28:32.102 | D112: 06:00:00 | E112: 13.71016387 | F112: 13.47558377 | G112: 0 | H112: -0.2345801023 | I112: 17:30:00 | J112: 0 | K112: 1.975583765 | S112: 01:19:39.395 | T112: 2018-04-12 | U112: =IFERROR(dawn($F$5,$F$6,YEAR(A112),MONTH(A112),DAY(A112),1,0,18),0) -> 02:37:08.107 | V112: 03:26:16.117 | W112: 04:10:16.027 | X112: 04:45:55.512 | Y112: 11:36:39.937 | Z112: 18:28:32.102 | AA112: 19:04:16.190 | AB112: 19:48:25.230 | AC112: 20:37:50.627 | AM112: 2019-04-12
A113: 2018-04-13 | B113: =IF(IF($D$7=$U$10,U113,IF($D$7=$V$10,V113,IF($D$7=$W$10,W113,IF($D$7=$X$10,X113,X113))))=0,0,IF($D$7=$U$10,U113,IF($D$7=$V$10,V113,IF($D$7=$W$10,W113,IF($D$7=$X$10,X113,X113))))+IF('dane i obliczenia'!$D$2=metadane!$A$2,1/24,0)+IF(AND('dane i obliczenia'!$D$2=metadane!$A$1,A113>$Q$2,A113<$Q$3),1/24,0)) -> 05:43:41.637 | C113: =IF(IF($D$8=$Z$10,Z113,IF($D$8=$AA$10,AA113,IF($D$8=$AB$10,AB113,IF($D$8=$AC$10,AC113,Z113))))+IF('dane i obliczenia'!$D$2=metadane!$A$2,1/24,0)+IF(AND('dane i obliczenia'!$D$2=metadane!$A$1,A113>$Q$2,A113<$Q$3),1/24,0)>0.99999,0.99999,IF($D$8=$Z$10,Z113,IF($D$8=$AA$10,AA113,IF($D$8=$AB$10,AB113,IF($D$8=$AC$10,AC113,Z113))))+IF('dane i obliczenia'!$D$2=metadane!$A$2,1/24,0)+IF(AND('dane i obliczenia'!$D$2=metadane!$A$1,A113>$Q$2,A113<$Q$3),1/24,0)) -> 19:30:15.604 | D113: 06:00:00 | E113: 13.77610199 | F113: 13.50433453 | G113: 0 | H113: -0.2717674621 | I113: 17:30:00 | J113: 0 | K113: 2.004334529 | S113: 01:20:03.623 | T113: 2018-04-13 | U113: =IFERROR(dawn($F$5,$F$6,YEAR(A113),MONTH(A113),DAY(A113),1,0,18),0) -> 02:33:59.282 | V113: 03:23:38.014 | W113: 04:07:54.030 | X113: 04:43:41.637 | Y113: 11:36:24.676 | Z113: 18:30:15.604 | AA113: 19:06:08.001 | AB113: 19:50:33.502 | AC113: 20:40:30.449 | AM113: 2019-04-13
A114: 2018-04-14 | B114: =IF(IF($D$7=$U$10,U114,IF($D$7=$V$10,V114,IF($D$7=$W$10,W114,IF($D$7=$X$10,X114,X114))))=0,0,IF($D$7=$U$10,U114,IF($D$7=$V$10,V114,IF($D$7=$W$10,W114,IF($D$7=$X$10,X114,X114))))+IF('dane i obliczenia'!$D$2=metadane!$A$2,1/24,0)+IF(AND('dane i obliczenia'!$D$2=metadane!$A$1,A114>$Q$2,A114<$Q$3),1/24,0)) -> 05:41:28.404 | C114: =IF(IF($D$8=$Z$10,Z114,IF($D$8=$AA$10,AA114,IF($D$8=$AB$10,AB114,IF($D$8=$AC$10,AC114,Z114))))+IF('dane i obliczenia'!$D$2=metadane!$A$2,1/24,0)+IF(AND('dane i obliczenia'!$D$2=metadane!$A$1,A114>$Q$2,A114<$Q$3),1/24,0)>0.99999,0.99999,IF($D$8=$Z$10,Z114,IF($D$8=$AA$10,AA114,IF($D$8=$AB$10,AB114,IF($D$8=$AC$10,AC114,Z114))))+IF('dane i obliczenia'!$D$2=metadane!$A$2,1/24,0)+IF(AND('dane i obliczenia'!$D$2=metadane!$A$1,A114>$Q$2,A114<$Q$3),1/24,0)) -> 19:31:59.099 | D114: 06:00:00 | E114: 13.84185981 | F114: 13.53308307 | G114: 0 | H114: -0.3087767381 | I114: 17:30:00 | J114: 0 | K114: 2.033083068 | S114: 01:20:28.678 | T114: 2018-04-14 | U114: =IFERROR(dawn($F$5,$F$6,YEAR(A114),MONTH(A114),DAY(A114),1,0,18),0) -> 02:30:48.962 | V114: 03:20:59.726 | W114: 04:05:32.388 | X114: 04:41:28.404 | Y114: 11:36:09.739 | Z114: 18:31:59.099 | AA114: 19:08:00.091 | AB114: 19:52:42.602 | AC114: 20:43:12.454 | AM114: 2019-04-14
A115: 2018-04-15 | B115: =IF(IF($D$7=$U$10,U115,IF($D$7=$V$10,V115,IF($D$7=$W$10,W115,IF($D$7=$X$10,X115,X115))))=0,0,IF($D$7=$U$10,U115,IF($D$7=$V$10,V115,IF($D$7=$W$10,W115,IF($D$7=$X$10,X115,X115))))+IF('dane i obliczenia'!$D$2=metadane!$A$2,1/24,0)+IF(AND('dane i obliczenia'!$D$2=metadane!$A$1,A115>$Q$2,A115<$Q$3),1/24,0)) -> 05:39:15.846 | C115: =IF(IF($D$8=$Z$10,Z115,IF($D$8=$AA$10,AA115,IF($D$8=$AB$10,AB115,IF($D$8=$AC$10,AC115,Z115))))+IF('dane i obliczenia'!$D$2=metadane!$A$2,1/24,0)+IF(AND('dane i obliczenia'!$D$2=metadane!$A$1,A115>$Q$2,A115<$Q$3),1/24,0)>0.99999,0.99999,IF($D$8=$Z$10,Z115,IF($D$8=$AA$10,AA115,IF($D$8=$AB$10,AB115,IF($D$8=$AC$10,AC115,Z115))))+IF('dane i obliczenia'!$D$2=metadane!$A$2,1/24,0)+IF(AND('dane i obliczenia'!$D$2=metadane!$A$1,A115>$Q$2,A115<$Q$3),1/24,0)) -> 19:33:42.581 | D115: 06:00:00 | E115: 13.90742652 | F115: 13.56182819 | G115: 0 | H115: -0.3455983306 | I115: 17:30:00 | J115: 0 | K115: 2.061828189 | S115: 01:20:54.571 | T115: 2018-04-15 | U115: =IFERROR(dawn($F$5,$F$6,YEAR(A115),MONTH(A115),DAY(A115),1,0,18),0) -> 02:27:37.104 | V115: 03:18:21.275 | W115: 04:03:11.138 | X115: 04:39:15.846 | Y115: 11:35:55.141 | Z115: 18:33:42.581 | AA115: 19:09:52.454 | AB115: 19:54:52.538 | AC115: 20:45:56.718 | AM115: 2019-04-15
A116: 2018-04-16 | B116: =IF(IF($D$7=$U$10,U116,IF($D$7=$V$10,V116,IF($D$7=$W$10,W116,IF($D$7=$X$10,X116,X116))))=0,0,IF($D$7=$U$10,U116,IF($D$7=$V$10,V116,IF($D$7=$W$10,W116,IF($D$7=$X$10,X116,X116))))+IF('dane i obliczenia'!$D$2=metadane!$A$2,1/24,0)+IF(AND('dane i obliczenia'!$D$2=metadane!$A$1,A116>$Q$2,A116<$Q$3),1/24,0)) -> 05:37:03.999 | C116: =IF(IF($D$8=$Z$10,Z116,IF($D$8=$AA$10,AA116,IF($D$8=$AB$10,AB116,IF($D$8=$AC$10,AC116,Z116))))+IF('dane i obliczenia'!$D$2=metadane!$A$2,1/24,0)+IF(AND('dane i obliczenia'!$D$2=metadane!$A$1,A116>$Q$2,A116<$Q$3),1/24,0)>0.99999,0.99999,IF($D$8=$Z$10,Z116,IF($D$8=$AA$10,AA116,IF($D$8=$AB$10,AB116,IF($D$8=$AC$10,AC116,Z116))))+IF('dane i obliczenia'!$D$2=metadane!$A$2,1/24,0)+IF(AND('dane i obliczenia'!$D$2=metadane!$A$1,A116>$Q$2,A116<$Q$3),1/24,0)) -> 19:35:26.046 | D116: 06:00:00 | E116: 13.97279087 | F116: 13.59056836 | G116: 0 | H116: -0.3822225033 | I116: 17:30:00 | J116: 0 | K116: 2.090568363 | S116: 01:21:21.311 | T116: 2018-04-16 | U116: =IFERROR(dawn($F$5,$F$6,YEAR(A116),MONTH(A116),DAY(A116),1,0,18),0) -> 02:24:23.663 | V116: 03:15:42.688 | W116: 04:00:50.314 | X116: 04:37:03.999 | Y116: 11:35:40.896 | Z116: 18:35:26.046 | AA116: 19:11:45.086 | AB116: 19:57:03.314 | AC116: 20:48:43.319 | AM116: 2019-04-16
A117: 2018-04-17 | B117: =IF(IF($D$7=$U$10,U117,IF($D$7=$V$10,V117,IF($D$7=$W$10,W117,IF($D$7=$X$10,X117,X117))))=0,0,IF($D$7=$U$10,U117,IF($D$7=$V$10,V117,IF($D$7=$W$10,W117,IF($D$7=$X$10,X117,X117))))+IF('dane i obliczenia'!$D$2=metadane!$A$2,1/24,0)+IF(AND('dane i obliczenia'!$D$2=metadane!$A$1,A117>$Q$2,A117<$Q$3),1/24,0)) -> 05:34:52.898 | C117: =IF(IF($D$8=$Z$10,Z117,IF($D$8=$AA$10,AA117,IF($D$8=$AB$10,AB117,IF($D$8=$AC$10,AC117,Z117))))+IF('dane i obliczenia'!$D$2=metadane!$A$2,1/24,0)+IF(AND('dane i obliczenia'!$D$2=metadane!$A$1,A117>$Q$2,A117<$Q$3),1/24,0)>0.99999,0.99999,IF($D$8=$Z$10,Z117,IF($D$8=$AA$10,AA117,IF($D$8=$AB$10,AB117,IF($D$8=$AC$10,AC117,Z117))))+IF('dane i obliczenia'!$D$2=metadane!$A$2,1/24,0)+IF(AND('dane i obliczenia'!$D$2=metadane!$A$1,A117>$Q$2,A117<$Q$3),1/24,0)) -> 19:37:09.486 | D117: 06:00:00 | E117: 14.03794109 | F117: 13.61930171 | G117: 0 | H117: -0.4186393775 | I117: 17:30:00 | J117: 0 | K117: 2.119301709 | S117: 01:21:48.909 | T117: 2018-04-17 | U117: =IFERROR(dawn($F$5,$F$6,YEAR(A117),MONTH(A117),DAY(A117),1,0,18),0) -> 02:21:08.588 | V117: 03:13:03.989 | W117: 03:58:29.952 | X117: 04:34:52.898 | Y117: 11:35:27.021 | Z117: 18:37:09.486 | AA117: 19:13:37.979 | AB117: 19:59:14.932 | AC117: 20:51:32.341 | AM117: 2019-04-17
A118: 2018-04-18 | B118: =IF(IF($D$7=$U$10,U118,IF($D$7=$V$10,V118,IF($D$7=$W$10,W118,IF($D$7=$X$10,X118,X118))))=0,0,IF($D$7=$U$10,U118,IF($D$7=$V$10,V118,IF($D$7=$W$10,W118,IF($D$7=$X$10,X118,X118))))+IF('dane i obliczenia'!$D$2=metadane!$A$2,1/24,0)+IF(AND('dane i obliczenia'!$D$2=metadane!$A$1,A118>$Q$2,A118<$Q$3),1/24,0)) -> 05:32:42.580 | C118: =IF(IF($D$8=$Z$10,Z118,IF($D$8=$AA$10,AA118,IF($D$8=$AB$10,AB118,IF($D$8=$AC$10,AC118,Z118))))+IF('dane i obliczenia'!$D$2=metadane!$A$2,1/24,0)+IF(AND('dane i obliczenia'!$D$2=metadane!$A$1,A118>$Q$2,A118<$Q$3),1/24,0)>0.99999,0.99999,IF($D$8=$Z$10,Z118,IF($D$8=$AA$10,AA118,IF($D$8=$AB$10,AB118,IF($D$8=$AC$10,AC118,Z118))))+IF('dane i obliczenia'!$D$2=metadane!$A$2,1/24,0)+IF(AND('dane i obliczenia'!$D$2=metadane!$A$1,A118>$Q$2,A118<$Q$3),1/24,0)) -> 19:38:52.894 | D118: 06:00:00 | E118: 14.10286491 | F118: 13.64802598 | G118: 0 | H118: -0.4548389266 | I118: 17:30:00 | J118: 0 | K118: 2.148025981 | S118: 01:22:17.374 | T118: 2018-04-18 | U118: =IFERROR(dawn($F$5,$F$6,YEAR(A118),MONTH(A118),DAY(A118),1,0,18),0) -> 02:17:51.824 | V118: 03:10:25.206 | W118: 03:56:10.089 | X118: 04:32:42.580 | Y118: 11:35:13.529 | Z118: 18:38:52.894 | AA118: 19:15:31.124 | AB118: 20:01:27.396 | AC118: 20:54:23.873 | AM118: 2019-04-18
A119: 2018-04-19 | B119: =IF(IF($D$7=$U$10,U119,IF($D$7=$V$10,V119,IF($D$7=$W$10,W119,IF($D$7=$X$10,X119,X119))))=0,0,IF($D$7=$U$10,U119,IF($D$7=$V$10,V119,IF($D$7=$W$10,W119,IF($D$7=$X$10,X119,X119))))+IF('dane i obliczenia'!$D$2=metadane!$A$2,1/24,0)+IF(AND('dane i obliczenia'!$D$2=metadane!$A$1,A119>$Q$2,A119<$Q$3),1/24,0)) -> 05:30:33.081 | C119: =IF(IF($D$8=$Z$10,Z119,IF($D$8=$AA$10,AA119,IF($D$8=$AB$10,AB119,IF($D$8=$AC$10,AC119,Z119))))+IF('dane i obliczenia'!$D$2=metadane!$A$2,1/24,0)+IF(AND('dane i obliczenia'!$D$2=metadane!$A$1,A119>$Q$2,A119<$Q$3),1/24,0)>0.99999,0.99999,IF($D$8=$Z$10,Z119,IF($D$8=$AA$10,AA119,IF($D$8=$AB$10,AB119,IF($D$8=$AC$10,AC119,Z119))))+IF('dane i obliczenia'!$D$2=metadane!$A$2,1/24,0)+IF(AND('dane i obliczenia'!$D$2=metadane!$A$1,A119>$Q$2,A119<$Q$3),1/24,0)) -> 19:40:36.259 | D119: 06:00:00 | E119: 14.16754952 | F119: 13.67673855 | G119: 0 | H119: -0.4908109714 | I119: 17:30:00 | J119: 0 | K119: 2.176738552 | S119: 01:22:46.716 | T119: 2018-04-19 | U119: =IFERROR(dawn($F$5,$F$6,YEAR(A119),MONTH(A119),DAY(A119),1,0,18),0) -> 02:14:33.306 | V119: 03:07:46.364 | W119: 03:53:50.761 | X119: 04:30:33.081 | Y119: 11:35:00.434 | Z119: 18:40:36.259 | AA119: 19:17:24.511 | AB119: 20:03:40.706 | AC119: 20:57:18.011 | AM119: 2019-04-19
A120: 2018-04-20 | B120: =IF(IF($D$7=$U$10,U120,IF($D$7=$V$10,V120,IF($D$7=$W$10,W120,IF($D$7=$X$10,X120,X120))))=0,0,IF($D$7=$U$10,U120,IF($D$7=$V$10,V120,IF($D$7=$W$10,W120,IF($D$7=$X$10,X120,X120))))+IF('dane i obliczenia'!$D$2=metadane!$A$2,1/24,0)+IF(AND('dane i obliczenia'!$D$2=metadane!$A$1,A120>$Q$2,A120<$Q$3),1/24,0)) -> 05:28:24.437 | C120: =IF(IF($D$8=$Z$10,Z120,IF($D$8=$AA$10,AA120,IF($D$8=$AB$10,AB120,IF($D$8=$AC$10,AC120,Z120))))+IF('dane i obliczenia'!$D$2=metadane!$A$2,1/24,0)+IF(AND('dane i obliczenia'!$D$2=metadane!$A$1,A120>$Q$2,A120<$Q$3),1/24,0)>0.99999,0.99999,IF($D$8=$Z$10,Z120,IF($D$8=$AA$10,AA120,IF($D$8=$AB$10,AB120,IF($D$8=$AC$10,AC120,Z120))))+IF('dane i obliczenia'!$D$2=metadane!$A$2,1/24,0)+IF(AND('dane i obliczenia'!$D$2=metadane!$A$1,A120>$Q$2,A120<$Q$3),1/24,0)) -> 19:42:19.571 | D120: 06:00:00 | E120: 14.23198158 | F120: 13.7054364 | G120: 0 | H120: -0.5265451745 | I120: 17:30:00 | J120: 0 | K120: 2.205436403 | S120: 01:23:16.946 | T120: 2018-04-20 | U120: =IFERROR(dawn($F$5,$F$6,YEAR(A120),MONTH(A120),DAY(A120),1,0,18),0) -> 02:11:12.965 | V120: 03:05:07.491 | W120: 03:51:32.006 | X120: 04:28:24.437 | Y120: 11:34:47.750 | Z120: 18:42:19.571 | AA120: 19:19:18.129 | AB120: 20:05:54.860 | AC120: 21:00:14.857 | AM120: 2019-04-20
A121: 2018-04-21 | B121: =IF(IF($D$7=$U$10,U121,IF($D$7=$V$10,V121,IF($D$7=$W$10,W121,IF($D$7=$X$10,X121,X121))))=0,0,IF($D$7=$U$10,U121,IF($D$7=$V$10,V121,IF($D$7=$W$10,W121,IF($D$7=$X$10,X121,X121))))+IF('dane i obliczenia'!$D$2=metadane!$A$2,1/24,0)+IF(AND('dane i obliczenia'!$D$2=metadane!$A$1,A121>$Q$2,A121<$Q$3),1/24,0)) -> 05:26:16.688 | C121: =IF(IF($D$8=$Z$10,Z121,IF($D$8=$AA$10,AA121,IF($D$8=$AB$10,AB121,IF($D$8=$AC$10,AC121,Z121))))+IF('dane i obliczenia'!$D$2=metadane!$A$2,1/24,0)+IF(AND('dane i obliczenia'!$D$2=metadane!$A$1,A121>$Q$2,A121<$Q$3),1/24,0)>0.99999,0.99999,IF($D$8=$Z$10,Z121,IF($D$8=$AA$10,AA121,IF($D$8=$AB$10,AB121,IF($D$8=$AC$10,AC121,Z121))))+IF('dane i obliczenia'!$D$2=metadane!$A$2,1/24,0)+IF(AND('dane i obliczenia'!$D$2=metadane!$A$1,A121>$Q$2,A121<$Q$3),1/24,0)) -> 19:44:02.818 | D121: 06:00:00 | E121: 14.29614714 | F121: 13.73411611 | G121: 0 | H121: -0.5620310362 | I121: 17:30:00 | J121: 0 | K121: 2.234116108 | S121: 01:23:48.073 | T121: 2018-04-21 | U121: =IFERROR(dawn($F$5,$F$6,YEAR(A121),MONTH(A121),DAY(A121),1,0,18),0) -> 02:07:50.723 | V121: 03:02:28.615 | W121: 03:49:13.865 | X121: 04:26:16.688 | Y121: 11:34:35.490 | Z121: 18:44:02.818 | AA121: 19:21:11.963 | AB121: 20:08:09.856 | AC121: 21:03:14.521 | AM121: 2019-04-21
A122: 2018-04-22 | B122: =IF(IF($D$7=$U$10,U122,IF($D$7=$V$10,V122,IF($D$7=$W$10,W122,IF($D$7=$X$10,X122,X122))))=0,0,IF($D$7=$U$10,U122,IF($D$7=$V$10,V122,IF($D$7=$W$10,W122,IF($D$7=$X$10,X122,X122))))+IF('dane i obliczenia'!$D$2=metadane!$A$2,1/24,0)+IF(AND('dane i obliczenia'!$D$2=metadane!$A$1,A122>$Q$2,A122<$Q$3),1/24,0)) -> 05:24:09.872 | C122: =IF(IF($D$8=$Z$10,Z122,IF($D$8=$AA$10,AA122,IF($D$8=$AB$10,AB122,IF($D$8=$AC$10,AC122,Z122))))+IF('dane i obliczenia'!$D$2=metadane!$A$2,1/24,0)+IF(AND('dane i obliczenia'!$D$2=metadane!$A$1,A122>$Q$2,A122<$Q$3),1/24,0)>0.99999,0.99999,IF($D$8=$Z$10,Z122,IF($D$8=$AA$10,AA122,IF($D$8=$AB$10,AB122,IF($D$8=$AC$10,AC122,Z122))))+IF('dane i obliczenia'!$D$2=metadane!$A$2,1/24,0)+IF(AND('dane i obliczenia'!$D$2=metadane!$A$1,A122>$Q$2,A122<$Q$3),1/24,0)) -> 19:45:45.986 | D122: 06:00:00 | E122: 14.36003171 | F122: 13.76277382 | G122: 0 | H122: -0.5972578902 | I122: 17:30:00 | J122: 0 | K122: 2.262773819 | S122: 01:24:20.107 | T122: 2018-04-22 | U122: =IFERROR(dawn($F$5,$F$6,YEAR(A122),MONTH(A122),DAY(A122),1,0,18),0) -> 02:04:26.491 | V122: 02:59:49.765 | W122: 03:46:56.376 | X122: 04:24:09.872 | Y122: 11:34:23.667 | Z122: 18:45:45.986 | AA122: 19:23:05.999 | AB122: 20:10:25.689 | AC122: 21:06:17.122 | AM122: 2019-04-22
A123: 2018-04-23 | B123: =IF(IF($D$7=$U$10,U123,IF($D$7=$V$10,V123,IF($D$7=$W$10,W123,IF($D$7=$X$10,X123,X123))))=0,0,IF($D$7=$U$10,U123,IF($D$7=$V$10,V123,IF($D$7=$W$10,W123,IF($D$7=$X$10,X123,X123))))+IF('dane i obliczenia'!$D$2=metadane!$A$2,1/24,0)+IF(AND('dane i obliczenia'!$D$2=metadane!$A$1,A123>$Q$2,A123<$Q$3),1/24,0)) -> 05:22:04.026 | C123: =IF(IF($D$8=$Z$10,Z123,IF($D$8=$AA$10,AA123,IF($D$8=$AB$10,AB123,IF($D$8=$AC$10,AC123,Z123))))+IF('dane i obliczenia'!$D$2=metadane!$A$2,1/24,0)+IF(AND('dane i obliczenia'!$D$2=metadane!$A$1,A123>$Q$2,A123<$Q$3),1/24,0)>0.99999,0.99999,IF($D$8=$Z$10,Z123,IF($D$8=$AA$10,AA123,IF($D$8=$AB$10,AB123,IF($D$8=$AC$10,AC123,Z123))))+IF('dane i obliczenia'!$D$2=metadane!$A$2,1/24,0)+IF(AND('dane i obliczenia'!$D$2=metadane!$A$1,A123>$Q$2,A123<$Q$3),1/24,0)) -> 19:47:29.059 | D123: 06:00:00 | E123: 14.42362016 | F123: 13.79140526 | G123: 0 | H123: -0.6322148992 | I123: 17:30:00 | J123: 0 | K123: 2.291405256 | S123: 01:24:53.056 | T123: 2018-04-23 | U123: =IFERROR(dawn($F$5,$F$6,YEAR(A123),MONTH(A123),DAY(A123),1,0,18),0) -> 02:01:00.173 | V123: 02:57:10.970 | W123: 03:44:39.579 | X123: 04:22:04.026 | Y123: 11:34:12.293 | Z123: 18:47:29.059 | AA123: 19:25:00.218 | AB123: 20:12:42.354 | AC123: 21:09:22.791 | AM123: 2019-04-23
A124: 2018-04-24 | B124: =IF(IF($D$7=$U$10,U124,IF($D$7=$V$10,V124,IF($D$7=$W$10,W124,IF($D$7=$X$10,X124,X124))))=0,0,IF($D$7=$U$10,U124,IF($D$7=$V$10,V124,IF($D$7=$W$10,W124,IF($D$7=$X$10,X124,X124))))+IF('dane i obliczenia'!$D$2=metadane!$A$2,1/24,0)+IF(AND('dane i obliczenia'!$D$2=metadane!$A$1,A124>$Q$2,A124<$Q$3),1/24,0)) -> 05:19:59.192 | C124: =IF(IF($D$8=$Z$10,Z124,IF($D$8=$AA$10,AA124,IF($D$8=$AB$10,AB124,IF($D$8=$AC$10,AC124,Z124))))+IF('dane i obliczenia'!$D$2=metadane!$A$2,1/24,0)+IF(AND('dane i obliczenia'!$D$2=metadane!$A$1,A124>$Q$2,A124<$Q$3),1/24,0)>0.99999,0.99999,IF($D$8=$Z$10,Z124,IF($D$8=$AA$10,AA124,IF($D$8=$AB$10,AB124,IF($D$8=$AC$10,AC124,Z124))))+IF('dane i obliczenia'!$D$2=metadane!$A$2,1/24,0)+IF(AND('dane i obliczenia'!$D$2=metadane!$A$1,A124>$Q$2,A124<$Q$3),1/24,0)) -> 19:49:12.020 | D124: 06:00:00 | E124: 14.48689674 | F124: 13.82000569 | G124: 0 | H124: -0.6668910518 | I124: 17:30:00 | J124: 0 | K124: 2.320005691 | S124: 01:25:26.931 | T124: 2018-04-24 | U124: =IFERROR(dawn($F$5,$F$6,YEAR(A124),MONTH(A124),DAY(A124),1,0,18),0) -> 01:57:31.658 | V124: 02:54:32.262 | W124: 03:42:23.517 | X124: 04:19:59.192 | Y124: 11:34:01.379 | Z124: 18:49:12.020 | AA124: 19:26:54.603 | AB124: 20:14:59.842 | AC124: 21:12:31.667 | AM124: 2019-04-24
A125: 2018-04-25 | B125: =IF(IF($D$7=$U$10,U125,IF($D$7=$V$10,V125,IF($D$7=$W$10,W125,IF($D$7=$X$10,X125,X125))))=0,0,IF($D$7=$U$10,U125,IF($D$7=$V$10,V125,IF($D$7=$W$10,W125,IF($D$7=$X$10,X125,X125))))+IF('dane i obliczenia'!$D$2=metadane!$A$2,1/24,0)+IF(AND('dane i obliczenia'!$D$2=metadane!$A$1,A125>$Q$2,A125<$Q$3),1/24,0)) -> 05:17:55.409 | C125: =IF(IF($D$8=$Z$10,Z125,IF($D$8=$AA$10,AA125,IF($D$8=$AB$10,AB125,IF($D$8=$AC$10,AC125,Z125))))+IF('dane i obliczenia'!$D$2=metadane!$A$2,1/24,0)+IF(AND('dane i obliczenia'!$D$2=metadane!$A$1,A125>$Q$2,A125<$Q$3),1/24,0)>0.99999,0.99999,IF($D$8=$Z$10,Z125,IF($D$8=$AA$10,AA125,IF($D$8=$AB$10,AB125,IF($D$8=$AC$10,AC125,Z125))))+IF('dane i obliczenia'!$D$2=metadane!$A$2,1/24,0)+IF(AND('dane i obliczenia'!$D$2=metadane!$A$1,A125>$Q$2,A125<$Q$3),1/24,0)) -> 19:50:54.852 | D125: 06:00:00 | E125: 14.5498451 | F125: 13.84856994 | G125: 0 | H125: -0.7012751591 | I125: 17:30:00 | J125: 0 | K125: 2.348569937 | S125: 01:26:01.739 | T125: 2018-04-25 | U125: =IFERROR(dawn($F$5,$F$6,YEAR(A125),MONTH(A125),DAY(A125),1,0,18),0) -> 01:54:00.824 | V125: 02:51:53.671 | W125: 03:40:08.233 | X125: 04:17:55.409 | Y125: 11:33:50.938 | Z125: 18:50:54.852 | AA125: 19:28:49.131 | AB125: 20:17:18.143 | AC125: 21:15:43.908 | AM125: 2019-04-25
A126: 2018-04-26 | B126: =IF(IF($D$7=$U$10,U126,IF($D$7=$V$10,V126,IF($D$7=$W$10,W126,IF($D$7=$X$10,X126,X126))))=0,0,IF($D$7=$U$10,U126,IF($D$7=$V$10,V126,IF($D$7=$W$10,W126,IF($D$7=$X$10,X126,X126))))+IF('dane i obliczenia'!$D$2=metadane!$A$2,1/24,0)+IF(AND('dane i obliczenia'!$D$2=metadane!$A$1,A126>$Q$2,A126<$Q$3),1/24,0)) -> 05:15:52.719 | C126: =IF(IF($D$8=$Z$10,Z126,IF($D$8=$AA$10,AA126,IF($D$8=$AB$10,AB126,IF($D$8=$AC$10,AC126,Z126))))+IF('dane i obliczenia'!$D$2=metadane!$A$2,1/24,0)+IF(AND('dane i obliczenia'!$D$2=metadane!$A$1,A126>$Q$2,A126<$Q$3),1/24,0)>0.99999,0.99999,IF($D$8=$Z$10,Z126,IF($D$8=$AA$10,AA126,IF($D$8=$AB$10,AB126,IF($D$8=$AC$10,AC126,Z126))))+IF('dane i obliczenia'!$D$2=metadane!$A$2,1/24,0)+IF(AND('dane i obliczenia'!$D$2=metadane!$A$1,A126>$Q$2,A126<$Q$3),1/24,0)) -> 19:52:37.532 | D126: 06:00:00 | E126: 14.61244819 | F126: 13.87709233 | G126: 0 | H126: -0.7353558518 | I126: 17:30:00 | J126: 0 | K126: 2.377092334 | S126: 01:26:37.489 | T126: 2018-04-26 | U126: =IFERROR(dawn($F$5,$F$6,YEAR(A126),MONTH(A126),DAY(A126),1,0,18),0) -> 01:50:27.532 | V126: 02:49:15.230 | W126: 03:37:53.769 | X126: 04:15:52.719 | Y126: 11:33:40.980 | Z126: 18:52:37.532 | AA126: 19:30:43.780 | AB126: 20:19:37.245 | AC126: 21:18:59.684 | AM126: 2019-04-26
A127: 2018-04-27 | B127: =IF(IF($D$7=$U$10,U127,IF($D$7=$V$10,V127,IF($D$7=$W$10,W127,IF($D$7=$X$10,X127,X127))))=0,0,IF($D$7=$U$10,U127,IF($D$7=$V$10,V127,IF($D$7=$W$10,W127,IF($D$7=$X$10,X127,X127))))+IF('dane i obliczenia'!$D$2=metadane!$A$2,1/24,0)+IF(AND('dane i obliczenia'!$D$2=metadane!$A$1,A127>$Q$2,A127<$Q$3),1/24,0)) -> 05:13:51.162 | C127: =IF(IF($D$8=$Z$10,Z127,IF($D$8=$AA$10,AA127,IF($D$8=$AB$10,AB127,IF($D$8=$AC$10,AC127,Z127))))+IF('dane i obliczenia'!$D$2=metadane!$A$2,1/24,0)+IF(AND('dane i obliczenia'!$D$2=metadane!$A$1,A127>$Q$2,A127<$Q$3),1/24,0)>0.99999,0.99999,IF($D$8=$Z$10,Z127,IF($D$8=$AA$10,AA127,IF($D$8=$AB$10,AB127,IF($D$8=$AC$10,AC127,Z127))))+IF('dane i obliczenia'!$D$2=metadane!$A$2,1/24,0)+IF(AND('dane i obliczenia'!$D$2=metadane!$A$1,A127>$Q$2,A127<$Q$3),1/24,0)) -> 19:54:20.040 | D127: 06:00:00 | E127: 14.67468832 | F127: 13.90556674 | G127: 0 | H127: -0.7691215785 | I127: 17:30:00 | J127: 0 | K127: 2.405566738 | S127: 01:27:14.189 | T127: 2018-04-27 | U127: =IFERROR(dawn($F$5,$F$6,YEAR(A127),MONTH(A127),DAY(A127),1,0,18),0) -> 01:46:51.625 | V127: 02:46:36.973 | W127: 03:35:40.170 | X127: 04:13:51.162 | Y127: 11:33:31.515 | Z127: 18:54:20.040 | AA127: 19:32:38.523 | AB127: 20:21:57.132 | AC127: 21:22:19.186 | AM127: 2019-04-27
A128: 2018-04-28 | B128: =IF(IF($D$7=$U$10,U128,IF($D$7=$V$10,V128,IF($D$7=$W$10,W128,IF($D$7=$X$10,X128,X128))))=0,0,IF($D$7=$U$10,U128,IF($D$7=$V$10,V128,IF($D$7=$W$10,W128,IF($D$7=$X$10,X128,X128))))+IF('dane i obliczenia'!$D$2=metadane!$A$2,1/24,0)+IF(AND('dane i obliczenia'!$D$2=metadane!$A$1,A128>$Q$2,A128<$Q$3),1/24,0)) -> 05:11:50.782 | C128: =IF(IF($D$8=$Z$10,Z128,IF($D$8=$AA$10,AA128,IF($D$8=$AB$10,AB128,IF($D$8=$AC$10,AC128,Z128))))+IF('dane i obliczenia'!$D$2=metadane!$A$2,1/24,0)+IF(AND('dane i obliczenia'!$D$2=metadane!$A$1,A128>$Q$2,A128<$Q$3),1/24,0)>0.99999,0.99999,IF($D$8=$Z$10,Z128,IF($D$8=$AA$10,AA128,IF($D$8=$AB$10,AB128,IF($D$8=$AC$10,AC128,Z128))))+IF('dane i obliczenia'!$D$2=metadane!$A$2,1/24,0)+IF(AND('dane i obliczenia'!$D$2=metadane!$A$1,A128>$Q$2,A128<$Q$3),1/24,0)) -> 19:56:02.351 | D128: 06:00:00 | E128: 14.73654711 | F128: 13.93398651 | G128: 0 | H128: -0.8025606028 | I128: 17:30:00 | J128: 0 | K128: 2.433986512 | S128: 01:27:51.846 | T128: 2018-04-28 | U128: =IFERROR(dawn($F$5,$F$6,YEAR(A128),MONTH(A128),DAY(A128),1,0,18),0) -> 01:43:12.926 | V128: 02:43:58.936 | W128: 03:33:27.483 | X128: 04:11:50.782 | Y128: 11:33:22.552 | Z128: 18:56:02.351 | AA128: 19:34:33.334 | AB128: 20:24:17.788 | AC128: 21:25:42.625 | AM128: 2019-04-28
A129: 2018-04-29 | B129: =IF(IF($D$7=$U$10,U129,IF($D$7=$V$10,V129,IF($D$7=$W$10,W129,IF($D$7=$X$10,X129,X129))))=0,0,IF($D$7=$U$10,U129,IF($D$7=$V$10,V129,IF($D$7=$W$10,W129,IF($D$7=$X$10,X129,X129))))+IF('dane i obliczenia'!$D$2=metadane!$A$2,1/24,0)+IF(AND('dane i obliczenia'!$D$2=metadane!$A$1,A129>$Q$2,A129<$Q$3),1/24,0)) -> 05:09:51.620 | C129: =IF(IF($D$8=$Z$10,Z129,IF($D$8=$AA$10,AA129,IF($D$8=$AB$10,AB129,IF($D$8=$AC$10,AC129,Z129))))+IF('dane i obliczenia'!$D$2=metadane!$A$2,1/24,0)+IF(AND('dane i obliczenia'!$D$2=metadane!$A$1,A129>$Q$2,A129<$Q$3),1/24,0)>0.99999,0.99999,IF($D$8=$Z$10,Z129,IF($D$8=$AA$10,AA129,IF($D$8=$AB$10,AB129,IF($D$8=$AC$10,AC129,Z129))))+IF('dane i obliczenia'!$D$2=metadane!$A$2,1/24,0)+IF(AND('dane i obliczenia'!$D$2=metadane!$A$1,A129>$Q$2,A129<$Q$3),1/24,0)) -> 19:57:44.440 | D129: 06:00:00 | E129: 14.79800551 | F129: 13.96234451 | G129: 0 | H129: -0.8356610031 | I129: 17:30:00 | J129: 0 | K129: 2.462344508 | S129: 01:28:30.466 | T129: 2018-04-29 | U129: =IFERROR(dawn($F$5,$F$6,YEAR(A129),MONTH(A129),DAY(A129),1,0,18),0) -> 01:39:31.233 | V129: 02:41:21.154 | W129: 03:31:15.753 | X129: 04:09:51.620 | Y129: 11:33:14.102 | Z129: 18:57:44.440 | AA129: 19:36:28.182 | AB129: 20:26:39.193 | AC129: 21:29:10.241 | AM129: 2019-04-29
A130: 2018-04-30 | B130: =IF(IF($D$7=$U$10,U130,IF($D$7=$V$10,V130,IF($D$7=$W$10,W130,IF($D$7=$X$10,X130,X130))))=0,0,IF($D$7=$U$10,U130,IF($D$7=$V$10,V130,IF($D$7=$W$10,W130,IF($D$7=$X$10,X130,X130))))+IF('dane i obliczenia'!$D$2=metadane!$A$2,1/24,0)+IF(AND('dane i obliczenia'!$D$2=metadane!$A$1,A130>$Q$2,A130<$Q$3),1/24,0)) -> 05:07:53.722 | C130: =IF(IF($D$8=$Z$10,Z130,IF($D$8=$AA$10,AA130,IF($D$8=$AB$10,AB130,IF($D$8=$AC$10,AC130,Z130))))+IF('dane i obliczenia'!$D$2=metadane!$A$2,1/24,0)+IF(AND('dane i obliczenia'!$D$2=metadane!$A$1,A130>$Q$2,A130<$Q$3),1/24,0)>0.99999,0.99999,IF($D$8=$Z$10,Z130,IF($D$8=$AA$10,AA130,IF($D$8=$AB$10,AB130,IF($D$8=$AC$10,AC130,Z130))))+IF('dane i obliczenia'!$D$2=metadane!$A$2,1/24,0)+IF(AND('dane i obliczenia'!$D$2=metadane!$A$1,A130>$Q$2,A130<$Q$3),1/24,0)) -> 19:59:26.279 | D130: 06:00:00 | E130: 14.85904374 | F130: 13.99063306 | G130: 0 | H130: -0.8684106715 | I130: 17:30:00 | J130: 0 | K130: 2.490633065 | S130: 01:29:10.056 | T130: 2018-04-30 | U130: =IFERROR(dawn($F$5,$F$6,YEAR(A130),MONTH(A130),DAY(A130),1,0,18),0) -> 01:35:46.315 | V130: 02:38:43.666 | W130: 03:29:05.030 | X130: 04:07:53.722 | Y130: 11:33:06.172 | Z130: 18:59:26.279 | AA130: 19:38:23.035 | AB130: 20:29:01.325 | AC130: 21:32:42.303 | AM130: 2019-04-30
A131: 2018-05-01 | B131: =IF(IF($D$7=$U$10,U131,IF($D$7=$V$10,V131,IF($D$7=$W$10,W131,IF($D$7=$X$10,X131,X131))))=0,0,IF($D$7=$U$10,U131,IF($D$7=$V$10,V131,IF($D$7=$W$10,W131,IF($D$7=$X$10,X131,X131))))+IF('dane i obliczenia'!$D$2=metadane!$A$2,1/24,0)+IF(AND('dane i obliczenia'!$D$2=metadane!$A$1,A131>$Q$2,A131<$Q$3),1/24,0)) -> 05:05:57.130 | C131: =IF(IF($D$8=$Z$10,Z131,IF($D$8=$AA$10,AA131,IF($D$8=$AB$10,AB131,IF($D$8=$AC$10,AC131,Z131))))+IF('dane i obliczenia'!$D$2=metadane!$A$2,1/24,0)+IF(AND('dane i obliczenia'!$D$2=metadane!$A$1,A131>$Q$2,A131<$Q$3),1/24,0)>0.99999,0.99999,IF($D$8=$Z$10,Z131,IF($D$8=$AA$10,AA131,IF($D$8=$AB$10,AB131,IF($D$8=$AC$10,AC131,Z131))))+IF('dane i obliczenia'!$D$2=metadane!$A$2,1/24,0)+IF(AND('dane i obliczenia'!$D$2=metadane!$A$1,A131>$Q$2,A131<$Q$3),1/24,0)) -> 20:01:07.838 | D131: 06:00:00 | E131: 14.91964131 | F131: 14.018844 | G131: 0 | H131: -0.9007973134 | I131: 17:30:00 | J131: 0 | K131: 2.518843996 | S131: 01:29:50.620 | T131: 2018-05-01 | U131: =IFERROR(dawn($F$5,$F$6,YEAR(A131),MONTH(A131),DAY(A131),1,0,18),0) -> 01:31:57.905 | V131: 02:36:06.510 | W131: 03:26:55.361 | X131: 04:05:57.130 | Y131: 11:32:58.771 | Z131: 19:01:07.838 | AA131: 19:40:17.858 | AB131: 20:31:24.159 | AC131: 21:36:19.120 | AM131: 2019-05-01
A132: 2018-05-02 | B132: =IF(IF($D$7=$U$10,U132,IF($D$7=$V$10,V132,IF($D$7=$W$10,W132,IF($D$7=$X$10,X132,X132))))=0,0,IF($D$7=$U$10,U132,IF($D$7=$V$10,V132,IF($D$7=$W$10,W132,IF($D$7=$X$10,X132,X132))))+IF('dane i obliczenia'!$D$2=metadane!$A$2,1/24,0)+IF(AND('dane i obliczenia'!$D$2=metadane!$A$1,A132>$Q$2,A132<$Q$3),1/24,0)) -> 05:04:01.890 | C132: =IF(IF($D$8=$Z$10,Z132,IF($D$8=$AA$10,AA132,IF($D$8=$AB$10,AB132,IF($D$8=$AC$10,AC132,Z132))))+IF('dane i obliczenia'!$D$2=metadane!$A$2,1/24,0)+IF(AND('dane i obliczenia'!$D$2=metadane!$A$1,A132>$Q$2,A132<$Q$3),1/24,0)>0.99999,0.99999,IF($D$8=$Z$10,Z132,IF($D$8=$AA$10,AA132,IF($D$8=$AB$10,AB132,IF($D$8=$AC$10,AC132,Z132))))+IF('dane i obliczenia'!$D$2=metadane!$A$2,1/24,0)+IF(AND('dane i obliczenia'!$D$2=metadane!$A$1,A132>$Q$2,A132<$Q$3),1/24,0)) -> 20:02:49.087 | D132: 06:00:00 | E132: 14.97977703 | F132: 14.04696858 | G132: 0 | H132: -0.932808449 | I132: 17:30:00 | J132: 0 | K132: 2.546968577 | S132: 01:30:32.162 | T132: 2018-05-02 | U132: =IFERROR(dawn($F$5,$F$6,YEAR(A132),MONTH(A132),DAY(A132),1,0,18),0) -> 01:28:05.698 | V132: 02:33:29.727 | W132: 03:24:46.798 | X132: 04:04:01.890 | Y132: 11:32:51.905 | Z132: 19:02:49.087 | AA132: 19:42:12.613 | AB132: 20:33:47.665 | AC132: 21:40:01.044 | AM132: 2019-05-02
A133: 2018-05-03 | B133: =IF(IF($D$7=$U$10,U133,IF($D$7=$V$10,V133,IF($D$7=$W$10,W133,IF($D$7=$X$10,X133,X133))))=0,0,IF($D$7=$U$10,U133,IF($D$7=$V$10,V133,IF($D$7=$W$10,W133,IF($D$7=$X$10,X133,X133))))+IF('dane i obliczenia'!$D$2=metadane!$A$2,1/24,0)+IF(AND('dane i obliczenia'!$D$2=metadane!$A$1,A133>$Q$2,A133<$Q$3),1/24,0)) -> 05:02:08.047 | C133: =IF(IF($D$8=$Z$10,Z133,IF($D$8=$AA$10,AA133,IF($D$8=$AB$10,AB133,IF($D$8=$AC$10,AC133,Z133))))+IF('dane i obliczenia'!$D$2=metadane!$A$2,1/24,0)+IF(AND('dane i obliczenia'!$D$2=metadane!$A$1,A133>$Q$2,A133<$Q$3),1/24,0)>0.99999,0.99999,IF($D$8=$Z$10,Z133,IF($D$8=$AA$10,AA133,IF($D$8=$AB$10,AB133,IF($D$8=$AC$10,AC133,Z133))))+IF('dane i obliczenia'!$D$2=metadane!$A$2,1/24,0)+IF(AND('dane i obliczenia'!$D$2=metadane!$A$1,A133>$Q$2,A133<$Q$3),1/24,0)) -> 20:04:29.991 | D133: 06:00:00 | E133: 15.03942896 | F133: 14.07499755 | G133: 0 | H133: -0.9644314136 | I133: 17:30:00 | J133: 0 | K133: 2.574997546 | S133: 01:31:14.685 | T133: 2018-05-03 | U133: =IFERROR(dawn($F$5,$F$6,YEAR(A133),MONTH(A133),DAY(A133),1,0,18),0) -> 01:24:09.335 | V133: 02:30:53.362 | W133: 03:22:39.392 | X133: 04:02:08.047 | Y133: 11:32:45.582 | Z133: 19:04:29.991 | AA133: 19:44:07.261 | AB133: 20:36:11.814 | AC133: 21:43:48.485 | AM133: 2019-05-03
A134: 2018-05-04 | B134: =IF(IF($D$7=$U$10,U134,IF($D$7=$V$10,V134,IF($D$7=$W$10,W134,IF($D$7=$X$10,X134,X134))))=0,0,IF($D$7=$U$10,U134,IF($D$7=$V$10,V134,IF($D$7=$W$10,W134,IF($D$7=$X$10,X134,X134))))+IF('dane i obliczenia'!$D$2=metadane!$A$2,1/24,0)+IF(AND('dane i obliczenia'!$D$2=metadane!$A$1,A134>$Q$2,A134<$Q$3),1/24,0)) -> 05:00:15.648 | C134: =IF(IF($D$8=$Z$10,Z134,IF($D$8=$AA$10,AA134,IF($D$8=$AB$10,AB134,IF($D$8=$AC$10,AC134,Z134))))+IF('dane i obliczenia'!$D$2=metadane!$A$2,1/24,0)+IF(AND('dane i obliczenia'!$D$2=metadane!$A$1,A134>$Q$2,A134<$Q$3),1/24,0)>0.99999,0.99999,IF($D$8=$Z$10,Z134,IF($D$8=$AA$10,AA134,IF($D$8=$AB$10,AB134,IF($D$8=$AC$10,AC134,Z134))))+IF('dane i obliczenia'!$D$2=metadane!$A$2,1/24,0)+IF(AND('dane i obliczenia'!$D$2=metadane!$A$1,A134>$Q$2,A134<$Q$3),1/24,0)) -> 20:06:10.516 | D134: 06:00:00 | E134: 15.09857445 | F134: 14.10292109 | G134: 0 | H134: -0.9956533607 | I134: 17:30:00 | J134: 0 | K134: 2.602921089 | S134: 01:31:58.190 | T134: 2018-05-04 | U134: =IFERROR(dawn($F$5,$F$6,YEAR(A134),MONTH(A134),DAY(A134),1,0,18),0) -> 01:20:08.399 | V134: 02:28:17.458 | W134: 03:20:33.197 | X134: 04:00:15.648 | Y134: 11:32:39.807 | Z134: 19:06:10.516 | AA134: 19:46:01.759 | AB134: 20:38:36.569 | AC134: 21:47:41.922 | AM134: 2019-05-04
A135: 2018-05-05 | B135: =IF(IF($D$7=$U$10,U135,IF($D$7=$V$10,V135,IF($D$7=$W$10,W135,IF($D$7=$X$10,X135,X135))))=0,0,IF($D$7=$U$10,U135,IF($D$7=$V$10,V135,IF($D$7=$W$10,W135,IF($D$7=$X$10,X135,X135))))+IF('dane i obliczenia'!$D$2=metadane!$A$2,1/24,0)+IF(AND('dane i obliczenia'!$D$2=metadane!$A$1,A135>$Q$2,A135<$Q$3),1/24,0)) -> 04:58:24.739 | C135: =IF(IF($D$8=$Z$10,Z135,IF($D$8=$AA$10,AA135,IF($D$8=$AB$10,AB135,IF($D$8=$AC$10,AC135,Z135))))+IF('dane i obliczenia'!$D$2=metadane!$A$2,1/24,0)+IF(AND('dane i obliczenia'!$D$2=metadane!$A$1,A135>$Q$2,A135<$Q$3),1/24,0)>0.99999,0.99999,IF($D$8=$Z$10,Z135,IF($D$8=$AA$10,AA135,IF($D$8=$AB$10,AB135,IF($D$8=$AC$10,AC135,Z135))))+IF('dane i obliczenia'!$D$2=metadane!$A$2,1/24,0)+IF(AND('dane i obliczenia'!$D$2=metadane!$A$1,A135>$Q$2,A135<$Q$3),1/24,0)) -> 20:07:50.624 | D135: 06:00:00 | E135: 15.1571901 | F135: 14.13072884 | G135: 0 | H135: -1.026461264 | I135: 17:30:00 | J135: 0 | K135: 2.630728839 | S135: 01:32:42.678 | T135: 2018-05-05 | U135: =IFERROR(dawn($F$5,$F$6,YEAR(A135),MONTH(A135),DAY(A135),1,0,18),0) -> 01:16:02.393 | V135: 02:25:42.062 | W135: 03:18:28.266 | X135: 03:58:24.739 | Y135: 11:32:34.586 | Z135: 19:07:50.624 | AA135: 19:47:56.062 | AB135: 20:41:01.893 | AC135: 21:51:41.920 | AM135: 2019-05-05
A136: 2018-05-06 | B136: =IF(IF($D$7=$U$10,U136,IF($D$7=$V$10,V136,IF($D$7=$W$10,W136,IF($D$7=$X$10,X136,X136))))=0,0,IF($D$7=$U$10,U136,IF($D$7=$V$10,V136,IF($D$7=$W$10,W136,IF($D$7=$X$10,X136,X136))))+IF('dane i obliczenia'!$D$2=metadane!$A$2,1/24,0)+IF(AND('dane i obliczenia'!$D$2=metadane!$A$1,A136>$Q$2,A136<$Q$3),1/24,0)) -> 04:56:35.369 | C136: =IF(IF($D$8=$Z$10,Z136,IF($D$8=$AA$10,AA136,IF($D$8=$AB$10,AB136,IF($D$8=$AC$10,AC136,Z136))))+IF('dane i obliczenia'!$D$2=metadane!$A$2,1/24,0)+IF(AND('dane i obliczenia'!$D$2=metadane!$A$1,A136>$Q$2,A136<$Q$3),1/24,0)>0.99999,0.99999,IF($D$8=$Z$10,Z136,IF($D$8=$AA$10,AA136,IF($D$8=$AB$10,AB136,IF($D$8=$AC$10,AC136,Z136))))+IF('dane i obliczenia'!$D$2=metadane!$A$2,1/24,0)+IF(AND('dane i obliczenia'!$D$2=metadane!$A$1,A136>$Q$2,A136<$Q$3),1/24,0)) -> 20:09:30.276 | D136: 06:00:00 | E136: 15.21525179 | F136: 14.15840987 | G136: 0 | H136: -1.056841923 | I136: 17:30:00 | J136: 0 | K136: 2.658409872 | S136: 01:33:28.146 | T136: 2018-05-06 | U136: =IFERROR(dawn($F$5,$F$6,YEAR(A136),MONTH(A136),DAY(A136),1,0,18),0) -> 01:11:50.729 | V136: 02:23:07.223 | W136: 03:16:24.656 | X136: 03:56:35.369 | Y136: 11:32:29.924 | Z136: 19:09:30.276 | AA136: 19:49:50.122 | AB136: 20:43:27.743 | AC136: 21:55:49.158 | AM136: 2019-05-06
A137: 2018-05-07 | B137: =IF(IF($D$7=$U$10,U137,IF($D$7=$V$10,V137,IF($D$7=$W$10,W137,IF($D$7=$X$10,X137,X137))))=0,0,IF($D$7=$U$10,U137,IF($D$7=$V$10,V137,IF($D$7=$W$10,W137,IF($D$7=$X$10,X137,X137))))+IF('dane i obliczenia'!$D$2=metadane!$A$2,1/24,0)+IF(AND('dane i obliczenia'!$D$2=metadane!$A$1,A137>$Q$2,A137<$Q$3),1/24,0)) -> 04:54:47.585 | C137: =IF(IF($D$8=$Z$10,Z137,IF($D$8=$AA$10,AA137,IF($D$8=$AB$10,AB137,IF($D$8=$AC$10,AC137,Z137))))+IF('dane i obliczenia'!$D$2=metadane!$A$2,1/24,0)+IF(AND('dane i obliczenia'!$D$2=metadane!$A$1,A137>$Q$2,A137<$Q$3),1/24,0)>0.99999,0.99999,IF($D$8=$Z$10,Z137,IF($D$8=$AA$10,AA137,IF($D$8=$AB$10,AB137,IF($D$8=$AC$10,AC137,Z137))))+IF('dane i obliczenia'!$D$2=metadane!$A$2,1/24,0)+IF(AND('dane i obliczenia'!$D$2=metadane!$A$1,A137>$Q$2,A137<$Q$3),1/24,0)) -> 20:11:09.430 | D137: 06:00:00 | E137: 15.27273467 | F137: 14.1859527 | G137: 0 | H137: -1.086781965 | I137: 17:30:00 | J137: 0 | K137: 2.685952701 | S137: 01:34:14.592 | T137: 2018-05-07 | U137: =IFERROR(dawn($F$5,$F$6,YEAR(A137),MONTH(A137),DAY(A137),1,0,18),0) -> 01:07:32.694 | V137: 02:20:32.993 | W137: 03:14:22.423 | X137: 03:54:47.585 | Y137: 11:32:25.824 | Z137: 19:11:09.430 | AA137: 19:51:43.888 | AB137: 20:45:54.074 | AC137: 22:00:04.454 | AM137: 2019-05-07
A138: 2018-05-08 | B138: =IF(IF($D$7=$U$10,U138,IF($D$7=$V$10,V138,IF($D$7=$W$10,W138,IF($D$7=$X$10,X138,X138))))=0,0,IF($D$7=$U$10,U138,IF($D$7=$V$10,V138,IF($D$7=$W$10,W138,IF($D$7=$X$10,X138,X138))))+IF('dane i obliczenia'!$D$2=metadane!$A$2,1/24,0)+IF(AND('dane i obliczenia'!$D$2=metadane!$A$1,A138>$Q$2,A138<$Q$3),1/24,0)) -> 04:53:01.436 | C138: =IF(IF($D$8=$Z$10,Z138,IF($D$8=$AA$10,AA138,IF($D$8=$AB$10,AB138,IF($D$8=$AC$10,AC138,Z138))))+IF('dane i obliczenia'!$D$2=metadane!$A$2,1/24,0)+IF(AND('dane i obliczenia'!$D$2=metadane!$A$1,A138>$Q$2,A138<$Q$3),1/24,0)>0.99999,0.99999,IF($D$8=$Z$10,Z138,IF($D$8=$AA$10,AA138,IF($D$8=$AB$10,AB138,IF($D$8=$AC$10,AC138,Z138))))+IF('dane i obliczenia'!$D$2=metadane!$A$2,1/24,0)+IF(AND('dane i obliczenia'!$D$2=metadane!$A$1,A138>$Q$2,A138<$Q$3),1/24,0)) -> 20:12:48.043 | D138: 06:00:00 | E138: 15.32961313 | F138: 14.21334528 | G138: 0 | H138: -1.116267854 | I138: 17:30:00 | J138: 0 | K138: 2.713345279 | S138: 01:35:02.010 | T138: 2018-05-08 | U138: =IFERROR(dawn($F$5,$F$6,YEAR(A138),MONTH(A138),DAY(A138),1,0,18),0) -> 01:03:07.416 | V138: 02:17:59.425 | W138: 03:12:21.625 | X138: 03:53:01.436 | Y138: 11:32:22.290 | Z138: 19:12:48.043 | AA138: 19:53:37.306 | AB138: 20:48:20.835 | AC138: 22:04:28.818 | AM138: 2019-05-08
A139: 2018-05-09 | B139: =IF(IF($D$7=$U$10,U139,IF($D$7=$V$10,V139,IF($D$7=$W$10,W139,IF($D$7=$X$10,X139,X139))))=0,0,IF($D$7=$U$10,U139,IF($D$7=$V$10,V139,IF($D$7=$W$10,W139,IF($D$7=$X$10,X139,X139))))+IF('dane i obliczenia'!$D$2=metadane!$A$2,1/24,0)+IF(AND('dane i obliczenia'!$D$2=metadane!$A$1,A139>$Q$2,A139<$Q$3),1/24,0)) -> 04:51:16.971 | C139: =IF(IF($D$8=$Z$10,Z139,IF($D$8=$AA$10,AA139,IF($D$8=$AB$10,AB139,IF($D$8=$AC$10,AC139,Z139))))+IF('dane i obliczenia'!$D$2=metadane!$A$2,1/24,0)+IF(AND('dane i obliczenia'!$D$2=metadane!$A$1,A139>$Q$2,A139<$Q$3),1/24,0)>0.99999,0.99999,IF($D$8=$Z$10,Z139,IF($D$8=$AA$10,AA139,IF($D$8=$AB$10,AB139,IF($D$8=$AC$10,AC139,Z139))))+IF('dane i obliczenia'!$D$2=metadane!$A$2,1/24,0)+IF(AND('dane i obliczenia'!$D$2=metadane!$A$1,A139>$Q$2,A139<$Q$3),1/24,0)) -> 20:14:26.070 | D139: 06:00:00 | E139: 15.38586089 | F139: 14.240575 | G139: 0 | H139: -1.145285896 | I139: 17:30:00 | J139: 0 | K139: 2.740574996 | S139: 01:35:50.393 | T139: 2018-05-09 | U139: =IFERROR(dawn($F$5,$F$6,YEAR(A139),MONTH(A139),DAY(A139),1,0,18),0) -> 00:58:33.816 | V139: 02:15:26.578 | W139: 03:10:22.324 | X139: 03:51:16.971 | Y139: 11:32:19.325 | Z139: 19:14:26.070 | AA139: 19:55:30.319 | AB139: 20:50:47.971 | AC139: 22:09:03.514 | AM139: 2019-05-09
A140: 2018-05-10 | B140: =IF(IF($D$7=$U$10,U140,IF($D$7=$V$10,V140,IF($D$7=$W$10,W140,IF($D$7=$X$10,X140,X140))))=0,0,IF($D$7=$U$10,U140,IF($D$7=$V$10,V140,IF($D$7=$W$10,W140,IF($D$7=$X$10,X140,X140))))+IF('dane i obliczenia'!$D$2=metadane!$A$2,1/24,0)+IF(AND('dane i obliczenia'!$D$2=metadane!$A$1,A140>$Q$2,A140<$Q$3),1/24,0)) -> 04:49:34.240 | C140: =IF(IF($D$8=$Z$10,Z140,IF($D$8=$AA$10,AA140,IF($D$8=$AB$10,AB140,IF($D$8=$AC$10,AC140,Z140))))+IF('dane i obliczenia'!$D$2=metadane!$A$2,1/24,0)+IF(AND('dane i obliczenia'!$D$2=metadane!$A$1,A140>$Q$2,A140<$Q$3),1/24,0)>0.99999,0.99999,IF($D$8=$Z$10,Z140,IF($D$8=$AA$10,AA140,IF($D$8=$AB$10,AB140,IF($D$8=$AC$10,AC140,Z140))))+IF('dane i obliczenia'!$D$2=metadane!$A$2,1/24,0)+IF(AND('dane i obliczenia'!$D$2=metadane!$A$1,A140>$Q$2,A140<$Q$3),1/24,0)) -> 20:16:03.463 | D140: =$F$3/24+$G$3/24/60 -> 06:00:00 | E140: =(C140-B140)*24 -> 15.44145093 | F140: =IF(D140>B140,C140-D140,C140-B140)*24 -> 14.26762868 | G140: =IF((B140-D140)*24>0,(B140-D140)*24,0) -> 0 | H140: =IF((B140-D140)*24<0,(B140-D140)*24,0) -> -1.173822247 | I140: =$F$4/24+$G$4/24/60 -> 17:30:00 | J140: =IF((C140-I140)*24<0,(C140-I140)*24,0) -> 0 | K140: =IF((C140-I140)*24<0,0,(C140-I140)*24) -> 2.767628683 | S140: =X140-V140 -> 01:36:39.730 | T140: =A140 -> 2018-05-10 | U140: =IFERROR(dawn($F$5,$F$6,YEAR(A140),MONTH(A140),DAY(A140),1,0,18),0) -> 00:53:50.530 | V140: =IFERROR(dawn($F$5,$F$6,YEAR(A140),MONTH(A140),DAY(A140),1,0,12),0) -> 02:12:54.510 | W140: =dawn($F$5,$F$6,YEAR(A140),MONTH(A140),DAY(A140),1,0,6) -> 03:08:24.579 | X140: =sunrise($F$5,$F$6,YEAR(A140),MONTH(A140),DAY(A140),1,0) -> 03:49:34.240 | Y140: =solarnoon($F$5,$F$6,YEAR(A140),MONTH(A140),DAY(A140),1,0) -> 11:32:16.929 | Z140: =sunset($F$5,$F$6,YEAR(A140),MONTH(A140),DAY(A140),1,0) -> 19:16:03.463 | AA140: =dusk($F$5,$F$6,YEAR(A140),MONTH(A140),DAY(A140),1,0,6) -> 19:57:22.868 | AB140: =IFERROR(dusk($F$5,$F$6,YEAR(A140),MONTH(A140),DAY(A140),1,0,12),0.99999) -> 20:53:15.423 | AC140: =IFERROR(dusk($F$5,$F$6,YEAR(A140),MONTH(A140),DAY(A140),1,0,18),0.99999) -> 22:13:50.156 | AM140: 2019-05-10
A141: =A140+1 -> 2018-05-11 | B141: =IF(IF($D$7=$U$10,U141,IF($D$7=$V$10,V141,IF($D$7=$W$10,W141,IF($D$7=$X$10,X141,X141))))=0,0,IF($D$7=$U$10,U141,IF($D$7=$V$10,V141,IF($D$7=$W$10,W141,IF($D$7=$X$10,X141,X141))))+IF('dane i obliczenia'!$D$2=metadane!$A$2,1/24,0)+IF(AND('dane i obliczenia'!$D$2=metadane!$A$1,A141>$Q$2,A141<$Q$3),1/24,0)) -> 04:47:53.293 | C141: =IF(IF($D$8=$Z$10,Z141,IF($D$8=$AA$10,AA141,IF($D$8=$AB$10,AB141,IF($D$8=$AC$10,AC141,Z141))))+IF('dane i obliczenia'!$D$2=metadane!$A$2,1/24,0)+IF(AND('dane i obliczenia'!$D$2=metadane!$A$1,A141>$Q$2,A141<$Q$3),1/24,0)>0.99999,0.99999,IF($D$8=$Z$10,Z141,IF($D$8=$AA$10,AA141,IF($D$8=$AB$10,AB141,IF($D$8=$AC$10,AC141,Z141))))+IF('dane i obliczenia'!$D$2=metadane!$A$2,1/24,0)+IF(AND('dane i obliczenia'!$D$2=metadane!$A$1,A141>$Q$2,A141<$Q$3),1/24,0)) -> 20:17:40.173 | D141: 06:00:00 | E141: 15.49635554 | F141: 14.29449261 | G141: 0 | H141: -1.201862924 | I141: 17:30:00 | J141: 0 | K141: 2.794492615 | S141: 01:37:30.009 | T141: 2018-05-11 | U141: =IFERROR(dawn($F$5,$F$6,YEAR(A141),MONTH(A141),DAY(A141),1,0,18),0) -> 00:48:55.795 | V141: 02:10:23.285 | W141: 03:06:28.454 | X141: 03:47:53.293 | Y141: 11:32:15.105 | Z141: 19:17:40.173 | AA141: 19:59:14.891 | AB141: 20:55:43.127 | AC141: 22:18:50.863 | AM141: 2019-05-11
A142: 2018-05-12 | B142: =IF(IF($D$7=$U$10,U142,IF($D$7=$V$10,V142,IF($D$7=$W$10,W142,IF($D$7=$X$10,X142,X142))))=0,0,IF($D$7=$U$10,U142,IF($D$7=$V$10,V142,IF($D$7=$W$10,W142,IF($D$7=$X$10,X142,X142))))+IF('dane i obliczenia'!$D$2=metadane!$A$2,1/24,0)+IF(AND('dane i obliczenia'!$D$2=metadane!$A$1,A142>$Q$2,A142<$Q$3),1/24,0)) -> 04:46:14.182 | C142: =IF(IF($D$8=$Z$10,Z142,IF($D$8=$AA$10,AA142,IF($D$8=$AB$10,AB142,IF($D$8=$AC$10,AC142,Z142))))+IF('dane i obliczenia'!$D$2=metadane!$A$2,1/24,0)+IF(AND('dane i obliczenia'!$D$2=metadane!$A$1,A142>$Q$2,A142<$Q$3),1/24,0)>0.99999,0.99999,IF($D$8=$Z$10,Z142,IF($D$8=$AA$10,AA142,IF($D$8=$AB$10,AB142,IF($D$8=$AC$10,AC142,Z142))))+IF('dane i obliczenia'!$D$2=metadane!$A$2,1/24,0)+IF(AND('dane i obliczenia'!$D$2=metadane!$A$1,A142>$Q$2,A142<$Q$3),1/24,0)) -> 20:19:16.149 | D142: 06:00:00 | E142: 15.55054633 | F142: 14.32115251 | G142: 0 | H142: -1.229393814 | I142: 17:30:00 | J142: 0 | K142: 2.821152514 | S142: 01:38:21.214 | T142: 2018-05-12 | U142: =IFERROR(dawn($F$5,$F$6,YEAR(A142),MONTH(A142),DAY(A142),1,0,18),0) -> 00:43:47.278 | V142: 02:07:52.969 | W142: 03:04:34.013 | X142: 03:46:14.182 | Y142: 11:32:13.851 | Z142: 19:19:16.149 | AA142: 20:01:06.322 | AB142: 20:58:11.013 | AC142: 22:24:08.499 | AM142: 2019-05-12
A143: 2018-05-13 | B143: =IF(IF($D$7=$U$10,U143,IF($D$7=$V$10,V143,IF($D$7=$W$10,W143,IF($D$7=$X$10,X143,X143))))=0,0,IF($D$7=$U$10,U143,IF($D$7=$V$10,V143,IF($D$7=$W$10,W143,IF($D$7=$X$10,X143,X143))))+IF('dane i obliczenia'!$D$2=metadane!$A$2,1/24,0)+IF(AND('dane i obliczenia'!$D$2=metadane!$A$1,A143>$Q$2,A143<$Q$3),1/24,0)) -> 04:44:36.958 | C143: =IF(IF($D$8=$Z$10,Z143,IF($D$8=$AA$10,AA143,IF($D$8=$AB$10,AB143,IF($D$8=$AC$10,AC143,Z143))))+IF('dane i obliczenia'!$D$2=metadane!$A$2,1/24,0)+IF(AND('dane i obliczenia'!$D$2=metadane!$A$1,A143>$Q$2,A143<$Q$3),1/24,0)>0.99999,0.99999,IF($D$8=$Z$10,Z143,IF($D$8=$AA$10,AA143,IF($D$8=$AB$10,AB143,IF($D$8=$AC$10,AC143,Z143))))+IF('dane i obliczenia'!$D$2=metadane!$A$2,1/24,0)+IF(AND('dane i obliczenia'!$D$2=metadane!$A$1,A143>$Q$2,A143<$Q$3),1/24,0)) -> 20:20:51.337 | D143: 06:00:00 | E143: 15.60399425 | F143: 14.34759356 | G143: 0 | H143: -1.256400687 | I143: 17:30:00 | J143: 0 | K143: 2.847593564 | S143: 01:39:13.326 | T143: 2018-05-13 | U143: =IFERROR(dawn($F$5,$F$6,YEAR(A143),MONTH(A143),DAY(A143),1,0,18),0) -> 00:38:21.782 | V143: 02:05:23.632 | W143: 03:02:41.321 | X143: 03:44:36.958 | Y143: 11:32:13.169 | Z143: 19:20:51.337 | AA143: 20:02:57.092 | AB143: 21:00:39.007 | AC143: 22:29:47.092 | AM143: 2019-05-13
A144: 2018-05-14 | B144: =IF(IF($D$7=$U$10,U144,IF($D$7=$V$10,V144,IF($D$7=$W$10,W144,IF($D$7=$X$10,X144,X144))))=0,0,IF($D$7=$U$10,U144,IF($D$7=$V$10,V144,IF($D$7=$W$10,W144,IF($D$7=$X$10,X144,X144))))+IF('dane i obliczenia'!$D$2=metadane!$A$2,1/24,0)+IF(AND('dane i obliczenia'!$D$2=metadane!$A$1,A144>$Q$2,A144<$Q$3),1/24,0)) -> 04:43:01.671 | C144: =IF(IF($D$8=$Z$10,Z144,IF($D$8=$AA$10,AA144,IF($D$8=$AB$10,AB144,IF($D$8=$AC$10,AC144,Z144))))+IF('dane i obliczenia'!$D$2=metadane!$A$2,1/24,0)+IF(AND('dane i obliczenia'!$D$2=metadane!$A$1,A144>$Q$2,A144<$Q$3),1/24,0)>0.99999,0.99999,IF($D$8=$Z$10,Z144,IF($D$8=$AA$10,AA144,IF($D$8=$AB$10,AB144,IF($D$8=$AC$10,AC144,Z144))))+IF('dane i obliczenia'!$D$2=metadane!$A$2,1/24,0)+IF(AND('dane i obliczenia'!$D$2=metadane!$A$1,A144>$Q$2,A144<$Q$3),1/24,0)) -> 20:22:25.681 | D144: 06:00:00 | E144: 15.65666962 | F144: 14.37380041 | G144: 0 | H144: -1.282869208 | I144: 17:30:00 | J144: 0 | K144: 2.873800414 | S144: 01:40:06.322 | T144: 2018-05-14 | U144: =IFERROR(dawn($F$5,$F$6,YEAR(A144),MONTH(A144),DAY(A144),1,0,18),0) -> 00:32:34.738 | V144: 02:02:55.348 | W144: 03:00:50.445 | X144: 03:43:01.671 | Y144: 11:32:13.057 | Z144: 19:22:25.681 | AA144: 20:04:47.131 | AB144: 21:03:07.028 | AC144: 22:35:52.612 | AM144: 2019-05-14
A145: 2018-05-15 | B145: =IF(IF($D$7=$U$10,U145,IF($D$7=$V$10,V145,IF($D$7=$W$10,W145,IF($D$7=$X$10,X145,X145))))=0,0,IF($D$7=$U$10,U145,IF($D$7=$V$10,V145,IF($D$7=$W$10,W145,IF($D$7=$X$10,X145,X145))))+IF('dane i obliczenia'!$D$2=metadane!$A$2,1/24,0)+IF(AND('dane i obliczenia'!$D$2=metadane!$A$1,A145>$Q$2,A145<$Q$3),1/24,0)) -> 04:41:28.374 | C145: =IF(IF($D$8=$Z$10,Z145,IF($D$8=$AA$10,AA145,IF($D$8=$AB$10,AB145,IF($D$8=$AC$10,AC145,Z145))))+IF('dane i obliczenia'!$D$2=metadane!$A$2,1/24,0)+IF(AND('dane i obliczenia'!$D$2=metadane!$A$1,A145>$Q$2,A145<$Q$3),1/24,0)>0.99999,0.99999,IF($D$8=$Z$10,Z145,IF($D$8=$AA$10,AA145,IF($D$8=$AB$10,AB145,IF($D$8=$AC$10,AC145,Z145))))+IF('dane i obliczenia'!$D$2=metadane!$A$2,1/24,0)+IF(AND('dane i obliczenia'!$D$2=metadane!$A$1,A145>$Q$2,A145<$Q$3),1/24,0)) -> 20:23:59.126 | D145: 06:00:00 | E145: 15.70854215 | F145: 14.39975719 | G145: 0 | H145: -1.308784955 | I145: 17:30:00 | J145: 0 | K145: 2.899757193 | S145: 01:41:00.177 | T145: 2018-05-15 | U145: =IFERROR(dawn($F$5,$F$6,YEAR(A145),MONTH(A145),DAY(A145),1,0,18),0) -> 00:26:19.228 | V145: 02:00:28.197 | W145: 02:59:01.454 | X145: 03:41:28.374 | Y145: 11:32:13.511 | Z145: 19:23:59.126 | AA145: 20:06:36.363 | AB145: 21:05:34.989 | AC145: 22:42:34.560 | AM145: 2019-05-15
A146: 2018-05-16 | B146: =IF(IF($D$7=$U$10,U146,IF($D$7=$V$10,V146,IF($D$7=$W$10,W146,IF($D$7=$X$10,X146,X146))))=0,0,IF($D$7=$U$10,U146,IF($D$7=$V$10,V146,IF($D$7=$W$10,W146,IF($D$7=$X$10,X146,X146))))+IF('dane i obliczenia'!$D$2=metadane!$A$2,1/24,0)+IF(AND('dane i obliczenia'!$D$2=metadane!$A$1,A146>$Q$2,A146<$Q$3),1/24,0)) -> 04:39:57.120 | C146: =IF(IF($D$8=$Z$10,Z146,IF($D$8=$AA$10,AA146,IF($D$8=$AB$10,AB146,IF($D$8=$AC$10,AC146,Z146))))+IF('dane i obliczenia'!$D$2=metadane!$A$2,1/24,0)+IF(AND('dane i obliczenia'!$D$2=metadane!$A$1,A146>$Q$2,A146<$Q$3),1/24,0)>0.99999,0.99999,IF($D$8=$Z$10,Z146,IF($D$8=$AA$10,AA146,IF($D$8=$AB$10,AB146,IF($D$8=$AC$10,AC146,Z146))))+IF('dane i obliczenia'!$D$2=metadane!$A$2,1/24,0)+IF(AND('dane i obliczenia'!$D$2=metadane!$A$1,A146>$Q$2,A146<$Q$3),1/24,0)) -> 20:25:31.611 | D146: 06:00:00 | E146: 15.75958096 | F146: 14.42544752 | G146: 0 | H146: -1.334133434 | I146: 17:30:00 | J146: 0 | K146: 2.925447524 | S146: 01:41:54.859 | T146: 2018-05-16 | U146: =IFERROR(dawn($F$5,$F$6,YEAR(A146),MONTH(A146),DAY(A146),1,0,18),0) -> 00:19:23.893 | V146: 01:58:02.260 | W146: 02:57:14.417 | X146: 03:39:57.120 | Y146: 11:32:14.531 | Z146: 19:25:31.611 | AA146: 20:08:24.712 | AB146: 21:08:02.796 | AC146: 22:50:09.763 | AM146: 2019-05-16
A147: 2018-05-17 | B147: =IF(IF($D$7=$U$10,U147,IF($D$7=$V$10,V147,IF($D$7=$W$10,W147,IF($D$7=$X$10,X147,X147))))=0,0,IF($D$7=$U$10,U147,IF($D$7=$V$10,V147,IF($D$7=$W$10,W147,IF($D$7=$X$10,X147,X147))))+IF('dane i obliczenia'!$D$2=metadane!$A$2,1/24,0)+IF(AND('dane i obliczenia'!$D$2=metadane!$A$1,A147>$Q$2,A147<$Q$3),1/24,0)) -> 04:38:27.960 | C147: =IF(IF($D$8=$Z$10,Z147,IF($D$8=$AA$10,AA147,IF($D$8=$AB$10,AB147,IF($D$8=$AC$10,AC147,Z147))))+IF('dane i obliczenia'!$D$2=metadane!$A$2,1/24,0)+IF(AND('dane i obliczenia'!$D$2=metadane!$A$1,A147>$Q$2,A147<$Q$3),1/24,0)>0.99999,0.99999,IF($D$8=$Z$10,Z147,IF($D$8=$AA$10,AA147,IF($D$8=$AB$10,AB147,IF($D$8=$AC$10,AC147,Z147))))+IF('dane i obliczenia'!$D$2=metadane!$A$2,1/24,0)+IF(AND('dane i obliczenia'!$D$2=metadane!$A$1,A147>$Q$2,A147<$Q$3),1/24,0)) -> 20:27:03.076 | D147: 06:00:00 | E147: 15.80975464 | F147: 14.45085454 | G147: 0 | H147: -1.358900097 | I147: 17:30:00 | J147: 0 | K147: 2.950854543 | S147: 01:42:50.333 | T147: 2018-05-17 | U147: =IFERROR(dawn($F$5,$F$6,YEAR(A147),MONTH(A147),DAY(A147),1,0,18),0) -> 00:11:27.612 | V147: 01:55:37.626 | W147: 02:55:29.406 | X147: 03:38:27.960 | Y147: 11:32:16.111 | Z147: 19:27:03.076 | AA147: 20:10:12.096 | AB147: 21:10:30.351 | AC147: 22:59:13.818 | AM147: 2019-05-17
A148: 2018-05-18 | B148: =IF(IF($D$7=$U$10,U148,IF($D$7=$V$10,V148,IF($D$7=$W$10,W148,IF($D$7=$X$10,X148,X148))))=0,0,IF($D$7=$U$10,U148,IF($D$7=$V$10,V148,IF($D$7=$W$10,W148,IF($D$7=$X$10,X148,X148))))+IF('dane i obliczenia'!$D$2=metadane!$A$2,1/24,0)+IF(AND('dane i obliczenia'!$D$2=metadane!$A$1,A148>$Q$2,A148<$Q$3),1/24,0)) -> 04:37:00.947 | C148: =IF(IF($D$8=$Z$10,Z148,IF($D$8=$AA$10,AA148,IF($D$8=$AB$10,AB148,IF($D$8=$AC$10,AC148,Z148))))+IF('dane i obliczenia'!$D$2=metadane!$A$2,1/24,0)+IF(AND('dane i obliczenia'!$D$2=metadane!$A$1,A148>$Q$2,A148<$Q$3),1/24,0)>0.99999,0.99999,IF($D$8=$Z$10,Z148,IF($D$8=$AA$10,AA148,IF($D$8=$AB$10,AB148,IF($D$8=$AC$10,AC148,Z148))))+IF('dane i obliczenia'!$D$2=metadane!$A$2,1/24,0)+IF(AND('dane i obliczenia'!$D$2=metadane!$A$1,A148>$Q$2,A148<$Q$3),1/24,0)) -> 20:28:33.459 | D148: 06:00:00 | E148: 15.85903128 | F148: 14.47596092 | G148: 0 | H148: -1.383070361 | I148: 17:30:00 | J148: 0 | K148: 2.975960916 | S148: 01:43:46.558 | T148: 2018-05-18 | U148: =IFERROR(dawn($F$5,$F$6,YEAR(A148),MONTH(A148),DAY(A148),1,0,18),0) -> 00:01:41.394 | V148: 01:53:14.388 | W148: 02:53:46.492 | X148: 03:37:00.947 | Y148: 11:32:18.247 | Z148: 19:28:33.459 | AA148: 20:11:58.434 | AB148: 21:12:57.546 | AC148: 23:11:37.042 | AM148: 2019-05-18
A149: 2018-05-19 | B149: =IF(IF($D$7=$U$10,U149,IF($D$7=$V$10,V149,IF($D$7=$W$10,W149,IF($D$7=$X$10,X149,X149))))=0,0,IF($D$7=$U$10,U149,IF($D$7=$V$10,V149,IF($D$7=$W$10,W149,IF($D$7=$X$10,X149,X149))))+IF('dane i obliczenia'!$D$2=metadane!$A$2,1/24,0)+IF(AND('dane i obliczenia'!$D$2=metadane!$A$1,A149>$Q$2,A149<$Q$3),1/24,0)) -> 04:35:36.133 | C149: =IF(IF($D$8=$Z$10,Z149,IF($D$8=$AA$10,AA149,IF($D$8=$AB$10,AB149,IF($D$8=$AC$10,AC149,Z149))))+IF('dane i obliczenia'!$D$2=metadane!$A$2,1/24,0)+IF(AND('dane i obliczenia'!$D$2=metadane!$A$1,A149>$Q$2,A149<$Q$3),1/24,0)>0.99999,0.99999,IF($D$8=$Z$10,Z149,IF($D$8=$AA$10,AA149,IF($D$8=$AB$10,AB149,IF($D$8=$AC$10,AC149,Z149))))+IF('dane i obliczenia'!$D$2=metadane!$A$2,1/24,0)+IF(AND('dane i obliczenia'!$D$2=metadane!$A$1,A149>$Q$2,A149<$Q$3),1/24,0)) -> 20:30:02.696 | D149: 06:00:00 | E149: 15.9073785 | F149: 14.50074886 | G149: 0 | H149: -1.406629633 | I149: 17:30:00 | J149: 0 | K149: 3.000748862 | S149: 01:44:43.489 | T149: 2018-05-19 | U149: =IFERROR(dawn($F$5,$F$6,YEAR(A149),MONTH(A149),DAY(A149),1,0,18),0) -> -0.009217255342 | V149: 01:50:52.644 | W149: 02:52:05.750 | X149: 03:35:36.133 | Y149: 11:32:20.935 | Z149: 19:30:02.696 | AA149: 20:13:43.638 | AB149: 21:15:24.267 | AC149: 23:59:59.136 | AM149: 2019-05-19
A150: 2018-05-20 | B150: =IF(IF($D$7=$U$10,U150,IF($D$7=$V$10,V150,IF($D$7=$W$10,W150,IF($D$7=$X$10,X150,X150))))=0,0,IF($D$7=$U$10,U150,IF($D$7=$V$10,V150,IF($D$7=$W$10,W150,IF($D$7=$X$10,X150,X150))))+IF('dane i obliczenia'!$D$2=metadane!$A$2,1/24,0)+IF(AND('dane i obliczenia'!$D$2=metadane!$A$1,A150>$Q$2,A150<$Q$3),1/24,0)) -> 04:34:13.572 | C150: =IF(IF($D$8=$Z$10,Z150,IF($D$8=$AA$10,AA150,IF($D$8=$AB$10,AB150,IF($D$8=$AC$10,AC150,Z150))))+IF('dane i obliczenia'!$D$2=metadane!$A$2,1/24,0)+IF(AND('dane i obliczenia'!$D$2=metadane!$A$1,A150>$Q$2,A150<$Q$3),1/24,0)>0.99999,0.99999,IF($D$8=$Z$10,Z150,IF($D$8=$AA$10,AA150,IF($D$8=$AB$10,AB150,IF($D$8=$AC$10,AC150,Z150))))+IF('dane i obliczenia'!$D$2=metadane!$A$2,1/24,0)+IF(AND('dane i obliczenia'!$D$2=metadane!$A$1,A150>$Q$2,A150<$Q$3),1/24,0)) -> 20:31:30.721 | D150: 06:00:00 | E150: 15.95476351 | F150: 14.52520018 | G150: 0 | H150: -1.429563332 | I150: 17:30:00 | J150: 0 | K150: 3.025200178 | S150: 01:45:41.072 | T150: 2018-05-20 | U150: =IFERROR(dawn($F$5,$F$6,YEAR(A150),MONTH(A150),DAY(A150),1,0,18),0) -> 00:00:00 | V150: 01:48:32.500 | W150: 02:50:27.253 | X150: 03:34:13.572 | Y150: 11:32:24.167 | Z150: 19:31:30.721 | AA150: 20:15:27.621 | AB150: 21:17:50.391 | AC150: 23:59:59.136 | AM150: 2019-05-20
A151: 2018-05-21 | B151: =IF(IF($D$7=$U$10,U151,IF($D$7=$V$10,V151,IF($D$7=$W$10,W151,IF($D$7=$X$10,X151,X151))))=0,0,IF($D$7=$U$10,U151,IF($D$7=$V$10,V151,IF($D$7=$W$10,W151,IF($D$7=$X$10,X151,X151))))+IF('dane i obliczenia'!$D$2=metadane!$A$2,1/24,0)+IF(AND('dane i obliczenia'!$D$2=metadane!$A$1,A151>$Q$2,A151<$Q$3),1/24,0)) -> 04:32:53.315 | C151: =IF(IF($D$8=$Z$10,Z151,IF($D$8=$AA$10,AA151,IF($D$8=$AB$10,AB151,IF($D$8=$AC$10,AC151,Z151))))+IF('dane i obliczenia'!$D$2=metadane!$A$2,1/24,0)+IF(AND('dane i obliczenia'!$D$2=metadane!$A$1,A151>$Q$2,A151<$Q$3),1/24,0)>0.99999,0.99999,IF($D$8=$Z$10,Z151,IF($D$8=$AA$10,AA151,IF($D$8=$AB$10,AB151,IF($D$8=$AC$10,AC151,Z151))))+IF('dane i obliczenia'!$D$2=metadane!$A$2,1/24,0)+IF(AND('dane i obliczenia'!$D$2=metadane!$A$1,A151>$Q$2,A151<$Q$3),1/24,0)) -> 20:32:57.467 | D151: 06:00:00 | E151: 16.00115318 | F151: 14.54929627 | G151: 0 | H151: -1.451856911 | I151: 17:30:00 | J151: 0 | K151: 3.049296267 | S151: 01:46:39.251 | T151: 2018-05-21 | U151: =IFERROR(dawn($F$5,$F$6,YEAR(A151),MONTH(A151),DAY(A151),1,0,18),0) -> 00:00:00 | V151: 01:46:14.064 | W151: 02:48:51.077 | X151: 03:32:53.315 | Y151: 11:32:27.937 | Z151: 19:32:57.467 | AA151: 20:17:10.292 | AB151: 21:20:15.789 | AC151: 23:59:59.136 | AM151: 2019-05-21
A152: 2018-05-22 | B152: =IF(IF($D$7=$U$10,U152,IF($D$7=$V$10,V152,IF($D$7=$W$10,W152,IF($D$7=$X$10,X152,X152))))=0,0,IF($D$7=$U$10,U152,IF($D$7=$V$10,V152,IF($D$7=$W$10,W152,IF($D$7=$X$10,X152,X152))))+IF('dane i obliczenia'!$D$2=metadane!$A$2,1/24,0)+IF(AND('dane i obliczenia'!$D$2=metadane!$A$1,A152>$Q$2,A152<$Q$3),1/24,0)) -> 04:31:35.415 | C152: =IF(IF($D$8=$Z$10,Z152,IF($D$8=$AA$10,AA152,IF($D$8=$AB$10,AB152,IF($D$8=$AC$10,AC152,Z152))))+IF('dane i obliczenia'!$D$2=metadane!$A$2,1/24,0)+IF(AND('dane i obliczenia'!$D$2=metadane!$A$1,A152>$Q$2,A152<$Q$3),1/24,0)>0.99999,0.99999,IF($D$8=$Z$10,Z152,IF($D$8=$AA$10,AA152,IF($D$8=$AB$10,AB152,IF($D$8=$AC$10,AC152,Z152))))+IF('dane i obliczenia'!$D$2=metadane!$A$2,1/24,0)+IF(AND('dane i obliczenia'!$D$2=metadane!$A$1,A152>$Q$2,A152<$Q$3),1/24,0)) -> 20:34:22.865 | D152: 06:00:00 | E152: 16.04651406 | F152: 14.57301817 | G152: 0 | H152: -1.473495892 | I152: 17:30:00 | J152: 0 | K152: 3.073018168 | S152: 01:47:37.958 | T152: 2018-05-22 | U152: =IFERROR(dawn($F$5,$F$6,YEAR(A152),MONTH(A152),DAY(A152),1,0,18),0) -> 00:00:00 | V152: 01:43:57.456 | W152: 02:47:17.300 | X152: 03:31:35.415 | Y152: 11:32:32.237 | Z152: 19:34:22.865 | AA152: 20:18:51.555 | AB152: 21:22:40.320 | AC152: 23:59:59.136 | AM152: 2019-05-22
A153: 2018-05-23 | B153: =IF(IF($D$7=$U$10,U153,IF($D$7=$V$10,V153,IF($D$7=$W$10,W153,IF($D$7=$X$10,X153,X153))))=0,0,IF($D$7=$U$10,U153,IF($D$7=$V$10,V153,IF($D$7=$W$10,W153,IF($D$7=$X$10,X153,X153))))+IF('dane i obliczenia'!$D$2=metadane!$A$2,1/24,0)+IF(AND('dane i obliczenia'!$D$2=metadane!$A$1,A153>$Q$2,A153<$Q$3),1/24,0)) -> 04:30:19.923 | C153: =IF(IF($D$8=$Z$10,Z153,IF($D$8=$AA$10,AA153,IF($D$8=$AB$10,AB153,IF($D$8=$AC$10,AC153,Z153))))+IF('dane i obliczenia'!$D$2=metadane!$A$2,1/24,0)+IF(AND('dane i obliczenia'!$D$2=metadane!$A$1,A153>$Q$2,A153<$Q$3),1/24,0)>0.99999,0.99999,IF($D$8=$Z$10,Z153,IF($D$8=$AA$10,AA153,IF($D$8=$AB$10,AB153,IF($D$8=$AC$10,AC153,Z153))))+IF('dane i obliczenia'!$D$2=metadane!$A$2,1/24,0)+IF(AND('dane i obliczenia'!$D$2=metadane!$A$1,A153>$Q$2,A153<$Q$3),1/24,0)) -> 20:35:46.848 | D153: 06:00:00 | E153: 16.09081247 | F153: 14.59634659 | G153: 0 | H153: -1.494465886 | I153: 17:30:00 | J153: 0 | K153: 3.096346587 | S153: 01:48:37.123 | T153: 2018-05-23 | U153: =IFERROR(dawn($F$5,$F$6,YEAR(A153),MONTH(A153),DAY(A153),1,0,18),0) -> 00:00:00 | V153: 01:41:42.800 | W153: 02:45:45.998 | X153: 03:30:19.923 | Y153: 11:32:37.058 | Z153: 19:35:46.848 | AA153: 20:20:31.317 | AB153: 21:25:03.837 | AC153: 23:59:59.136 | AM153: 2019-05-23
A154: 2018-05-24 | B154: =IF(IF($D$7=$U$10,U154,IF($D$7=$V$10,V154,IF($D$7=$W$10,W154,IF($D$7=$X$10,X154,X154))))=0,0,IF($D$7=$U$10,U154,IF($D$7=$V$10,V154,IF($D$7=$W$10,W154,IF($D$7=$X$10,X154,X154))))+IF('dane i obliczenia'!$D$2=metadane!$A$2,1/24,0)+IF(AND('dane i obliczenia'!$D$2=metadane!$A$1,A154>$Q$2,A154<$Q$3),1/24,0)) -> 04:29:06.891 | C154: =IF(IF($D$8=$Z$10,Z154,IF($D$8=$AA$10,AA154,IF($D$8=$AB$10,AB154,IF($D$8=$AC$10,AC154,Z154))))+IF('dane i obliczenia'!$D$2=metadane!$A$2,1/24,0)+IF(AND('dane i obliczenia'!$D$2=metadane!$A$1,A154>$Q$2,A154<$Q$3),1/24,0)>0.99999,0.99999,IF($D$8=$Z$10,Z154,IF($D$8=$AA$10,AA154,IF($D$8=$AB$10,AB154,IF($D$8=$AC$10,AC154,Z154))))+IF('dane i obliczenia'!$D$2=metadane!$A$2,1/24,0)+IF(AND('dane i obliczenia'!$D$2=metadane!$A$1,A154>$Q$2,A154<$Q$3),1/24,0)) -> 20:37:09.343 | D154: 06:00:00 | E154: 16.13401457 | F154: 14.61926194 | G154: 0 | H154: -1.514752631 | I154: 17:30:00 | J154: 0 | K154: 3.119261937 | S154: 01:49:36.663 | T154: 2018-05-24 | U154: =IFERROR(dawn($F$5,$F$6,YEAR(A154),MONTH(A154),DAY(A154),1,0,18),0) -> 00:00:00 | V154: 01:39:30.228 | W154: 02:44:17.250 | X154: 03:29:06.891 | Y154: 11:32:42.392 | Z154: 19:37:09.343 | AA154: 20:22:09.477 | AB154: 21:27:26.183 | AC154: 23:59:59.136 | AM154: 2019-05-24
A155: 2018-05-25 | B155: =IF(IF($D$7=$U$10,U155,IF($D$7=$V$10,V155,IF($D$7=$W$10,W155,IF($D$7=$X$10,X155,X155))))=0,0,IF($D$7=$U$10,U155,IF($D$7=$V$10,V155,IF($D$7=$W$10,W155,IF($D$7=$X$10,X155,X155))))+IF('dane i obliczenia'!$D$2=metadane!$A$2,1/24,0)+IF(AND('dane i obliczenia'!$D$2=metadane!$A$1,A155>$Q$2,A155<$Q$3),1/24,0)) -> 04:27:56.369 | C155: =IF(IF($D$8=$Z$10,Z155,IF($D$8=$AA$10,AA155,IF($D$8=$AB$10,AB155,IF($D$8=$AC$10,AC155,Z155))))+IF('dane i obliczenia'!$D$2=metadane!$A$2,1/24,0)+IF(AND('dane i obliczenia'!$D$2=metadane!$A$1,A155>$Q$2,A155<$Q$3),1/24,0)>0.99999,0.99999,IF($D$8=$Z$10,Z155,IF($D$8=$AA$10,AA155,IF($D$8=$AB$10,AB155,IF($D$8=$AC$10,AC155,Z155))))+IF('dane i obliczenia'!$D$2=metadane!$A$2,1/24,0)+IF(AND('dane i obliczenia'!$D$2=metadane!$A$1,A155>$Q$2,A155<$Q$3),1/24,0)) -> 20:38:30.280 | D155: 06:00:00 | E155: 16.17608639 | F155: 14.64174437 | G155: 0 | H155: -1.534342022 | I155: 17:30:00 | J155: 0 | K155: 3.141744373 | S155: 01:50:36.490 | T155: 2018-05-25 | U155: =IFERROR(dawn($F$5,$F$6,YEAR(A155),MONTH(A155),DAY(A155),1,0,18),0) -> 00:00:00 | V155: 01:37:19.879 | W155: 02:42:51.134 | X155: 03:27:56.369 | Y155: 11:32:48.227 | Z155: 19:38:30.280 | AA155: 20:23:45.937 | AB155: 21:29:47.190 | AC155: 23:59:59.136 | AM155: 2019-05-25
A156: 2018-05-26 | B156: =IF(IF($D$7=$U$10,U156,IF($D$7=$V$10,V156,IF($D$7=$W$10,W156,IF($D$7=$X$10,X156,X156))))=0,0,IF($D$7=$U$10,U156,IF($D$7=$V$10,V156,IF($D$7=$W$10,W156,IF($D$7=$X$10,X156,X156))))+IF('dane i obliczenia'!$D$2=metadane!$A$2,1/24,0)+IF(AND('dane i obliczenia'!$D$2=metadane!$A$1,A156>$Q$2,A156<$Q$3),1/24,0)) -> 04:26:48.407 | C156: =IF(IF($D$8=$Z$10,Z156,IF($D$8=$AA$10,AA156,IF($D$8=$AB$10,AB156,IF($D$8=$AC$10,AC156,Z156))))+IF('dane i obliczenia'!$D$2=metadane!$A$2,1/24,0)+IF(AND('dane i obliczenia'!$D$2=metadane!$A$1,A156>$Q$2,A156<$Q$3),1/24,0)>0.99999,0.99999,IF($D$8=$Z$10,Z156,IF($D$8=$AA$10,AA156,IF($D$8=$AB$10,AB156,IF($D$8=$AC$10,AC156,Z156))))+IF('dane i obliczenia'!$D$2=metadane!$A$2,1/24,0)+IF(AND('dane i obliczenia'!$D$2=metadane!$A$1,A156>$Q$2,A156<$Q$3),1/24,0)) -> 20:39:49.586 | D156: 06:00:00 | E156: 16.21699398 | F156: 14.66377384 | G156: 0 | H156: -1.553220143 | I156: 17:30:00 | J156: 0 | K156: 3.163773835 | S156: 01:51:36.506 | T156: 2018-05-26 | U156: =IFERROR(dawn($F$5,$F$6,YEAR(A156),MONTH(A156),DAY(A156),1,0,18),0) -> 00:00:00 | V156: 01:35:11.902 | W156: 02:41:27.730 | X156: 03:26:48.407 | Y156: 11:32:54.552 | Z156: 19:39:49.586 | AA156: 20:25:20.594 | AB156: 21:32:06.681 | AC156: 23:59:59.136 | AM156: 2019-05-26
A157: 2018-05-27 | B157: =IF(IF($D$7=$U$10,U157,IF($D$7=$V$10,V157,IF($D$7=$W$10,W157,IF($D$7=$X$10,X157,X157))))=0,0,IF($D$7=$U$10,U157,IF($D$7=$V$10,V157,IF($D$7=$W$10,W157,IF($D$7=$X$10,X157,X157))))+IF('dane i obliczenia'!$D$2=metadane!$A$2,1/24,0)+IF(AND('dane i obliczenia'!$D$2=metadane!$A$1,A157>$Q$2,A157<$Q$3),1/24,0)) -> 04:25:43.056 | C157: =IF(IF($D$8=$Z$10,Z157,IF($D$8=$AA$10,AA157,IF($D$8=$AB$10,AB157,IF($D$8=$AC$10,AC157,Z157))))+IF('dane i obliczenia'!$D$2=metadane!$A$2,1/24,0)+IF(AND('dane i obliczenia'!$D$2=metadane!$A$1,A157>$Q$2,A157<$Q$3),1/24,0)>0.99999,0.99999,IF($D$8=$Z$10,Z157,IF($D$8=$AA$10,AA157,IF($D$8=$AB$10,AB157,IF($D$8=$AC$10,AC157,Z157))))+IF('dane i obliczenia'!$D$2=metadane!$A$2,1/24,0)+IF(AND('dane i obliczenia'!$D$2=metadane!$A$1,A157>$Q$2,A157<$Q$3),1/24,0)) -> 20:41:07.188 | D157: 06:00:00 | E157: 16.2567034 | F157: 14.68533009 | G157: 0 | H157: -1.571373311 | I157: 17:30:00 | J157: 0 | K157: 3.185330091 | S157: 01:52:36.603 | T157: 2018-05-27 | U157: =IFERROR(dawn($F$5,$F$6,YEAR(A157),MONTH(A157),DAY(A157),1,0,18),0) -> 00:00:00 | V157: 01:33:06.453 | W157: 02:40:07.116 | X157: 03:25:43.056 | Y157: 11:33:01.357 | Z157: 19:41:07.188 | AA157: 20:26:53.344 | AB157: 21:34:24.469 | AC157: 23:59:59.136 | AM157: 2019-05-27
A158: 2018-05-28 | B158: =IF(IF($D$7=$U$10,U158,IF($D$7=$V$10,V158,IF($D$7=$W$10,W158,IF($D$7=$X$10,X158,X158))))=0,0,IF($D$7=$U$10,U158,IF($D$7=$V$10,V158,IF($D$7=$W$10,W158,IF($D$7=$X$10,X158,X158))))+IF('dane i obliczenia'!$D$2=metadane!$A$2,1/24,0)+IF(AND('dane i obliczenia'!$D$2=metadane!$A$1,A158>$Q$2,A158<$Q$3),1/24,0)) -> 04:24:40.363 | C158: =IF(IF($D$8=$Z$10,Z158,IF($D$8=$AA$10,AA158,IF($D$8=$AB$10,AB158,IF($D$8=$AC$10,AC158,Z158))))+IF('dane i obliczenia'!$D$2=metadane!$A$2,1/24,0)+IF(AND('dane i obliczenia'!$D$2=metadane!$A$1,A158>$Q$2,A158<$Q$3),1/24,0)>0.99999,0.99999,IF($D$8=$Z$10,Z158,IF($D$8=$AA$10,AA158,IF($D$8=$AB$10,AB158,IF($D$8=$AC$10,AC158,Z158))))+IF('dane i obliczenia'!$D$2=metadane!$A$2,1/24,0)+IF(AND('dane i obliczenia'!$D$2=metadane!$A$1,A158>$Q$2,A158<$Q$3),1/24,0)) -> 20:42:23.014 | D158: 06:00:00 | E158: 16.29518088 | F158: 14.70639278 | G158: 0 | H158: -1.588788103 | I158: 17:30:00 | J158: 0 | K158: 3.206392781 | S158: 01:53:36.664 | T158: 2018-05-28 | U158: =IFERROR(dawn($F$5,$F$6,YEAR(A158),MONTH(A158),DAY(A158),1,0,18),0) -> 00:00:00 | V158: 01:31:03.699 | W158: 02:38:49.372 | X158: 03:24:40.363 | Y158: 11:33:08.628 | Z158: 19:42:23.014 | AA158: 20:28:24.083 | AB158: 21:36:40.356 | AC158: 23:59:59.136 | AM158: 2019-05-28
A159: 2018-05-29 | B159: =IF(IF($D$7=$U$10,U159,IF($D$7=$V$10,V159,IF($D$7=$W$10,W159,IF($D$7=$X$10,X159,X159))))=0,0,IF($D$7=$U$10,U159,IF($D$7=$V$10,V159,IF($D$7=$W$10,W159,IF($D$7=$X$10,X159,X159))))+IF('dane i obliczenia'!$D$2=metadane!$A$2,1/24,0)+IF(AND('dane i obliczenia'!$D$2=metadane!$A$1,A159>$Q$2,A159<$Q$3),1/24,0)) -> 04:23:40.375 | C159: =IF(IF($D$8=$Z$10,Z159,IF($D$8=$AA$10,AA159,IF($D$8=$AB$10,AB159,IF($D$8=$AC$10,AC159,Z159))))+IF('dane i obliczenia'!$D$2=metadane!$A$2,1/24,0)+IF(AND('dane i obliczenia'!$D$2=metadane!$A$1,A159>$Q$2,A159<$Q$3),1/24,0)>0.99999,0.99999,IF($D$8=$Z$10,Z159,IF($D$8=$AA$10,AA159,IF($D$8=$AB$10,AB159,IF($D$8=$AC$10,AC159,Z159))))+IF('dane i obliczenia'!$D$2=metadane!$A$2,1/24,0)+IF(AND('dane i obliczenia'!$D$2=metadane!$A$1,A159>$Q$2,A159<$Q$3),1/24,0)) -> 20:43:36.989 | D159: 06:00:00 | E159: 16.33239288 | F159: 14.72694147 | G159: 0 | H159: -1.605451405 | I159: 17:30:00 | J159: 0 | K159: 3.226941472 | S159: 01:54:36.561 | T159: 2018-05-29 | U159: =IFERROR(dawn($F$5,$F$6,YEAR(A159),MONTH(A159),DAY(A159),1,0,18),0) -> 00:00:00 | V159: 01:29:03.814 | W159: 02:37:34.577 | X159: 03:23:40.375 | Y159: 11:33:16.353 | Z159: 19:43:36.989 | AA159: 20:29:52.704 | AB159: 21:38:54.132 | AC159: 23:59:59.136 | AM159: 2019-05-29
A160: 2018-05-30 | B160: =IF(IF($D$7=$U$10,U160,IF($D$7=$V$10,V160,IF($D$7=$W$10,W160,IF($D$7=$X$10,X160,X160))))=0,0,IF($D$7=$U$10,U160,IF($D$7=$V$10,V160,IF($D$7=$W$10,W160,IF($D$7=$X$10,X160,X160))))+IF('dane i obliczenia'!$D$2=metadane!$A$2,1/24,0)+IF(AND('dane i obliczenia'!$D$2=metadane!$A$1,A160>$Q$2,A160<$Q$3),1/24,0)) -> 04:22:43.138 | C160: =IF(IF($D$8=$Z$10,Z160,IF($D$8=$AA$10,AA160,IF($D$8=$AB$10,AB160,IF($D$8=$AC$10,AC160,Z160))))+IF('dane i obliczenia'!$D$2=metadane!$A$2,1/24,0)+IF(AND('dane i obliczenia'!$D$2=metadane!$A$1,A160>$Q$2,A160<$Q$3),1/24,0)>0.99999,0.99999,IF($D$8=$Z$10,Z160,IF($D$8=$AA$10,AA160,IF($D$8=$AB$10,AB160,IF($D$8=$AC$10,AC160,Z160))))+IF('dane i obliczenia'!$D$2=metadane!$A$2,1/24,0)+IF(AND('dane i obliczenia'!$D$2=metadane!$A$1,A160>$Q$2,A160<$Q$3),1/24,0)) -> 20:44:49.041 | D160: 06:00:00 | E160: 16.36830615 | F160: 14.7469557 | G160: 0 | H160: -1.621350447 | I160: 17:30:00 | J160: 0 | K160: 3.246955702 | S160: 01:55:36.157 | T160: 2018-05-30 | U160: =IFERROR(dawn($F$5,$F$6,YEAR(A160),MONTH(A160),DAY(A160),1,0,18),0) -> 00:00:00 | V160: 01:27:06.981 | W160: 02:36:22.809 | X160: 03:22:43.138 | Y160: 11:33:24.516 | Z160: 19:44:49.041 | AA160: 20:31:19.101 | AB160: 21:41:05.578 | AC160: 23:59:59.136 | AM160: 2019-05-30
A161: 2018-05-31 | B161: =IF(IF($D$7=$U$10,U161,IF($D$7=$V$10,V161,IF($D$7=$W$10,W161,IF($D$7=$X$10,X161,X161))))=0,0,IF($D$7=$U$10,U161,IF($D$7=$V$10,V161,IF($D$7=$W$10,W161,IF($D$7=$X$10,X161,X161))))+IF('dane i obliczenia'!$D$2=metadane!$A$2,1/24,0)+IF(AND('dane i obliczenia'!$D$2=metadane!$A$1,A161>$Q$2,A161<$Q$3),1/24,0)) -> 04:21:48.698 | C161: =IF(IF($D$8=$Z$10,Z161,IF($D$8=$AA$10,AA161,IF($D$8=$AB$10,AB161,IF($D$8=$AC$10,AC161,Z161))))+IF('dane i obliczenia'!$D$2=metadane!$A$2,1/24,0)+IF(AND('dane i obliczenia'!$D$2=metadane!$A$1,A161>$Q$2,A161<$Q$3),1/24,0)>0.99999,0.99999,IF($D$8=$Z$10,Z161,IF($D$8=$AA$10,AA161,IF($D$8=$AB$10,AB161,IF($D$8=$AC$10,AC161,Z161))))+IF('dane i obliczenia'!$D$2=metadane!$A$2,1/24,0)+IF(AND('dane i obliczenia'!$D$2=metadane!$A$1,A161>$Q$2,A161<$Q$3),1/24,0)) -> 20:45:59.094 | D161: 06:00:00 | E161: 16.40288788 | F161: 14.76641504 | G161: 0 | H161: -1.636472848 | I161: 17:30:00 | J161: 0 | K161: 3.266415036 | S161: 01:56:35.303 | T161: 2018-05-31 | U161: =IFERROR(dawn($F$5,$F$6,YEAR(A161),MONTH(A161),DAY(A161),1,0,18),0) -> 00:00:00 | V161: 01:25:13.395 | W161: 02:35:14.147 | X161: 03:21:48.698 | Y161: 11:33:33.103 | Z161: 19:45:59.094 | AA161: 20:32:43.166 | AB161: 21:43:14.463 | AC161: 23:59:59.136 | AM161: 2019-05-31
A162: 2018-06-01 | B162: =IF(IF($D$7=$U$10,U162,IF($D$7=$V$10,V162,IF($D$7=$W$10,W162,IF($D$7=$X$10,X162,X162))))=0,0,IF($D$7=$U$10,U162,IF($D$7=$V$10,V162,IF($D$7=$W$10,W162,IF($D$7=$X$10,X162,X162))))+IF('dane i obliczenia'!$D$2=metadane!$A$2,1/24,0)+IF(AND('dane i obliczenia'!$D$2=metadane!$A$1,A162>$Q$2,A162<$Q$3),1/24,0)) -> 04:20:57.096 | C162: =IF(IF($D$8=$Z$10,Z162,IF($D$8=$AA$10,AA162,IF($D$8=$AB$10,AB162,IF($D$8=$AC$10,AC162,Z162))))+IF('dane i obliczenia'!$D$2=metadane!$A$2,1/24,0)+IF(AND('dane i obliczenia'!$D$2=metadane!$A$1,A162>$Q$2,A162<$Q$3),1/24,0)>0.99999,0.99999,IF($D$8=$Z$10,Z162,IF($D$8=$AA$10,AA162,IF($D$8=$AB$10,AB162,IF($D$8=$AC$10,AC162,Z162))))+IF('dane i obliczenia'!$D$2=metadane!$A$2,1/24,0)+IF(AND('dane i obliczenia'!$D$2=metadane!$A$1,A162>$Q$2,A162<$Q$3),1/24,0)) -> 20:47:07.077 | D162: 06:00:00 | E162: 16.43610578 | F162: 14.78529912 | G162: 0 | H162: -1.650806658 | I162: 17:30:00 | J162: 0 | K162: 3.285299121 | S162: 01:57:33.837 | T162: 2018-06-01 | U162: =IFERROR(dawn($F$5,$F$6,YEAR(A162),MONTH(A162),DAY(A162),1,0,18),0) -> 00:00:00 | V162: 01:23:23.259 | W162: 02:34:08.666 | X162: 03:20:57.096 | Y162: 11:33:42.099 | Z162: 19:47:07.077 | AA162: 20:34:04.792 | AB162: 21:45:20.545 | AC162: 23:59:59.136 | AM162: 2019-06-01
A163: 2018-06-02 | B163: =IF(IF($D$7=$U$10,U163,IF($D$7=$V$10,V163,IF($D$7=$W$10,W163,IF($D$7=$X$10,X163,X163))))=0,0,IF($D$7=$U$10,U163,IF($D$7=$V$10,V163,IF($D$7=$W$10,W163,IF($D$7=$X$10,X163,X163))))+IF('dane i obliczenia'!$D$2=metadane!$A$2,1/24,0)+IF(AND('dane i obliczenia'!$D$2=metadane!$A$1,A163>$Q$2,A163<$Q$3),1/24,0)) -> 04:20:08.375 | C163: =IF(IF($D$8=$Z$10,Z163,IF($D$8=$AA$10,AA163,IF($D$8=$AB$10,AB163,IF($D$8=$AC$10,AC163,Z163))))+IF('dane i obliczenia'!$D$2=metadane!$A$2,1/24,0)+IF(AND('dane i obliczenia'!$D$2=metadane!$A$1,A163>$Q$2,A163<$Q$3),1/24,0)>0.99999,0.99999,IF($D$8=$Z$10,Z163,IF($D$8=$AA$10,AA163,IF($D$8=$AB$10,AB163,IF($D$8=$AC$10,AC163,Z163))))+IF('dane i obliczenia'!$D$2=metadane!$A$2,1/24,0)+IF(AND('dane i obliczenia'!$D$2=metadane!$A$1,A163>$Q$2,A163<$Q$3),1/24,0)) -> 20:48:12.916 | D163: 06:00:00 | E163: 16.46792814 | F163: 14.80358774 | G163: 0 | H163: -1.6643404 | I163: 17:30:00 | J163: 0 | K163: 3.30358774 | S163: 01:58:31.590 | T163: 2018-06-02 | U163: =IFERROR(dawn($F$5,$F$6,YEAR(A163),MONTH(A163),DAY(A163),1,0,18),0) -> 00:00:00 | V163: 01:21:36.784 | W163: 02:33:06.443 | X163: 03:20:08.375 | Y163: 11:33:51.488 | Z163: 19:48:12.916 | AA163: 20:35:23.873 | AB163: 21:47:23.573 | AC163: 23:59:59.136 | AM163: 2019-06-02
A164: 2018-06-03 | B164: =IF(IF($D$7=$U$10,U164,IF($D$7=$V$10,V164,IF($D$7=$W$10,W164,IF($D$7=$X$10,X164,X164))))=0,0,IF($D$7=$U$10,U164,IF($D$7=$V$10,V164,IF($D$7=$W$10,W164,IF($D$7=$X$10,X164,X164))))+IF('dane i obliczenia'!$D$2=metadane!$A$2,1/24,0)+IF(AND('dane i obliczenia'!$D$2=metadane!$A$1,A164>$Q$2,A164<$Q$3),1/24,0)) -> 04:19:22.573 | C164: =IF(IF($D$8=$Z$10,Z164,IF($D$8=$AA$10,AA164,IF($D$8=$AB$10,AB164,IF($D$8=$AC$10,AC164,Z164))))+IF('dane i obliczenia'!$D$2=metadane!$A$2,1/24,0)+IF(AND('dane i obliczenia'!$D$2=metadane!$A$1,A164>$Q$2,A164<$Q$3),1/24,0)>0.99999,0.99999,IF($D$8=$Z$10,Z164,IF($D$8=$AA$10,AA164,IF($D$8=$AB$10,AB164,IF($D$8=$AC$10,AC164,Z164))))+IF('dane i obliczenia'!$D$2=metadane!$A$2,1/24,0)+IF(AND('dane i obliczenia'!$D$2=metadane!$A$1,A164>$Q$2,A164<$Q$3),1/24,0)) -> 20:49:16.539 | D164: 06:00:00 | E164: 16.49832399 | F164: 14.82126087 | G164: 0 | H164: -1.67706312 | I164: 17:30:00 | J164: 0 | K164: 3.321260874 | S164: 01:59:28.380 | T164: 2018-06-03 | U164: =IFERROR(dawn($F$5,$F$6,YEAR(A164),MONTH(A164),DAY(A164),1,0,18),0) -> 00:00:00 | V164: 01:19:54.193 | W164: 02:32:07.550 | X164: 03:19:22.573 | Y164: 11:34:01.252 | Z164: 19:49:16.539 | AA164: 20:36:40.301 | AB164: 21:49:23.284 | AC164: 23:59:59.136 | AM164: 2019-06-03
A165: 2018-06-04 | B165: =IF(IF($D$7=$U$10,U165,IF($D$7=$V$10,V165,IF($D$7=$W$10,W165,IF($D$7=$X$10,X165,X165))))=0,0,IF($D$7=$U$10,U165,IF($D$7=$V$10,V165,IF($D$7=$W$10,W165,IF($D$7=$X$10,X165,X165))))+IF('dane i obliczenia'!$D$2=metadane!$A$2,1/24,0)+IF(AND('dane i obliczenia'!$D$2=metadane!$A$1,A165>$Q$2,A165<$Q$3),1/24,0)) -> 04:18:39.728 | C165: =IF(IF($D$8=$Z$10,Z165,IF($D$8=$AA$10,AA165,IF($D$8=$AB$10,AB165,IF($D$8=$AC$10,AC165,Z165))))+IF('dane i obliczenia'!$D$2=metadane!$A$2,1/24,0)+IF(AND('dane i obliczenia'!$D$2=metadane!$A$1,A165>$Q$2,A165<$Q$3),1/24,0)>0.99999,0.99999,IF($D$8=$Z$10,Z165,IF($D$8=$AA$10,AA165,IF($D$8=$AB$10,AB165,IF($D$8=$AC$10,AC165,Z165))))+IF('dane i obliczenia'!$D$2=metadane!$A$2,1/24,0)+IF(AND('dane i obliczenia'!$D$2=metadane!$A$1,A165>$Q$2,A165<$Q$3),1/24,0)) -> 20:50:17.876 | D165: 06:00:00 | E165: 16.52726318 | F165: 14.83829875 | G165: 0 | H165: -1.688964424 | I165: 17:30:00 | J165: 0 | K165: 3.338298754 | S165: 02:00:24.013 | T165: 2018-06-04 | U165: =IFERROR(dawn($F$5,$F$6,YEAR(A165),MONTH(A165),DAY(A165),1,0,18),0) -> 00:00:00 | V165: 01:18:15.715 | W165: 02:31:12.061 | X165: 03:18:39.728 | Y165: 11:34:11.375 | Z165: 19:50:17.876 | AA165: 20:37:53.970 | AB165: 21:51:19.407 | AC165: 23:59:59.136 | AM165: 2019-06-04
A166: 2018-06-05 | B166: =IF(IF($D$7=$U$10,U166,IF($D$7=$V$10,V166,IF($D$7=$W$10,W166,IF($D$7=$X$10,X166,X166))))=0,0,IF($D$7=$U$10,U166,IF($D$7=$V$10,V166,IF($D$7=$W$10,W166,IF($D$7=$X$10,X166,X166))))+IF('dane i obliczenia'!$D$2=metadane!$A$2,1/24,0)+IF(AND('dane i obliczenia'!$D$2=metadane!$A$1,A166>$Q$2,A166<$Q$3),1/24,0)) -> 04:17:59.876 | C166: =IF(IF($D$8=$Z$10,Z166,IF($D$8=$AA$10,AA166,IF($D$8=$AB$10,AB166,IF($D$8=$AC$10,AC166,Z166))))+IF('dane i obliczenia'!$D$2=metadane!$A$2,1/24,0)+IF(AND('dane i obliczenia'!$D$2=metadane!$A$1,A166>$Q$2,A166<$Q$3),1/24,0)>0.99999,0.99999,IF($D$8=$Z$10,Z166,IF($D$8=$AA$10,AA166,IF($D$8=$AB$10,AB166,IF($D$8=$AC$10,AC166,Z166))))+IF('dane i obliczenia'!$D$2=metadane!$A$2,1/24,0)+IF(AND('dane i obliczenia'!$D$2=metadane!$A$1,A166>$Q$2,A166<$Q$3),1/24,0)) -> 20:51:16.855 | D166: 06:00:00 | E166: 16.55471646 | F166: 14.85468193 | G166: 0 | H166: -1.700034531 | I166: 17:30:00 | J166: 0 | K166: 3.354681925 | S166: 02:01:18.287 | T166: 2018-06-05 | U166: =IFERROR(dawn($F$5,$F$6,YEAR(A166),MONTH(A166),DAY(A166),1,0,18),0) -> 00:00:00 | V166: 01:16:41.589 | W166: 02:30:20.044 | X166: 03:17:59.876 | Y166: 11:34:21.837 | Z166: 19:51:16.855 | AA166: 20:39:04.777 | AB166: 21:53:11.663 | AC166: 23:59:59.136 | AM166: 2019-06-05
A167: 2018-06-06 | B167: =IF(IF($D$7=$U$10,U167,IF($D$7=$V$10,V167,IF($D$7=$W$10,W167,IF($D$7=$X$10,X167,X167))))=0,0,IF($D$7=$U$10,U167,IF($D$7=$V$10,V167,IF($D$7=$W$10,W167,IF($D$7=$X$10,X167,X167))))+IF('dane i obliczenia'!$D$2=metadane!$A$2,1/24,0)+IF(AND('dane i obliczenia'!$D$2=metadane!$A$1,A167>$Q$2,A167<$Q$3),1/24,0)) -> 04:17:23.048 | C167: =IF(IF($D$8=$Z$10,Z167,IF($D$8=$AA$10,AA167,IF($D$8=$AB$10,AB167,IF($D$8=$AC$10,AC167,Z167))))+IF('dane i obliczenia'!$D$2=metadane!$A$2,1/24,0)+IF(AND('dane i obliczenia'!$D$2=metadane!$A$1,A167>$Q$2,A167<$Q$3),1/24,0)>0.99999,0.99999,IF($D$8=$Z$10,Z167,IF($D$8=$AA$10,AA167,IF($D$8=$AB$10,AB167,IF($D$8=$AC$10,AC167,Z167))))+IF('dane i obliczenia'!$D$2=metadane!$A$2,1/24,0)+IF(AND('dane i obliczenia'!$D$2=metadane!$A$1,A167>$Q$2,A167<$Q$3),1/24,0)) -> 20:52:13.409 | D167: 06:00:00 | E167: 16.58065562 | F167: 14.87039131 | G167: 0 | H167: -1.710264312 | I167: 17:30:00 | J167: 0 | K167: 3.370391306 | S167: 02:02:10.991 | T167: 2018-06-06 | U167: =IFERROR(dawn($F$5,$F$6,YEAR(A167),MONTH(A167),DAY(A167),1,0,18),0) -> 00:00:00 | V167: 01:15:12.058 | W167: 02:29:31.566 | X167: 03:17:23.048 | Y167: 11:34:32.621 | Z167: 19:52:13.409 | AA167: 20:40:12.620 | AB167: 21:54:59.764 | AC167: 23:59:59.136 | AM167: 2019-06-06
A168: 2018-06-07 | B168: =IF(IF($D$7=$U$10,U168,IF($D$7=$V$10,V168,IF($D$7=$W$10,W168,IF($D$7=$X$10,X168,X168))))=0,0,IF($D$7=$U$10,U168,IF($D$7=$V$10,V168,IF($D$7=$W$10,W168,IF($D$7=$X$10,X168,X168))))+IF('dane i obliczenia'!$D$2=metadane!$A$2,1/24,0)+IF(AND('dane i obliczenia'!$D$2=metadane!$A$1,A168>$Q$2,A168<$Q$3),1/24,0)) -> 04:16:49.277 | C168: =IF(IF($D$8=$Z$10,Z168,IF($D$8=$AA$10,AA168,IF($D$8=$AB$10,AB168,IF($D$8=$AC$10,AC168,Z168))))+IF('dane i obliczenia'!$D$2=metadane!$A$2,1/24,0)+IF(AND('dane i obliczenia'!$D$2=metadane!$A$1,A168>$Q$2,A168<$Q$3),1/24,0)>0.99999,0.99999,IF($D$8=$Z$10,Z168,IF($D$8=$AA$10,AA168,IF($D$8=$AB$10,AB168,IF($D$8=$AC$10,AC168,Z168))))+IF('dane i obliczenia'!$D$2=metadane!$A$2,1/24,0)+IF(AND('dane i obliczenia'!$D$2=metadane!$A$1,A168>$Q$2,A168<$Q$3),1/24,0)) -> 20:53:07.470 | D168: 06:00:00 | E168: 16.60505358 | F168: 14.88540824 | G168: 0 | H168: -1.719645337 | I168: 17:30:00 | J168: 0 | K168: 3.385408243 | S168: 02:03:01.904 | T168: 2018-06-07 | U168: =IFERROR(dawn($F$5,$F$6,YEAR(A168),MONTH(A168),DAY(A168),1,0,18),0) -> 00:00:00 | V168: 01:13:47.373 | W168: 02:28:46.691 | X168: 03:16:49.277 | Y168: 11:34:43.707 | Z168: 19:53:07.470 | AA168: 20:41:17.397 | AB168: 21:56:43.420 | AC168: 23:59:59.136 | AM168: 2019-06-07
A169: 2018-06-08 | B169: =IF(IF($D$7=$U$10,U169,IF($D$7=$V$10,V169,IF($D$7=$W$10,W169,IF($D$7=$X$10,X169,X169))))=0,0,IF($D$7=$U$10,U169,IF($D$7=$V$10,V169,IF($D$7=$W$10,W169,IF($D$7=$X$10,X169,X169))))+IF('dane i obliczenia'!$D$2=metadane!$A$2,1/24,0)+IF(AND('dane i obliczenia'!$D$2=metadane!$A$1,A169>$Q$2,A169<$Q$3),1/24,0)) -> 04:16:18.588 | C169: =IF(IF($D$8=$Z$10,Z169,IF($D$8=$AA$10,AA169,IF($D$8=$AB$10,AB169,IF($D$8=$AC$10,AC169,Z169))))+IF('dane i obliczenia'!$D$2=metadane!$A$2,1/24,0)+IF(AND('dane i obliczenia'!$D$2=metadane!$A$1,A169>$Q$2,A169<$Q$3),1/24,0)>0.99999,0.99999,IF($D$8=$Z$10,Z169,IF($D$8=$AA$10,AA169,IF($D$8=$AB$10,AB169,IF($D$8=$AC$10,AC169,Z169))))+IF('dane i obliczenia'!$D$2=metadane!$A$2,1/24,0)+IF(AND('dane i obliczenia'!$D$2=metadane!$A$1,A169>$Q$2,A169<$Q$3),1/24,0)) -> 20:53:58.972 | D169: 06:00:00 | E169: 16.62788449 | F169: 14.89971458 | G169: 0 | H169: -1.728169916 | I169: 17:30:00 | J169: 0 | K169: 3.399714577 | S169: 02:03:50.801 | T169: 2018-06-08 | U169: =IFERROR(dawn($F$5,$F$6,YEAR(A169),MONTH(A169),DAY(A169),1,0,18),0) -> 00:00:00 | V169: 01:12:27.788 | W169: 02:28:05.480 | X169: 03:16:18.588 | Y169: 11:34:55.075 | Z169: 19:53:58.972 | AA169: 20:42:19.012 | AB169: 21:58:22.333 | AC169: 23:59:59.136 | AM169: 2019-06-08
A170: 2018-06-09 | B170: =IF(IF($D$7=$U$10,U170,IF($D$7=$V$10,V170,IF($D$7=$W$10,W170,IF($D$7=$X$10,X170,X170))))=0,0,IF($D$7=$U$10,U170,IF($D$7=$V$10,V170,IF($D$7=$W$10,W170,IF($D$7=$X$10,X170,X170))))+IF('dane i obliczenia'!$D$2=metadane!$A$2,1/24,0)+IF(AND('dane i obliczenia'!$D$2=metadane!$A$1,A170>$Q$2,A170<$Q$3),1/24,0)) -> 04:15:51.008 | C170: =IF(IF($D$8=$Z$10,Z170,IF($D$8=$AA$10,AA170,IF($D$8=$AB$10,AB170,IF($D$8=$AC$10,AC170,Z170))))+IF('dane i obliczenia'!$D$2=metadane!$A$2,1/24,0)+IF(AND('dane i obliczenia'!$D$2=metadane!$A$1,A170>$Q$2,A170<$Q$3),1/24,0)>0.99999,0.99999,IF($D$8=$Z$10,Z170,IF($D$8=$AA$10,AA170,IF($D$8=$AB$10,AB170,IF($D$8=$AC$10,AC170,Z170))))+IF('dane i obliczenia'!$D$2=metadane!$A$2,1/24,0)+IF(AND('dane i obliczenia'!$D$2=metadane!$A$1,A170>$Q$2,A170<$Q$3),1/24,0)) -> 20:54:47.854 | D170: 06:00:00 | E170: 16.64912384 | F170: 14.9132927 | G170: 0 | H170: -1.735831146 | I170: 17:30:00 | J170: 0 | K170: 3.413292696 | S170: 02:04:37.449 | T170: 2018-06-09 | U170: =IFERROR(dawn($F$5,$F$6,YEAR(A170),MONTH(A170),DAY(A170),1,0,18),0) -> 00:00:00 | V170: 01:11:13.559 | W170: 02:27:27.989 | X170: 03:15:51.008 | Y170: 11:35:06.705 | Z170: 19:54:47.854 | AA170: 20:43:17.370 | AB170: 21:59:56.207 | AC170: 23:59:59.136 | AM170: 2019-06-09
A171: 2018-06-10 | B171: =IF(IF($D$7=$U$10,U171,IF($D$7=$V$10,V171,IF($D$7=$W$10,W171,IF($D$7=$X$10,X171,X171))))=0,0,IF($D$7=$U$10,U171,IF($D$7=$V$10,V171,IF($D$7=$W$10,W171,IF($D$7=$X$10,X171,X171))))+IF('dane i obliczenia'!$D$2=metadane!$A$2,1/24,0)+IF(AND('dane i obliczenia'!$D$2=metadane!$A$1,A171>$Q$2,A171<$Q$3),1/24,0)) -> 04:15:26.557 | C171: =IF(IF($D$8=$Z$10,Z171,IF($D$8=$AA$10,AA171,IF($D$8=$AB$10,AB171,IF($D$8=$AC$10,AC171,Z171))))+IF('dane i obliczenia'!$D$2=metadane!$A$2,1/24,0)+IF(AND('dane i obliczenia'!$D$2=metadane!$A$1,A171>$Q$2,A171<$Q$3),1/24,0)>0.99999,0.99999,IF($D$8=$Z$10,Z171,IF($D$8=$AA$10,AA171,IF($D$8=$AB$10,AB171,IF($D$8=$AC$10,AC171,Z171))))+IF('dane i obliczenia'!$D$2=metadane!$A$2,1/24,0)+IF(AND('dane i obliczenia'!$D$2=metadane!$A$1,A171>$Q$2,A171<$Q$3),1/24,0)) -> 20:55:34.052 | D171: 06:00:00 | E171: 16.66874854 | F171: 14.92612559 | G171: 0 | H171: -1.742622946 | I171: 17:30:00 | J171: 0 | K171: 3.426125594 | S171: 02:05:21.615 | T171: 2018-06-10 | U171: =IFERROR(dawn($F$5,$F$6,YEAR(A171),MONTH(A171),DAY(A171),1,0,18),0) -> 00:00:00 | V171: 01:10:04.942 | W171: 02:26:54.271 | X171: 03:15:26.557 | Y171: 11:35:18.576 | Z171: 19:55:34.052 | AA171: 20:44:12.379 | AB171: 22:01:24.747 | AC171: 23:59:59.136 | AM171: 2019-06-10
A172: 2018-06-11 | B172: =IF(IF($D$7=$U$10,U172,IF($D$7=$V$10,V172,IF($D$7=$W$10,W172,IF($D$7=$X$10,X172,X172))))=0,0,IF($D$7=$U$10,U172,IF($D$7=$V$10,V172,IF($D$7=$W$10,W172,IF($D$7=$X$10,X172,X172))))+IF('dane i obliczenia'!$D$2=metadane!$A$2,1/24,0)+IF(AND('dane i obliczenia'!$D$2=metadane!$A$1,A172>$Q$2,A172<$Q$3),1/24,0)) -> 04:15:05.256 | C172: =IF(IF($D$8=$Z$10,Z172,IF($D$8=$AA$10,AA172,IF($D$8=$AB$10,AB172,IF($D$8=$AC$10,AC172,Z172))))+IF('dane i obliczenia'!$D$2=metadane!$A$2,1/24,0)+IF(AND('dane i obliczenia'!$D$2=metadane!$A$1,A172>$Q$2,A172<$Q$3),1/24,0)>0.99999,0.99999,IF($D$8=$Z$10,Z172,IF($D$8=$AA$10,AA172,IF($D$8=$AB$10,AB172,IF($D$8=$AC$10,AC172,Z172))))+IF('dane i obliczenia'!$D$2=metadane!$A$2,1/24,0)+IF(AND('dane i obliczenia'!$D$2=metadane!$A$1,A172>$Q$2,A172<$Q$3),1/24,0)) -> 20:56:17.509 | D172: 06:00:00 | E172: 16.68673702 | F172: 14.93819692 | G172: 0 | H172: -1.748540099 | I172: 17:30:00 | J172: 0 | K172: 3.438196924 | S172: 02:06:03.065 | T172: 2018-06-11 | U172: =IFERROR(dawn($F$5,$F$6,YEAR(A172),MONTH(A172),DAY(A172),1,0,18),0) -> 00:00:00 | V172: 01:09:02.191 | W172: 02:26:24.374 | X172: 03:15:05.256 | Y172: 11:35:30.667 | Z172: 19:56:17.509 | AA172: 20:45:03.954 | AB172: 22:02:47.659 | AC172: 23:59:59.136 | AM172: 2019-06-11
A173: 2018-06-12 | B173: =IF(IF($D$7=$U$10,U173,IF($D$7=$V$10,V173,IF($D$7=$W$10,W173,IF($D$7=$X$10,X173,X173))))=0,0,IF($D$7=$U$10,U173,IF($D$7=$V$10,V173,IF($D$7=$W$10,W173,IF($D$7=$X$10,X173,X173))))+IF('dane i obliczenia'!$D$2=metadane!$A$2,1/24,0)+IF(AND('dane i obliczenia'!$D$2=metadane!$A$1,A173>$Q$2,A173<$Q$3),1/24,0)) -> 04:14:47.118 | C173: =IF(IF($D$8=$Z$10,Z173,IF($D$8=$AA$10,AA173,IF($D$8=$AB$10,AB173,IF($D$8=$AC$10,AC173,Z173))))+IF('dane i obliczenia'!$D$2=metadane!$A$2,1/24,0)+IF(AND('dane i obliczenia'!$D$2=metadane!$A$1,A173>$Q$2,A173<$Q$3),1/24,0)>0.99999,0.99999,IF($D$8=$Z$10,Z173,IF($D$8=$AA$10,AA173,IF($D$8=$AB$10,AB173,IF($D$8=$AC$10,AC173,Z173))))+IF('dane i obliczenia'!$D$2=metadane!$A$2,1/24,0)+IF(AND('dane i obliczenia'!$D$2=metadane!$A$1,A173>$Q$2,A173<$Q$3),1/24,0)) -> 20:56:58.168 | D173: 06:00:00 | E173: 16.70306934 | F173: 14.94949106 | G173: 0 | H173: -1.753578286 | I173: 17:30:00 | J173: 0 | K173: 3.449491058 | S173: 02:06:41.566 | T173: 2018-06-12 | U173: =IFERROR(dawn($F$5,$F$6,YEAR(A173),MONTH(A173),DAY(A173),1,0,18),0) -> 00:00:00 | V173: 01:08:05.552 | W173: 02:25:58.341 | X173: 03:14:47.118 | Y173: 11:35:42.956 | Z173: 19:56:58.168 | AA173: 20:45:52.011 | AB173: 22:04:04.661 | AC173: 23:59:59.136 | AM173: 2019-06-12
A174: 2018-06-13 | B174: =IF(IF($D$7=$U$10,U174,IF($D$7=$V$10,V174,IF($D$7=$W$10,W174,IF($D$7=$X$10,X174,X174))))=0,0,IF($D$7=$U$10,U174,IF($D$7=$V$10,V174,IF($D$7=$W$10,W174,IF($D$7=$X$10,X174,X174))))+IF('dane i obliczenia'!$D$2=metadane!$A$2,1/24,0)+IF(AND('dane i obliczenia'!$D$2=metadane!$A$1,A174>$Q$2,A174<$Q$3),1/24,0)) -> 04:14:32.157 | C174: =IF(IF($D$8=$Z$10,Z174,IF($D$8=$AA$10,AA174,IF($D$8=$AB$10,AB174,IF($D$8=$AC$10,AC174,Z174))))+IF('dane i obliczenia'!$D$2=metadane!$A$2,1/24,0)+IF(AND('dane i obliczenia'!$D$2=metadane!$A$1,A174>$Q$2,A174<$Q$3),1/24,0)>0.99999,0.99999,IF($D$8=$Z$10,Z174,IF($D$8=$AA$10,AA174,IF($D$8=$AB$10,AB174,IF($D$8=$AC$10,AC174,Z174))))+IF('dane i obliczenia'!$D$2=metadane!$A$2,1/24,0)+IF(AND('dane i obliczenia'!$D$2=metadane!$A$1,A174>$Q$2,A174<$Q$3),1/24,0)) -> 20:57:35.975 | D174: 06:00:00 | E174: 16.71772725 | F174: 14.95999313 | G174: 0 | H174: -1.757734122 | I174: 17:30:00 | J174: 0 | K174: 3.459993129 | S174: 02:07:16.894 | T174: 2018-06-13 | U174: =IFERROR(dawn($F$5,$F$6,YEAR(A174),MONTH(A174),DAY(A174),1,0,18),0) -> 00:00:00 | V174: 01:07:15.264 | W174: 02:25:36.211 | X174: 03:14:32.157 | Y174: 11:35:55.421 | Z174: 19:57:35.975 | AA174: 20:46:36.471 | AB174: 22:05:15.478 | AC174: 23:59:59.136 | AM174: 2019-06-13
A175: 2018-06-14 | B175: =IF(IF($D$7=$U$10,U175,IF($D$7=$V$10,V175,IF($D$7=$W$10,W175,IF($D$7=$X$10,X175,X175))))=0,0,IF($D$7=$U$10,U175,IF($D$7=$V$10,V175,IF($D$7=$W$10,W175,IF($D$7=$X$10,X175,X175))))+IF('dane i obliczenia'!$D$2=metadane!$A$2,1/24,0)+IF(AND('dane i obliczenia'!$D$2=metadane!$A$1,A175>$Q$2,A175<$Q$3),1/24,0)) -> 04:14:20.381 | C175: =IF(IF($D$8=$Z$10,Z175,IF($D$8=$AA$10,AA175,IF($D$8=$AB$10,AB175,IF($D$8=$AC$10,AC175,Z175))))+IF('dane i obliczenia'!$D$2=metadane!$A$2,1/24,0)+IF(AND('dane i obliczenia'!$D$2=metadane!$A$1,A175>$Q$2,A175<$Q$3),1/24,0)>0.99999,0.99999,IF($D$8=$Z$10,Z175,IF($D$8=$AA$10,AA175,IF($D$8=$AB$10,AB175,IF($D$8=$AC$10,AC175,Z175))))+IF('dane i obliczenia'!$D$2=metadane!$A$2,1/24,0)+IF(AND('dane i obliczenia'!$D$2=metadane!$A$1,A175>$Q$2,A175<$Q$3),1/24,0)) -> 20:58:10.881 | D175: 06:00:00 | E175: 16.73069427 | F175: 14.96968909 | G175: 0 | H175: -1.761005186 | I175: 17:30:00 | J175: 0 | K175: 3.469689086 | S175: 02:07:48.830 | T175: 2018-06-14 | U175: =IFERROR(dawn($F$5,$F$6,YEAR(A175),MONTH(A175),DAY(A175),1,0,18),0) -> 00:00:00 | V175: 01:06:31.551 | W175: 02:25:18.016 | X175: 03:14:20.381 | Y175: 11:36:08.041 | Z175: 19:58:10.881 | AA175: 20:47:17.264 | AB175: 22:06:19.852 | AC175: 23:59:59.136 | AM175: 2019-06-14
A176: 2018-06-15 | B176: =IF(IF($D$7=$U$10,U176,IF($D$7=$V$10,V176,IF($D$7=$W$10,W176,IF($D$7=$X$10,X176,X176))))=0,0,IF($D$7=$U$10,U176,IF($D$7=$V$10,V176,IF($D$7=$W$10,W176,IF($D$7=$X$10,X176,X176))))+IF('dane i obliczenia'!$D$2=metadane!$A$2,1/24,0)+IF(AND('dane i obliczenia'!$D$2=metadane!$A$1,A176>$Q$2,A176<$Q$3),1/24,0)) -> 04:14:11.796 | C176: =IF(IF($D$8=$Z$10,Z176,IF($D$8=$AA$10,AA176,IF($D$8=$AB$10,AB176,IF($D$8=$AC$10,AC176,Z176))))+IF('dane i obliczenia'!$D$2=metadane!$A$2,1/24,0)+IF(AND('dane i obliczenia'!$D$2=metadane!$A$1,A176>$Q$2,A176<$Q$3),1/24,0)>0.99999,0.99999,IF($D$8=$Z$10,Z176,IF($D$8=$AA$10,AA176,IF($D$8=$AB$10,AB176,IF($D$8=$AC$10,AC176,Z176))))+IF('dane i obliczenia'!$D$2=metadane!$A$2,1/24,0)+IF(AND('dane i obliczenia'!$D$2=metadane!$A$1,A176>$Q$2,A176<$Q$3),1/24,0)) -> 20:58:42.837 | D176: 06:00:00 | E176: 16.74195578 | F176: 14.97856573 | G176: 0 | H176: -1.763390047 | I176: 17:30:00 | J176: 0 | K176: 3.478565734 | S176: 02:08:17.171 | T176: 2018-06-15 | U176: =IFERROR(dawn($F$5,$F$6,YEAR(A176),MONTH(A176),DAY(A176),1,0,18),0) -> 00:00:00 | V176: 01:05:54.625 | W176: 02:25:03.784 | X176: 03:14:11.796 | Y176: 11:36:20.792 | Z176: 19:58:42.837 | AA176: 20:47:54.319 | AB176: 22:07:17.543 | AC176: 23:59:59.136 | AM176: 2019-06-15
A177: 2018-06-16 | B177: =IF(IF($D$7=$U$10,U177,IF($D$7=$V$10,V177,IF($D$7=$W$10,W177,IF($D$7=$X$10,X177,X177))))=0,0,IF($D$7=$U$10,U177,IF($D$7=$V$10,V177,IF($D$7=$W$10,W177,IF($D$7=$X$10,X177,X177))))+IF('dane i obliczenia'!$D$2=metadane!$A$2,1/24,0)+IF(AND('dane i obliczenia'!$D$2=metadane!$A$1,A177>$Q$2,A177<$Q$3),1/24,0)) -> 04:14:06.402 | C177: =IF(IF($D$8=$Z$10,Z177,IF($D$8=$AA$10,AA177,IF($D$8=$AB$10,AB177,IF($D$8=$AC$10,AC177,Z177))))+IF('dane i obliczenia'!$D$2=metadane!$A$2,1/24,0)+IF(AND('dane i obliczenia'!$D$2=metadane!$A$1,A177>$Q$2,A177<$Q$3),1/24,0)>0.99999,0.99999,IF($D$8=$Z$10,Z177,IF($D$8=$AA$10,AA177,IF($D$8=$AB$10,AB177,IF($D$8=$AC$10,AC177,Z177))))+IF('dane i obliczenia'!$D$2=metadane!$A$2,1/24,0)+IF(AND('dane i obliczenia'!$D$2=metadane!$A$1,A177>$Q$2,A177<$Q$3),1/24,0)) -> 20:59:11.799 | D177: 06:00:00 | E177: 16.75149907 | F177: 14.98661078 | G177: 0 | H177: -1.764888289 | I177: 17:30:00 | J177: 0 | K177: 3.48661078 | S177: 02:08:41.729 | T177: 2018-06-16 | U177: =IFERROR(dawn($F$5,$F$6,YEAR(A177),MONTH(A177),DAY(A177),1,0,18),0) -> 00:00:00 | V177: 01:05:24.673 | W177: 02:24:53.534 | X177: 03:14:06.402 | Y177: 11:36:33.651 | Z177: 19:59:11.799 | AA177: 20:48:27.577 | AB177: 22:08:08.332 | AC177: 23:59:59.136 | AM177: 2019-06-16
A178: 2018-06-17 | B178: =IF(IF($D$7=$U$10,U178,IF($D$7=$V$10,V178,IF($D$7=$W$10,W178,IF($D$7=$X$10,X178,X178))))=0,0,IF($D$7=$U$10,U178,IF($D$7=$V$10,V178,IF($D$7=$W$10,W178,IF($D$7=$X$10,X178,X178))))+IF('dane i obliczenia'!$D$2=metadane!$A$2,1/24,0)+IF(AND('dane i obliczenia'!$D$2=metadane!$A$1,A178>$Q$2,A178<$Q$3),1/24,0)) -> 04:14:04.198 | C178: =IF(IF($D$8=$Z$10,Z178,IF($D$8=$AA$10,AA178,IF($D$8=$AB$10,AB178,IF($D$8=$AC$10,AC178,Z178))))+IF('dane i obliczenia'!$D$2=metadane!$A$2,1/24,0)+IF(AND('dane i obliczenia'!$D$2=metadane!$A$1,A178>$Q$2,A178<$Q$3),1/24,0)>0.99999,0.99999,IF($D$8=$Z$10,Z178,IF($D$8=$AA$10,AA178,IF($D$8=$AB$10,AB178,IF($D$8=$AC$10,AC178,Z178))))+IF('dane i obliczenia'!$D$2=metadane!$A$2,1/24,0)+IF(AND('dane i obliczenia'!$D$2=metadane!$A$1,A178>$Q$2,A178<$Q$3),1/24,0)) -> 20:59:37.726 | D178: 06:00:00 | E178: 16.7593134 | F178: 14.99381287 | G178: 0 | H178: -1.76550053 | I178: 17:30:00 | J178: 0 | K178: 3.493812866 | T178: 2018-06-17 | U178: =IFERROR(dawn($F$5,$F$6,YEAR(A178),MONTH(A178),DAY(A178),1,0,18),0) -> 00:00:00 | V178: 01:05:01.861 | W178: 02:24:47.282 | X178: 03:14:04.198 | Y178: 11:36:46.595 | Z178: 19:59:37.726 | AA178: 20:48:56.981 | AB178: 22:08:52.028 | AC178: 23:59:59.136 | AM178: 2019-06-17
A179: 2018-06-18 | B179: =IF(IF($D$7=$U$10,U179,IF($D$7=$V$10,V179,IF($D$7=$W$10,W179,IF($D$7=$X$10,X179,X179))))=0,0,IF($D$7=$U$10,U179,IF($D$7=$V$10,V179,IF($D$7=$W$10,W179,IF($D$7=$X$10,X179,X179))))+IF('dane i obliczenia'!$D$2=metadane!$A$2,1/24,0)+IF(AND('dane i obliczenia'!$D$2=metadane!$A$1,A179>$Q$2,A179<$Q$3),1/24,0)) -> 04:14:05.178 | C179: =IF(IF($D$8=$Z$10,Z179,IF($D$8=$AA$10,AA179,IF($D$8=$AB$10,AB179,IF($D$8=$AC$10,AC179,Z179))))+IF('dane i obliczenia'!$D$2=metadane!$A$2,1/24,0)+IF(AND('dane i obliczenia'!$D$2=metadane!$A$1,A179>$Q$2,A179<$Q$3),1/24,0)>0.99999,0.99999,IF($D$8=$Z$10,Z179,IF($D$8=$AA$10,AA179,IF($D$8=$AB$10,AB179,IF($D$8=$AC$10,AC179,Z179))))+IF('dane i obliczenia'!$D$2=metadane!$A$2,1/24,0)+IF(AND('dane i obliczenia'!$D$2=metadane!$A$1,A179>$Q$2,A179<$Q$3),1/24,0)) -> 21:00:00.582 | D179: 06:00:00 | E179: 16.76539004 | F179: 15.00016161 | G179: 0 | H179: -1.765228438 | I179: 17:30:00 | J179: 0 | K179: 3.500161607 | T179: 2018-06-18 | U179: =IFERROR(dawn($F$5,$F$6,YEAR(A179),MONTH(A179),DAY(A179),1,0,18),0) -> 00:00:00 | V179: 01:04:46.330 | W179: 02:24:45.036 | X179: 03:14:05.178 | Y179: 11:36:59.602 | Z179: 20:00:00.582 | AA179: 20:49:22.482 | AB179: 22:09:28.467 | AC179: 23:59:59.136 | AM179: 2019-06-18
A180: 2018-06-19 | B180: =IF(IF($D$7=$U$10,U180,IF($D$7=$V$10,V180,IF($D$7=$W$10,W180,IF($D$7=$X$10,X180,X180))))=0,0,IF($D$7=$U$10,U180,IF($D$7=$V$10,V180,IF($D$7=$W$10,W180,IF($D$7=$X$10,X180,X180))))+IF('dane i obliczenia'!$D$2=metadane!$A$2,1/24,0)+IF(AND('dane i obliczenia'!$D$2=metadane!$A$1,A180>$Q$2,A180<$Q$3),1/24,0)) -> 04:14:09.331 | C180: =IF(IF($D$8=$Z$10,Z180,IF($D$8=$AA$10,AA180,IF($D$8=$AB$10,AB180,IF($D$8=$AC$10,AC180,Z180))))+IF('dane i obliczenia'!$D$2=metadane!$A$2,1/24,0)+IF(AND('dane i obliczenia'!$D$2=metadane!$A$1,A180>$Q$2,A180<$Q$3),1/24,0)>0.99999,0.99999,IF($D$8=$Z$10,Z180,IF($D$8=$AA$10,AA180,IF($D$8=$AB$10,AB180,IF($D$8=$AC$10,AC180,Z180))))+IF('dane i obliczenia'!$D$2=metadane!$A$2,1/24,0)+IF(AND('dane i obliczenia'!$D$2=metadane!$A$1,A180>$Q$2,A180<$Q$3),1/24,0)) -> 21:00:20.331 | D180: 06:00:00 | E180: 16.76972236 | F180: 15.00564761 | G180: 0 | H180: -1.764074741 | I180: 17:30:00 | J180: 0 | K180: 3.505647614 | T180: 2018-06-19 | U180: =IFERROR(dawn($F$5,$F$6,YEAR(A180),MONTH(A180),DAY(A180),1,0,18),0) -> 00:00:00 | V180: 01:04:38.186 | W180: 02:24:46.798 | X180: 03:14:09.331 | Y180: 11:37:12.647 | Z180: 20:00:20.331 | AA180: 20:49:44.037 | AB180: 22:09:57.518 | AC180: 23:59:59.136 | AM180: 2019-06-19
A181: 2018-06-20 | B181: =IF(IF($D$7=$U$10,U181,IF($D$7=$V$10,V181,IF($D$7=$W$10,W181,IF($D$7=$X$10,X181,X181))))=0,0,IF($D$7=$U$10,U181,IF($D$7=$V$10,V181,IF($D$7=$W$10,W181,IF($D$7=$X$10,X181,X181))))+IF('dane i obliczenia'!$D$2=metadane!$A$2,1/24,0)+IF(AND('dane i obliczenia'!$D$2=metadane!$A$1,A181>$Q$2,A181<$Q$3),1/24,0)) -> 04:14:16.644 | C181: =IF(IF($D$8=$Z$10,Z181,IF($D$8=$AA$10,AA181,IF($D$8=$AB$10,AB181,IF($D$8=$AC$10,AC181,Z181))))+IF('dane i obliczenia'!$D$2=metadane!$A$2,1/24,0)+IF(AND('dane i obliczenia'!$D$2=metadane!$A$1,A181>$Q$2,A181<$Q$3),1/24,0)>0.99999,0.99999,IF($D$8=$Z$10,Z181,IF($D$8=$AA$10,AA181,IF($D$8=$AB$10,AB181,IF($D$8=$AC$10,AC181,Z181))))+IF('dane i obliczenia'!$D$2=metadane!$A$2,1/24,0)+IF(AND('dane i obliczenia'!$D$2=metadane!$A$1,A181>$Q$2,A181<$Q$3),1/24,0)) -> 21:00:36.945 | D181: 06:00:00 | E181: 16.77230576 | F181: 15.01026253 | G181: 0 | H181: -1.762043236 | I181: 17:30:00 | J181: 0 | K181: 3.510262525 | T181: 2018-06-20 | U181: =IFERROR(dawn($F$5,$F$6,YEAR(A181),MONTH(A181),DAY(A181),1,0,18),0) -> 00:00:00 | V181: 01:04:37.506 | W181: 02:24:52.561 | X181: 03:14:16.644 | Y181: 11:37:25.707 | Z181: 20:00:36.945 | AA181: 20:50:01.609 | AB181: 22:10:19.082 | AC181: 23:59:59.136 | AM181: 2019-06-20
A182: 2018-06-21 | B182: =IF(IF($D$7=$U$10,U182,IF($D$7=$V$10,V182,IF($D$7=$W$10,W182,IF($D$7=$X$10,X182,X182))))=0,0,IF($D$7=$U$10,U182,IF($D$7=$V$10,V182,IF($D$7=$W$10,W182,IF($D$7=$X$10,X182,X182))))+IF('dane i obliczenia'!$D$2=metadane!$A$2,1/24,0)+IF(AND('dane i obliczenia'!$D$2=metadane!$A$1,A182>$Q$2,A182<$Q$3),1/24,0)) -> 04:14:27.100 | C182: =IF(IF($D$8=$Z$10,Z182,IF($D$8=$AA$10,AA182,IF($D$8=$AB$10,AB182,IF($D$8=$AC$10,AC182,Z182))))+IF('dane i obliczenia'!$D$2=metadane!$A$2,1/24,0)+IF(AND('dane i obliczenia'!$D$2=metadane!$A$1,A182>$Q$2,A182<$Q$3),1/24,0)>0.99999,0.99999,IF($D$8=$Z$10,Z182,IF($D$8=$AA$10,AA182,IF($D$8=$AB$10,AB182,IF($D$8=$AC$10,AC182,Z182))))+IF('dane i obliczenia'!$D$2=metadane!$A$2,1/24,0)+IF(AND('dane i obliczenia'!$D$2=metadane!$A$1,A182>$Q$2,A182<$Q$3),1/24,0)) -> 21:00:50.396 | D182: 06:00:00 | E182: 16.77313781 | F182: 15.01399902 | G182: 0 | H182: -1.759138786 | I182: 17:30:00 | J182: 0 | K182: 3.51399902 | T182: 2018-06-21 | U182: =IFERROR(dawn($F$5,$F$6,YEAR(A182),MONTH(A182),DAY(A182),1,0,18),0) -> 00:00:00 | V182: 01:04:44.330 | W182: 02:25:02.314 | X182: 03:14:27.100 | Y182: 11:37:38.759 | Z182: 20:00:50.396 | AA182: 20:50:15.170 | AB182: 22:10:33.100 | AC182: 23:59:59.136 | AM182: 2019-06-21
A183: 2018-06-22 | B183: =IF(IF($D$7=$U$10,U183,IF($D$7=$V$10,V183,IF($D$7=$W$10,W183,IF($D$7=$X$10,X183,X183))))=0,0,IF($D$7=$U$10,U183,IF($D$7=$V$10,V183,IF($D$7=$W$10,W183,IF($D$7=$X$10,X183,X183))))+IF('dane i obliczenia'!$D$2=metadane!$A$2,1/24,0)+IF(AND('dane i obliczenia'!$D$2=metadane!$A$1,A183>$Q$2,A183<$Q$3),1/24,0)) -> 04:14:40.678 | C183: =IF(IF($D$8=$Z$10,Z183,IF($D$8=$AA$10,AA183,IF($D$8=$AB$10,AB183,IF($D$8=$AC$10,AC183,Z183))))+IF('dane i obliczenia'!$D$2=metadane!$A$2,1/24,0)+IF(AND('dane i obliczenia'!$D$2=metadane!$A$1,A183>$Q$2,A183<$Q$3),1/24,0)>0.99999,0.99999,IF($D$8=$Z$10,Z183,IF($D$8=$AA$10,AA183,IF($D$8=$AB$10,AB183,IF($D$8=$AC$10,AC183,Z183))))+IF('dane i obliczenia'!$D$2=metadane!$A$2,1/24,0)+IF(AND('dane i obliczenia'!$D$2=metadane!$A$1,A183>$Q$2,A183<$Q$3),1/24,0)) -> 21:01:00.663 | D183: 06:00:00 | E183: 16.77221816 | F183: 15.01685084 | G183: 0 | H183: -1.75536732 | I183: 17:30:00 | J183: 0 | K183: 3.516850837 | T183: 2018-06-22 | U183: =IFERROR(dawn($F$5,$F$6,YEAR(A183),MONTH(A183),DAY(A183),1,0,18),0) -> 00:00:00 | V183: 01:04:58.664 | W183: 02:25:16.037 | X183: 03:14:40.678 | Y183: 11:37:51.778 | Z183: 20:01:00.663 | AA183: 20:50:24.697 | AB183: 22:10:39.547 | AC183: 23:59:59.136 | AM183: 2019-06-22
A184: 2018-06-23 | B184: =IF(IF($D$7=$U$10,U184,IF($D$7=$V$10,V184,IF($D$7=$W$10,W184,IF($D$7=$X$10,X184,X184))))=0,0,IF($D$7=$U$10,U184,IF($D$7=$V$10,V184,IF($D$7=$W$10,W184,IF($D$7=$X$10,X184,X184))))+IF('dane i obliczenia'!$D$2=metadane!$A$2,1/24,0)+IF(AND('dane i obliczenia'!$D$2=metadane!$A$1,A184>$Q$2,A184<$Q$3),1/24,0)) -> 04:14:57.351 | C184: =IF(IF($D$8=$Z$10,Z184,IF($D$8=$AA$10,AA184,IF($D$8=$AB$10,AB184,IF($D$8=$AC$10,AC184,Z184))))+IF('dane i obliczenia'!$D$2=metadane!$A$2,1/24,0)+IF(AND('dane i obliczenia'!$D$2=metadane!$A$1,A184>$Q$2,A184<$Q$3),1/24,0)>0.99999,0.99999,IF($D$8=$Z$10,Z184,IF($D$8=$AA$10,AA184,IF($D$8=$AB$10,AB184,IF($D$8=$AC$10,AC184,Z184))))+IF('dane i obliczenia'!$D$2=metadane!$A$2,1/24,0)+IF(AND('dane i obliczenia'!$D$2=metadane!$A$1,A184>$Q$2,A184<$Q$3),1/24,0)) -> 21:01:07.726 | D184: 06:00:00 | E184: 16.76954861 | F184: 15.01881278 | G184: 0 | H184: -1.750735826 | I184: 17:30:00 | J184: 0 | K184: 3.518812783 | T184: 2018-06-23 | U184: =IFERROR(dawn($F$5,$F$6,YEAR(A184),MONTH(A184),DAY(A184),1,0,18),0) -> 00:00:00 | V184: 01:05:20.475 | W184: 02:25:33.706 | X184: 03:14:57.351 | Y184: 11:38:04.742 | Z184: 20:01:07.726 | AA184: 20:50:30.175 | AB184: 22:10:38.434 | AC184: 23:59:59.136 | AM184: 2019-06-23
A185: 2018-06-24 | B185: =IF(IF($D$7=$U$10,U185,IF($D$7=$V$10,V185,IF($D$7=$W$10,W185,IF($D$7=$X$10,X185,X185))))=0,0,IF($D$7=$U$10,U185,IF($D$7=$V$10,V185,IF($D$7=$W$10,W185,IF($D$7=$X$10,X185,X185))))+IF('dane i obliczenia'!$D$2=metadane!$A$2,1/24,0)+IF(AND('dane i obliczenia'!$D$2=metadane!$A$1,A185>$Q$2,A185<$Q$3),1/24,0)) -> 04:15:17.092 | C185: =IF(IF($D$8=$Z$10,Z185,IF($D$8=$AA$10,AA185,IF($D$8=$AB$10,AB185,IF($D$8=$AC$10,AC185,Z185))))+IF('dane i obliczenia'!$D$2=metadane!$A$2,1/24,0)+IF(AND('dane i obliczenia'!$D$2=metadane!$A$1,A185>$Q$2,A185<$Q$3),1/24,0)>0.99999,0.99999,IF($D$8=$Z$10,Z185,IF($D$8=$AA$10,AA185,IF($D$8=$AB$10,AB185,IF($D$8=$AC$10,AC185,Z185))))+IF('dane i obliczenia'!$D$2=metadane!$A$2,1/24,0)+IF(AND('dane i obliczenia'!$D$2=metadane!$A$1,A185>$Q$2,A185<$Q$3),1/24,0)) -> 21:01:11.571 | D185: 06:00:00 | E185: 16.76513307 | F185: 15.01988074 | G185: 0 | H185: -1.745252334 | I185: 17:30:00 | J185: 0 | K185: 3.519880737 | T185: 2018-06-24 | U185: =IFERROR(dawn($F$5,$F$6,YEAR(A185),MONTH(A185),DAY(A185),1,0,18),0) -> 00:00:00 | V185: 01:05:49.695 | W185: 02:25:55.286 | X185: 03:15:17.092 | Y185: 11:38:17.627 | Z185: 20:01:11.571 | AA185: 20:50:31.593 | AB185: 22:10:29.810 | AC185: 23:59:59.136 | AM185: 2019-06-24
A186: 2018-06-25 | B186: =IF(IF($D$7=$U$10,U186,IF($D$7=$V$10,V186,IF($D$7=$W$10,W186,IF($D$7=$X$10,X186,X186))))=0,0,IF($D$7=$U$10,U186,IF($D$7=$V$10,V186,IF($D$7=$W$10,W186,IF($D$7=$X$10,X186,X186))))+IF('dane i obliczenia'!$D$2=metadane!$A$2,1/24,0)+IF(AND('dane i obliczenia'!$D$2=metadane!$A$1,A186>$Q$2,A186<$Q$3),1/24,0)) -> 04:15:39.867 | C186: =IF(IF($D$8=$Z$10,Z186,IF($D$8=$AA$10,AA186,IF($D$8=$AB$10,AB186,IF($D$8=$AC$10,AC186,Z186))))+IF('dane i obliczenia'!$D$2=metadane!$A$2,1/24,0)+IF(AND('dane i obliczenia'!$D$2=metadane!$A$1,A186>$Q$2,A186<$Q$3),1/24,0)>0.99999,0.99999,IF($D$8=$Z$10,Z186,IF($D$8=$AA$10,AA186,IF($D$8=$AB$10,AB186,IF($D$8=$AC$10,AC186,Z186))))+IF('dane i obliczenia'!$D$2=metadane!$A$2,1/24,0)+IF(AND('dane i obliczenia'!$D$2=metadane!$A$1,A186>$Q$2,A186<$Q$3),1/24,0)) -> 21:01:12.186 | D186: 06:00:00 | E186: 16.75897755 | F186: 15.02005165 | G186: 0 | H186: -1.738925902 | I186: 17:30:00 | J186: 0 | K186: 3.520051653 | T186: 2018-06-25 | U186: =IFERROR(dawn($F$5,$F$6,YEAR(A186),MONTH(A186),DAY(A186),1,0,18),0) -> 00:00:00 | V186: 01:06:26.219 | W186: 02:26:20.740 | X186: 03:15:39.867 | Y186: 11:38:30.409 | Z186: 20:01:12.186 | AA186: 20:50:28.952 | AB186: 22:10:13.758 | AC186: 23:59:59.136 | AM186: 2019-06-25
A187: 2018-06-26 | B187: =IF(IF($D$7=$U$10,U187,IF($D$7=$V$10,V187,IF($D$7=$W$10,W187,IF($D$7=$X$10,X187,X187))))=0,0,IF($D$7=$U$10,U187,IF($D$7=$V$10,V187,IF($D$7=$W$10,W187,IF($D$7=$X$10,X187,X187))))+IF('dane i obliczenia'!$D$2=metadane!$A$2,1/24,0)+IF(AND('dane i obliczenia'!$D$2=metadane!$A$1,A187>$Q$2,A187<$Q$3),1/24,0)) -> 04:16:05.640 | C187: =IF(IF($D$8=$Z$10,Z187,IF($D$8=$AA$10,AA187,IF($D$8=$AB$10,AB187,IF($D$8=$AC$10,AC187,Z187))))+IF('dane i obliczenia'!$D$2=metadane!$A$2,1/24,0)+IF(AND('dane i obliczenia'!$D$2=metadane!$A$1,A187>$Q$2,A187<$Q$3),1/24,0)>0.99999,0.99999,IF($D$8=$Z$10,Z187,IF($D$8=$AA$10,AA187,IF($D$8=$AB$10,AB187,IF($D$8=$AC$10,AC187,Z187))))+IF('dane i obliczenia'!$D$2=metadane!$A$2,1/24,0)+IF(AND('dane i obliczenia'!$D$2=metadane!$A$1,A187>$Q$2,A187<$Q$3),1/24,0)) -> 21:01:09.565 | D187: 06:00:00 | E187: 16.75109014 | F187: 15.01932355 | G187: 0 | H187: -1.731766588 | I187: 17:30:00 | J187: 0 | K187: 3.51932355 | T187: 2018-06-26 | U187: =IFERROR(dawn($F$5,$F$6,YEAR(A187),MONTH(A187),DAY(A187),1,0,18),0) -> 00:00:00 | V187: 01:07:09.909 | W187: 02:26:50.019 | X187: 03:16:05.640 | Y187: 11:38:43.065 | Z187: 20:01:09.565 | AA187: 20:50:22.255 | AB187: 22:09:50.393 | AC187: 23:59:59.136 | AM187: 2019-06-26
A188: 2018-06-27 | B188: =IF(IF($D$7=$U$10,U188,IF($D$7=$V$10,V188,IF($D$7=$W$10,W188,IF($D$7=$X$10,X188,X188))))=0,0,IF($D$7=$U$10,U188,IF($D$7=$V$10,V188,IF($D$7=$W$10,W188,IF($D$7=$X$10,X188,X188))))+IF('dane i obliczenia'!$D$2=metadane!$A$2,1/24,0)+IF(AND('dane i obliczenia'!$D$2=metadane!$A$1,A188>$Q$2,A188<$Q$3),1/24,0)) -> 04:16:34.372 | C188: =IF(IF($D$8=$Z$10,Z188,IF($D$8=$AA$10,AA188,IF($D$8=$AB$10,AB188,IF($D$8=$AC$10,AC188,Z188))))+IF('dane i obliczenia'!$D$2=metadane!$A$2,1/24,0)+IF(AND('dane i obliczenia'!$D$2=metadane!$A$1,A188>$Q$2,A188<$Q$3),1/24,0)>0.99999,0.99999,IF($D$8=$Z$10,Z188,IF($D$8=$AA$10,AA188,IF($D$8=$AB$10,AB188,IF($D$8=$AC$10,AC188,Z188))))+IF('dane i obliczenia'!$D$2=metadane!$A$2,1/24,0)+IF(AND('dane i obliczenia'!$D$2=metadane!$A$1,A188>$Q$2,A188<$Q$3),1/24,0)) -> 21:01:03.704 | D188: 06:00:00 | E188: 16.74148094 | F188: 15.01769551 | G188: 0 | H188: -1.723785429 | I188: 17:30:00 | J188: 0 | K188: 3.517695509 | T188: 2018-06-27 | U188: =IFERROR(dawn($F$5,$F$6,YEAR(A188),MONTH(A188),DAY(A188),1,0,18),0) -> 00:00:00 | V188: 01:08:00.596 | W188: 02:27:23.073 | X188: 03:16:34.372 | Y188: 11:38:55.572 | Z188: 20:01:03.704 | AA188: 20:50:11.514 | AB188: 22:09:19.860 | AC188: 23:59:59.136 | AM188: 2019-06-27
A189: 2018-06-28 | B189: =IF(IF($D$7=$U$10,U189,IF($D$7=$V$10,V189,IF($D$7=$W$10,W189,IF($D$7=$X$10,X189,X189))))=0,0,IF($D$7=$U$10,U189,IF($D$7=$V$10,V189,IF($D$7=$W$10,W189,IF($D$7=$X$10,X189,X189))))+IF('dane i obliczenia'!$D$2=metadane!$A$2,1/24,0)+IF(AND('dane i obliczenia'!$D$2=metadane!$A$1,A189>$Q$2,A189<$Q$3),1/24,0)) -> 04:17:06.020 | C189: =IF(IF($D$8=$Z$10,Z189,IF($D$8=$AA$10,AA189,IF($D$8=$AB$10,AB189,IF($D$8=$AC$10,AC189,Z189))))+IF('dane i obliczenia'!$D$2=metadane!$A$2,1/24,0)+IF(AND('dane i obliczenia'!$D$2=metadane!$A$1,A189>$Q$2,A189<$Q$3),1/24,0)>0.99999,0.99999,IF($D$8=$Z$10,Z189,IF($D$8=$AA$10,AA189,IF($D$8=$AB$10,AB189,IF($D$8=$AC$10,AC189,Z189))))+IF('dane i obliczenia'!$D$2=metadane!$A$2,1/24,0)+IF(AND('dane i obliczenia'!$D$2=metadane!$A$1,A189>$Q$2,A189<$Q$3),1/24,0)) -> 21:00:54.604 | D189: 06:00:00 | E189: 16.73016206 | F189: 15.01516765 | G189: 0 | H189: -1.714994404 | I189: 17:30:00 | J189: 0 | K189: 3.515167653 | T189: 2018-06-28 | U189: =IFERROR(dawn($F$5,$F$6,YEAR(A189),MONTH(A189),DAY(A189),1,0,18),0) -> 00:00:00 | V189: 01:08:58.083 | W189: 02:27:59.843 | X189: 03:17:06.020 | Y189: 11:39:07.907 | Z189: 20:00:54.604 | AA189: 20:49:56.748 | AB189: 22:08:42.330 | AC189: 23:59:59.136 | AM189: 2019-06-28
A190: 2018-06-29 | B190: =IF(IF($D$7=$U$10,U190,IF($D$7=$V$10,V190,IF($D$7=$W$10,W190,IF($D$7=$X$10,X190,X190))))=0,0,IF($D$7=$U$10,U190,IF($D$7=$V$10,V190,IF($D$7=$W$10,W190,IF($D$7=$X$10,X190,X190))))+IF('dane i obliczenia'!$D$2=metadane!$A$2,1/24,0)+IF(AND('dane i obliczenia'!$D$2=metadane!$A$1,A190>$Q$2,A190<$Q$3),1/24,0)) -> 04:17:40.537 | C190: =IF(IF($D$8=$Z$10,Z190,IF($D$8=$AA$10,AA190,IF($D$8=$AB$10,AB190,IF($D$8=$AC$10,AC190,Z190))))+IF('dane i obliczenia'!$D$2=metadane!$A$2,1/24,0)+IF(AND('dane i obliczenia'!$D$2=metadane!$A$1,A190>$Q$2,A190<$Q$3),1/24,0)>0.99999,0.99999,IF($D$8=$Z$10,Z190,IF($D$8=$AA$10,AA190,IF($D$8=$AB$10,AB190,IF($D$8=$AC$10,AC190,Z190))))+IF('dane i obliczenia'!$D$2=metadane!$A$2,1/24,0)+IF(AND('dane i obliczenia'!$D$2=metadane!$A$1,A190>$Q$2,A190<$Q$3),1/24,0)) -> 21:00:42.268 | D190: 06:00:00 | E190: 16.71714754 | F190: 15.01174113 | G190: 0 | H190: -1.705406401 | I190: 17:30:00 | J190: 0 | K190: 3.511741135 | T190: 2018-06-29 | U190: =IFERROR(dawn($F$5,$F$6,YEAR(A190),MONTH(A190),DAY(A190),1,0,18),0) -> 00:00:00 | V190: 01:10:02.144 | W190: 02:28:40.263 | X190: 03:17:40.537 | Y190: 11:39:20.048 | Z190: 20:00:42.268 | AA190: 20:49:37.979 | AB190: 22:07:57.998 | AC190: 23:59:59.136 | AM190: 2019-06-29
A191: 2018-06-30 | B191: =IF(IF($D$7=$U$10,U191,IF($D$7=$V$10,V191,IF($D$7=$W$10,W191,IF($D$7=$X$10,X191,X191))))=0,0,IF($D$7=$U$10,U191,IF($D$7=$V$10,V191,IF($D$7=$W$10,W191,IF($D$7=$X$10,X191,X191))))+IF('dane i obliczenia'!$D$2=metadane!$A$2,1/24,0)+IF(AND('dane i obliczenia'!$D$2=metadane!$A$1,A191>$Q$2,A191<$Q$3),1/24,0)) -> 04:18:17.873 | C191: =IF(IF($D$8=$Z$10,Z191,IF($D$8=$AA$10,AA191,IF($D$8=$AB$10,AB191,IF($D$8=$AC$10,AC191,Z191))))+IF('dane i obliczenia'!$D$2=metadane!$A$2,1/24,0)+IF(AND('dane i obliczenia'!$D$2=metadane!$A$1,A191>$Q$2,A191<$Q$3),1/24,0)>0.99999,0.99999,IF($D$8=$Z$10,Z191,IF($D$8=$AA$10,AA191,IF($D$8=$AB$10,AB191,IF($D$8=$AC$10,AC191,Z191))))+IF('dane i obliczenia'!$D$2=metadane!$A$2,1/24,0)+IF(AND('dane i obliczenia'!$D$2=metadane!$A$1,A191>$Q$2,A191<$Q$3),1/24,0)) -> 21:00:26.705 | D191: 06:00:00 | E191: 16.70245328 | F191: 15.00741811 | G191: 0 | H191: -1.695035175 | I191: 17:30:00 | J191: 0 | K191: 3.507418107 | T191: 2018-06-30 | U191: =IFERROR(dawn($F$5,$F$6,YEAR(A191),MONTH(A191),DAY(A191),1,0,18),0) -> 00:00:00 | V191: 01:11:12.538 | W191: 02:29:24.265 | X191: 03:18:17.873 | Y191: 11:39:31.972 | Z191: 20:00:26.705 | AA191: 20:49:15.239 | AB191: 22:07:07.079 | AC191: 23:59:59.136 | AM191: 2019-06-30
A192: 2018-07-01 | B192: =IF(IF($D$7=$U$10,U192,IF($D$7=$V$10,V192,IF($D$7=$W$10,W192,IF($D$7=$X$10,X192,X192))))=0,0,IF($D$7=$U$10,U192,IF($D$7=$V$10,V192,IF($D$7=$W$10,W192,IF($D$7=$X$10,X192,X192))))+IF('dane i obliczenia'!$D$2=metadane!$A$2,1/24,0)+IF(AND('dane i obliczenia'!$D$2=metadane!$A$1,A192>$Q$2,A192<$Q$3),1/24,0)) -> 04:18:57.977 | C192: =IF(IF($D$8=$Z$10,Z192,IF($D$8=$AA$10,AA192,IF($D$8=$AB$10,AB192,IF($D$8=$AC$10,AC192,Z192))))+IF('dane i obliczenia'!$D$2=metadane!$A$2,1/24,0)+IF(AND('dane i obliczenia'!$D$2=metadane!$A$1,A192>$Q$2,A192<$Q$3),1/24,0)>0.99999,0.99999,IF($D$8=$Z$10,Z192,IF($D$8=$AA$10,AA192,IF($D$8=$AB$10,AB192,IF($D$8=$AC$10,AC192,Z192))))+IF('dane i obliczenia'!$D$2=metadane!$A$2,1/24,0)+IF(AND('dane i obliczenia'!$D$2=metadane!$A$1,A192>$Q$2,A192<$Q$3),1/24,0)) -> 21:00:07.926 | D192: 06:00:00 | E192: 16.68609701 | F192: 15.0022017 | G192: 0 | H192: -1.683895304 | I192: 17:30:00 | J192: 0 | K192: 3.502201703 | S192: 02:06:28.977 | T192: 2018-07-01 | U192: =IFERROR(dawn($F$5,$F$6,YEAR(A192),MONTH(A192),DAY(A192),1,0,18),0) -> 00:00:00 | V192: 01:12:29 | W192: 02:30:11.772 | X192: 03:18:57.977 | Y192: 11:39:43.657 | Z192: 20:00:07.926 | AA192: 20:48:48.563 | AB192: 22:06:09.800 | AC192: 23:59:59.136 | AM192: 2019-07-01
A193: 2018-07-02 | B193: =IF(IF($D$7=$U$10,U193,IF($D$7=$V$10,V193,IF($D$7=$W$10,W193,IF($D$7=$X$10,X193,X193))))=0,0,IF($D$7=$U$10,U193,IF($D$7=$V$10,V193,IF($D$7=$W$10,W193,IF($D$7=$X$10,X193,X193))))+IF('dane i obliczenia'!$D$2=metadane!$A$2,1/24,0)+IF(AND('dane i obliczenia'!$D$2=metadane!$A$1,A193>$Q$2,A193<$Q$3),1/24,0)) -> 04:19:40.792 | C193: =IF(IF($D$8=$Z$10,Z193,IF($D$8=$AA$10,AA193,IF($D$8=$AB$10,AB193,IF($D$8=$AC$10,AC193,Z193))))+IF('dane i obliczenia'!$D$2=metadane!$A$2,1/24,0)+IF(AND('dane i obliczenia'!$D$2=metadane!$A$1,A193>$Q$2,A193<$Q$3),1/24,0)>0.99999,0.99999,IF($D$8=$Z$10,Z193,IF($D$8=$AA$10,AA193,IF($D$8=$AB$10,AB193,IF($D$8=$AC$10,AC193,Z193))))+IF('dane i obliczenia'!$D$2=metadane!$A$2,1/24,0)+IF(AND('dane i obliczenia'!$D$2=metadane!$A$1,A193>$Q$2,A193<$Q$3),1/24,0)) -> 20:59:45.946 | D193: 06:00:00 | E193: 16.66809815 | F193: 14.996096 | G193: 0 | H193: -1.672002144 | I193: 17:30:00 | J193: 0 | K193: 3.496096004 | S193: 02:05:49.538 | T193: 2018-07-02 | U193: =IFERROR(dawn($F$5,$F$6,YEAR(A193),MONTH(A193),DAY(A193),1,0,18),0) -> 00:00:00 | V193: 01:13:51.255 | W193: 02:31:02.705 | X193: 03:19:40.792 | Y193: 11:39:55.082 | Z193: 19:59:45.946 | AA193: 20:48:17.991 | AB193: 22:05:06.405 | AC193: 23:59:59.136 | AM193: 2019-07-02
A194: 2018-07-03 | B194: =IF(IF($D$7=$U$10,U194,IF($D$7=$V$10,V194,IF($D$7=$W$10,W194,IF($D$7=$X$10,X194,X194))))=0,0,IF($D$7=$U$10,U194,IF($D$7=$V$10,V194,IF($D$7=$W$10,W194,IF($D$7=$X$10,X194,X194))))+IF('dane i obliczenia'!$D$2=metadane!$A$2,1/24,0)+IF(AND('dane i obliczenia'!$D$2=metadane!$A$1,A194>$Q$2,A194<$Q$3),1/24,0)) -> 04:20:26.262 | C194: =IF(IF($D$8=$Z$10,Z194,IF($D$8=$AA$10,AA194,IF($D$8=$AB$10,AB194,IF($D$8=$AC$10,AC194,Z194))))+IF('dane i obliczenia'!$D$2=metadane!$A$2,1/24,0)+IF(AND('dane i obliczenia'!$D$2=metadane!$A$1,A194>$Q$2,A194<$Q$3),1/24,0)>0.99999,0.99999,IF($D$8=$Z$10,Z194,IF($D$8=$AA$10,AA194,IF($D$8=$AB$10,AB194,IF($D$8=$AC$10,AC194,Z194))))+IF('dane i obliczenia'!$D$2=metadane!$A$2,1/24,0)+IF(AND('dane i obliczenia'!$D$2=metadane!$A$1,A194>$Q$2,A194<$Q$3),1/24,0)) -> 20:59:20.782 | D194: 06:00:00 | E194: 16.64847778 | F194: 14.989106 | G194: 0 | H194: -1.659371779 | I194: 17:30:00 | J194: 0 | K194: 3.489106004 | S194: 02:05:07.246 | T194: 2018-07-03 | U194: =IFERROR(dawn($F$5,$F$6,YEAR(A194),MONTH(A194),DAY(A194),1,0,18),0) -> 00:00:00 | V194: 01:15:19.015 | W194: 02:31:56.978 | X194: 03:20:26.262 | Y194: 11:40:06.225 | Z194: 19:59:20.782 | AA194: 20:47:43.571 | AB194: 22:03:57.142 | AC194: 23:59:59.136 | AM194: 2019-07-03
A195: 2018-07-04 | B195: =IF(IF($D$7=$U$10,U195,IF($D$7=$V$10,V195,IF($D$7=$W$10,W195,IF($D$7=$X$10,X195,X195))))=0,0,IF($D$7=$U$10,U195,IF($D$7=$V$10,V195,IF($D$7=$W$10,W195,IF($D$7=$X$10,X195,X195))))+IF('dane i obliczenia'!$D$2=metadane!$A$2,1/24,0)+IF(AND('dane i obliczenia'!$D$2=metadane!$A$1,A195>$Q$2,A195<$Q$3),1/24,0)) -> 04:21:14.325 | C195: =IF(IF($D$8=$Z$10,Z195,IF($D$8=$AA$10,AA195,IF($D$8=$AB$10,AB195,IF($D$8=$AC$10,AC195,Z195))))+IF('dane i obliczenia'!$D$2=metadane!$A$2,1/24,0)+IF(AND('dane i obliczenia'!$D$2=metadane!$A$1,A195>$Q$2,A195<$Q$3),1/24,0)>0.99999,0.99999,IF($D$8=$Z$10,Z195,IF($D$8=$AA$10,AA195,IF($D$8=$AB$10,AB195,IF($D$8=$AC$10,AC195,Z195))))+IF('dane i obliczenia'!$D$2=metadane!$A$2,1/24,0)+IF(AND('dane i obliczenia'!$D$2=metadane!$A$1,A195>$Q$2,A195<$Q$3),1/24,0)) -> 20:58:52.455 | D195: 06:00:00 | E195: 16.62725854 | F195: 14.98123758 | G195: 0 | H195: -1.646020964 | I195: 17:30:00 | J195: 0 | K195: 3.481237581 | S195: 02:04:22.335 | T195: 2018-07-04 | U195: =IFERROR(dawn($F$5,$F$6,YEAR(A195),MONTH(A195),DAY(A195),1,0,18),0) -> 00:00:00 | V195: 01:16:51.989 | W195: 02:32:54.502 | X195: 03:21:14.325 | Y195: 11:40:17.066 | Z195: 19:58:52.455 | AA195: 20:47:05.353 | AB195: 22:02:42.268 | AC195: 23:59:59.136 | AM195: 2019-07-04
A196: 2018-07-05 | B196: =IF(IF($D$7=$U$10,U196,IF($D$7=$V$10,V196,IF($D$7=$W$10,W196,IF($D$7=$X$10,X196,X196))))=0,0,IF($D$7=$U$10,U196,IF($D$7=$V$10,V196,IF($D$7=$W$10,W196,IF($D$7=$X$10,X196,X196))))+IF('dane i obliczenia'!$D$2=metadane!$A$2,1/24,0)+IF(AND('dane i obliczenia'!$D$2=metadane!$A$1,A196>$Q$2,A196<$Q$3),1/24,0)) -> 04:22:04.919 | C196: =IF(IF($D$8=$Z$10,Z196,IF($D$8=$AA$10,AA196,IF($D$8=$AB$10,AB196,IF($D$8=$AC$10,AC196,Z196))))+IF('dane i obliczenia'!$D$2=metadane!$A$2,1/24,0)+IF(AND('dane i obliczenia'!$D$2=metadane!$A$1,A196>$Q$2,A196<$Q$3),1/24,0)>0.99999,0.99999,IF($D$8=$Z$10,Z196,IF($D$8=$AA$10,AA196,IF($D$8=$AB$10,AB196,IF($D$8=$AC$10,AC196,Z196))))+IF('dane i obliczenia'!$D$2=metadane!$A$2,1/24,0)+IF(AND('dane i obliczenia'!$D$2=metadane!$A$1,A196>$Q$2,A196<$Q$3),1/24,0)) -> 20:58:20.991 | D196: 06:00:00 | E196: 16.60446453 | F196: 14.97249745 | G196: 0 | H196: -1.631967078 | I196: 17:30:00 | J196: 0 | K196: 3.47249745 | S196: 02:03:35.040 | T196: 2018-07-05 | U196: =IFERROR(dawn($F$5,$F$6,YEAR(A196),MONTH(A196),DAY(A196),1,0,18),0) -> 00:00:00 | V196: 01:18:29.879 | W196: 02:33:55.187 | X196: 03:22:04.919 | Y196: 11:40:27.585 | Z196: 19:58:20.991 | AA196: 20:46:23.391 | AB196: 22:01:22.039 | AC196: 23:59:59.136 | AM196: 2019-07-05
A197: 2018-07-06 | B197: =IF(IF($D$7=$U$10,U197,IF($D$7=$V$10,V197,IF($D$7=$W$10,W197,IF($D$7=$X$10,X197,X197))))=0,0,IF($D$7=$U$10,U197,IF($D$7=$V$10,V197,IF($D$7=$W$10,W197,IF($D$7=$X$10,X197,X197))))+IF('dane i obliczenia'!$D$2=metadane!$A$2,1/24,0)+IF(AND('dane i obliczenia'!$D$2=metadane!$A$1,A197>$Q$2,A197<$Q$3),1/24,0)) -> 04:22:57.979 | C197: =IF(IF($D$8=$Z$10,Z197,IF($D$8=$AA$10,AA197,IF($D$8=$AB$10,AB197,IF($D$8=$AC$10,AC197,Z197))))+IF('dane i obliczenia'!$D$2=metadane!$A$2,1/24,0)+IF(AND('dane i obliczenia'!$D$2=metadane!$A$1,A197>$Q$2,A197<$Q$3),1/24,0)>0.99999,0.99999,IF($D$8=$Z$10,Z197,IF($D$8=$AA$10,AA197,IF($D$8=$AB$10,AB197,IF($D$8=$AC$10,AC197,Z197))))+IF('dane i obliczenia'!$D$2=metadane!$A$2,1/24,0)+IF(AND('dane i obliczenia'!$D$2=metadane!$A$1,A197>$Q$2,A197<$Q$3),1/24,0)) -> 20:57:46.415 | D197: 06:00:00 | E197: 16.58012119 | F197: 14.96289313 | G197: 0 | H197: -1.61722806 | I197: 17:30:00 | J197: 0 | K197: 3.462893132 | S197: 02:02:45.592 | T197: 2018-07-06 | U197: =IFERROR(dawn($F$5,$F$6,YEAR(A197),MONTH(A197),DAY(A197),1,0,18),0) -> 00:00:00 | V197: 01:20:12.387 | W197: 02:34:58.934 | X197: 03:22:57.979 | Y197: 11:40:37.761 | Z197: 19:57:46.415 | AA197: 20:45:37.746 | AB197: 21:59:56.714 | AC197: 23:59:59.136 | AM197: 2019-07-06
A198: 2018-07-07 | B198: =IF(IF($D$7=$U$10,U198,IF($D$7=$V$10,V198,IF($D$7=$W$10,W198,IF($D$7=$X$10,X198,X198))))=0,0,IF($D$7=$U$10,U198,IF($D$7=$V$10,V198,IF($D$7=$W$10,W198,IF($D$7=$X$10,X198,X198))))+IF('dane i obliczenia'!$D$2=metadane!$A$2,1/24,0)+IF(AND('dane i obliczenia'!$D$2=metadane!$A$1,A198>$Q$2,A198<$Q$3),1/24,0)) -> 04:23:53.440 | C198: =IF(IF($D$8=$Z$10,Z198,IF($D$8=$AA$10,AA198,IF($D$8=$AB$10,AB198,IF($D$8=$AC$10,AC198,Z198))))+IF('dane i obliczenia'!$D$2=metadane!$A$2,1/24,0)+IF(AND('dane i obliczenia'!$D$2=metadane!$A$1,A198>$Q$2,A198<$Q$3),1/24,0)>0.99999,0.99999,IF($D$8=$Z$10,Z198,IF($D$8=$AA$10,AA198,IF($D$8=$AB$10,AB198,IF($D$8=$AC$10,AC198,Z198))))+IF('dane i obliczenia'!$D$2=metadane!$A$2,1/24,0)+IF(AND('dane i obliczenia'!$D$2=metadane!$A$1,A198>$Q$2,A198<$Q$3),1/24,0)) -> 20:57:08.758 | D198: 06:00:00 | E198: 16.55425526 | F198: 14.95243291 | G198: 0 | H198: -1.601822355 | I198: 17:30:00 | J198: 0 | K198: 3.452432905 | S198: 02:01:54.222 | T198: 2018-07-07 | U198: =IFERROR(dawn($F$5,$F$6,YEAR(A198),MONTH(A198),DAY(A198),1,0,18),0) -> 00:00:00 | V198: 01:21:59.217 | W198: 02:36:05.646 | X198: 03:23:53.440 | Y198: 11:40:47.575 | Z198: 19:57:08.758 | AA198: 20:44:48.480 | AB198: 21:58:26.547 | AC198: 23:59:59.136 | AM198: 2019-07-07
A199: 2018-07-08 | B199: =IF(IF($D$7=$U$10,U199,IF($D$7=$V$10,V199,IF($D$7=$W$10,W199,IF($D$7=$X$10,X199,X199))))=0,0,IF($D$7=$U$10,U199,IF($D$7=$V$10,V199,IF($D$7=$W$10,W199,IF($D$7=$X$10,X199,X199))))+IF('dane i obliczenia'!$D$2=metadane!$A$2,1/24,0)+IF(AND('dane i obliczenia'!$D$2=metadane!$A$1,A199>$Q$2,A199<$Q$3),1/24,0)) -> 04:24:51.232 | C199: =IF(IF($D$8=$Z$10,Z199,IF($D$8=$AA$10,AA199,IF($D$8=$AB$10,AB199,IF($D$8=$AC$10,AC199,Z199))))+IF('dane i obliczenia'!$D$2=metadane!$A$2,1/24,0)+IF(AND('dane i obliczenia'!$D$2=metadane!$A$1,A199>$Q$2,A199<$Q$3),1/24,0)>0.99999,0.99999,IF($D$8=$Z$10,Z199,IF($D$8=$AA$10,AA199,IF($D$8=$AB$10,AB199,IF($D$8=$AC$10,AC199,Z199))))+IF('dane i obliczenia'!$D$2=metadane!$A$2,1/24,0)+IF(AND('dane i obliczenia'!$D$2=metadane!$A$1,A199>$Q$2,A199<$Q$3),1/24,0)) -> 20:56:28.053 | D199: 06:00:00 | E199: 16.52689462 | F199: 14.94112577 | G199: 0 | H199: -1.585768856 | I199: 17:30:00 | J199: 0 | K199: 3.441125765 | S199: 02:01:01.153 | T199: 2018-07-08 | U199: =IFERROR(dawn($F$5,$F$6,YEAR(A199),MONTH(A199),DAY(A199),1,0,18),0) -> 00:00:00 | V199: 01:23:50.079 | W199: 02:37:15.222 | X199: 03:24:51.232 | Y199: 11:40:57.009 | Z199: 19:56:28.053 | AA199: 20:43:55.658 | AB199: 21:56:51.788 | AC199: 23:59:59.136 | AM199: 2019-07-08
A200: 2018-07-09 | B200: =IF(IF($D$7=$U$10,U200,IF($D$7=$V$10,V200,IF($D$7=$W$10,W200,IF($D$7=$X$10,X200,X200))))=0,0,IF($D$7=$U$10,U200,IF($D$7=$V$10,V200,IF($D$7=$W$10,W200,IF($D$7=$X$10,X200,X200))))+IF('dane i obliczenia'!$D$2=metadane!$A$2,1/24,0)+IF(AND('dane i obliczenia'!$D$2=metadane!$A$1,A200>$Q$2,A200<$Q$3),1/24,0)) -> 04:25:51.287 | C200: =IF(IF($D$8=$Z$10,Z200,IF($D$8=$AA$10,AA200,IF($D$8=$AB$10,AB200,IF($D$8=$AC$10,AC200,Z200))))+IF('dane i obliczenia'!$D$2=metadane!$A$2,1/24,0)+IF(AND('dane i obliczenia'!$D$2=metadane!$A$1,A200>$Q$2,A200<$Q$3),1/24,0)>0.99999,0.99999,IF($D$8=$Z$10,Z200,IF($D$8=$AA$10,AA200,IF($D$8=$AB$10,AB200,IF($D$8=$AC$10,AC200,Z200))))+IF('dane i obliczenia'!$D$2=metadane!$A$2,1/24,0)+IF(AND('dane i obliczenia'!$D$2=metadane!$A$1,A200>$Q$2,A200<$Q$3),1/24,0)) -> 20:55:44.333 | D200: 06:00:00 | E200: 16.49806822 | F200: 14.92898138 | G200: 0 | H200: -1.569086842 | I200: 17:30:00 | J200: 0 | K200: 3.42898138 | S200: 02:00:06.601 | T200: 2018-07-09 | U200: =IFERROR(dawn($F$5,$F$6,YEAR(A200),MONTH(A200),DAY(A200),1,0,18),0) -> 00:00:00 | V200: 01:25:44.686 | W200: 02:38:27.558 | X200: 03:25:51.287 | Y200: 11:41:06.045 | Z200: 19:55:44.333 | AA200: 20:42:59.349 | AB200: 21:55:12.683 | AC200: 23:59:59.136 | AM200: 2019-07-09
... 177 more rows

Sheet metadane (hidden)
A1: regularne zmiany czasu na letni i zimowy | C1: 1 | D1: 0 | E1: 13 | F1: świt astronomiczny (słońce znajduje się 18° poniżej linii horyzontu) | Q1: świt/zmierzch astronomiczny (słońce znajduje się 18° poniżej linii horyzontu)
A2: czas letni cały rok (UTC+ 2h) | C2: 2 | D2: 10 | E2: 14 | F2: świt żeglarski, lub nawigacyjny (słońce znajduje się 12° poniżej linii horyzontu) | Q2: świt/zmierzch żeglarski, lub nawigacyjny (słońce znajduje się 12° poniżej linii horyzontu)
A3: czas zimowy cały rok (UTC+ 1h) | C3: 3 | D3: 20 | E3: 15 | F3: świt cywilny, lub kalendarzowy (słońce znajduje się 6° poniżej linii horyzontu) | Q3: świt/zmierzch cywilny, lub kalendarzowy (słońce znajduje się 6° poniżej linii horyzontu)
C4: 4 | D4: 30 | E4: 16 | F4: wschód słońca (słońce znajduje się 0,833° poniżej linii horyzontu - efekt refrakcji) | Q4: wschód/zachód słońca (słońce znajduje się 0,833° poniżej linii horyzontu - efekt refrakcji)
C5: 5 | D5: 40 | E5: 17 | F5: południe słoneczne (słońce jest najwyżej na niebie i przechodzi nad południkiem, na którym znajduje się obserwator)
C6: 6 | D6: 50 | E6: 18 | F6: zachód słońca (słońce znajduje się 0,833° poniżej linii horyzontu - efekt refrakcji) | M6: Adamów (zamojskie) | N6: 50.6 | O6: 23.16666667
C7: 7 | E7: 19 | F7: zmierzch cywilny, lub kalendarzowy (słońce znajduje się 6° poniżej linii horyzontu) | M7: Adamówka | N7: 50.26666667 | O7: 22.7
C8: 8 | E8: 20 | F8: zmierzch żeglarski, lub nawigacyjny (słońce znajduje się 12° poniżej linii horyzontu) | M8: Aleksandrów | N8: 51.26666667 | O8: 19.98333333
C9: 9 | E9: 21 | F9: zmierzch astronomiczny (słońce znajduje się 18° poniżej linii horyzontu) | M9: Aleksandrów Kujawski | N9: 52.88333333 | O9: 18.7
C10: 10 | E10: 22 | M10: Aleksandrów Łódzki | N10: 51.81666667 | O10: 19.31666667
C11: 11 | E11: 23 | M11: Alwernia | N11: 50.06666667 | O11: 19.53333333
C12: 12 | E12: 24 | M12: Andrespol | N12: 51.73333333 | O12: 19.61666667
M13: Andrychów | N13: 49.86666667 | O13: 19.33333333
M14: Andrzejewo | N14: 52.83333333 | O14: 22.2
M15: Annopol | N15: 50.88333333 | O15: 21.86666667
M16: Augustów | N16: 53.85 | O16: 22.96666667
N17: 0
M18: Babiak | N18: 52.33333333 | O18: 18.68333333
M19: Babice | N19: 50.06666667 | O19: 19.43333333
M20: Babimost | N20: 52.15 | O20: 15.83333333
M21: Baborów | N21: 50.15 | O21: 17.98333333
M22: Baboszewo | N22: 52.7 | O22: 20.25
M23: Baćkowice | N23: 50.8 | O23: 21.23333333
M24: Bakałarzewo | N24: 54.1 | O24: 22.65
M25: Baligród | N25: 49.35 | O25: 22.28333333
M26: Bałtów | N26: 51.01666667 | O26: 21.53333333
M27: Banie | N27: 53.1 | O27: 14.63333333
M28: Banie Mazurskie | N28: 54.25 | O28: 22.05
M29: Baranowicze | N29: 53.13333333 | O29: 26.03333333
M30: Baranowo | N30: 53.18333333 | O30: 21.3
M31: Baranów (kaliskie) | N31: 51.26666667 | O31: 18
M32: Baranów (lubelskie) | N32: 51.56666667 | O32: 22.15
M33: Baranów (skierniewickie) | N33: 52.11666667 | O33: 20.46666667
M34: Baranów Sandomierski | N34: 50.5 | O34: 21.55
M35: Barciany | N35: 54.21666667 | O35: 21.35
M36: Barcin | N36: 52.86666667 | O36: 17.95
M37: Barczewo | N37: 53.83333333 | O37: 20.68333333
M38: Bardo | N38: 50.51666667 | O38: 16.75
M39: Bargłów Kościelny | N39: 53.76666667 | O39: 22.83333333
M40: Barlinek | N40: 52.98333333 | O40: 15.21666667
M41: Bartoszyce | N41: 54.25 | O41: 20.8
M42: Baruchowo | N42: 52.5 | O42: 19.25
M43: Barwice | N43: 53.73333333 | O43: 16.35
M44: Batorz | N44: 50.83333333 | O44: 22.5
M45: Bądkowo | N45: 52.7 | O45: 18.78333333
M46: Bedlno | N46: 52.21666667 | O46: 19.56666667
M47: Bejsce | N47: 50.25 | O47: 20.6
M48: Belsk Duży | N48: 51.83333333 | O48: 20.81666667
M49: Bełchatów | N49: 51.36666667 | O49: 19.36666667
M50: Bełżyce | N50: 51.16666667 | O50: 22.28333333
M51: Bestwina | N51: 49.9 | O51: 19.05
M52: Będków | N52: 51.58333333 | O52: 19.75
M53: Będzin | N53: 50.31666667 | O53: 19.13333333
M54: Będzino | N54: 54.2 | O54: 15.98333333
M55: Biała (opolskie) | N55: 50.38333333 | O55: 17.66666667
M56: Biała (sieradzkie) | N56: 51.26666667 | O56: 18.45
M57: Biała Piska | N57: 53.61666667 | O57: 22.06666667
M58: Biała Podlaska | N58: 52.03333333 | O58: 23.11666667
M59: Biała Rawska | N59: 51.8 | O59: 20.48333333
M60: Białaczów | N60: 51.3 | O60: 20.3
M61: Białe Błota | N61: 53.1 | O61: 17.91666667
M62: Białobrzegi (rzeszow.) | N62: 50.11666667 | O62: 22.35
M63: Białobrzegi (radomskie) | N63: 51.65 | O63: 20.95
M64: Białogard | N64: 54 | O64: 15.98333333
M65: Białopole | N65: 50.98333333 | O65: 23.73333333
M66: Białośliwie | N66: 53.1 | O66: 17.11666667
M67: Białowieża | N67: 52.7 | O67: 23.86666667
M68: Biały Bór | N68: 53.73333333 | O68: 16.83333333
M69: Biały Dunajec | N69: 49.36666667 | O69: 20.03333333
M70: Białystok | N70: 53.13333333 | O70: 23.16666667
M71: Biecz | N71: 49.73333333 | O71: 21.26666667
M72: Bielany | N72: 52.33333333 | O72: 22.25
M73: Bielawa | N73: 50.7 | O73: 16.61666667
M74: Bielawy | N74: 52.06666667 | O74: 19.65
M75: Bielice | N75: 53.2 | O75: 14.71666667
M76: Bieliny | N76: 50.85 | O76: 20.91666667
M77: Bielsk | N77: 52.68333333 | O77: 19.8
M78: Bielsk Podlaski | N78: 52.76666667 | O78: 23.2
M79: Bielsko-Biała | N79: 49.83333333 | O79: 19.06666667
M80: Bierawa | N80: 50.28333333 | O80: 18.26666667
M81: Bierutów | N81: 51.11666667 | O81: 17.55
M82: Bierzwnik | N82: 53.03333333 | O82: 15.66666667
M83: Biesiekierz | N83: 54.13333333 | O83: 16.05
M84: Bieżuń | N84: 52.95 | O84: 19.86666667
M85: Biłgoraj | N85: 50.53333333 | O85: 22.71666667
M86: Bircza | N86: 49.7 | O86: 22.46666667
M87: Biskupice | N87: 49.96666667 | O87: 20.11666667
M88: Biskupiec (toruńskie) | N88: 53.5 | O88: 19.35
M89: Biskupiec (olsztyńskie) | N89: 53.86666667 | O89: 20.95
M90: Biszcza | N90: 50.41666667 | O90: 22.63333333
M91: Bisztynek | N91: 54.08333333 | O91: 20.9
M92: Blachownia | N92: 50.78333333 | O92: 18.96666667
M93: Bledzew | N93: 52.51666667 | O93: 15.4
M94: Blizanów | N94: 51.9 | O94: 18.01666667
M95: Bliżyn | N95: 51.1 | O95: 20.75
M96: Błaszki | N96: 51.65 | O96: 18.43333333
M97: Błażowa | N97: 49.9 | O97: 22.1
M98: Błędów | N98: 51.78333333 | O98: 20.7
M99: Błonie | N99: 52.2 | O99: 20.6
M100: Bobolice | N100: 53.95 | O100: 16.58333333
M101: Bobowa | N101: 49.71666667 | O101: 20.95
M102: Bobrowice | N102: 51.95 | O102: 15.08333333
M103: Bobrowniki (katowickie) | N103: 50.38333333 | O103: 18.98333333
M104: Bobrowniki (włocławskie) | N104: 52.76666667 | O104: 18.96666667
M105: Bobrowo | N105: 53.28333333 | O105: 19.26666667
M106: Bochnia | N106: 49.96666667 | O106: 20.41666667
M107: Boćki | N107: 52.65 | O107: 23.03333333
M108: Bodzanów | N108: 52.51666667 | O108: 20.03333333
M109: Bodzechów | N109: 50.85 | O109: 21.38333333
M110: Bodzentyn | N110: 50.95 | O110: 20.95
M111: Bogatynia | N111: 50.9 | O111: 14.95
M112: Bogdaniec | N112: 52.68333333 | O112: 15.05
M113: Bogoria | N113: 50.65 | O113: 21.25
M114: Boguchwała | N114: 49.98333333 | O114: 21.95
M115: Boguszów-Gorce | N115: 50.76666667 | O115: 16.2
M116: Boguty-Pianki | N116: 52.71666667 | O116: 22.41666667
M117: Bojadła | N117: 51.95 | O117: 15.81666667
M118: Bojanowo | N118: 51.7 | O118: 16.75
M119: Bojanów | N119: 50.43333333 | O119: 21.95
M120: Bolesław | N120: 50.26666667 | O120: 20.88333333
M121: Bolesławiec (kaliskie) | N121: 51.2 | O121: 18.2
M122: Bolesławiec (jeleniog.) | N122: 51.26666667 | O122: 15.56666667
M123: Boleszkowice | N123: 52.71666667 | O123: 14.55
M124: Bolimów | N124: 52.08333333 | O124: 20.16666667
M125: Bolków | N125: 50.91666667 | O125: 16.1
M126: Boniewo | N126: 52.46666667 | O126: 18.9
M127: Borek Wielkopolski | N127: 51.91666667 | O127: 17.25
M128: Borki | N128: 51.73333333 | O128: 22.53333333
M129: Borkowice | N129: 51.31666667 | O129: 20.7
M130: Borowa | N130: 50.38333333 | O130: 21.35
M131: Borowiczki | N131: 52.51666667 | O131: 19.75
M132: Borowie | N132: 51.95 | O132: 21.76666667
M133: Borów | N133: 50.88333333 | O133: 17
M134: Borysław | N134: 49.26666667 | O134: 23.45
M135: Borzechów | N135: 51.1 | O135: 22.28333333
M136: Borzęcin | N136: 50.1 | O136: 20.7
M137: Borzytuchom | N137: 54.21666667 | O137: 17.38333333
M138: Branice | N138: 50.05 | O138: 17.78333333
M139: Braniewo | N139: 54.38333333 | O139: 19.83333333
M140: Brańsk | N140: 52.75 | O140: 22.83333333
M141: Brańszczyk | N141: 52.61666667 | O141: 21.6
M142: Brasław | N142: 55.63333333 | O142: 27.03333333
M143: Brąszewice | N143: 51.5 | O143: 18.45
M144: Brodnica (poznańskie) | N144: 52.15 | O144: 16.88333333
M145: Brodnica (toruńskie) | N145: 53.25 | O145: 19.4
M146: Brody (kieleckie) | N146: 51.03333333 | O146: 21.23333333
M147: Brody (zielonogórskie) | N147: 51.75 | O147: 14.75
M148: Brody | N148: 50.1 | O148: 25.16666667
M149: Brojce | N149: 53.95 | O149: 15.35
M150: Brok | N150: 52.7 | O150: 21.85
M151: Brójce | N151: 51.66666667 | O151: 19.63333333
M152: Brudzeń Duży | N152: 52.66666667 | O152: 19.48333333
M153: Brudzew | N153: 52.1 | O153: 18.6
M154: Brusy | N154: 53.88333333 | O154: 17.73333333
M155: Brwinów | N155: 52.13333333 | O155: 20.71666667
M156: Brzeg | N156: 50.86666667 | O156: 17.48333333
M157: Brzeg Dolny | N157: 51.26666667 | O157: 16.71666667
M158: Brzesko | N158: 49.96666667 | O158: 20.61666667
M159: Brzeszcze | N159: 49.98333333 | O159: 19.15
M160: Brześć Kujawski | N160: 52.61666667 | O160: 18.88333333
M161: Brześć nad Bugiem | N161: 52.1 | O161: 23.7
M162: Brzeziny (kaliskie) | N162: 51.6 | O162: 18.26666667
M163: Brzeziny (skierniewic.) | N163: 51.8 | O163: 19.75
M164: Brzeźnica (bielskie) | N164: 49.96666667 | O164: 19.61666667
M165: Brzeźnica (zielonogór.) | N165: 51.71666667 | O165: 15.4
M166: Brzeźnio | N166: 51.5 | O166: 18.63333333
M167: Brzeźno | N167: 53.7 | O167: 15.78333333
M168: Brzeżany | N168: 49.45 | O168: 24.93333333
M169: Brzostek | N169: 49.88333333 | O169: 21.41666667
M170: Brzozie | N170: 53.31666667 | O170: 19.6
M171: Brzozów | N171: 49.7 | O171: 22.03333333
M172: Brzuze | N172: 53.05 | O172: 19.25
M173: Brzyska | N173: 49.81666667 | O173: 21.38333333
M174: Buczacz | N174: 49.06666667 | O174: 25.38333333
M175: Buczek | N175: 51.5 | O175: 19.16666667
M176: Budry | N176: 54.25 | O176: 21.88333333
M177: Budzów | N177: 49.78333333 | O177: 19.68333333
M178: Budzyń | N178: 52.9 | O178: 16.98333333
M179: Buk | N179: 52.36666667 | O179: 16.51666667
M180: Bukowiec | N180: 53.43333333 | O180: 18.23333333
M181: Bukowina Tatrzańska | N181: 49.33333333 | O181: 20.1
M182: Bukowno | N182: 50.26666667 | O182: 19.43333333
M183: Bukowsko | N183: 49.48333333 | O183: 22.05
M184: Bulkowo | N184: 52.55 | O184: 20.11666667
M185: Burzenin | N185: 51.45 | O185: 18.83333333
M186: Busko Zdrój | N186: 50.46666667 | O186: 20.8
M187: Bychawa | N187: 51.01666667 | O187: 22.55
M188: Byczyna | N188: 51.11666667 | O188: 18.21666667
M189: Bydgoszcz | N189: 53.11666667 | O189: 18
M190: Bystrzyca Kłodzka | N190: 50.3 | O190: 16.63333333
M191: Bytnica | N191: 52.15 | O191: 15.15
M192: Bytom | N192: 50.38333333 | O192: 18.9
M193: Bytom Odrzański | N193: 51.73333333 | O193: 15.83333333
M194: Bytoń | N194: 52.56666667 | O194: 18.58333333
M195: Bytów | N195: 54.16666667 | O195: 17.5
N196: 0
M197: Cedry Wielkie | N197: 54.25 | O197: 18.85
M198: Cedynia | N198: 52.88333333 | O198: 14.2
M199: Cegłów | N199: 52.15 | O199: 21.73333333
M200: Cekcyn | N200: 53.58333333 | O200: 18.01666667
... 2145 more rows

Sheet metadane obrazy (hidden)
A1: 00:00:00 | C1: =A1 -> 0 | D1: =ABS('dane i obliczenia'!$AF$11-C1) -> 6.924466197 | E1: =ABS('dane i obliczenia'!$AF$12-C1) -> 17.76330902
A2: 00:30:00 | C2: =A2*24 -> 0.5 | D2: =ABS('dane i obliczenia'!$AF$11-C2) -> 6.424466197 | E2: =ABS('dane i obliczenia'!$AF$12-C2) -> 17.26330902
A3: 01:00:00 | C3: =A3*24 -> 1 | D3: =ABS('dane i obliczenia'!$AF$11-C3) -> 5.924466197 | E3: =ABS('dane i obliczenia'!$AF$12-C3) -> 16.76330902
A4: 01:30:00 | C4: 1.5 | D4: =ABS('dane i obliczenia'!$AF$11-C4) -> 5.424466197 | E4: =ABS('dane i obliczenia'!$AF$12-C4) -> 16.26330902
A5: 02:00:00 | C5: 2 | D5: =ABS('dane i obliczenia'!$AF$11-C5) -> 4.924466197 | E5: =ABS('dane i obliczenia'!$AF$12-C5) -> 15.76330902
A6: 02:30:00 | C6: 2.5 | D6: =ABS('dane i obliczenia'!$AF$11-C6) -> 4.424466197 | E6: =ABS('dane i obliczenia'!$AF$12-C6) -> 15.26330902
A7: 03:00:00 | C7: 3 | D7: =ABS('dane i obliczenia'!$AF$11-C7) -> 3.924466197 | E7: =ABS('dane i obliczenia'!$AF$12-C7) -> 14.76330902
A8: 03:30:00 | C8: 3.5 | D8: =ABS('dane i obliczenia'!$AF$11-C8) -> 3.424466197 | E8: =ABS('dane i obliczenia'!$AF$12-C8) -> 14.26330902
A9: 04:00:00 | C9: 4 | D9: =ABS('dane i obliczenia'!$AF$11-C9) -> 2.924466197 | E9: =ABS('dane i obliczenia'!$AF$12-C9) -> 13.76330902
A10: 04:30:00 | C10: 4.5 | D10: =ABS('dane i obliczenia'!$AF$11-C10) -> 2.424466197 | E10: =ABS('dane i obliczenia'!$AF$12-C10) -> 13.26330902
A11: 05:00:00 | C11: 5 | D11: =ABS('dane i obliczenia'!$AF$11-C11) -> 1.924466197 | E11: =ABS('dane i obliczenia'!$AF$12-C11) -> 12.76330902
A12: 05:30:00 | C12: 5.5 | D12: =ABS('dane i obliczenia'!$AF$11-C12) -> 1.424466197 | E12: =ABS('dane i obliczenia'!$AF$12-C12) -> 12.26330902
A13: 06:00:00 | C13: 6 | D13: =ABS('dane i obliczenia'!$AF$11-C13) -> 0.9244661968 | E13: =ABS('dane i obliczenia'!$AF$12-C13) -> 11.76330902
A14: 06:30:00 | C14: 6.5 | D14: =ABS('dane i obliczenia'!$AF$11-C14) -> 0.4244661968 | E14: =ABS('dane i obliczenia'!$AF$12-C14) -> 11.26330902
A15: 07:00:00 | C15: 7 | D15: =ABS('dane i obliczenia'!$AF$11-C15) -> 0.07553380324 | E15: =ABS('dane i obliczenia'!$AF$12-C15) -> 10.76330902
A16: 07:30:00 | C16: 7.5 | D16: =ABS('dane i obliczenia'!$AF$11-C16) -> 0.5755338032 | E16: =ABS('dane i obliczenia'!$AF$12-C16) -> 10.26330902
A17: 08:00:00 | C17: 8 | D17: =ABS('dane i obliczenia'!$AF$11-C17) -> 1.075533803 | E17: =ABS('dane i obliczenia'!$AF$12-C17) -> 9.763309024
A18: 08:30:00 | C18: 8.5 | D18: =ABS('dane i obliczenia'!$AF$11-C18) -> 1.575533803 | E18: =ABS('dane i obliczenia'!$AF$12-C18) -> 9.263309024
A19: 09:00:00 | C19: 9 | D19: =ABS('dane i obliczenia'!$AF$11-C19) -> 2.075533803 | E19: =ABS('dane i obliczenia'!$AF$12-C19) -> 8.763309024
A20: 09:30:00 | C20: 9.5 | D20: =ABS('dane i obliczenia'!$AF$11-C20) -> 2.575533803 | E20: =ABS('dane i obliczenia'!$AF$12-C20) -> 8.263309024
A21: 10:00:00 | C21: 10 | D21: =ABS('dane i obliczenia'!$AF$11-C21) -> 3.075533803 | E21: =ABS('dane i obliczenia'!$AF$12-C21) -> 7.763309024
A22: 10:30:00 | C22: 10.5 | D22: =ABS('dane i obliczenia'!$AF$11-C22) -> 3.575533803 | E22: =ABS('dane i obliczenia'!$AF$12-C22) -> 7.263309024
A23: 11:00:00 | C23: 11 | D23: =ABS('dane i obliczenia'!$AF$11-C23) -> 4.075533803 | E23: =ABS('dane i obliczenia'!$AF$12-C23) -> 6.763309024
A24: 11:30:00 | C24: 11.5 | D24: =ABS('dane i obliczenia'!$AF$11-C24) -> 4.575533803 | E24: =ABS('dane i obliczenia'!$AF$12-C24) -> 6.263309024
A25: 12:00:00 | C25: 12 | D25: =ABS('dane i obliczenia'!$AF$11-C25) -> 5.075533803 | E25: =ABS('dane i obliczenia'!$AF$12-C25) -> 5.763309024
A26: 12:30:00 | C26: 12.5 | D26: =ABS('dane i obliczenia'!$AF$11-C26) -> 5.575533803 | E26: =ABS('dane i obliczenia'!$AF$12-C26) -> 5.263309024
A27: 13:00:00 | C27: 13 | D27: =ABS('dane i obliczenia'!$AF$11-C27) -> 6.075533803 | E27: =ABS('dane i obliczenia'!$AF$12-C27) -> 4.763309024
A28: 13:30:00 | C28: 13.5 | D28: =ABS('dane i obliczenia'!$AF$11-C28) -> 6.575533803 | E28: =ABS('dane i obliczenia'!$AF$12-C28) -> 4.263309024
A29: 14:00:00 | C29: 14 | D29: =ABS('dane i obliczenia'!$AF$11-C29) -> 7.075533803 | E29: =ABS('dane i obliczenia'!$AF$12-C29) -> 3.763309024
A30: 14:30:00 | C30: 14.5 | D30: =ABS('dane i obliczenia'!$AF$11-C30) -> 7.575533803 | E30: =ABS('dane i obliczenia'!$AF$12-C30) -> 3.263309024
A31: 15:00:00 | C31: 15 | D31: =ABS('dane i obliczenia'!$AF$11-C31) -> 8.075533803 | E31: =ABS('dane i obliczenia'!$AF$12-C31) -> 2.763309024
A32: 15:30:00 | C32: 15.5 | D32: =ABS('dane i obliczenia'!$AF$11-C32) -> 8.575533803 | E32: =ABS('dane i obliczenia'!$AF$12-C32) -> 2.263309024
A33: 16:00:00 | C33: 16 | D33: =ABS('dane i obliczenia'!$AF$11-C33) -> 9.075533803 | E33: =ABS('dane i obliczenia'!$AF$12-C33) -> 1.763309024
A34: 16:30:00 | C34: 16.5 | D34: =ABS('dane i obliczenia'!$AF$11-C34) -> 9.575533803 | E34: =ABS('dane i obliczenia'!$AF$12-C34) -> 1.263309024
A35: 17:00:00 | C35: 17 | D35: =ABS('dane i obliczenia'!$AF$11-C35) -> 10.0755338 | E35: =ABS('dane i obliczenia'!$AF$12-C35) -> 0.763309024
A36: 17:30:00 | C36: 17.5 | D36: =ABS('dane i obliczenia'!$AF$11-C36) -> 10.5755338 | E36: =ABS('dane i obliczenia'!$AF$12-C36) -> 0.263309024
A37: 18:00:00 | C37: 18 | D37: =ABS('dane i obliczenia'!$AF$11-C37) -> 11.0755338 | E37: =ABS('dane i obliczenia'!$AF$12-C37) -> 0.236690976
A38: 18:30:00 | C38: 18.5 | D38: =ABS('dane i obliczenia'!$AF$11-C38) -> 11.5755338 | E38: =ABS('dane i obliczenia'!$AF$12-C38) -> 0.736690976
A39: 19:00:00 | C39: 19 | D39: =ABS('dane i obliczenia'!$AF$11-C39) -> 12.0755338 | E39: =ABS('dane i obliczenia'!$AF$12-C39) -> 1.236690976
A40: 19:30:00 | C40: 19.5 | D40: =ABS('dane i obliczenia'!$AF$11-C40) -> 12.5755338 | E40: =ABS('dane i obliczenia'!$AF$12-C40) -> 1.736690976
A41: 20:00:00 | C41: 20 | D41: =ABS('dane i obliczenia'!$AF$11-C41) -> 13.0755338 | E41: =ABS('dane i obliczenia'!$AF$12-C41) -> 2.236690976
A42: 20:30:00 | C42: 20.5 | D42: =ABS('dane i obliczenia'!$AF$11-C42) -> 13.5755338 | E42: =ABS('dane i obliczenia'!$AF$12-C42) -> 2.736690976
A43: 21:00:00 | C43: 21 | D43: =ABS('dane i obliczenia'!$AF$11-C43) -> 14.0755338 | E43: =ABS('dane i obliczenia'!$AF$12-C43) -> 3.236690976
A44: 21:30:00 | C44: 21.5 | D44: =ABS('dane i obliczenia'!$AF$11-C44) -> 14.5755338 | E44: =ABS('dane i obliczenia'!$AF$12-C44) -> 3.736690976
A45: 22:00:00 | C45: 22 | D45: =ABS('dane i obliczenia'!$AF$11-C45) -> 15.0755338 | E45: =ABS('dane i obliczenia'!$AF$12-C45) -> 4.236690976
A46: 22:30:00 | C46: 22.5 | D46: =ABS('dane i obliczenia'!$AF$11-C46) -> 15.5755338 | E46: =ABS('dane i obliczenia'!$AF$12-C46) -> 4.736690976
A47: 23:00:00 | C47: 23 | D47: =ABS('dane i obliczenia'!$AF$11-C47) -> 16.0755338 | E47: =ABS('dane i obliczenia'!$AF$12-C47) -> 5.236690976
A48: 23:30:00 | C48: 23.5 | D48: =ABS('dane i obliczenia'!$AF$11-C48) -> 16.5755338 | E48: =ABS('dane i obliczenia'!$AF$12-C48) -> 5.736690976

Sheet sunrise (hidden)
A1: Calculation of local times of sunrise, solar noon, sunset, dawn, and dusk based on the calculation procedure by NOAA (http://www.srrb.noaa.gov/highlights/sunrise/sunrise.html)
A3: Input
A4: latitude in decimal degrees (positive in northern hemisphere) | B4: =52+36/60 -> 52.6 | D4: dawn(lat, lon, year, month, day,1,0, 18)
A5: longitude in decimal degrees (negative for western hemisphere) | B5: 21
A6: year | B6: 2018
A7: month | B7: 1
A8: day | B8: 1
A9: time zone in hours relative to GMT/UTC (PST= -8, MST= -7, CST= -6, EST= -5) | B9: 1
A10: daylight savings time (no= 0, yes= 1) | B10: 0
A12: Output (local time in days)
A13: astronomical dawn (sun is 18 degrees below horizon) | B13: =dawn(B4,B5,B6,B7,B8,B9,B10,18) -> 05:40:00.224
A14: nautical dawn (sun is 12 degrees below horizon) | B14: =dawn(B4,B5,B6,B7,B8,B9,B10,12) -> 06:21:41.177
A15: civil dawn (sun is 6 degrees below horizon) | B15: =dawn(B4,B5,B6,B7,B8,B9,B10,6) -> 07:05:51.459
A16: sunrise (sun is 0.833 degrees below horizon to account for refraction) | B16: =sunrise(B4,B5,B6,B7,B8,B9,B10) -> 07:47:13.842
A17: solar noon (sun is at its highest point in the sky for this day) | B17: =solarnoon(B4,B5,B6,B7,B8,B9,B10) -> 11:39:31.772
A18: sunset (sun is 0.833 degrees below horizon to account for refraction) | B18: =sunset(B4,B5,B6,B7,B8,B9,B10) -> 15:32:01.511
A19: civil dusk (sun is 6 degrees below horizon) | B19: =dusk(B4,B5,B6,B7,B8,B9,B10,6) -> 16:13:22.399
A20: nautical dusk (sun is 12 degrees below horizon) | B20: =dusk(B4,B5,B6,B7,B8,B9,B10,12) -> 16:57:31.614
A21: astronomical dusk (sun is 18 degrees below horizon) | B21: =dusk(B4,B5,B6,B7,B8,B9,B10,18) -> 17:39:11.916

Sheet solar_position (hidden)
A1: Calculation of solar azimuth and elevation based on the calculation procedure by NOAA (http://www.srrb.noaa.gov/highlights/sunrise/azel.html)
A3: Input
A4: latitude in decimal degrees (positive in northern hemisphere) | B4: =47+36/60 -> 47.6
A5: longitude in decimal degrees (negative for western hemisphere) | B5: =-122-19/60 -> -122.3166667
A6: year | B6: 2001
A7: month | B7: 6
A8: day | B8: 21
A9: hours | B9: 13
A10: minutes | B10: 11
A11: seconds | B11: 0
A12: time zone in hours relative to GMT/UTC (PST= -8, MST= -7, CST= -6, EST= -5) | B12: -8
A13: daylight savings time (no= 0, yes= 1) | B13: 1
A15: Output
A16: solar azimuth (degrees clockwise from north) | B16: =solarazimuth(B4,B5,B6,B7,B8,B9,B10,B11,B12,B13) -> 179.9336529
A17: solar elevation (degrees from horizon) | B17: =solarelevation(B4,B5,B6,B7,B8,B9,B10,B11,B12,B13) -> 65.84507751
